Workbook

Sheet INDICE
A2: Exportaciones de soja y subproductos
A5: Concepto | B5: Periodicidad | C5: Año | D5: Fuente
A7: Resumen | B7: Mensual | C7: Desde 2005 | D7: BCP
A8: Evolución de las exportaciones de productos de la cadena de la soja (US$ - Kg - US$/Ton) | B8: Mensual | C8: Desde 2005 | D8: BCP
A9: Variación % de las exportaciones de productos de la cadena de la soja (US$ - Kg - US$/Ton) | B9: Mensual | C9: Desde 2005 | D9: BCP
A10: Evolución de las exportaciones de maíz (US$ - Kg - US$/Ton) | B10: Mensual | C10: Desde 2005 | D10: BCP
A11: Variación % de las exportaciones de maíz (US$ - Kg - US$/Ton) | B11: Mensual | C11: Desde 2005 | D11: BCP
A12: g1 - Gráfico de evolución de las exportaciones (US$) | B12: Mensual | C12: Desde 2005 | D12: BCP
A13: g2 - Gráfico de evolución de las exportaciones (Kg) | B13: Mensual | C13: Desde 2005 | D13: BCP
A14: g3 - Gráfico de evolución del precio de las exportaciones (US$/Ton) | B14: Mensual | C14: Desde 2005 | D14: BCP
A15: Evolución de las exportaciones de trigo (US$ - Kg - US$/Ton) | B15: Mensual | C15: Desde 2005 | D15: BCP
A16: Variación % de las exportaciones de trigo (US$ - Kg - US$/Ton) | B16: Mensual | C16: Desde 2005 | D16: BCP
A17: g1 - Gráfico de evolución de las exportaciones (US$) | B17: Mensual | C17: Desde 2005 | D17: BCP
A18: g2 - Gráfico de evolución de las exportaciones (Kg) | B18: Mensual | C18: Desde 2005 | D18: BCP
A19: g3 - Gráfico de evolución del precio de las exportaciones (US$/Ton) | B19: Mensual | C19: Desde 2005 | D19: BCP
A20: Evolución de las exportaciones de canola (US$ - Kg - US$/Ton) | B20: Mensual | C20: Desde 2005 | D20: BCP
A21: Variación % de las exportaciones de canola (US$ - Kg - US$/Ton) | B21: Mensual | C21: Desde 2005 | D21: BCP
A22: Evolución de las exportaciones de girasol (US$ - Kg - US$/Ton) | B22: Mensual | C22: Desde 2005 | D22: BCP
A23: Variación % de las exportaciones de girasol (US$ - Kg - US$/Ton) | B23: Mensual | C23: Desde 2005 | D23: BCP
A24: Evolución de las exportaciones de aceite de girasol (US$ - Kg - US$/Ton) | B24: Mensual | C24: Desde 2005 | D24: BCP
A25: Variación % de las exportaciones de aceite de girasol (US$ - Kg - US$/Ton) | B25: Mensual | C25: Desde 2005 | D25: BCP
A26: Evolución de las exportaciones de aceite de canola (US$ - Kg - US$/Ton) | B26: Mensual | C26: Desde 2005 | D26: BCP
A27: Variación % de las exportaciones de aceite de canola (US$ - Kg - US$/Ton) | B27: Mensual | C27: Desde 2005 | D27: BCP
A28: Exportaciones de maíz según destino (US$ - Kg - US$/Ton) | B28: Acumulado en el año | C28: Desde 2005 | D28: BCP
A29: Exportaciones de trigo según destino (US$ - Kg - US$/Ton) | B29: Acumulado en el año | C29: Desde 2005 | D29: BCP
A30: Exportaciones de canola según destino (US$ - Kg - US$/Ton) | B30: Acumulado en el año | C30: Desde 2005 | D30: BCP
A31: Exportaciones de girasol según destino (US$ - Kg - US$/Ton) | B31: Acumulado en el año | C31: Desde 2005 | D31: BCP
A32: Exportaciones de aceite de girasol según destino (US$ - Kg - US$/Ton) | B32: Acumulado en el año | C32: Desde 2005 | D32: BCP
A33: Exportaciones de aceite de canola según destino (US$ - Kg - US$/Ton) | B33: Acumulado en el año | C33: Desde 2005 | D33: BCP
A34: Exportaciones de maíz según exportador (US$ - Kg) | B34: Acumulado en el año | C34: Desde 2005 | D34: TINWOR
A35: Exportaciones de trigo según exportador (US$ - Kg) | B35: Acumulado en el año | C35: Desde 2005 | D35: TINWOR
A36: Exportaciones de canola según exportador (US$ - Kg) | B36: Acumulado en el año | C36: Desde 2005 | D36: TINWOR
A37: Exportaciones de girasol según exportador (US$ - Kg) | B37: Acumulado en el año | C37: Desde 2005 | D37: TINWOR
A38: Exportaciones de aceite de girasol según exportador (US$ - Kg) | B38: Acumulado en el año | C38: Desde 2005 | D38: TINWOR
A39: Exportaciones de aceite de canola según exportador (US$ - Kg) | B39: Acumulado en el año | C39: Desde 2005 | D39: TINWOR
A40: Exportaciones de productos de la cadena de la soja detalladas por despacho - Año 2010 | B40: Diaria | C40: 2010 | D40: TINWOR
A41: Exportaciones de productos de la cadena de la soja detalladas por despacho - Año 2009 | B41: Diaria | C41: 2009 | D41: TINWOR
A42: Exportaciones de productos de la cadena de la soja detalladas por despacho - Año 2008 | B42: Diaria | C42: 2008 | D42: TINWOR

Sheet Resumen
A1: Índice
A2: EXPORTACIONES DE PRODUCTOS DE LA CADENA DE LA SOJA
A3: Fuente: BCP
A5: Concepto | B5: Valores
B6: Mes | C6: Acumulado
B7: 2012-11-01 | C7: En el Año (2012) | D7: Últimos 3 Meses | E7: Últimos 12 Meses | F7: 2005 | G7: 2006 | H7: 2007 | I7: 2008 | J7: 2009 | K7: 2010 | L7: 2011
A8: Monto (US$ FOB)
A9: Maíz | B9: =+'Evolución (maiz)'!I17 -> 109758989 | C9: =+'Evolución (maiz)'!I19 -> 475433899 | D9: =+(SUM('Evolución (maiz)'!I15:I18)) -> 284473082 | E9: =+'Evolución (maiz)'!I19+(SUM('Evolución (maiz)'!H18:H18)) -> 502209997 | F9: =+'Evolución (maiz)'!B19 -> 41048779.38 | G9: =+'Evolución (maiz)'!C19 -> 161576881.1 | H9: =+'Evolución (maiz)'!D19 -> 269699416.1 | I9: =+'Evolución (maiz)'!E19 -> 173029637.1 | J9: =+'Evolución (maiz)'!F19 -> 245728750.6 | K9: =+'Evolución (maiz)'!G19 -> 240951858.6 | L9: =+'Evolución (maiz)'!H19 -> 351866640
A10: Trigo | B10: =+'Evolución (trigo)'!I17 -> 69730101 | C10: =+'Evolución (trigo)'!I19 -> 331295676 | D10: =+(SUM('Evolución (trigo)'!I15:I18)) -> 172626354 | E10: =+'Evolución (trigo)'!I19+(SUM('Evolución (trigo)'!H18:H18)) -> 347673370 | F10: =+'Evolución (trigo)'!B19 -> 68259232.97 | G10: =+'Evolución (trigo)'!C19 -> 33919380.4 | H10: =+'Evolución (trigo)'!D19 -> 60274682.7 | I10: =+'Evolución (trigo)'!E19 -> 161198698.7 | J10: =+'Evolución (trigo)'!F19 -> 186668308.6 | K10: =+'Evolución (trigo)'!G19 -> 247322316 | L10: =+'Evolución (trigo)'!H19 -> 169696434
A11: Canola | B11: =+'Evolución (canola)'!I17 -> 4524300 | C11: =+'Evolución (canola)'!I19 -> 14648737 | D11: =+(SUM('Evolución (canola)'!I15:I18)) -> 11184300 | E11: =+'Evolución (canola)'!I19+(SUM('Evolución (canola)'!H18:H18)) -> 15057737 | F11: =+'Evolución (canola)'!B19 -> 4145234 | G11: =+'Evolución (canola)'!C19 -> 5390400 | H11: =+'Evolución (canola)'!D19 -> 4455040 | I11: =+'Evolución (canola)'!E19 -> 7699125.4 | J11: =+'Evolución (canola)'!F19 -> 4748467.3 | K11: =+'Evolución (canola)'!G19 -> 11450146 | L11: =+'Evolución (canola)'!H19 -> 14792039
A12: Girasol | B12: =+'Evolución (girasol)'!I17 -> 0 | C12: =+'Evolución (girasol)'!I19 -> 118034 | D12: =+(SUM('Evolución (girasol)'!I15:I18)) -> 0 | E12: =+'Evolución (girasol)'!I19+(SUM('Evolución (girasol)'!H18:H18)) -> 118034 | F12: =+'Evolución (girasol)'!B19 -> 83497.96 | G12: =+'Evolución (girasol)'!C19 -> 3252580.98 | H12: =+'Evolución (girasol)'!D19 -> 10152605.2 | I12: =+'Evolución (girasol)'!E19 -> 13710753.9 | J12: =+'Evolución (girasol)'!F19 -> 29153226.8 | K12: =+'Evolución (girasol)'!G19 -> 5379935 | L12: =+'Evolución (girasol)'!H19 -> 4696003
A13: Aceite de Girasol | B13: =+'Evolución (aceite de girasol)'!I17 -> 210875 | C13: =+'Evolución (aceite de girasol)'!I19 -> 23990108 | D13: =+(SUM('Evolución (aceite de girasol)'!I15:I18)) -> 1400875 | E13: =+'Evolución (aceite de girasol)'!I19+(SUM('Evolución (aceite de girasol)'!H18:H18)) -> 25779214 | F13: =+'Evolución (aceite de girasol)'!B19 -> 8481209.6 | G13: =+'Evolución (aceite de girasol)'!C19 -> 12235562.5 | H13: =+'Evolución (aceite de girasol)'!D19 -> 32780756.1 | I13: =+'Evolución (aceite de girasol)'!E19 -> 82120788 | J13: =+'Evolución (aceite de girasol)'!F19 -> 39935220.08 | K13: =+'Evolución (aceite de girasol)'!G19 -> 22041737.5 | L13: =+'Evolución (aceite de girasol)'!H19 -> 35091378
A14: Aceite de Canola | B14: =+'Evolución (aceite de canola)'!I17 -> 196524 | C14: =+'Evolución (aceite de canola)'!I19 -> 7884774 | D14: =+(SUM('Evolución (aceite de canola)'!I15:I18)) -> 863774 | E14: =+'Evolución (aceite de canola)'!I19+(SUM('Evolución (aceite de canola)'!H18:H18)) -> 12111524 | F14: =+'Evolución (aceite de canola)'!B19 -> 10780100 | G14: =+'Evolución (aceite de canola)'!C19 -> 5318745 | H14: =+'Evolución (aceite de canola)'!D19 -> 13149109.3 | I14: =+'Evolución (aceite de canola)'!E19 -> 6938656 | J14: =+'Evolución (aceite de canola)'!F19 -> 9616485 | K14: =+'Evolución (aceite de canola)'!G19 -> 13463275 | L14: =+'Evolución (aceite de canola)'!H19 -> 12544250
A15: Total | B15: =SUM(B9:B14) -> 184420789 | C15: 853371228 | D15: 470548385 | E15: 902949876 | F15: 132798053.9 | G15: 221693550 | H15: 390511609.4 | I15: 444697659.1 | J15: 515850458.3 | K15: 540609268.1 | L15: 588686744
A16: Cantidad (Kg)
A17: Maíz | B17: =+'Evolución (maiz)'!Q17 -> 469677928 | C17: =+'Evolución (maiz)'!Q19 -> 2184385878 | D17: =+(SUM('Evolución (maiz)'!Q15:Q18)) -> 1242778703 | E17: =+'Evolución (maiz)'!Q19+(SUM('Evolución (maiz)'!P18:P18)) -> 2317481443 | F17: =+'Evolución (maiz)'!J19 -> 460372573.7 | G17: =+'Evolución (maiz)'!K19 -> 1845443087 | H17: =+'Evolución (maiz)'!L19 -> 2010885528 | I17: =+'Evolución (maiz)'!M19 -> 1060412949 | J17: =+'Evolución (maiz)'!N19 -> 1952380146 | K17: =+'Evolución (maiz)'!O19 -> 1428105557 | L17: =+'Evolución (maiz)'!P19 -> 1592348355
A18: Trigo | B18: =+'Evolución (trigo)'!Q17 -> 241296994 | C18: =+'Evolución (trigo)'!Q19 -> 1323223540 | D18: =+(SUM('Evolución (trigo)'!Q15:Q18)) -> 614574569 | E18: =+'Evolución (trigo)'!Q19+(SUM('Evolución (trigo)'!P18:P18)) -> 1398602920 | F18: =+'Evolución (trigo)'!J19 -> 593915645 | G18: =+'Evolución (trigo)'!K19 -> 232686000 | H18: =+'Evolución (trigo)'!L19 -> 238840950 | I18: =+'Evolución (trigo)'!M19 -> 583406435 | J18: =+'Evolución (trigo)'!N19 -> 940901893 | K18: =+'Evolución (trigo)'!O19 -> 1114301492 | L18: =+'Evolución (trigo)'!P19 -> 653279191
A19: Canola | B19: =+'Evolución (canola)'!Q17 -> 9950000 | C19: =+'Evolución (canola)'!Q19 -> 33028200 | D19: =+(SUM('Evolución (canola)'!Q15:Q18)) -> 24950000 | E19: =+'Evolución (canola)'!Q19+(SUM('Evolución (canola)'!P18:P18)) -> 34028200 | F19: =+'Evolución (canola)'!J19 -> 23123000 | G19: =+'Evolución (canola)'!K19 -> 28330000 | H19: =+'Evolución (canola)'!L19 -> 17570000 | I19: =+'Evolución (canola)'!M19 -> 18105929 | J19: =+'Evolución (canola)'!N19 -> 16015123.2 | K19: =+'Evolución (canola)'!O19 -> 32438172 | L19: =+'Evolución (canola)'!P19 -> 46145678
A20: Girasol | B20: =+'Evolución (girasol)'!Q17 -> 0 | C20: =+'Evolución (girasol)'!Q19 -> 231440 | D20: =+(SUM('Evolución (girasol)'!Q15:Q18)) -> 0 | E20: =+'Evolución (girasol)'!Q19+(SUM('Evolución (girasol)'!P18:P18)) -> 231440 | F20: =+'Evolución (girasol)'!J19 -> 318901 | G20: =+'Evolución (girasol)'!K19 -> 19382612 | H20: =+'Evolución (girasol)'!L19 -> 36198238.88 | I20: =+'Evolución (girasol)'!M19 -> 45591415 | J20: =+'Evolución (girasol)'!N19 -> 109647674 | K20: =+'Evolución (girasol)'!O19 -> 16411588 | L20: =+'Evolución (girasol)'!P19 -> 9357783
A21: Aceite de Girasol | B21: =+'Evolución (aceite de girasol)'!Q17 -> 175000 | C21: =+'Evolución (aceite de girasol)'!Q19 -> 21955000 | D21: =+(SUM('Evolución (aceite de girasol)'!Q15:Q18)) -> 1175000 | E21: =+'Evolución (aceite de girasol)'!Q19+(SUM('Evolución (aceite de girasol)'!P18:P18)) -> 23649400 | F21: =+'Evolución (aceite de girasol)'!J19 -> 16840608 | G21: =+'Evolución (aceite de girasol)'!K19 -> 26875000 | H21: =+'Evolución (aceite de girasol)'!L19 -> 55076161 | I21: =+'Evolución (aceite de girasol)'!M19 -> 59772277 | J21: =+'Evolución (aceite de girasol)'!N19 -> 59274840 | K21: =+'Evolución (aceite de girasol)'!O19 -> 27824762 | L21: =+'Evolución (aceite de girasol)'!P19 -> 29287984
A22: Aceite de Canola | B22: =+'Evolución (aceite de canola)'!Q17 -> 177000 | C22: =+'Evolución (aceite de canola)'!Q19 -> 7172000 | D22: =+(SUM('Evolución (aceite de canola)'!Q15:Q18)) -> 752000 | E22: =++'Evolución (aceite de canola)'!Q19+(SUM('Evolución (aceite de canola)'!P18:P18)) -> 11272000 | F22: =+'Evolución (aceite de canola)'!J19 -> 21250000 | G22: =+'Evolución (aceite de canola)'!K19 -> 9000000 | H22: =+'Evolución (aceite de canola)'!L19 -> 15708750 | I22: =+'Evolución (aceite de canola)'!M19 -> 5364070 | J22: =+'Evolución (aceite de canola)'!N19 -> 11354000 | K22: =+'Evolución (aceite de canola)'!O19 -> 15000000 | L22: =+'Evolución (aceite de canola)'!P19 -> 11350000
A23: Total | B23: =SUM(B17:B22) -> 721276922 | C23: =SUM(C17:C22) -> 3569996058 | D23: =SUM(D17:D22) -> 1884230272 | E23: 3785265403 | F23: 1115820728 | G23: 2161716699 | H23: 2374279628 | I23: 1772653075 | J23: =SUM(J17:J22) -> 3089573676 | K23: =SUM(K17:K22) -> 2634081571 | L23: =SUM(L17:L22) -> 2341768991
A24: Precio (US$/Ton)
A25: Maíz | B25: =+B9/B17*1000 -> 233.6899021 | C25: =+C9/C17*1000 -> 217.6510587 | D25: 228.9008343 | E25: 216.7050781 | F25: 89.16425896 | G25: 87.55451861 | H25: 134.119726 | I25: 163.1719391 | J25: 125.8611194 | K25: 168.7213227 | L25: 220.9734063
A26: Trigo | B26: 288.9803965 | C26: =+C10/C18*1000 -> 250.3701499 | D26: 280.8875647 | E26: 248.5861891 | F26: 114.9308552 | G26: 145.7731896 | H26: 252.3632681 | I26: 276.3060005 | J26: 198.3929567 | K26: 221.9527819 | L26: 259.7609664
A27: Canola | B27: 454.7035176 | C27: =+C11/C19*1000 -> 443.5221114 | D27: 448.2685371 | E27: 442.5075966 | F27: 179.2688665 | G27: 190.2717967 | H27: 253.5594764 | I27: 425.2267531 | J27: 296.4989554 | K27: 352.9837008 | L27: 320.5509084
A28: Girasol | C28: =+C12/C20*1000 -> 509.9982717 | E28: 509.9982717 | F28: 261.8303486 | G28: 167.8092189 | H28: 280.4723521 | I28: 300.7310455 | J28: 265.8809415 | K28: 327.8131891 | L28: 501.8285848
A29: Aceite de Girasol | B29: 1205 | C29: =+C13/C21*1000 -> 1092.694512 | D29: 1192.234043 | E29: 1090.057845 | F29: 503.6165915 | G29: 455.2767442 | H29: 595.1895612 | I29: 1373.894255 | J29: 673.7296985 | K29: 792.1626607 | L29: 1198.149316
A30: Aceite de Canola | B30: 1110.305085 | C30: =+C14/C22*1000 -> 1099.382878 | D30: 1148.635638 | E30: 1074.478708 | F30: 507.2988235 | G30: 590.9716667 | H30: 837.056373 | I30: 1293.543149 | J30: 846.9689096 | K30: 897.5516667 | L30: 1105.220264
A31: Total | B31: 255.686524 | C31: =+C15/C23*1000 -> 239.0398236 | D31: 249.729766 | E31: 238.5433463 | F31: 119.0137901 | G31: 102.5543958 | H31: 164.4758287 | I31: 250.8655898 | J31: 166.9649319 | K31: 205.2363427 | L31: 251.3854895

Sheet Evolución (total)
A1: Índice
A2: EXPORTACIONES DE PRODUCTOS DE LA CADENA DE LA SOJA
A3: Fuente: BCP
A5: Mes | B5: Valor Exportado (US$ FOB) | J5: Cantidad Exportada (Kg) | R5: Precio (US$/Ton)
B6: 2005 | C6: 2006 | D6: 2007 | E6: 2008 | F6: 2009 | G6: 2010 | H6: 2011 | I6: 2012 | J6: 2005 | K6: 2006 | L6: 2007 | M6: 2008 | N6: 2009 | O6: 2010 | P6: 2011 | Q6: 2012 | R6: 2005 | S6: 2006 | T6: 2007 | U6: 2008 | V6: 2009 | W6: 2010 | X6: 2011 | Y6: 2012
A7: Enero | B7: =+'Evolución (maiz)'!B7+'Evolución (trigo)'!B7+'Evolución (canola)'!B7+'Evolución (girasol)'!B7+'Evolución (aceite de girasol)'!B7+'Evolución (aceite de canola)'!B7 -> 18507798.53 | C7: =+'Evolución (maiz)'!C7+'Evolución (trigo)'!C7+'Evolución (canola)'!C7+'Evolución (girasol)'!C7+'Evolución (aceite de girasol)'!C7+'Evolución (aceite de canola)'!C7 -> 17017322.35 | D7: =+'Evolución (maiz)'!D7+'Evolución (trigo)'!D7+'Evolución (canola)'!D7+'Evolución (girasol)'!D7+'Evolución (aceite de girasol)'!D7+'Evolución (aceite de canola)'!D7 -> 26115101.6 | E7: =+'Evolución (maiz)'!E7+'Evolución (trigo)'!E7+'Evolución (canola)'!E7+'Evolución (girasol)'!E7+'Evolución (aceite de girasol)'!E7+'Evolución (aceite de canola)'!E7 -> 67918866.3 | F7: =+'Evolución (maiz)'!F7+'Evolución (trigo)'!F7+'Evolución (canola)'!F7+'Evolución (girasol)'!F7+'Evolución (aceite de girasol)'!F7+'Evolución (aceite de canola)'!F7 -> 50238455.3 | G7: =+'Evolución (maiz)'!G7+'Evolución (trigo)'!G7+'Evolución (canola)'!G7+'Evolución (girasol)'!G7+'Evolución (aceite de girasol)'!G7+'Evolución (aceite de canola)'!G7 -> 34139597.1 | H7: =+'Evolución (maiz)'!H7+'Evolución (trigo)'!H7+'Evolución (canola)'!H7+'Evolución (girasol)'!H7+'Evolución (aceite de girasol)'!H7+'Evolución (aceite de canola)'!H7 -> 72648981 | I7: =+'Evolución (maiz)'!I7+'Evolución (trigo)'!I7+'Evolución (canola)'!I7+'Evolución (girasol)'!I7+'Evolución (aceite de girasol)'!I7+'Evolución (aceite de canola)'!I7 -> 54487159 | J7: =+'Evolución (maiz)'!J7+'Evolución (trigo)'!J7+'Evolución (canola)'!J7+'Evolución (girasol)'!J7+'Evolución (aceite de girasol)'!J7+'Evolución (aceite de canola)'!J7 -> 171073176 | K7: =+'Evolución (maiz)'!K7+'Evolución (trigo)'!K7+'Evolución (canola)'!K7+'Evolución (girasol)'!K7+'Evolución (aceite de girasol)'!K7+'Evolución (aceite de canola)'!K7 -> 121144950 | L7: =+'Evolución (maiz)'!L7+'Evolución (trigo)'!L7+'Evolución (canola)'!L7+'Evolución (girasol)'!L7+'Evolución (aceite de girasol)'!L7+'Evolución (aceite de canola)'!L7 -> 133397242 | M7: =+'Evolución (maiz)'!M7+'Evolución (trigo)'!M7+'Evolución (canola)'!M7+'Evolución (girasol)'!M7+'Evolución (aceite de girasol)'!M7+'Evolución (aceite de canola)'!M7 -> 220879381 | N7: =+'Evolución (maiz)'!N7+'Evolución (trigo)'!N7+'Evolución (canola)'!N7+'Evolución (girasol)'!N7+'Evolución (aceite de girasol)'!N7+'Evolución (aceite de canola)'!N7 -> 285370773 | O7: =+'Evolución (maiz)'!O7+'Evolución (trigo)'!O7+'Evolución (canola)'!O7+'Evolución (girasol)'!O7+'Evolución (aceite de girasol)'!O7+'Evolución (aceite de canola)'!O7 -> 151474240 | P7: =+'Evolución (maiz)'!P7+'Evolución (trigo)'!P7+'Evolución (canola)'!P7+'Evolución (girasol)'!P7+'Evolución (aceite de girasol)'!P7+'Evolución (aceite de canola)'!P7 -> 275537832 | Q7: =+'Evolución (maiz)'!Q7+'Evolución (trigo)'!Q7+'Evolución (canola)'!Q7+'Evolución (girasol)'!Q7+'Evolución (aceite de girasol)'!Q7+'Evolución (aceite de canola)'!Q7 -> 234017302 | R7: =B7/J7*1000 -> 108.1864437 | S7: =C7/K7*1000 -> 140.470753 | T7: =D7/L7*1000 -> 195.7694268 | U7: =E7/M7*1000 -> 307.4930127 | V7: =+F7/N7*1000 -> 176.046253 | W7: 225.3821977 | X7: 263.6624542 | Y7: 232.8338911
A8: Febrero | B8: =+'Evolución (maiz)'!B8+'Evolución (trigo)'!B8+'Evolución (canola)'!B8+'Evolución (girasol)'!B8+'Evolución (aceite de girasol)'!B8+'Evolución (aceite de canola)'!B8 -> 7601319.6 | C8: =+'Evolución (maiz)'!C8+'Evolución (trigo)'!C8+'Evolución (canola)'!C8+'Evolución (girasol)'!C8+'Evolución (aceite de girasol)'!C8+'Evolución (aceite de canola)'!C8 -> 11316350.08 | D8: =+'Evolución (maiz)'!D8+'Evolución (trigo)'!D8+'Evolución (canola)'!D8+'Evolución (girasol)'!D8+'Evolución (aceite de girasol)'!D8+'Evolución (aceite de canola)'!D8 -> 9762210.1 | E8: =+'Evolución (maiz)'!E8+'Evolución (trigo)'!E8+'Evolución (canola)'!E8+'Evolución (girasol)'!E8+'Evolución (aceite de girasol)'!E8+'Evolución (aceite de canola)'!E8 -> 30151909 | F8: =+'Evolución (maiz)'!F8+'Evolución (trigo)'!F8+'Evolución (canola)'!F8+'Evolución (girasol)'!F8+'Evolución (aceite de girasol)'!F8+'Evolución (aceite de canola)'!F8 -> 47259395.7 | G8: =+'Evolución (maiz)'!G8+'Evolución (trigo)'!G8+'Evolución (canola)'!G8+'Evolución (girasol)'!G8+'Evolución (aceite de girasol)'!G8+'Evolución (aceite de canola)'!G8 -> 12394232 | H8: =+'Evolución (maiz)'!H8+'Evolución (trigo)'!H8+'Evolución (canola)'!H8+'Evolución (girasol)'!H8+'Evolución (aceite de girasol)'!H8+'Evolución (aceite de canola)'!H8 -> 42404352 | I8: =+'Evolución (maiz)'!I8+'Evolución (trigo)'!I8+'Evolución (canola)'!I8+'Evolución (girasol)'!I8+'Evolución (aceite de girasol)'!I8+'Evolución (aceite de canola)'!I8 -> 51255344 | J8: =+'Evolución (maiz)'!J8+'Evolución (trigo)'!J8+'Evolución (canola)'!J8+'Evolución (girasol)'!J8+'Evolución (aceite de girasol)'!J8+'Evolución (aceite de canola)'!J8 -> 50124970 | K8: =+'Evolución (maiz)'!K8+'Evolución (trigo)'!K8+'Evolución (canola)'!K8+'Evolución (girasol)'!K8+'Evolución (aceite de girasol)'!K8+'Evolución (aceite de canola)'!K8 -> 71722448 | L8: =+'Evolución (maiz)'!L8+'Evolución (trigo)'!L8+'Evolución (canola)'!L8+'Evolución (girasol)'!L8+'Evolución (aceite de girasol)'!L8+'Evolución (aceite de canola)'!L8 -> 43408619.4 | M8: =+'Evolución (maiz)'!M8+'Evolución (trigo)'!M8+'Evolución (canola)'!M8+'Evolución (girasol)'!M8+'Evolución (aceite de girasol)'!M8+'Evolución (aceite de canola)'!M8 -> 75981320 | N8: =+'Evolución (maiz)'!N8+'Evolución (trigo)'!N8+'Evolución (canola)'!N8+'Evolución (girasol)'!N8+'Evolución (aceite de girasol)'!N8+'Evolución (aceite de canola)'!N8 -> 262624111 | O8: =+'Evolución (maiz)'!O8+'Evolución (trigo)'!O8+'Evolución (canola)'!O8+'Evolución (girasol)'!O8+'Evolución (aceite de girasol)'!O8+'Evolución (aceite de canola)'!O8 -> 32584786 | P8: =+'Evolución (maiz)'!P8+'Evolución (trigo)'!P8+'Evolución (canola)'!P8+'Evolución (girasol)'!P8+'Evolución (aceite de girasol)'!P8+'Evolución (aceite de canola)'!P8 -> 123639138 | Q8: =+'Evolución (maiz)'!Q8+'Evolución (trigo)'!Q8+'Evolución (canola)'!Q8+'Evolución (girasol)'!Q8+'Evolución (aceite de girasol)'!Q8+'Evolución (aceite de canola)'!Q8 -> 213901271 | R8: =B8/J8*1000 -> 151.6473646 | S8: 157.7797523 | T8: 224.8910524 | U8: 396.8331822 | V8: 179.9507118 | W8: 380.3686788 | X8: 342.9686804 | Y8: 239.6215028
A9: Marzo | B9: =+'Evolución (maiz)'!B9+'Evolución (trigo)'!B9+'Evolución (canola)'!B9+'Evolución (girasol)'!B9+'Evolución (aceite de girasol)'!B9+'Evolución (aceite de canola)'!B9 -> 3705561.86 | C9: =+'Evolución (maiz)'!C9+'Evolución (trigo)'!C9+'Evolución (canola)'!C9+'Evolución (girasol)'!C9+'Evolución (aceite de girasol)'!C9+'Evolución (aceite de canola)'!C9 -> 6253386.8 | D9: =+'Evolución (maiz)'!D9+'Evolución (trigo)'!D9+'Evolución (canola)'!D9+'Evolución (girasol)'!D9+'Evolución (aceite de girasol)'!D9+'Evolución (aceite de canola)'!D9 -> 10614799.5 | E9: =+'Evolución (maiz)'!E9+'Evolución (trigo)'!E9+'Evolución (canola)'!E9+'Evolución (girasol)'!E9+'Evolución (aceite de girasol)'!E9+'Evolución (aceite de canola)'!E9 -> 31930552.3 | F9: =+'Evolución (maiz)'!F9+'Evolución (trigo)'!F9+'Evolución (canola)'!F9+'Evolución (girasol)'!F9+'Evolución (aceite de girasol)'!F9+'Evolución (aceite de canola)'!F9 -> 20825044.9 | G9: =+'Evolución (maiz)'!G9+'Evolución (trigo)'!G9+'Evolución (canola)'!G9+'Evolución (girasol)'!G9+'Evolución (aceite de girasol)'!G9+'Evolución (aceite de canola)'!G9 -> 13832579 | H9: =+'Evolución (maiz)'!H9+'Evolución (trigo)'!H9+'Evolución (canola)'!H9+'Evolución (girasol)'!H9+'Evolución (aceite de girasol)'!H9+'Evolución (aceite de canola)'!H9 -> 9279376 | I9: =+'Evolución (maiz)'!I9+'Evolución (trigo)'!I9+'Evolución (canola)'!I9+'Evolución (girasol)'!I9+'Evolución (aceite de girasol)'!I9+'Evolución (aceite de canola)'!I9 -> 50487271 | J9: =+'Evolución (maiz)'!J9+'Evolución (trigo)'!J9+'Evolución (canola)'!J9+'Evolución (girasol)'!J9+'Evolución (aceite de girasol)'!J9+'Evolución (aceite de canola)'!J9 -> 30353595 | K9: =+'Evolución (maiz)'!K9+'Evolución (trigo)'!K9+'Evolución (canola)'!K9+'Evolución (girasol)'!K9+'Evolución (aceite de girasol)'!K9+'Evolución (aceite de canola)'!K9 -> 29816000 | L9: =+'Evolución (maiz)'!L9+'Evolución (trigo)'!L9+'Evolución (canola)'!L9+'Evolución (girasol)'!L9+'Evolución (aceite de girasol)'!L9+'Evolución (aceite de canola)'!L9 -> 50692620 | M9: =+'Evolución (maiz)'!M9+'Evolución (trigo)'!M9+'Evolución (canola)'!M9+'Evolución (girasol)'!M9+'Evolución (aceite de girasol)'!M9+'Evolución (aceite de canola)'!M9 -> 79324937 | N9: =+'Evolución (maiz)'!N9+'Evolución (trigo)'!N9+'Evolución (canola)'!N9+'Evolución (girasol)'!N9+'Evolución (aceite de girasol)'!N9+'Evolución (aceite de canola)'!N9 -> 101702301.2 | O9: =+'Evolución (maiz)'!O9+'Evolución (trigo)'!O9+'Evolución (canola)'!O9+'Evolución (girasol)'!O9+'Evolución (aceite de girasol)'!O9+'Evolución (aceite de canola)'!O9 -> 44568488 | P9: =+'Evolución (maiz)'!P9+'Evolución (trigo)'!P9+'Evolución (canola)'!P9+'Evolución (girasol)'!P9+'Evolución (aceite de girasol)'!P9+'Evolución (aceite de canola)'!P9 -> 16974000 | Q9: =+'Evolución (maiz)'!Q9+'Evolución (trigo)'!Q9+'Evolución (canola)'!Q9+'Evolución (girasol)'!Q9+'Evolución (aceite de girasol)'!Q9+'Evolución (aceite de canola)'!Q9 -> 199528625 | R9: 122.0798347 | S9: 209.7325865 | T9: 209.3953617 | U9: 402.5285554 | V9: =+F9/N9*1000 -> 204.7647364 | W9: 310.3668 | X9: 546.6817486 | Y9: 253.0327215
A10: Abril | B10: =+'Evolución (maiz)'!B10+'Evolución (trigo)'!B10+'Evolución (canola)'!B10+'Evolución (girasol)'!B10+'Evolución (aceite de girasol)'!B10+'Evolución (aceite de canola)'!B10 -> 3925315.3 | C10: =+'Evolución (maiz)'!C10+'Evolución (trigo)'!C10+'Evolución (canola)'!C10+'Evolución (girasol)'!C10+'Evolución (aceite de girasol)'!C10+'Evolución (aceite de canola)'!C10 -> 2729375 | D10: =+'Evolución (maiz)'!D10+'Evolución (trigo)'!D10+'Evolución (canola)'!D10+'Evolución (girasol)'!D10+'Evolución (aceite de girasol)'!D10+'Evolución (aceite de canola)'!D10 -> 8613753.7 | E10: =+'Evolución (maiz)'!E10+'Evolución (trigo)'!E10+'Evolución (canola)'!E10+'Evolución (girasol)'!E10+'Evolución (aceite de girasol)'!E10+'Evolución (aceite de canola)'!E10 -> 18883667 | F10: =+'Evolución (maiz)'!F10+'Evolución (trigo)'!F10+'Evolución (canola)'!F10+'Evolución (girasol)'!F10+'Evolución (aceite de girasol)'!F10+'Evolución (aceite de canola)'!F10 -> 24616342.1 | G10: =+'Evolución (maiz)'!G10+'Evolución (trigo)'!G10+'Evolución (canola)'!G10+'Evolución (girasol)'!G10+'Evolución (aceite de girasol)'!G10+'Evolución (aceite de canola)'!G10 -> 12202305 | H10: =+'Evolución (maiz)'!H10+'Evolución (trigo)'!H10+'Evolución (canola)'!H10+'Evolución (girasol)'!H10+'Evolución (aceite de girasol)'!H10+'Evolución (aceite de canola)'!H10 -> 8051007 | I10: =+'Evolución (maiz)'!I10+'Evolución (trigo)'!I10+'Evolución (canola)'!I10+'Evolución (girasol)'!I10+'Evolución (aceite de girasol)'!I10+'Evolución (aceite de canola)'!I10 -> 24740200 | J10: =+'Evolución (maiz)'!J10+'Evolución (trigo)'!J10+'Evolución (canola)'!J10+'Evolución (girasol)'!J10+'Evolución (aceite de girasol)'!J10+'Evolución (aceite de canola)'!J10 -> 28798876.72 | K10: =+'Evolución (maiz)'!K10+'Evolución (trigo)'!K10+'Evolución (canola)'!K10+'Evolución (girasol)'!K10+'Evolución (aceite de girasol)'!K10+'Evolución (aceite de canola)'!K10 -> 21460000 | L10: =+'Evolución (maiz)'!L10+'Evolución (trigo)'!L10+'Evolución (canola)'!L10+'Evolución (girasol)'!L10+'Evolución (aceite de girasol)'!L10+'Evolución (aceite de canola)'!L10 -> 26122308 | M10: =+'Evolución (maiz)'!M10+'Evolución (trigo)'!M10+'Evolución (canola)'!M10+'Evolución (girasol)'!M10+'Evolución (aceite de girasol)'!M10+'Evolución (aceite de canola)'!M10 -> 31602156 | N10: =+'Evolución (maiz)'!N10+'Evolución (trigo)'!N10+'Evolución (canola)'!N10+'Evolución (girasol)'!N10+'Evolución (aceite de girasol)'!N10+'Evolución (aceite de canola)'!N10 -> 166989620 | O10: =+'Evolución (maiz)'!O10+'Evolución (trigo)'!O10+'Evolución (canola)'!O10+'Evolución (girasol)'!O10+'Evolución (aceite de girasol)'!O10+'Evolución (aceite de canola)'!O10 -> 58250122 | P10: =+'Evolución (maiz)'!P10+'Evolución (trigo)'!P10+'Evolución (canola)'!P10+'Evolución (girasol)'!P10+'Evolución (aceite de girasol)'!P10+'Evolución (aceite de canola)'!P10 -> 24342442 | Q10: =+'Evolución (maiz)'!Q10+'Evolución (trigo)'!Q10+'Evolución (canola)'!Q10+'Evolución (girasol)'!Q10+'Evolución (aceite de girasol)'!Q10+'Evolución (aceite de canola)'!Q10 -> 113213034 | R10: =B10/J10*1000 -> 136.3009863 | S10: 127.1842964 | T10: 329.7470384 | U10: 597.5436296 | V10: 147.4124086 | W10: 209.4811922 | X10: 330.7394961 | Y10: 218.5278419
A11: Mayo | B11: =+'Evolución (maiz)'!B11+'Evolución (trigo)'!B11+'Evolución (canola)'!B11+'Evolución (girasol)'!B11+'Evolución (aceite de girasol)'!B11+'Evolución (aceite de canola)'!B11 -> 4765100.3 | C11: =+'Evolución (maiz)'!C11+'Evolución (trigo)'!C11+'Evolución (canola)'!C11+'Evolución (girasol)'!C11+'Evolución (aceite de girasol)'!C11+'Evolución (aceite de canola)'!C11 -> 2883641 | D11: =+'Evolución (maiz)'!D11+'Evolución (trigo)'!D11+'Evolución (canola)'!D11+'Evolución (girasol)'!D11+'Evolución (aceite de girasol)'!D11+'Evolución (aceite de canola)'!D11 -> 8478456.9 | E11: =+'Evolución (maiz)'!E11+'Evolución (trigo)'!E11+'Evolución (canola)'!E11+'Evolución (girasol)'!E11+'Evolución (aceite de girasol)'!E11+'Evolución (aceite de canola)'!E11 -> 25887532.9 | F11: =+'Evolución (maiz)'!F11+'Evolución (trigo)'!F11+'Evolución (canola)'!F11+'Evolución (girasol)'!F11+'Evolución (aceite de girasol)'!F11+'Evolución (aceite de canola)'!F11 -> 28844712.9 | G11: =+'Evolución (maiz)'!G11+'Evolución (trigo)'!G11+'Evolución (canola)'!G11+'Evolución (girasol)'!G11+'Evolución (aceite de girasol)'!G11+'Evolución (aceite de canola)'!G11 -> 16063644 | H11: =+'Evolución (maiz)'!H11+'Evolución (trigo)'!H11+'Evolución (canola)'!H11+'Evolución (girasol)'!H11+'Evolución (aceite de girasol)'!H11+'Evolución (aceite de canola)'!H11 -> 11156329 | I11: =+'Evolución (maiz)'!I11+'Evolución (trigo)'!I11+'Evolución (canola)'!I11+'Evolución (girasol)'!I11+'Evolución (aceite de girasol)'!I11+'Evolución (aceite de canola)'!I11 -> 23683540 | J11: =+'Evolución (maiz)'!J11+'Evolución (trigo)'!J11+'Evolución (canola)'!J11+'Evolución (girasol)'!J11+'Evolución (aceite de girasol)'!J11+'Evolución (aceite de canola)'!J11 -> 46804190 | K11: =+'Evolución (maiz)'!K11+'Evolución (trigo)'!K11+'Evolución (canola)'!K11+'Evolución (girasol)'!K11+'Evolución (aceite de girasol)'!K11+'Evolución (aceite de canola)'!K11 -> 27118000 | L11: =+'Evolución (maiz)'!L11+'Evolución (trigo)'!L11+'Evolución (canola)'!L11+'Evolución (girasol)'!L11+'Evolución (aceite de girasol)'!L11+'Evolución (aceite de canola)'!L11 -> 36832750 | M11: =+'Evolución (maiz)'!M11+'Evolución (trigo)'!M11+'Evolución (canola)'!M11+'Evolución (girasol)'!M11+'Evolución (aceite de girasol)'!M11+'Evolución (aceite de canola)'!M11 -> 59734753 | N11: =+'Evolución (maiz)'!N11+'Evolución (trigo)'!N11+'Evolución (canola)'!N11+'Evolución (girasol)'!N11+'Evolución (aceite de girasol)'!N11+'Evolución (aceite de canola)'!N11 -> 175774368 | O11: =+'Evolución (maiz)'!O11+'Evolución (trigo)'!O11+'Evolución (canola)'!O11+'Evolución (girasol)'!O11+'Evolución (aceite de girasol)'!O11+'Evolución (aceite de canola)'!O11 -> 83448008 | P11: =+'Evolución (maiz)'!P11+'Evolución (trigo)'!P11+'Evolución (canola)'!P11+'Evolución (girasol)'!P11+'Evolución (aceite de girasol)'!P11+'Evolución (aceite de canola)'!P11 -> 29328236 | Q11: =+'Evolución (maiz)'!Q11+'Evolución (trigo)'!Q11+'Evolución (canola)'!Q11+'Evolución (girasol)'!Q11+'Evolución (aceite de girasol)'!Q11+'Evolución (aceite de canola)'!Q11 -> 93762370 | R11: 101.8092675 | S11: 106.3367874 | T11: 230.1879957 | U11: 433.3747375 | V11: =+F11/N11*1000 -> 164.1007914 | W11: 192.4988311 | X11: 380.3955001 | Y11: 252.5910981
A12: Junio | B12: =+'Evolución (maiz)'!B12+'Evolución (trigo)'!B12+'Evolución (canola)'!B12+'Evolución (girasol)'!B12+'Evolución (aceite de girasol)'!B12+'Evolución (aceite de canola)'!B12 -> 4091760 | C12: =+'Evolución (maiz)'!C12+'Evolución (trigo)'!C12+'Evolución (canola)'!C12+'Evolución (girasol)'!C12+'Evolución (aceite de girasol)'!C12+'Evolución (aceite de canola)'!C12 -> 5381095 | D12: =+'Evolución (maiz)'!D12+'Evolución (trigo)'!D12+'Evolución (canola)'!D12+'Evolución (girasol)'!D12+'Evolución (aceite de girasol)'!D12+'Evolución (aceite de canola)'!D12 -> 17167705 | E12: =+'Evolución (maiz)'!E12+'Evolución (trigo)'!E12+'Evolución (canola)'!E12+'Evolución (girasol)'!E12+'Evolución (aceite de girasol)'!E12+'Evolución (aceite de canola)'!E12 -> 33068122.8 | F12: =+'Evolución (maiz)'!F12+'Evolución (trigo)'!F12+'Evolución (canola)'!F12+'Evolución (girasol)'!F12+'Evolución (aceite de girasol)'!F12+'Evolución (aceite de canola)'!F12 -> 63633648.1 | G12: =+'Evolución (maiz)'!G12+'Evolución (trigo)'!G12+'Evolución (canola)'!G12+'Evolución (girasol)'!G12+'Evolución (aceite de girasol)'!G12+'Evolución (aceite de canola)'!G12 -> 10672142 | H12: =+'Evolución (maiz)'!H12+'Evolución (trigo)'!H12+'Evolución (canola)'!H12+'Evolución (girasol)'!H12+'Evolución (aceite de girasol)'!H12+'Evolución (aceite de canola)'!H12 -> 16568123 | I12: =+'Evolución (maiz)'!I12+'Evolución (trigo)'!I12+'Evolución (canola)'!I12+'Evolución (girasol)'!I12+'Evolución (aceite de girasol)'!I12+'Evolución (aceite de canola)'!I12 -> 32690628 | J12: =+'Evolución (maiz)'!J12+'Evolución (trigo)'!J12+'Evolución (canola)'!J12+'Evolución (girasol)'!J12+'Evolución (aceite de girasol)'!J12+'Evolución (aceite de canola)'!J12 -> 36420000 | K12: =+'Evolución (maiz)'!K12+'Evolución (trigo)'!K12+'Evolución (canola)'!K12+'Evolución (girasol)'!K12+'Evolución (aceite de girasol)'!K12+'Evolución (aceite de canola)'!K12 -> 59223220 | L12: =+'Evolución (maiz)'!L12+'Evolución (trigo)'!L12+'Evolución (canola)'!L12+'Evolución (girasol)'!L12+'Evolución (aceite de girasol)'!L12+'Evolución (aceite de canola)'!L12 -> 130354750 | M12: =+'Evolución (maiz)'!M12+'Evolución (trigo)'!M12+'Evolución (canola)'!M12+'Evolución (girasol)'!M12+'Evolución (aceite de girasol)'!M12+'Evolución (aceite de canola)'!M12 -> 69242706 | N12: =+'Evolución (maiz)'!N12+'Evolución (trigo)'!N12+'Evolución (canola)'!N12+'Evolución (girasol)'!N12+'Evolución (aceite de girasol)'!N12+'Evolución (aceite de canola)'!N12 -> 318054993.8 | O12: =+'Evolución (maiz)'!O12+'Evolución (trigo)'!O12+'Evolución (canola)'!O12+'Evolución (girasol)'!O12+'Evolución (aceite de girasol)'!O12+'Evolución (aceite de canola)'!O12 -> 65795218 | P12: =+'Evolución (maiz)'!P12+'Evolución (trigo)'!P12+'Evolución (canola)'!P12+'Evolución (girasol)'!P12+'Evolución (aceite de girasol)'!P12+'Evolución (aceite de canola)'!P12 -> 56620227 | Q12: =+'Evolución (maiz)'!Q12+'Evolución (trigo)'!Q12+'Evolución (canola)'!Q12+'Evolución (girasol)'!Q12+'Evolución (aceite de girasol)'!Q12+'Evolución (aceite de canola)'!Q12 -> 147973820 | R12: =B12/J12*1000 -> 112.3492586 | S12: 90.86123652 | T12: 131.6998805 | U12: 477.5683203 | V12: 200.071212 | W12: 162.2023959 | X12: 292.6184489 | Y12: 220.9217009
A13: Julio | B13: =+'Evolución (maiz)'!B13+'Evolución (trigo)'!B13+'Evolución (canola)'!B13+'Evolución (girasol)'!B13+'Evolución (aceite de girasol)'!B13+'Evolución (aceite de canola)'!B13 -> 4337534.52 | C13: =+'Evolución (maiz)'!C13+'Evolución (trigo)'!C13+'Evolución (canola)'!C13+'Evolución (girasol)'!C13+'Evolución (aceite de girasol)'!C13+'Evolución (aceite de canola)'!C13 -> 22239698.3 | D13: =+'Evolución (maiz)'!D13+'Evolución (trigo)'!D13+'Evolución (canola)'!D13+'Evolución (girasol)'!D13+'Evolución (aceite de girasol)'!D13+'Evolución (aceite de canola)'!D13 -> 28396914.7 | E13: =+'Evolución (maiz)'!E13+'Evolución (trigo)'!E13+'Evolución (canola)'!E13+'Evolución (girasol)'!E13+'Evolución (aceite de girasol)'!E13+'Evolución (aceite de canola)'!E13 -> 23841614 | F13: =+'Evolución (maiz)'!F13+'Evolución (trigo)'!F13+'Evolución (canola)'!F13+'Evolución (girasol)'!F13+'Evolución (aceite de girasol)'!F13+'Evolución (aceite de canola)'!F13 -> 61509974.44 | G13: =+'Evolución (maiz)'!G13+'Evolución (trigo)'!G13+'Evolución (canola)'!G13+'Evolución (girasol)'!G13+'Evolución (aceite de girasol)'!G13+'Evolución (aceite de canola)'!G13 -> 35428582 | H13: =+'Evolución (maiz)'!H13+'Evolución (trigo)'!H13+'Evolución (canola)'!H13+'Evolución (girasol)'!H13+'Evolución (aceite de girasol)'!H13+'Evolución (aceite de canola)'!H13 -> 24749417 | I13: =+'Evolución (maiz)'!I13+'Evolución (trigo)'!I13+'Evolución (canola)'!I13+'Evolución (girasol)'!I13+'Evolución (aceite de girasol)'!I13+'Evolución (aceite de canola)'!I13 -> 61731715 | J13: =+'Evolución (maiz)'!J13+'Evolución (trigo)'!J13+'Evolución (canola)'!J13+'Evolución (girasol)'!J13+'Evolución (aceite de girasol)'!J13+'Evolución (aceite de canola)'!J13 -> 40769890 | K13: =+'Evolución (maiz)'!K13+'Evolución (trigo)'!K13+'Evolución (canola)'!K13+'Evolución (girasol)'!K13+'Evolución (aceite de girasol)'!K13+'Evolución (aceite de canola)'!K13 -> 275074234 | L13: =+'Evolución (maiz)'!L13+'Evolución (trigo)'!L13+'Evolución (canola)'!L13+'Evolución (girasol)'!L13+'Evolución (aceite de girasol)'!L13+'Evolución (aceite de canola)'!L13 -> 247059270 | M13: =+'Evolución (maiz)'!M13+'Evolución (trigo)'!M13+'Evolución (canola)'!M13+'Evolución (girasol)'!M13+'Evolución (aceite de girasol)'!M13+'Evolución (aceite de canola)'!M13 -> 100918586 | N13: =+'Evolución (maiz)'!N13+'Evolución (trigo)'!N13+'Evolución (canola)'!N13+'Evolución (girasol)'!N13+'Evolución (aceite de girasol)'!N13+'Evolución (aceite de canola)'!N13 -> 375165363 | O13: =+'Evolución (maiz)'!O13+'Evolución (trigo)'!O13+'Evolución (canola)'!O13+'Evolución (girasol)'!O13+'Evolución (aceite de girasol)'!O13+'Evolución (aceite de canola)'!O13 -> 245283550 | P13: =+'Evolución (maiz)'!P13+'Evolución (trigo)'!P13+'Evolución (canola)'!P13+'Evolución (girasol)'!P13+'Evolución (aceite de girasol)'!P13+'Evolución (aceite de canola)'!P13 -> 95653000 | Q13: =+'Evolución (maiz)'!Q13+'Evolución (trigo)'!Q13+'Evolución (canola)'!Q13+'Evolución (girasol)'!Q13+'Evolución (aceite de girasol)'!Q13+'Evolución (aceite de canola)'!Q13 -> 298947634 | R13: 106.3906358 | S13: 80.84980544 | T13: 114.9396851 | U13: 236.2460172 | V13: =+F13/N13*1000 -> 163.9542999 | W13: =+G13/O13*1000 -> 144.4392908 | X13: =+H13/P13*1000 -> 258.7416704 | Y13: =+I13/Q13*1000 -> 206.4967505
A14: Agosto | B14: =+'Evolución (maiz)'!B14+'Evolución (trigo)'!B14+'Evolución (canola)'!B14+'Evolución (girasol)'!B14+'Evolución (aceite de girasol)'!B14+'Evolución (aceite de canola)'!B14 -> 8363607 | C14: =+'Evolución (maiz)'!C14+'Evolución (trigo)'!C14+'Evolución (canola)'!C14+'Evolución (girasol)'!C14+'Evolución (aceite de girasol)'!C14+'Evolución (aceite de canola)'!C14 -> 30980485.46 | D14: =+'Evolución (maiz)'!D14+'Evolución (trigo)'!D14+'Evolución (canola)'!D14+'Evolución (girasol)'!D14+'Evolución (aceite de girasol)'!D14+'Evolución (aceite de canola)'!D14 -> 44842335.6 | E14: =+'Evolución (maiz)'!E14+'Evolución (trigo)'!E14+'Evolución (canola)'!E14+'Evolución (girasol)'!E14+'Evolución (aceite de girasol)'!E14+'Evolución (aceite de canola)'!E14 -> 38320769 | F14: =+'Evolución (maiz)'!F14+'Evolución (trigo)'!F14+'Evolución (canola)'!F14+'Evolución (girasol)'!F14+'Evolución (aceite de girasol)'!F14+'Evolución (aceite de canola)'!F14 -> 50459882.84 | G14: =+'Evolución (maiz)'!G14+'Evolución (trigo)'!G14+'Evolución (canola)'!G14+'Evolución (girasol)'!G14+'Evolución (aceite de girasol)'!G14+'Evolución (aceite de canola)'!G14 -> 60477096 | H14: =+'Evolución (maiz)'!H14+'Evolución (trigo)'!H14+'Evolución (canola)'!H14+'Evolución (girasol)'!H14+'Evolución (aceite de girasol)'!H14+'Evolución (aceite de canola)'!H14 -> 61455992 | I14: =+'Evolución (maiz)'!I14+'Evolución (trigo)'!I14+'Evolución (canola)'!I14+'Evolución (girasol)'!I14+'Evolución (aceite de girasol)'!I14+'Evolución (aceite de canola)'!I14 -> 83746986 | J14: =+'Evolución (maiz)'!J14+'Evolución (trigo)'!J14+'Evolución (canola)'!J14+'Evolución (girasol)'!J14+'Evolución (aceite de girasol)'!J14+'Evolución (aceite de canola)'!J14 -> 79839000 | K14: =+'Evolución (maiz)'!K14+'Evolución (trigo)'!K14+'Evolución (canola)'!K14+'Evolución (girasol)'!K14+'Evolución (aceite de girasol)'!K14+'Evolución (aceite de canola)'!K14 -> 381182380 | L14: =+'Evolución (maiz)'!L14+'Evolución (trigo)'!L14+'Evolución (canola)'!L14+'Evolución (girasol)'!L14+'Evolución (aceite de girasol)'!L14+'Evolución (aceite de canola)'!L14 -> 365732700 | M14: =+'Evolución (maiz)'!M14+'Evolución (trigo)'!M14+'Evolución (canola)'!M14+'Evolución (girasol)'!M14+'Evolución (aceite de girasol)'!M14+'Evolución (aceite de canola)'!M14 -> 154938732 | N14: =+'Evolución (maiz)'!N14+'Evolución (trigo)'!N14+'Evolución (canola)'!N14+'Evolución (girasol)'!N14+'Evolución (aceite de girasol)'!N14+'Evolución (aceite de canola)'!N14 -> 343882845 | O14: =+'Evolución (maiz)'!O14+'Evolución (trigo)'!O14+'Evolución (canola)'!O14+'Evolución (girasol)'!O14+'Evolución (aceite de girasol)'!O14+'Evolución (aceite de canola)'!O14 -> 371503275 | P14: =+'Evolución (maiz)'!P14+'Evolución (trigo)'!P14+'Evolución (canola)'!P14+'Evolución (girasol)'!P14+'Evolución (aceite de girasol)'!P14+'Evolución (aceite de canola)'!P14 -> 249101119 | Q14: =+'Evolución (maiz)'!Q14+'Evolución (trigo)'!Q14+'Evolución (canola)'!Q14+'Evolución (girasol)'!Q14+'Evolución (aceite de girasol)'!Q14+'Evolución (aceite de canola)'!Q14 -> 384421730 | R14: 104.7559088 | S14: 81.27470493 | T14: 122.6095878 | U14: 247.3285311 | V14: =+F14/N14*1000 -> 146.7356792 | W14: 162.7902096 | X14: 246.7110234 | Y14: =+I14/Q14*1000 -> 217.8518524
A15: Septiembre | B15: =+'Evolución (maiz)'!B15+'Evolución (trigo)'!B15+'Evolución (canola)'!B15+'Evolución (girasol)'!B15+'Evolución (aceite de girasol)'!B15+'Evolución (aceite de canola)'!B15 -> 12679547.6 | C15: =+'Evolución (maiz)'!C15+'Evolución (trigo)'!C15+'Evolución (canola)'!C15+'Evolución (girasol)'!C15+'Evolución (aceite de girasol)'!C15+'Evolución (aceite de canola)'!C15 -> 29825684.73 | D15: =+'Evolución (maiz)'!D15+'Evolución (trigo)'!D15+'Evolución (canola)'!D15+'Evolución (girasol)'!D15+'Evolución (aceite de girasol)'!D15+'Evolución (aceite de canola)'!D15 -> 48044726.8 | E15: =+'Evolución (maiz)'!E15+'Evolución (trigo)'!E15+'Evolución (canola)'!E15+'Evolución (girasol)'!E15+'Evolución (aceite de girasol)'!E15+'Evolución (aceite de canola)'!E15 -> 54044535.8 | F15: =+'Evolución (maiz)'!F15+'Evolución (trigo)'!F15+'Evolución (canola)'!F15+'Evolución (girasol)'!F15+'Evolución (aceite de girasol)'!F15+'Evolución (aceite de canola)'!F15 -> 49018482.4 | G15: =+'Evolución (maiz)'!G15+'Evolución (trigo)'!G15+'Evolución (canola)'!G15+'Evolución (girasol)'!G15+'Evolución (aceite de girasol)'!G15+'Evolución (aceite de canola)'!G15 -> 51596127 | H15: =+'Evolución (maiz)'!H15+'Evolución (trigo)'!H15+'Evolución (canola)'!H15+'Evolución (girasol)'!H15+'Evolución (aceite de girasol)'!H15+'Evolución (aceite de canola)'!H15 -> 71305714 | I15: =+'Evolución (maiz)'!I15+'Evolución (trigo)'!I15+'Evolución (canola)'!I15+'Evolución (girasol)'!I15+'Evolución (aceite de girasol)'!I15+'Evolución (aceite de canola)'!I15 -> 113448656 | J15: =+'Evolución (maiz)'!J15+'Evolución (trigo)'!J15+'Evolución (canola)'!J15+'Evolución (girasol)'!J15+'Evolución (aceite de girasol)'!J15+'Evolución (aceite de canola)'!J15 -> 112667008 | K15: =+'Evolución (maiz)'!K15+'Evolución (trigo)'!K15+'Evolución (canola)'!K15+'Evolución (girasol)'!K15+'Evolución (aceite de girasol)'!K15+'Evolución (aceite de canola)'!K15 -> 350846051 | L15: =+'Evolución (maiz)'!L15+'Evolución (trigo)'!L15+'Evolución (canola)'!L15+'Evolución (girasol)'!L15+'Evolución (aceite de girasol)'!L15+'Evolución (aceite de canola)'!L15 -> 333748248 | M15: =+'Evolución (maiz)'!M15+'Evolución (trigo)'!M15+'Evolución (canola)'!M15+'Evolución (girasol)'!M15+'Evolución (aceite de girasol)'!M15+'Evolución (aceite de canola)'!M15 -> 245594685 | N15: =+'Evolución (maiz)'!N15+'Evolución (trigo)'!N15+'Evolución (canola)'!N15+'Evolución (girasol)'!N15+'Evolución (aceite de girasol)'!N15+'Evolución (aceite de canola)'!N15 -> 304891769 | O15: =+'Evolución (maiz)'!O15+'Evolución (trigo)'!O15+'Evolución (canola)'!O15+'Evolución (girasol)'!O15+'Evolución (aceite de girasol)'!O15+'Evolución (aceite de canola)'!O15 -> 290763747 | P15: =+'Evolución (maiz)'!P15+'Evolución (trigo)'!P15+'Evolución (canola)'!P15+'Evolución (girasol)'!P15+'Evolución (aceite de girasol)'!P15+'Evolución (aceite de canola)'!P15 -> 301909074 | Q15: =+'Evolución (maiz)'!Q15+'Evolución (trigo)'!Q15+'Evolución (canola)'!Q15+'Evolución (girasol)'!Q15+'Evolución (aceite de girasol)'!Q15+'Evolución (aceite de canola)'!Q15 -> 465951151 | R15: =B15/J15*1000 -> 112.5400224 | S15: =C15/K15*1000 -> 85.01074658 | T15: =D15/L15*1000 -> 143.9549933 | U15: =E15/M15*1000 -> 220.0558037 | V15: =+F15/N15*1000 -> 160.7733871 | W15: =+G15/O15*1000 -> 177.4503442 | X15: =+H15/P15*1000 -> 236.1827455 | Y15: =+I15/Q15*1000 -> 243.4775743
A16: Octubre | B16: =+'Evolución (maiz)'!B16+'Evolución (trigo)'!B16+'Evolución (canola)'!B16+'Evolución (girasol)'!B16+'Evolución (aceite de girasol)'!B16+'Evolución (aceite de canola)'!B16 -> 18588377 | C16: =+'Evolución (maiz)'!C16+'Evolución (trigo)'!C16+'Evolución (canola)'!C16+'Evolución (girasol)'!C16+'Evolución (aceite de girasol)'!C16+'Evolución (aceite de canola)'!C16 -> 37217968.56 | D16: =+'Evolución (maiz)'!D16+'Evolución (trigo)'!D16+'Evolución (canola)'!D16+'Evolución (girasol)'!D16+'Evolución (aceite de girasol)'!D16+'Evolución (aceite de canola)'!D16 -> 65363217.5 | E16: =+'Evolución (maiz)'!E16+'Evolución (trigo)'!E16+'Evolución (canola)'!E16+'Evolución (girasol)'!E16+'Evolución (aceite de girasol)'!E16+'Evolución (aceite de canola)'!E16 -> 42956637.9 | F16: =+'Evolución (maiz)'!F16+'Evolución (trigo)'!F16+'Evolución (canola)'!F16+'Evolución (girasol)'!F16+'Evolución (aceite de girasol)'!F16+'Evolución (aceite de canola)'!F16 -> 49977997 | G16: =+'Evolución (maiz)'!G16+'Evolución (trigo)'!G16+'Evolución (canola)'!G16+'Evolución (girasol)'!G16+'Evolución (aceite de girasol)'!G16+'Evolución (aceite de canola)'!G16 -> 74078664 | H16: =+'Evolución (maiz)'!H16+'Evolución (trigo)'!H16+'Evolución (canola)'!H16+'Evolución (girasol)'!H16+'Evolución (aceite de girasol)'!H16+'Evolución (aceite de canola)'!H16 -> 84854527 | I16: =+'Evolución (maiz)'!I16+'Evolución (trigo)'!I16+'Evolución (canola)'!I16+'Evolución (girasol)'!I16+'Evolución (aceite de girasol)'!I16+'Evolución (aceite de canola)'!I16 -> 172678940 | J16: =+'Evolución (maiz)'!J16+'Evolución (trigo)'!J16+'Evolución (canola)'!J16+'Evolución (girasol)'!J16+'Evolución (aceite de girasol)'!J16+'Evolución (aceite de canola)'!J16 -> 149327000 | K16: =+'Evolución (maiz)'!K16+'Evolución (trigo)'!K16+'Evolución (canola)'!K16+'Evolución (girasol)'!K16+'Evolución (aceite de girasol)'!K16+'Evolución (aceite de canola)'!K16 -> 388904410 | L16: =+'Evolución (maiz)'!L16+'Evolución (trigo)'!L16+'Evolución (canola)'!L16+'Evolución (girasol)'!L16+'Evolución (aceite de girasol)'!L16+'Evolución (aceite de canola)'!L16 -> 405546738 | M16: =+'Evolución (maiz)'!M16+'Evolución (trigo)'!M16+'Evolución (canola)'!M16+'Evolución (girasol)'!M16+'Evolución (aceite de girasol)'!M16+'Evolución (aceite de canola)'!M16 -> 241398536 | N16: =+'Evolución (maiz)'!N16+'Evolución (trigo)'!N16+'Evolución (canola)'!N16+'Evolución (girasol)'!N16+'Evolución (aceite de girasol)'!N16+'Evolución (aceite de canola)'!N16 -> 332181309 | O16: =+'Evolución (maiz)'!O16+'Evolución (trigo)'!O16+'Evolución (canola)'!O16+'Evolución (girasol)'!O16+'Evolución (aceite de girasol)'!O16+'Evolución (aceite de canola)'!O16 -> 363949029 | P16: =+'Evolución (maiz)'!P16+'Evolución (trigo)'!P16+'Evolución (canola)'!P16+'Evolución (girasol)'!P16+'Evolución (aceite de girasol)'!P16+'Evolución (aceite de canola)'!P16 -> 369495167 | Q16: =+'Evolución (maiz)'!Q16+'Evolución (trigo)'!Q16+'Evolución (canola)'!Q16+'Evolución (girasol)'!Q16+'Evolución (aceite de girasol)'!Q16+'Evolución (aceite de canola)'!Q16 -> 697002199 | R16: 124.4810182 | S16: 95.69952822 | T16: 161.1730816 | U16: 177.9490407 | V16: 150.4539709 | W16: 203.5413151 | X16: 229.6498969 | Y16: =+I16/Q16*1000 -> 247.7451868
A17: Noviembre | B17: =+'Evolución (maiz)'!B17+'Evolución (trigo)'!B17+'Evolución (canola)'!B17+'Evolución (girasol)'!B17+'Evolución (aceite de girasol)'!B17+'Evolución (aceite de canola)'!B17 -> 22813655.4 | C17: =+'Evolución (maiz)'!C17+'Evolución (trigo)'!C17+'Evolución (canola)'!C17+'Evolución (girasol)'!C17+'Evolución (aceite de girasol)'!C17+'Evolución (aceite de canola)'!C17 -> 29456094.12 | D17: =+'Evolución (maiz)'!D17+'Evolución (trigo)'!D17+'Evolución (canola)'!D17+'Evolución (girasol)'!D17+'Evolución (aceite de girasol)'!D17+'Evolución (aceite de canola)'!D17 -> 60545824 | E17: =+'Evolución (maiz)'!E17+'Evolución (trigo)'!E17+'Evolución (canola)'!E17+'Evolución (girasol)'!E17+'Evolución (aceite de girasol)'!E17+'Evolución (aceite de canola)'!E17 -> 42308079.9 | F17: =+'Evolución (maiz)'!F17+'Evolución (trigo)'!F17+'Evolución (canola)'!F17+'Evolución (girasol)'!F17+'Evolución (aceite de girasol)'!F17+'Evolución (aceite de canola)'!F17 -> 47029844.4 | G17: =+'Evolución (maiz)'!G17+'Evolución (trigo)'!G17+'Evolución (canola)'!G17+'Evolución (girasol)'!G17+'Evolución (aceite de girasol)'!G17+'Evolución (aceite de canola)'!G17 -> 114346927 | H17: =+'Evolución (maiz)'!H17+'Evolución (trigo)'!H17+'Evolución (canola)'!H17+'Evolución (girasol)'!H17+'Evolución (aceite de girasol)'!H17+'Evolución (aceite de canola)'!H17 -> 136634278 | I17: =+'Evolución (maiz)'!I17+'Evolución (trigo)'!I17+'Evolución (canola)'!I17+'Evolución (girasol)'!I17+'Evolución (aceite de girasol)'!I17+'Evolución (aceite de canola)'!I17 -> 184420789 | J17: =+'Evolución (maiz)'!J17+'Evolución (trigo)'!J17+'Evolución (canola)'!J17+'Evolución (girasol)'!J17+'Evolución (aceite de girasol)'!J17+'Evolución (aceite de canola)'!J17 -> 176533022 | K17: =+'Evolución (maiz)'!K17+'Evolución (trigo)'!K17+'Evolución (canola)'!K17+'Evolución (girasol)'!K17+'Evolución (aceite de girasol)'!K17+'Evolución (aceite de canola)'!K17 -> 241465100 | L17: =+'Evolución (maiz)'!L17+'Evolución (trigo)'!L17+'Evolución (canola)'!L17+'Evolución (girasol)'!L17+'Evolución (aceite de girasol)'!L17+'Evolución (aceite de canola)'!L17 -> 328151580.5 | M17: =+'Evolución (maiz)'!M17+'Evolución (trigo)'!M17+'Evolución (canola)'!M17+'Evolución (girasol)'!M17+'Evolución (aceite de girasol)'!M17+'Evolución (aceite de canola)'!M17 -> 258169790 | N17: =+'Evolución (maiz)'!N17+'Evolución (trigo)'!N17+'Evolución (canola)'!N17+'Evolución (girasol)'!N17+'Evolución (aceite de girasol)'!N17+'Evolución (aceite de canola)'!N17 -> 290051174 | O17: =+'Evolución (maiz)'!O17+'Evolución (trigo)'!O17+'Evolución (canola)'!O17+'Evolución (girasol)'!O17+'Evolución (aceite de girasol)'!O17+'Evolución (aceite de canola)'!O17 -> 496315704 | P17: =+'Evolución (maiz)'!P17+'Evolución (trigo)'!P17+'Evolución (canola)'!P17+'Evolución (girasol)'!P17+'Evolución (aceite de girasol)'!P17+'Evolución (aceite de canola)'!P17 -> 583899411 | Q17: =+'Evolución (maiz)'!Q17+'Evolución (trigo)'!Q17+'Evolución (canola)'!Q17+'Evolución (girasol)'!Q17+'Evolución (aceite de girasol)'!Q17+'Evolución (aceite de canola)'!Q17 -> 721276922 | R17: 129.2316596 | S17: 121.9890333 | T17: 184.5056602 | U17: 163.8769583 | V17: 162.1432651 | W17: 230.3915151 | X17: 234.0031098 | Y17: =+I17/Q17*1000 -> 255.686524
A18: Diciembre | B18: =+'Evolución (maiz)'!B18+'Evolución (trigo)'!B18+'Evolución (canola)'!B18+'Evolución (girasol)'!B18+'Evolución (aceite de girasol)'!B18+'Evolución (aceite de canola)'!B18 -> 23418476.8 | C18: =+'Evolución (maiz)'!C18+'Evolución (trigo)'!C18+'Evolución (canola)'!C18+'Evolución (girasol)'!C18+'Evolución (aceite de girasol)'!C18+'Evolución (aceite de canola)'!C18 -> 26392448.58 | D18: =+'Evolución (maiz)'!D18+'Evolución (trigo)'!D18+'Evolución (canola)'!D18+'Evolución (girasol)'!D18+'Evolución (aceite de girasol)'!D18+'Evolución (aceite de canola)'!D18 -> 62566564 | E18: =+'Evolución (maiz)'!E18+'Evolución (trigo)'!E18+'Evolución (canola)'!E18+'Evolución (girasol)'!E18+'Evolución (aceite de girasol)'!E18+'Evolución (aceite de canola)'!E18 -> 35385372.2 | F18: =+'Evolución (maiz)'!F18+'Evolución (trigo)'!F18+'Evolución (canola)'!F18+'Evolución (girasol)'!F18+'Evolución (aceite de girasol)'!F18+'Evolución (aceite de canola)'!F18 -> 22436678.2 | G18: =+'Evolución (maiz)'!G18+'Evolución (trigo)'!G18+'Evolución (canola)'!G18+'Evolución (girasol)'!G18+'Evolución (aceite de girasol)'!G18+'Evolución (aceite de canola)'!G18 -> 105377373 | H18: =+'Evolución (maiz)'!H18+'Evolución (trigo)'!H18+'Evolución (canola)'!H18+'Evolución (girasol)'!H18+'Evolución (aceite de girasol)'!H18+'Evolución (aceite de canola)'!H18 -> 49578648 | J18: =+'Evolución (maiz)'!J18+'Evolución (trigo)'!J18+'Evolución (canola)'!J18+'Evolución (girasol)'!J18+'Evolución (aceite de girasol)'!J18+'Evolución (aceite de canola)'!J18 -> 193110000 | K18: =+'Evolución (maiz)'!K18+'Evolución (trigo)'!K18+'Evolución (canola)'!K18+'Evolución (girasol)'!K18+'Evolución (aceite de girasol)'!K18+'Evolución (aceite de canola)'!K18 -> 193759906 | L18: =+'Evolución (maiz)'!L18+'Evolución (trigo)'!L18+'Evolución (canola)'!L18+'Evolución (girasol)'!L18+'Evolución (aceite de girasol)'!L18+'Evolución (aceite de canola)'!L18 -> 273232802 | M18: =+'Evolución (maiz)'!M18+'Evolución (trigo)'!M18+'Evolución (canola)'!M18+'Evolución (girasol)'!M18+'Evolución (aceite de girasol)'!M18+'Evolución (aceite de canola)'!M18 -> 234867493 | N18: =+'Evolución (maiz)'!N18+'Evolución (trigo)'!N18+'Evolución (canola)'!N18+'Evolución (girasol)'!N18+'Evolución (aceite de girasol)'!N18+'Evolución (aceite de canola)'!N18 -> 132885049 | O18: =+'Evolución (maiz)'!O18+'Evolución (trigo)'!O18+'Evolución (canola)'!O18+'Evolución (girasol)'!O18+'Evolución (aceite de girasol)'!O18+'Evolución (aceite de canola)'!O18 -> 430145404 | P18: =+'Evolución (maiz)'!P18+'Evolución (trigo)'!P18+'Evolución (canola)'!P18+'Evolución (girasol)'!P18+'Evolución (aceite de girasol)'!P18+'Evolución (aceite de canola)'!P18 -> 215269345 | R18: 121.2701403 | S18: 136.2121252 | T18: 228.986284 | U18: 150.6610036 | V18: 168.8427582 | W18: 244.9808182 | X18: 230.3098381
A19: Total | B19: =SUM(B7:B18) -> 132798053.9 | C19: 221693550 | D19: 390511609.4 | E19: 444697659.1 | F19: 515850458.3 | G19: 540609268.1 | H19: 588686744 | I19: =SUM(I7:I18) -> 853371228 | J19: 1115820728 | K19: 2161716699 | L19: 2374279628 | M19: 1772653075 | N19: 3089573676 | O19: 2634081571 | P19: 2341768991 | Q19: 3569996058 | R19: 119.0137901 | S19: 102.5543958 | T19: 164.4758287 | U19: 250.8655898 | V19: =F19/N19*1000 -> 166.9649319 | W19: =+G19/O19*1000 -> 205.2363427 | X19: =+H19/P19*1000 -> 251.3854895 | Y19: =+I19/Q19*1000 -> 239.0398236
A21: Mes | B21: Var % del Valor Exportado (US$ FOB) | I21: Var % de la Cantidad Exportada (Kilogramos) | P21: Var % del Precio (US$/Ton)
B22: 2006/2005 | C22: 2007/2006 | D22: 2008/2007 | E22: 2009/2008 | F22: 2010/2009 | G22: 2011/2010 | H22: 2012/2011 | I22: 2006/2005 | J22: 2007/2006 | K22: 2008/2007 | L22: 2009/2008 | M22: 2010/2009 | N22: 2011/2010 | O22: 2012/2011 | P22: 2006/2005 | Q22: 2007/2006 | R22: 2008/2007 | S22: 2009/2008 | T22: 2010/2009 | U22: 2011/2010 | V22: 2012/2011
A23: Enero | B23: =+C7/B7-1 -> -0.08053233223 | C23: 0.5346187293 | D23: 1.600750606 | E23: -0.260316639 | F23: -0.3204489092 | G23: 1.127997609 | H23: -0.249994174 | I23: =+K7/J7-1 -> -0.2918530372 | J23: 0.1011374556 | K23: 0.6558017069 | L23: 0.29197561 | M23: -0.4692019845 | N23: 0.8190408613 | O23: -0.150689035 | P23: =+S7/R7-1 -> 0.2984136289 | Q23: 0.3936668138 | R23: 0.5706896512 | S23: -0.4274788508 | T23: 0.2802442189 | U23: 0.1698459634 | V23: -0.1169243577
A24: Febrero | B24: =+C8/B8-1 -> 0.4887349402 | C24: -0.137335799 | D24: 2.088635533 | E24: 0.5673765698 | F24: -0.7377403622 | G24: 2.421297262 | H24: 0.2087283871 | I24: =+K8/J8-1 -> 0.4308726369 | J24: -0.3947694117 | K24: 0.7503740283 | L24: 2.456429962 | M24: -0.8759261445 | N24: 2.794382384 | O24: 0.7300449879 | P24: =+S8/R8-1 -> 0.04043847213 | Q24: 0.4253479874 | R24: 0.7645574509 | S24: -0.5465331029 | T24: 1.113738118 | U24: -0.09832565228 | V24: -0.3013312396
A25: Marzo | B25: =+C9/B9-1 -> 0.6875677795 | C25: 0.6974480932 | D25: 2.008116385 | E25: -0.3478019201 | F25: -0.3357719483 | G25: -0.3291651542 | H25: =+I9/H9-1 -> 4.440804533 | I25: =+K9/J9-1 -> -0.01771108167 | J25: 0.7001817816 | K25: 0.564822197 | L25: 0.2820974721 | M25: -0.5617750289 | N25: -0.6191479505 | O25: 10.75495611 | P25: =+S9/R9-1 -> 0.7179953352 | Q25: -0.001607880037 | R25: 0.9223374968 | S25: -0.4913038251 | T25: 0.515723876 | U25: 0.7614053714 | V25: -0.5371480351
A26: Abril | B26: =+C10/B10-1 -> -0.3046736908 | C26: 2.15594365 | D26: 1.192269208 | E26: 0.3035784893 | F26: -0.504300641 | G26: -0.3402060512 | H26: 2.072932367 | I26: =+K10/J10-1 -> -0.2548320475 | J26: 0.2172557316 | K26: 0.2097765634 | L26: 4.284121121 | M26: -0.6511751928 | N26: -0.5821048752 | O26: 3.650849492 | P26: =+S10/R10-1 -> -0.06688645578 | Q26: 1.592671013 | R26: 0.8121273582 | S26: -0.7533026857 | T26: 0.4210553515 | U26: 0.5788505529 | V26: -0.339275035
A27: Mayo | B27: =+C11/B11-1 -> -0.3948414895 | C27: 1.94019155 | D27: 2.053330719 | E27: 0.1142318201 | F27: -0.4430991892 | G27: -0.3054920166 | H27: 1.122879309 | I27: =+K11/J11-1 -> -0.4206074285 | J27: 0.3582399144 | K27: 0.6217836844 | L27: 1.942581314 | M27: -0.5252549678 | N27: -0.6485448041 | O27: 2.196999983 | P27: =+S11/R11-1 -> 0.04447060647 | Q27: 1.164707073 | R27: 0.8826991221 | S27: -0.621342046 | T27: 0.1730524238 | U27: 0.9760925189 | V27: -0.3359776915
A28: Junio | B28: =+C12/B12-1 -> 0.3151052359 | C28: 2.190373892 | D28: 0.9261819096 | E28: 0.9243199405 | F28: -0.8322877547 | G28: 0.5524646317 | H28: 0.9731038935 | I28: =+K12/J12-1 -> 0.626118067 | J28: 1.201075018 | K28: -0.4688133267 | L28: 3.593335705 | M28: -0.7931325736 | N28: -0.1394476875 | O28: 1.613444485 | P28: =+S12/R12-1 -> -0.1912609161 | Q28: 0.4494616798 | R28: 2.626186436 | S28: -0.5810626385 | T28: -0.1892766867 | U28: 0.8040328394 | V28: -0.2450178664
A29: Julio | B29: 4.12726716 | C29: 0.2768570111 | D29: -0.1604153391 | E29: 1.579941712 | F29: -0.424018912 | G29: -0.3014279544 | H29: 1.494269461 | I29: =+K13/J13-1 -> 5.746994755 | J29: -0.1018451041 | K29: -0.5915207472 | L29: 2.717505148 | M29: -0.3461988387 | N29: -0.6100309214 | O29: 2.125334637 | P29: =+S13/R13-1 -> -0.2400665265 | Q29: 0.4216445482 | R29: 1.055391199 | S29: -0.3060018455 | T29: -0.1190271261 | U29: 0.7913524016 | V29: -0.201919234
A30: Agosto | B30: =+C14/B14-1 -> 2.704201484 | C30: 0.447438119 | D30: -0.1454332499 | E30: 0.3167763632 | F30: 0.1985183595 | G30: 0.01618622693 | H30: 0.3627147374 | I30: =+K14/J14-1 -> 3.774388206 | J30: =+L14/K14-1 -> -0.04053093955 | K30: =+M14/L14-1 -> -0.5763607356 | L30: =+N14/M14-1 -> 1.219476309 | M30: =+O14/N14-1 -> 0.08031930177 | N30: =+P14/O14-1 -> -0.3294779999 | O30: 0.5432356609 | P30: =+S14/R14-1 -> -0.2241515931 | Q30: =+T14/S14-1 -> 0.5085823803 | R30: =+U14/T14-1 -> 1.017203838 | S30: =+V14/U14-1 -> -0.4067175405 | T30: =+W14/V14-1 -> 0.1094112245 | U30: =+X14/W14-1 -> 0.5155151162 | V30: -0.1169756039
A31: Septiembre | B31: 1.352267263 | C31: 0.6108507561 | D31: 0.1248796569 | E31: -0.09299836377 | F31: 0.05258515714 | G31: 0.3819974123 | H31: =+I15/H15-1 -> 0.5910177409 | I31: =+K15/J15-1 -> 2.11400877 | J31: -0.04873306386 | K31: -0.2641319124 | L31: 0.2414428635 | M31: -0.04633782685 | N31: 0.03833121259 | O31: 0.5433492767 | P31: =+S15/R15-1 -> -0.2446176498 | Q31: 0.6933740625 | R31: 0.5286430759 | S31: -0.2693971967 | T31: 0.1037295877 | U31: 0.3309793595 | V31: 0.03088637475
A32: Octubre | B32: =+C16/B16-1 -> 1.002217222 | C32: 0.7562274361 | D32: -0.3428010501 | E32: 0.1634522496 | F32: 0.4822255482 | G32: 0.1454651369 | H32: =+I16/H16-1 -> 1.034999735 | I32: 1.604381056 | J32: 0.04279284979 | K32: -0.4047577914 | L32: 0.3760701059 | M32: 0.09563367697 | N32: 0.01523877675 | O32: =+Q16/P16-1 -> 0.8863635069 | P32: -0.2312118777 | Q32: 0.6841575356 | R32: 0.1040866061 | S32: -0.1545109187 | T32: 0.352847744 | U32: 0.128271657 | V32: =+Y16/X16-1 -> 0.07879511455
A33: Noviembre | B33: 0.2911606493 | C33: 1.055460026 | D33: -0.3012221636 | E33: 0.1116043203 | F33: 1.431369452 | G33: 0.1949099253 | H33: =+I17/H17-1 -> 0.3497402826 | I33: 0.3678183111 | J33: 0.3590021104 | K33: -0.213260562 | L33: 0.123489987 | M33: 0.7111315123 | N33: 0.1764677327 | O33: =+Q17/P17-1 -> 0.2352759883 | P33: -0.0560437458 | Q33: 0.5124774353 | R33: -0.1118052525 | S33: -0.01057923685 | T33: 0.4209132579 | U33: 0.01567590174 | V33: =+Y17/X17-1 -> 0.09266293149
A34: Diciembre | B34: =+C18/B18-1 -> 0.1269925369 | C34: 1.370623696 | D34: -0.4344363836 | E34: -0.3659335255 | F34: 3.696656611 | G34: -0.5295133425 | I34: 0.003365470457 | J34: 0.4101617184 | K34: -0.14041253 | L34: -0.4342126818 | M34: 2.236973664 | N34: -0.4995428453 | P34: 0.1232123988 | Q34: 0.6811005895 | R34: -0.3420522796 | S34: 0.1206798988 | T34: 0.450940631 | U34: -0.05988623986
A35: Total | B35: =+C19/B19-1 -> 0.6694036053 | C35: 0.7614928781 | D35: 0.1387565655 | E35: 0.1600026394 | F35: 0.0479960993 | G35: 0.08893202307 | H35: 0.4496185564 | I35: 0.9373333415 | J35: 0.09833061334 | K35: -0.2533933012 | L35: 0.7429093823 | M35: -0.1474287888 | N35: -0.1109732452 | O35: =+Q19/P19-1 -> 0.5244868609 | P35: -0.1382982115 | Q35: 0.6037911141 | R35: 0.5252428987 | S35: -0.3344446641 | T35: 0.2292182583 | U35: 0.2248585514 | V35: =+Y19/X19-1 -> -0.04911049509

Sheet Evolución (maiz)
A1: Índice
A2: EXPORTACIONES DE MAÍZ
A3: Fuente: BCP
A5: Mes | B5: Valor Exportado (US$ FOB) | J5: Cantidad Exportada (Kg) | R5: Precio (US$/Ton)
B6: 2005 | C6: 2006 | D6: 2007 | E6: 2008 | F6: 2009 | G6: 2010 | H6: 2011 | I6: 2012 | J6: 2005 | K6: 2006 | L6: 2007 | M6: 2008 | N6: 2009 | O6: 2010 | P6: 2011 | Q6: 2012 | R6: 2005 | S6: 2006 | T6: 2007 | U6: 2008 | V6: 2009 | W6: 2010 | X6: 2011 | Y6: 2012
A7: Enero | B7: 5425075 | C7: 2530218.37 | D7: 9436830 | E7: 19256248.2 | F7: 13089027.3 | G7: 9236530.6 | H7: 17843761 | I7: 32894502 | J7: 83250000 | K7: 33179338 | L7: 75826692 | M7: 99542841 | N7: 115397695 | O7: 59377805 | P7: 71777652 | Q7: 153267578 | R7: =B7/J7*1000 -> 65.16606607 | S7: =C7/K7*1000 -> 76.25885634 | T7: =D7/L7*1000 -> 124.4526136 | U7: =E7/M7*1000 -> 193.4468416 | V7: =+F7/N7*1000 -> 113.4253791 | W7: =+G7/O7*1000 -> 155.5552719 | X7: =+H7/P7*1000 -> 248.5977251 | Y7: =+I7/Q7*1000 -> 214.6213989
A8: Febrero | B8: 1127400 | C8: 1810277.48 | D8: 3586365.6 | E8: 4708056.4 | F8: 20406008.8 | G8: 691100 | H8: 669339 | I8: 21975293 | J8: 16000000 | K8: 23224448 | L8: 28391682 | M8: 26787620 | N8: 152668511 | O8: 5300000 | P8: 2993760 | Q8: 99697604 | R8: 70.4625 | S8: 77.94706165 | T8: 126.3174757 | U8: 175.7549346 | V8: =+F8/N8*1000 -> 133.6621984 | W8: =+G8/O8*1000 -> 130.3962264 | X8: =+H8/P8*1000 -> 223.5780423 | Y8: =+I8/Q8*1000 -> 220.4194697
A9: Marzo | B9: 726746.86 | C9: 804998 | D9: 2900870 | E9: 5502089 | F9: 5135498.6 | G9: 1266111 | H9: 2336 | I9: 12236675 | J9: 7843595 | K9: 10000000 | L9: 24402000 | M9: 20904200 | N9: 47294478 | O9: 3970538 | P9: 4000 | Q9: 55529135 | R9: 92.65481708 | S9: 80.4998 | T9: 118.8783706 | U9: 263.204954 | V9: 108.5855858 | W9: 318.8764344 | X9: 584 | Y9: 220.364949
A10: Abril | B10: 779835.3 | C10: 452500 | D10: 764148.7 | E10: 1474072 | F10: 12967790 | G10: 1044397 | H10: 15810 | I10: 4128311 | J10: 7550876.72 | K10: 5000000 | L10: 7000317 | M10: 7556700 | N10: 118851050 | O10: 8400000 | P10: 30442 | Q10: 22253754 | R10: 103.2774509 | S10: 90.5 | T10: 109.1591566 | U10: 195.0682176 | V10: 109.1095956 | W10: 124.3329762 | X10: 519.3482688 | Y10: 185.5107682
A11: Mayo | B11: 2642076.3 | C11: 1166500 | D11: 2256085 | E11: 5805102.7 | F11: 13125240 | G11: 4482429 | H11: 5954 | I11: 2636484 | J11: 30750190 | K11: 15400000 | L11: 21505750 | M11: 30469093 | N11: 115640000 | O11: 25230008 | P11: 10236 | Q11: 14877940 | R11: 85.9206496 | S11: 75.74675325 | T11: 104.9061298 | U11: 190.5243028 | V11: 113.5008648 | W11: 177.6626072 | X11: 581.6725283 | Y11: 177.2075973
A12: Junio | B12: 1287600 | C12: 3944850 | D12: 11714865 | E12: 2203680 | F12: 17912625.8 | G12: 3590600 | H12: 5813418 | I12: 13461927 | J12: 13550000 | K12: 50862220 | L12: 115751750 | M12: 11554200 | N12: 128224484.8 | O12: 30500000 | P12: 30060227 | Q12: 71002710 | R12: 95.02583026 | S12: 77.5595324 | T12: 101.2068068 | U12: 190.7254505 | V12: 139.6973896 | W12: 117.7245902 | X12: 193.392352 | Y12: 189.5973689
A13: Julio | B13: 2573357.52 | C13: 21494748.3 | D13: 25988635.7 | E13: 13504213 | F13: 32181886 | G13: 25246442 | H13: 16113147 | I13: 42804036 | J13: 26804890 | K13: 269974234 | L13: 241955070 | M13: 78091500 | N13: 246819392 | O13: 195849000 | P13: 78742000 | Q13: 223613434 | R13: 96.00328597 | S13: 79.61777678 | T13: 107.4109987 | U13: 172.928078 | V13: 130.3863758 | W13: 128.9076891 | X13: 204.6321785 | Y13: 191.4197874
A14: Agosto | B14: 7064150 | C14: 29946005.46 | D14: 41172641.1 | E14: 21812480 | F14: 33435311.65 | G14: 46849721 | H14: 43450379 | I14: 60823589 | J14: 70300000 | K14: 374202380 | L14: 356224700 | M14: 122155000 | N14: 265660120 | O14: 304975755 | P14: 195569739 | Q14: 301365020 | R14: 100.4857752 | S14: 80.02622928 | T14: 115.5805341 | U14: 178.5639556 | V14: 125.857474 | W14: 153.617854 | X14: 222.1733241 | Y14: 201.8269705
A15: Septiembre | B15: 6079065 | C15: 26628874.73 | D15: 39393322.2 | E15: 32068876.4 | F15: 29004479 | G15: 37746177 | H15: 57951602 | I15: 71455479 | J15: 62958000 | K15: 329636051 | L15: 305638478 | M15: 182329970 | N15: 232066682 | O15: 230559747 | P15: 259903396 | Q15: 317230141 | R15: 96.55746688 | S15: 80.78265302 | T15: 128.8886218 | U15: 175.8837365 | V15: 124.983383 | W15: 163.7153818 | X15: 222.9736236 | Y15: 225.2480763
A16: Octubre | B16: 4568850 | C16: 30822778.56 | D16: 55671602.5 | E16: 29984950.9 | F16: 30687892 | G16: 34167358 | H16: 68945821 | I16: 103258614 | J16: 46750000 | K16: 354421410 | L16: 373457738 | M16: 187324536 | N16: 239423309 | O16: 199559358 | P16: 317159927 | Q16: 455870634 | R16: 97.72941176 | S16: 86.96646898 | T16: 149.0706895 | U16: 160.0695325 | V16: 128.1742038 | W16: 171.2140104 | X16: 217.3850324 | Y16: 226.5085888
A17: Noviembre | B17: 3563608.4 | C17: 21358774.12 | D17: 41357404.1 | E17: 20941436.3 | F17: 26796371.4 | G17: 52131768 | H17: 114278975 | I17: 109758989 | J17: 39650022 | K17: 209093100 | L17: 268054279 | M17: 156486330 | N17: 203746884 | O17: 250707696 | P17: 503001411 | Q17: 469677928 | R17: 89.87658065 | S17: 102.1495885 | T17: 154.2874236 | U17: 133.8227838 | V17: 131.5179446 | W17: 207.9384432 | X17: 227.194144 | Y17: 233.6899021
A18: Diciembre | B18: 5211015 | C18: 20616356.08 | D18: 35456646.2 | E18: 15768432.2 | F18: 10986620 | G18: 24499225 | H18: 26776098 | J18: 54965000 | K18: 170449906 | L18: 192677072 | M18: 137210959 | N18: 86587540 | O18: 113675650 | P18: 133095565 | R18: 94.8060584 | S18: 120.9525811 | T18: 184.0210972 | U18: 114.9210844 | V18: 126.8845379 | W18: 215.5186709 | X18: 201.1794908
A19: Total | B19: =SUM(B7:B18) -> 41048779.38 | C19: 161576881.1 | D19: 269699416.1 | E19: 173029637.1 | F19: 245728750.6 | G19: 240951858.6 | H19: =SUM(H7:H18) -> 351866640 | I19: 475433899 | J19: 460372573.7 | K19: 1845443087 | L19: 2010885528 | M19: 1060412949 | N19: 1952380146 | O19: 1428105557 | P19: 1592348355 | Q19: 2184385878 | R19: 89.16425896 | S19: 87.55451861 | T19: 134.119726 | U19: 163.1719391 | V19: =F19/N19*1000 -> 125.8611194 | W19: =G19/O19*1000 -> 168.7213227 | X19: =H19/P19*1000 -> 220.9734063 | Y19: =I19/Q19*1000 -> 217.6510587
A21: Mes | B21: Var % del Valor Exportado (US$ FOB) | I21: Var % de la Cantidad Exportada (Kilogramos) | P21: Var % del Precio (US$/Ton)
B22: 2006/2005 | C22: 2007/2006 | D22: 2008/2007 | E22: 2009/2008 | F22: 2010/2009 | G22: 2011/2010 | H22: 2012/2011 | I22: 2006/2005 | J22: 2007/2006 | K22: 2008/2007 | L22: 2009/2008 | M22: 2010/2009 | N22: 2011/2010 | O22: 2012/2011 | P22: 2006/2005 | Q22: 2007/2006 | R22: 2008/2007 | S22: 2009/2008 | T22: 2010/2009 | U22: 2011/2010 | V22: 2012/2011
A23: Enero | B23: =+C7/B7-1 -> -0.5336067483 | C23: 2.729650417 | D23: 1.040542025 | E23: -0.3202711575 | F23: -0.2943302517 | G23: 0.9318683359 | H23: 0.8434735816 | I23: =+K7/J7-1 -> -0.6014493934 | J23: 1.285358798 | K23: 0.312767818 | L23: 0.1592766877 | M23: -0.4854506843 | N23: 0.2088296629 | O23: 1.135310556 | P23: =+S7/R7-1 -> 0.1702234145 | Q23: 0.6319758723 | R23: 0.5543815116 | S23: -0.4136612513 | T23: 0.3714326823 | U23: 0.5981311472 | V23: -0.1366719111
A24: Febrero | B24: =+C8/B8-1 -> 0.6057100231 | C24: 0.9811137462 | D24: 0.3127653243 | E24: 3.3342745 | F24: -0.9661325247 | G24: -0.03148748372 | H24: =+I8/H8-1 -> 31.83133509 | I24: =+K8/J8-1 -> 0.451528 | J24: 0.2224911438 | K24: -0.05649760377 | L24: 4.69921893 | M24: -0.9652842622 | N24: -0.4351396226 | O24: 32.30180242 | P24: =+S8/R8-1 -> 0.1062204953 | Q24: 0.6205546815 | R24: 0.3913746585 | S24: -0.2394967533 | T24: -0.02443452211 | U24: 0.7146051575 | V24: -0.01412738315
A25: Marzo | B25: =+C9/B9-1 -> 0.1076731725 | C25: 2.60357417 | D25: 0.896703058 | E25: -0.06662749367 | F25: -0.7534589923 | G25: -0.9981549801 | H25: 5237.302654 | I25: =+K9/J9-1 -> 0.2749255922 | J25: 1.4402 | K25: -0.1433407098 | L25: 1.262439031 | M25: -0.916046478 | N25: -0.9989925798 | O25: 13881.28375 | P25: =+S9/R9-1 -> -0.1311860243 | Q25: 0.4767536146 | R25: 1.214069327 | S25: -0.5874485485 | T25: 1.936636865 | U25: 0.8314304133 | V25: -0.6226627586
A26: Abril | B26: -0.4197492727 | C26: 0.6887264088 | D26: 0.9290381571 | E26: 7.79725685 | F26: -0.9194622214 | G26: -0.9848620783 | H26: 260.1202404 | I26: =+K10/J10-1 -> -0.3378252373 | J26: 0.4000634 | K26: 0.07947968642 | L26: 14.72790371 | M26: -0.9293233 | N26: -0.9963759524 | O26: 730.0214178 | P26: =+S10/R10-1 -> -0.1237196583 | Q26: 0.2061785265 | R26: 0.7870073716 | S26: -0.4406592887 | T26: 0.1395237562 | U26: 3.177075823 | V26: -0.6428008346
A27: Mayo | B27: =+C11/B11-1 -> -0.558491176 | C27: 0.9340634376 | D27: 1.573086874 | E27: 1.260983255 | F27: -0.6584878448 | G27: -0.9986717023 | H27: 441.808868 | I27: =+K11/J11-1 -> -0.4991900863 | J27: 0.3964772727 | K27: 0.4167882078 | L27: 2.795321377 | M27: -0.7818228295 | N27: -0.9995942926 | O27: 1452.491598 | P27: =+S11/R11-1 -> -0.1184103751 | Q27: 0.384958764 | R27: 0.8161408034 | S27: -0.404270935 | T27: 0.5652973883 | U27: 2.274029002 | V27: -0.695348175
A28: Junio | B28: =+C12/B12-1 -> 2.063723206 | C28: 1.969660443 | D28: -0.8118902779 | E28: 7.128505863 | F28: -0.7995492096 | G28: 0.6190658943 | H28: 1.315664726 | I28: =+K12/J12-1 -> 2.753669373 | J28: 1.275790361 | K28: -0.9001812068 | L28: 10.09765148 | M28: -0.762135913 | N28: -0.01441878689 | O28: 1.362015097 | P28: =+S12/R12-1 -> -0.1838057906 | Q28: 0.3048919156 | R28: 0.8845120847 | S28: -0.2675472036 | T28: -0.1572885468 | U28: 0.6427523909 | V28: -0.01962323242
A29: Julio | B29: 7.352802956 | C29: 0.2090690869 | D29: -0.4803800724 | E29: 1.383099704 | F29: -0.2155076927 | G29: -0.3617656302 | H29: 1.656466549 | I29: =+K13/J13-1 -> 9.071827715 | J29: -0.1037845856 | K29: -0.6772479287 | L29: 2.160643502 | M29: -0.206508863 | N29: -0.5979453559 | O29: 1.83982416 | P29: =+S13/R13-1 -> -0.1706765453 | Q29: 0.3490831194 | R29: 0.6099662056 | S29: -0.2460080668 | T29: -0.01134080692 | U29: 0.5874319054 | V29: -0.06456653683
A30: Agosto | B30: =+C14/B14-1 -> 3.23915198 | C30: 0.3748959324 | D30: -0.4702190722 | E30: 0.5328523694 | F30: 0.4012048546 | G30: -0.07255842569 | H30: =+I14/H14-1 -> 0.3998402407 | I30: =+K14/J14-1 -> 4.322935704 | J30: -0.04804266611 | K30: -0.6570844189 | L30: 1.174778928 | M30: 0.1479922353 | N30: -0.3587367658 | O30: 0.5409593608 | P30: =+S14/R14-1 -> -0.2036063902 | Q30: 0.4442831454 | R30: 0.5449310471 | S30: -0.2951686494 | T30: 0.2205699756 | U30: 0.4462728017 | V30: -0.0915787422
A31: Septiembre | B31: =+C15/B15-1 -> 3.380422767 | C31: 0.4793461083 | D31: -0.1859311526 | E31: -0.09555674361 | F31: 0.3013913127 | G31: 0.5352972567 | H31: =+I15/H15-1 -> 0.2330199086 | I31: =+K15/J15-1 -> 4.235808809 | J31: -0.07280020777 | K31: -0.403445629 | L31: 0.2727840738 | M31: -0.006493543093 | N31: 0.1272713446 | O31: 0.2205694342 | P31: =+S15/R15-1 -> -0.1633722836 | Q31: 0.5954987487 | R31: 0.3646180248 | S31: -0.2893977266 | T31: 0.3098971865 | U31: 0.3619589145 | V31: 0.01020054578
A32: Octubre | B32: 5.746288138 | C32: 0.8061837738 | D32: -0.4613959442 | E32: 0.02344312993 | F32: 0.1133823724 | G32: 1.017885638 | H32: =+I16/H16-1 -> 0.497677633 | I32: =+K16/J16-1 -> 6.581206631 | J32: 0.05371099901 | K32: -0.4984049949 | L32: 0.27812039 | M32: -0.1664998749 | N32: 0.5893011993 | O32: 0.4373525631 | P32: =+S16/R16-1 -> -0.1101300273 | Q32: 0.7141168457 | R32: 0.07378273373 | S32: -0.1992592107 | T32: 0.3357914881 | U32: 0.2696684801 | V32: 0.04196957058
A33: Noviembre | B33: 4.993580585 | C33: 0.9363191852 | D33: -0.4936472258 | E33: 0.2795861285 | F33: 0.945478633 | G33: 1.19211777 | H33: =+I17/H17-1 -> -0.03955220984 | I33: =+K17/J17-1 -> 4.27346744 | J33: 0.2819852927 | K33: -0.4162140198 | L33: 0.3020107507 | M33: 0.2304860378 | N33: 1.006326168 | O33: -0.06624928334 | P33: =+S17/R17-1 -> 0.1365540138 | Q33: 0.5104067076 | R33: -0.1326397149 | S33: -0.01722306995 | T33: 0.5810651834 | U33: 0.09260289015 | V33: 0.02859122143
A34: Diciembre | B34: =+C18/B18-1 -> 2.956303346 | C34: 0.7198308985 | D34: -0.5552756989 | E34: -0.3032522282 | F34: 1.22991466 | G34: 0.09293653167 | I34: =+K18/J18-1 -> 2.101062603 | J34: 0.1304029232 | K34: -0.2878708526 | L34: -0.3689458872 | M34: 0.312840739 | N34: 0.1708361905 | P34: =+S18/R18-1 -> 0.2757895766 | Q34: 0.5214317507 | R34: -0.3755004935 | S34: 0.1041014671 | T34: 0.6985416385 | U34: -0.06653335409
A35: Total | B35: =+C19/B19-1 -> 2.936216461 | C35: 0.6691708261 | D35: -0.3584352551 | E35: 0.4201541116 | F35: -0.01943969495 | G35: 0.4603192606 | H35: 0.3511763974 | I35: 3.008586072 | J35: 0.08964916998 | K35: -0.4726636926 | L35: 0.8411507966 | M35: -0.2685309979 | N35: 0.1150074637 | O35: =+Q19/P19-1 -> 0.3718015101 | P35: -0.01805365029 | Q35: 0.5318424242 | R35: 0.2166140201 | S35: -0.228659535 | T35: 0.3405356922 | U35: 0.3096946058 | V35: =+Y19/X19-1 -> -0.01503505613

Sheet Evolución (trigo)
A1: Índice
A2: EXPORTACIONES DE TRIGO
A3: Fuente: BCP
A5: Mes | B5: Valor Exportado (US$ FOB) | J5: Cantidad Exportada (Kg) | R5: Precio (US$/Ton)
B6: 2005 | C6: 2006 | D6: 2007 | E6: 2008 | F6: 2009 | G6: 2010 | H6: 2011 | I6: 2012 | J6: 2005 | K6: 2006 | L6: 2007 | M6: 2008 | N6: 2009 | O6: 2010 | P6: 2011 | Q6: 2012 | R6: 2005 | S6: 2006 | T6: 2007 | U6: 2008 | V6: 2009 | W6: 2010 | X6: 2011 | Y6: 2012
A7: Enero | B7: 7396808.53 | C7: 6326173 | D7: 1696625 | E7: 28289590 | F7: 16907942.9 | G7: 12689215 | H7: 48494017 | I7: 14767926 | J7: 75722476 | K7: 53633000 | L7: 8700000 | M7: 95860000 | N7: 100495710 | O7: 64351500 | P7: 193351180 | Q7: 71045384 | R7: =B7/J7*1000 -> 97.68313083 | S7: =C7/K7*1000 -> 117.9529954 | T7: =D7/L7*1000 -> 195.0143678 | U7: =E7/M7*1000 -> 295.1136032 | V7: =+F7/N7*1000 -> 168.2454196 | W7: =+G7/O7*1000 -> 197.1860019 | X7: =+H7/P7*1000 -> 250.8079702 | Y7: =+I7/Q7*1000 -> 207.8660874
A8: Febrero | B8: 2855801.64 | C8: 4561822.6 | D8: 413000 | E8: 11290522.5 | F8: 13161425 | G8: 2562080 | H8: 29942459 | I8: 25465886 | J8: 27089169 | K8: 35673000 | L8: 4000000 | M8: 37212000 | N8: 71080000 | O8: 13770000 | P8: 106822251 | Q8: 110213667 | R8: 105.4222682 | S8: 127.8788608 | T8: 103.25 | U8: 303.4107949 | V8: =+F8/N8*1000 -> 185.1635481 | W8: =+G8/O8*1000 -> 186.0624546 | X8: =+H8/P8*1000 -> 280.3017042 | Y8: =+I8/Q8*1000 -> 231.0592388
A9: Marzo | B9: 2495815 | C9: 1079288.8 | D9: 3391910 | E9: 17093340 | F9: 6970590 | G9: 5514518 | H9: 3432750 | I9: 30088201 | J9: 21560000 | K9: 8416000 | L9: 18406000 | M9: 51578000 | N9: 36930000 | O9: 29072950 | P9: 11900000 | Q9: 136229490 | R9: 115.7613636 | S9: 128.2424905 | T9: 184.2828426 | U9: 331.4075769 | V9: 188.7514216 | W9: 189.6786532 | X9: 288.4663866 | Y9: 220.8640802
A10: Abril | B10: 2367540 | C10: 2253625 | D10: 1454400.4 | E10: 5836900 | F10: 8075699.6 | G10: 8299128 | H10: 6581497 | I10: 19208096 | J10: 19220000 | K10: 16410000 | L10: 7557000 | M10: 15881000 | N10: 41143570 | O10: 45574950 | P10: 23081000 | Q10: 89704870 | R10: 123.1810614 | S10: 137.3324193 | T10: 192.4573773 | U10: 367.5398275 | V10: 196.2809644 | W10: 182.0984554 | X10: 285.1478272 | Y10: 214.1254538
A11: Mayo | B11: 2113060 | C11: 1645141 | D11: 1455640.4 | E11: 7905770 | F11: 10370997 | G11: 11027025 | H11: 8054675 | I11: 17282886 | J11: 16001000 | K11: 11358000 | L11: 6877000 | M11: 21370000 | N11: 52782000 | O11: 57300000 | P11: 26890000 | Q11: 75493540 | R11: 132.0579964 | S11: 144.8442507 | T11: 211.6679366 | U11: 369.9471221 | V11: 196.4873821 | W11: 192.4437173 | X11: 299.5416512 | Y11: 228.9319854
A12: Junio | B12: 2781660 | C12: 1127120 | D12: 1991290 | E12: 19141662.3 | F12: 39325248.3 | G12: 6592246 | H12: 6964205 | I12: 16165701 | J12: 22820000 | K12: 7836000 | L12: 8993000 | M12: 51148034 | N12: 180269707 | O12: 34592000 | P12: 23510000 | Q12: 74221110 | R12: 121.8957055 | S12: 143.8386932 | T12: 221.4266652 | U12: 374.2404312 | V12: 218.1467367 | W12: 190.5714038 | X12: 296.2230966 | Y12: 217.8046246
A13: Julio | B13: 1738677 | C13: 744950 | D13: 566475 | E13: 7760981.5 | F13: 23006374.16 | G13: 9034140 | H13: 3778548 | I13: 16391179 | J13: 13915000 | K13: 5100000 | L13: 2570000 | M13: 21107016 | N13: 119165200 | O13: 47984000 | P13: 13000000 | Q13: 73084200 | R13: 124.9498383 | S13: 146.0686275 | T13: 220.4182879 | U13: 367.6967649 | V13: 193.0628586 | W13: 188.274008 | X13: 290.6575385 | Y13: 224.2780108
A14: Agosto | B14: 1287457 | C14: 971980 | D14: 1602464 | E14: 10861419.7 | F14: 16669521.19 | G14: 12565380 | H14: 14187217 | I14: 19299447 | J14: 9514000 | K14: 6880000 | L14: 7002000 | M14: 29120441 | N14: 77872725 | O14: 65210000 | P14: 45083380 | Q14: 78656710 | R14: 135.322367 | S14: 141.2761628 | T14: 228.8580406 | U14: 372.9826653 | V14: 214.0611002 | W14: 192.6909983 | X14: 314.6884062 | Y14: 245.3630084
A15: Septiembre | B15: 5445253 | C15: 3004810 | D15: 7319250 | E15: 17555510.6 | F15: 14795291.4 | G15: 12331950 | H15: 5544144 | I15: 38587677 | J15: 46069000 | K15: 20210000 | L15: 26610000 | M15: 58348385 | N15: 65889741 | O15: 57179000 | P15: 20800000 | Q15: 142671010 | R15: 118.1977686 | S15: 148.6793667 | T15: 275.0563698 | U15: 300.8739762 | V15: 224.5462067 | W15: 215.672712 | X15: 266.5453846 | Y15: 270.4661374
A16: Octubre | B16: 10148477 | C16: 4880190 | D16: 7512640 | E16: 9585525 | F16: 16575605 | G16: 36349227 | H16: 10219210 | I16: 64308576 | J16: 89777000 | K16: 29208000 | L16: 27552000 | M16: 48174000 | N16: 86058000 | O16: 155114330 | P16: 42439000 | Q16: 230606565 | R16: 113.0409459 | S16: 167.0840181 | T16: 272.6713124 | U16: 198.9771453 | V16: 192.6096935 | W16: 234.338291 | X16: 240.7976154 | Y16: 278.8670652
A17: Noviembre | B17: 14143872 | C17: 3634550 | D17: 14317020.1 | E17: 16361417.4 | F17: 13191773 | G17: 54897509 | H17: 16120018 | I17: 69730101 | J17: 123158000 | K17: 18852000 | L17: 53232220 | M17: 94813010 | N17: 70804290 | O17: 234658008 | P17: 71023000 | Q17: 241296994 | R17: 114.843307 | S17: 192.793868 | T17: 268.9540301 | U17: 172.5651089 | V17: 186.3131881 | W17: 233.9468807 | X17: 226.9689819 | Y17: 288.9803965
A18: Diciembre | B18: 15484811.8 | C18: 3689730 | D18: 18553967.8 | E18: 9516059.7 | F18: 7617841 | G18: 75459898 | H18: 16377694 | J18: 129070000 | K18: 19110000 | L18: 67341730 | M18: 58794549 | N18: 38410950 | O18: 309494754 | P18: 75379380 | R18: 119.9721996 | S18: 193.0784929 | T18: 275.5196191 | U18: 161.8527544 | V18: 198.3247225 | W18: 243.8164041 | X18: 217.2702137
A19: Total | B19: =SUM(B7:B18) -> 68259232.97 | C19: 33919380.4 | D19: 60274682.7 | E19: 161198698.7 | F19: 186668308.6 | G19: 247322316 | H19: 169696434 | I19: 331295676 | J19: =SUM(J7:J18) -> 593915645 | K19: 232686000 | L19: 238840950 | M19: 583406435 | N19: 940901893 | O19: 1114301492 | P19: 653279191 | Q19: 1323223540 | R19: 114.9308552 | S19: 145.7731896 | T19: 252.3632681 | U19: 276.3060005 | V19: =F19/N19*1000 -> 198.3929567 | W19: =G19/O19*1000 -> 221.9527819 | X19: =H19/P19*1000 -> 259.7609664 | Y19: =I19/Q19*1000 -> 250.3701499
A21: Mes | B21: Var % del Valor Exportado (US$ FOB) | I21: Var % de la Cantidad Exportada (Kilogramos) | P21: Var % del Precio (US$/Ton)
B22: 2006/2005 | C22: 2007/2006 | D22: 2008/2007 | E22: 2009/2008 | F22: 2010/2009 | G22: 2011/2010 | H22: 2012/2011 | I22: 2006/2005 | J22: 2007/2006 | K22: 2008/2007 | L22: 2009/2008 | M22: 2010/2009 | N22: 2011/2010 | O22: 2012/2011 | P22: 2006/2005 | Q22: 2007/2006 | R22: 2008/2007 | S22: 2009/2008 | T22: 2010/2009 | U22: 2011/2010 | V22: 2012/2011
A23: Enero | B23: =+C7/B7-1 -> -0.1447429017 | C23: -0.7318086306 | D23: 15.67403816 | E23: -0.4023263363 | F23: =+G7/F7-1 -> -0.2495116008 | G23: 2.821671947 | H23: -0.6954691132 | I23: =+K7/J7-1 -> -0.2917162402 | J23: -0.8377864375 | K23: 10.0183908 | L23: 0.04835916962 | M23: -0.3596592332 | N23: 2.004610304 | O23: -0.6325577946 | P23: =+S7/R7-1 -> 0.2075062946 | Q23: 0.6533227259 | R23: 0.5132915922 | S23: -0.4298960881 | T23: 0.172014087 | U23: 0.2719359785 | V23: -0.1712141875
A24: Febrero | B24: 0.5973877653 | C24: -0.9094660104 | D24: 26.33782688 | E24: 0.165705573 | F24: -0.8053341488 | G24: 10.68677754 | H24: -0.1495058572 | I24: =+K8/J8-1 -> 0.3168731754 | J24: -0.8878703782 | K24: 8.303 | L24: 0.9101365151 | M24: -0.8062746201 | N24: 6.75760719 | O24: 0.03174821695 | P24: =+S8/R8-1 -> 0.2130156458 | Q24: -0.1925952469 | R24: 1.93860334 | S24: -0.3897265647 | T24: 0.004854662302 | U24: 0.5064925633 | V24: -0.1756766537
A25: Marzo | B25: =+C9/B9-1 -> -0.5675605764 | C25: 2.142726951 | D25: 4.039443853 | E25: -0.5922043322 | F25: -0.2088879134 | G25: -0.3775067921 | H25: =+I9/H9-1 -> 7.765042896 | I25: =+K9/J9-1 -> -0.6096474954 | J25: 1.187024715 | K25: 1.802238401 | L25: -0.283997053 | M25: -0.2127552126 | N25: -0.5906848118 | O25: 10.4478563 | P25: =+S9/R9-1 -> 0.1078177249 | Q25: 0.4369873966 | R25: 0.7983637125 | S25: -0.4304553221 | T25: 0.004912448154 | U25: 0.5208162949 | V25: -0.2343507235
A26: Abril | B26: =+C10/B10-1 -> -0.04811534335 | C26: -0.3546395696 | D26: 3.013268973 | E26: 0.3835596978 | F26: 0.02766675472 | G26: -0.2069652378 | H26: 1.918499545 | I26: =+K10/J10-1 -> -0.146201873 | J26: -0.539488117 | K26: 1.101495302 | L26: 1.590741767 | M26: 0.1077052866 | N26: -0.4935595102 | O26: 2.886524414 | P26: =+S10/R10-1 -> 0.1148825777 | Q26: 0.401397997 | R26: 0.9097206493 | S26: -0.4659600137 | T26: -0.07225616135 | U26: 0.5658992087 | V26: -0.2490721184
A27: Mayo | B27: =+C11/B11-1 -> -0.2214414167 | C27: -0.1151880599 | D27: 4.431128457 | E27: 0.311826299 | F27: 0.06325602061 | G27: -0.2695513976 | H27: 1.145696257 | I27: =+K11/J11-1 -> -0.2901693644 | J27: -0.3945236837 | K27: 2.107459648 | L27: 1.46991109 | M27: 0.08559736274 | N27: -0.5307155323 | O27: 1.80749498 | P27: =+S11/R11-1 -> 0.09682302264 | Q27: 0.4613485555 | R27: 0.7477711933 | S27: -0.468877117 | T27: -0.02057976824 | U27: 0.5565156161 | V27: -0.2357257011
A28: Junio | B28: =+C12/B12-1 -> -0.5948031032 | C28: 0.7667062957 | D28: 8.612694434 | E28: 1.054432248 | F28: -0.832366068 | G28: 0.05642371356 | H28: 1.321255764 | I28: =+K12/J12-1 -> -0.6566170026 | J28: 0.1476518632 | K28: 4.68753853 | L28: 2.524469914 | M28: -0.8081097452 | N28: -0.3203630897 | O28: 2.157001701 | P28: =+S12/R12-1 -> 0.1800144443 | Q28: 0.5394096 | R28: 0.6901326266 | S28: -0.4170946844 | T28: -0.1264072674 | U28: 0.554394262 | V28: -0.2647277436
A29: Julio | B29: -0.5715420403 | C29: -0.2395798376 | D29: 12.70048369 | E29: 1.964364 | F29: -0.6073201306 | G29: -0.581747903 | H29: 3.337957067 | I29: =+K13/J13-1 -> -0.6334890406 | J29: -0.4960784314 | K29: 7.212846693 | L29: 4.645762527 | M29: -0.597332107 | N29: -0.7290763588 | O29: 4.621861538 | P29: =+S13/R13-1 -> 0.1690181391 | Q29: 0.5090049916 | R29: 0.6681772114 | S29: -0.4749400129 | T29: -0.02480461882 | U29: 0.5438006634 | V29: -0.2283771065
A30: Agosto | B30: =+C14/B14-1 -> -0.2450388634 | C30: 0.6486594374 | D30: 5.777949271 | E30: 0.5347460692 | F30: -0.2462063033 | G30: 0.1290718625 | H30: 0.3603405798 | I30: =+K14/J14-1 -> -0.2768551608 | J30: 0.01773255814 | K30: 3.15887475 | L30: 1.674160223 | M30: -0.1626079606 | N30: -0.3086431529 | O30: 0.7446941645 | P30: =+S14/R14-1 -> 0.04399712984 | Q30: 0.619933866 | R30: 0.6297555656 | S30: -0.4260829789 | T30: -0.09983178577 | U30: 0.6331245828 | V30: -0.2202985443
A31: Septiembre | B31: -0.4481780736 | C31: 1.435844529 | D31: 1.39853955 | E31: -0.1572280786 | F31: -0.1664949566 | G31: -0.5504243854 | H31: =+I15/H15-1 -> 5.960078418 | I31: =+K15/J15-1 -> -0.5613102086 | J31: 0.3166749134 | K31: 1.192723976 | L31: 0.1292470391 | M31: -0.1322017793 | N31: -0.6362300845 | O31: 5.859183173 | P31: =+S15/R15-1 -> 0.257886409 | Q31: 0.8499969161 | R31: 0.09386296503 | S31: -0.2536868442 | T31: -0.03951745519 | U31: 0.2358790416 | V31: 0.01470951311
A32: Octubre | B32: =+C16/B16-1 -> -0.5191209479 | C32: 0.5394154736 | D32: 0.2759196501 | E32: 0.7292328798 | F32: 1.19293516 | G32: -0.7188603213 | H32: =+I16/H16-1 -> 5.292910704 | I32: =+K16/J16-1 -> -0.6746605478 | J32: -0.0566967954 | K32: 0.7484756098 | L32: 0.7863993025 | M32: 0.8024394013 | N32: -0.7264018096 | O32: 4.433835976 | P32: =+S16/R16-1 -> 0.4780840407 | Q32: 0.6319413165 | R32: -0.2702674015 | S32: -0.03200092088 | T32: 0.2166484811 | U32: 0.02756410139 | V32: 0.1580972874
A33: Noviembre | B33: -0.7430300557 | C33: 2.939145176 | D33: 0.1427948893 | E33: -0.1937267611 | F33: 3.161495881 | G33: -0.7063615764 | H33: =+I17/H17-1 -> 3.325683817 | I33: =+K17/J17-1 -> -0.846928336 | J33: 1.823690855 | K33: 0.7811207197 | L33: -0.2532217889 | M33: 2.314177827 | N33: -0.6973340028 | O33: 2.397448629 | P33: =+S17/R17-1 -> 0.6787558031 | Q33: 0.3950341515 | R33: -0.3583843719 | S33: 0.07966893902 | T33: 0.2556646316 | U33: -0.02982685124 | V33: 0.2732153711
A34: Diciembre | B34: =+C18/B18-1 -> -0.7617194159 | C34: 4.028543498 | D34: -0.4871145729 | E34: -0.1994752828 | F34: 8.905680363 | G34: -0.7829616202 | I34: =+K18/J18-1 -> -0.8519408073 | J34: 2.523900052 | K34: -0.1269225041 | L34: -0.3466919867 | M34: 7.057461583 | N34: -0.7564437554 | P34: =+S18/R18-1 -> 0.6093602819 | Q34: 0.4269824408 | R34: -0.4125545218 | S34: 0.2253404227 | T34: 0.2293797818 | U34: -0.1088777865
A35: Total | B35: =+C19/B19-1 -> -0.5030799655 | C35: 0.776998341 | D35: 1.674401448 | E35: 0.1580013366 | F35: 0.3249293248 | G35: -0.3138652559 | H35: 0.9522842537 | I35: -0.6082170895 | J35: 0.02645174183 | K35: 1.442656651 | L35: 0.6127725657 | M35: 0.1842908387 | N35: -0.4137321042 | O35: =+Q19/P19-1 -> 1.025510009 | P35: 0.2683555641 | Q35: 0.7312049545 | R35: 0.0948740779 | S35: -0.2819810051 | T35: 0.1187533344 | U35: 0.1703433687 | V35: =+Y19/X19-1 -> -0.03615176176

Sheet Evolución (canola)
A1: Índice
A2: EXPORTACIONES DE CANOLA
A3: Fuente: BCP
A5: Mes | B5: Valor Exportado (US$ FOB) | J5: Cantidad Exportada (Kg) | R5: Precio (US$/Ton)
B6: 2005 | C6: 2006 | D6: 2007 | E6: 2008 | F6: 2009 | G6: 2010 | H6: 2011 | I6: 2012 | J6: 2005 | K6: 2006 | L6: 2007 | M6: 2008 | N6: 2009 | O6: 2010 | P6: 2011 | Q6: 2012 | R6: 2005 | S6: 2006 | T6: 2007 | U6: 2008 | V6: 2009 | W6: 2010 | X6: 2011 | Y6: 2012
A7: Enero | B7: 262650 | C7: 1214000 | D7: 1576000 | E7: 1732000 | F7: 302877 | G7: 1630200 | H7: 1170400 | I7: 2152189 | J7: 1500000 | K7: 7000000 | L7: 8000000 | M7: 4400000 | N7: 829800 | O7: 5400000 | P7: 2880000 | Q7: 5102900 | R7: =B7/J7*1000 -> 175.1 | S7: 173.4285714 | T7: 197 | U7: 393.6363636 | V7: 365 | W7: 301.8888889 | X7: 406.3888889 | Y7: 421.7580199
A8: Febrero | B8: 0 | C8: 506000 | D8: 192000 | E8: 117450 | F8: 0 | G8: 624000 | H8: 604000 | I8: 219240 | J8: 0 | K8: 3000000 | L8: 1000000 | M8: 290000 | N8: 0 | O8: 2000000 | P8: 1500000 | Q8: 540000 | R8: 0 | S8: =C8/K8*1000 -> 168.6666667 | T8: =D8/L8*1000 -> 192 | U8: =E8/M8*1000 -> 405 | V8: 0 | W8: =G8/O8*1000 -> 312 | X8: 402.6666667 | Y8: 406
A9: Marzo | B9: 0 | C9: 488000 | D9: 98040 | E9: 0 | F9: 149190.3 | G9: 1228000 | H9: 140840 | I9: 98400 | J9: 0 | K9: 2500000 | L9: 570000 | M9: 0 | N9: 25323.2 | O9: 4000000 | P9: 350000 | Q9: 240000 | R9: 0 | S9: =C9/K9*1000 -> 195.2 | T9: =D9/L9*1000 -> 172 | U9: 0 | V9: =F9/N9*1000 -> 5891.447368 | W9: 307 | X9: 402.4 | Y9: 410
A10: Abril | B10: 90240 | C10: 0 | D10: 0 | E10: 57275.4 | F10: 0 | G10: 603280 | H10: 0 | I10: 37638 | J10: 480000 | K10: 0 | L10: 0 | M10: 15929 | N10: 0 | O10: 1525172 | P10: 0 | Q10: 54410 | R10: =B10/J10*1000 -> 188 | S10: 0 | T10: 0 | U10: =E10/M10*1000 -> 3595.668278 | V10: 0 | W10: =G10/O10*1000 -> 395.5488299 | X10: 0 | Y10: =I10/Q10*1000 -> 691.7478405
A11: Mayo | B11: 9964 | C11: 72000 | D11: 0 | E11: 0 | F11: 0 | G11: 101520 | H11: 0 | I11: 88970 | J11: 53000 | K11: 360000 | L11: 0 | M11: 0 | N11: 0 | O11: 360000 | P11: 0 | Q11: 140890 | R11: =B11/J11*1000 -> 188 | S11: =C11/K11*1000 -> 200 | T11: 0 | U11: 0 | V11: 0 | W11: =G11/O11*1000 -> 282 | X11: 0 | Y11: =I11/Q11*1000 -> 631.4855561
A12: Junio | B12: 0 | C12: 0 | D12: 0 | E12: 0 | F12: 0 | G12: 43146 | H12: 0 | I12: 0 | J12: 0 | K12: 0 | L12: 0 | M12: 0 | N12: 0 | O12: 153000 | P12: 0 | Q12: 0 | R12: 0 | S12: 0 | T12: 0 | U12: 0 | V12: 0 | W12: =G12/O12*1000 -> 282 | X12: 0 | Y12: 0
A13: Julio | B13: 0 | C13: 0 | D13: 0 | E13: 46350 | F13: 0 | G13: 0 | H13: 0 | I13: 0 | J13: 0 | K13: 0 | L13: 0 | M13: 90000 | N13: 0 | O13: 0 | P13: 0 | Q13: 0 | R13: 0 | S13: 0 | T13: 0 | U13: =E13/M13*1000 -> 515 | V13: 0 | W13: 0 | X13: 0 | Y13: 0
A14: Agosto | B14: 0 | C14: 0 | D14: 0 | E14: 141050 | F14: 0 | G14: 0 | H14: 1369410 | I14: 868000 | J14: 0 | K14: 0 | L14: 0 | M14: 310000 | N14: 0 | O14: 0 | P14: 6454000 | Q14: 2000000 | R14: 0 | S14: 0 | T14: 0 | U14: 455 | V14: 0 | W14: 0 | X14: =H14/P14*1000 -> 212.1800434 | Y14: =I14/Q14*1000 -> 434
A15: Septiembre | B15: 377655 | C15: 192000 | D15: 0 | E15: 910000 | F15: 46400 | G15: 657000 | H15: 5038389 | I15: 2171000 | J15: 2115000 | K15: 1000000 | L15: 0 | M15: 2000000 | N15: 160000 | O15: 2000000 | P15: 18961678 | Q15: 5000000 | R15: =B15/J15*1000 -> 178.5602837 | S15: 192 | T15: 0 | U15: 455 | V15: =F15/N15*1000 -> 290 | W15: 328.5 | X15: 265.7143002 | Y15: =I15/Q15*1000 -> 434.2
A16: Octubre | B16: 1476550 | C16: 768000 | D16: 864000 | E16: 2295000 | F16: 1343000 | G16: 3301000 | H16: 3222000 | I16: 4489000 | J16: 8250000 | K16: 4000000 | L16: 3000000 | M16: 5000000 | N16: 5000000 | O16: 9000000 | P16: 8000000 | Q16: 10000000 | R16: 178.9757576 | S16: 192 | T16: =D16/L16*1000 -> 288 | U16: 459 | V16: 268.6 | W16: 366.7777778 | X16: 402.75 | Y16: =I16/Q16*1000 -> 448.9
A17: Noviembre | B17: 1026175 | C17: 1953400 | D17: 1005000 | E17: 1620000 | F17: 2907000 | G17: 2450000 | H17: 2838000 | I17: 4524300 | J17: 5725000 | K17: 9470000 | L17: 3000000 | M17: 4000000 | N17: 10000000 | O17: 6000000 | P17: 7000000 | Q17: 9950000 | R17: 179.2445415 | S17: 206.2724393 | T17: =D17/L17*1000 -> 335 | U17: 405 | V17: 290.7 | W17: 408.3333333 | X17: 405.4285714 | Y17: =I17/Q17*1000 -> 454.7035176
A18: Diciembre | B18: 902000 | C18: 197000 | D18: 720000 | E18: 780000 | F18: 0 | G18: 812000 | H18: 409000 | J18: 5000000 | K18: 1000000 | L18: 2000000 | M18: 2000000 | N18: 0 | O18: 2000000 | P18: 1000000 | R18: 180.4 | S18: 197 | T18: =D18/L18*1000 -> 360 | U18: 390 | V18: 0 | W18: =G18/O18*1000 -> 406 | X18: 409
A19: Total | B19: =SUM(B7:B18) -> 4145234 | C19: 5390400 | D19: 4455040 | E19: 7699125.4 | F19: 4748467.3 | G19: 11450146 | H19: 14792039 | I19: 14648737 | J19: =SUM(J7:J18) -> 23123000 | K19: 28330000 | L19: 17570000 | M19: 18105929 | N19: 16015123.2 | O19: 32438172 | P19: 46145678 | Q19: 33028200 | R19: 179.2688665 | S19: 190.2717967 | T19: =D19/L19*1000 -> 253.5594764 | U19: 425.2267531 | V19: =F19/N19*1000 -> 296.4989554 | W19: =G19/O19*1000 -> 352.9837008 | X19: 320.5509084 | Y19: =I19/Q19*1000 -> 443.5221114
A21: Mes | B21: Var % del Valor Exportado (US$ FOB) | I21: Var % de la Cantidad Exportada (Kilogramos) | P21: Var % del Precio (US$/Ton)
B22: 2006/2005 | C22: 2007/2006 | D22: 2008/2007 | E22: 2009/2008 | F22: 2010/2009 | G22: 2011/2010 | H22: 2012/2011 | I22: 2006/2005 | J22: 2007/2006 | K22: 2008/2007 | L22: 2009/2008 | M22: 2010/2009 | N22: 2011/2010 | O22: 2012/2011 | P22: 2006/2005 | Q22: 2007/2006 | R22: 2008/2007 | S22: 2009/2008 | T22: 2010/2009 | U22: 2011/2010 | V22: 2012/2011
A23: Enero | B23: =+C7/B7-1 -> 3.622120693 | C23: 0.2981878089 | D23: 0.09898477157 | E23: -0.8251287529 | F23: 4.382382948 | G23: -0.2820512821 | H23: 0.8388491114 | I23: =+K7/J7-1 -> 3.666666667 | J23: 0.1428571429 | K23: -0.45 | L23: -0.8114090909 | M23: 5.507592191 | N23: -0.4666666667 | O23: 0.7718402778 | P23: =+S7/R7-1 -> -0.009545565799 | Q23: 0.1359143328 | R23: 0.9981541301 | S23: -0.0727482679 | T23: -0.1729071537 | U23: 0.3461538462 | V23: 0.03781877773
A24: Febrero | B24: =+C8/B8-1 ->  | C24: -0.6205533597 | D24: -0.38828125 | E24: -1 | G24: -0.03205128205 | H24: -0.6370198675 | I24: =+K8/J8-1 ->  | J24: -0.6666666667 | K24: -0.71 | L24: -1 | N24: -0.25 | O24: -0.64 | P24: =+S8/R8-1 ->  | Q24: 0.1383399209 | R24: 1.109375 | S24: -1 | U24: 0.2905982906 | V24: 0.008278145695
A25: Marzo | B25: =+C9/B9-1 ->  | C25: -0.7990983607 | D25: -1 | F25: 7.231098134 | G25: -0.8853094463 | H25: =+I9/H9-1 -> -0.3013348481 | I25: =+K9/J9-1 ->  | J25: -0.772 | K25: -1 | M25: 156.95792 | N25: -0.9125 | O25: -0.3142857143 | P25: =+S9/R9-1 ->  | Q25: -0.118852459 | R25: -1 | T25: -0.9478905639 | U25: 0.3107491857 | V25: 0.01888667992
A26: Abril | B26: =+C10/B10-1 -> -1 | E26: -1 | G26: -1 | I26: =+K10/J10-1 -> -1 | L26: -1 | N26: -1 | P26: =+S10/R10-1 -> -1 | S26: -1 | U26: -1
A27: Mayo | B27: =+C11/B11-1 -> 6.226013649 | C27: -1 | G27: -1 | I27: =+K11/J11-1 -> 5.79245283 | J27: -1 | N27: -1 | P27: =+S11/R11-1 -> 0.06382978723 | Q27: -1 | U27: -1
A28: Junio | B28: =+C12/B12-1 ->  | G28: -1 | I28: =+K12/J12-1 ->  | N28: -1 | P28: =+S12/R12-1 ->  | U28: -1
A29: Julio | E29: -1 | I29: =+K13/J13-1 ->  | L29: -1 | P29: =+S13/R13-1 ->  | S29: -1
A30: Agosto | B30: =+C14/B14-1 ->  | E30: -1 | H30: -0.3661503859 | I30: =+K14/J14-1 ->  | L30: -1 | O30: -0.6901146576 | P30: =+S14/R14-1 ->  | S30: -1 | V30: 1.045432705
A31: Septiembre | B31: -0.4915994757 | C31: -1 | E31: -0.949010989 | F31: 13.15948276 | G31: 6.668780822 | H31: =+I15/H15-1 -> -0.5691083003 | I31: =+K15/J15-1 -> -0.5271867612 | J31: -1 | L31: -0.92 | M31: 11.5 | N31: 8.480839 | O31: -0.7363102569 | P31: =+S15/R15-1 -> 0.07526710887 | Q31: -1 | S31: -0.3626373626 | T31: 0.1327586207 | U31: -0.1911284622 | V31: 0.6340859325
A32: Octubre | B32: =+C16/B16-1 -> -0.4798686126 | C32: 0.125 | D32: 1.65625 | E32: -0.4148148148 | F32: 1.457930007 | G32: -0.02393214178 | H32: =+I16/H16-1 -> 0.3932340161 | I32: =+K16/J16-1 -> -0.5151515152 | J32: -0.25 | K32: 0.6666666667 | L32: 0 | M32: 0.8 | N32: -0.1111111111 | O32: 0.25 | P32: =+S16/R16-1 -> 0.07277098642 | Q32: 0.5 | R32: 0.59375 | S32: -0.4148148148 | T32: 0.3655166708 | U32: 0.0980763405 | V32: 0.1145872129
A33: Noviembre | B33: 0.9035739518 | C33: -0.4855124398 | D33: 0.6119402985 | E33: 0.7944444444 | F33: -0.1572067423 | G33: 0.1583673469 | H33: =+I17/H17-1 -> 0.5941860465 | I33: =+K17/J17-1 -> 0.6541484716 | J33: -0.6832101373 | K33: 0.3333333333 | L33: 1.5 | M33: -0.4 | N33: 0.1666666667 | O33: 0.4214285714 | P33: =+S17/R17-1 -> 0.1507878431 | Q33: 0.6240657315 | R33: 0.2089552239 | S33: -0.2822222222 | T33: 0.4046554294 | U33: -0.007113702624 | V33: 0.1215379222
A34: Diciembre | B34: 0.9035739518 | C34: -0.4855124398 | D34: 0.6119402985 | E34: 0.7944444444 | F34: -0.1572067423 | G34: 0.1583673469 | I34: 0.6541484716 | J34: -0.6832101373 | K34: 0.3333333333 | L34: 1.5 | M34: -0.4 | N34: 0.1666666667 | P34: 0.1507878431 | Q34: 0.6240657315 | R34: 0.2089552239 | S34: -0.2822222222 | T34: 0.4046554294 | U34: -0.007113702624
A35: Total | B35: =+C19/B19-1 -> 0.3003849722 | C35: -0.1735233007 | D35: 0.7281832262 | E35: -0.3832458814 | F35: 1.411335127 | G35: 0.2918646627 | H35: -0.009687778676 | I35: =+K19/J19-1 -> 0.2251870432 | J35: -0.3798093893 | K35: 0.03050250427 | L35: -0.1154763061 | M35: 1.025471275 | N35: 0.4225733189 | O35: -0.2842623311 | P35: =+S19/R19-1 -> 0.06137669301 | Q35: 0.3326172391 | R35: 0.677029623 | S35: -0.3027274194 | T35: 0.1905057146 | U35: -0.09188184148 | V35: 0.3836245658

Sheet Evolución (girasol)
A1: Índice
A2: EXPORTACIONES DE GIRASOL
A3: Fuente: BCP
A5: Mes | B5: Valor Exportado (US$ FOB) | J5: Cantidad Exportada (Kg) | R5: Precio (US$/Ton)
B6: 2005 | C6: 2006 | D6: 2007 | E6: 2008 | F6: 2009 | G6: 2010 | H6: 2011 | I6: 2012 | J6: 2005 | K6: 2006 | L6: 2007 | M6: 2008 | N6: 2009 | O6: 2010 | P6: 2011 | Q6: 2012 | R6: 2005 | S6: 2006 | T6: 2007 | U6: 2008 | V6: 2009 | W6: 2010 | X6: 2011 | Y6: 2012
A7: Enero | B7: 0 | C7: 3211180.98 | D7: 5841396.6 | E7: 5206881.7 | F7: 15703229.5 | G7: 5112930 | H7: 2560853 | I7: 118034 | J7: 0 | K7: 19232612 | L7: 27745550 | M7: 9990540 | N7: 61723828 | O7: 15610000 | P7: 5250000 | Q7: 231440 | R7: 0 | S7: =C7/K7*1000 -> 166.9654117 | T7: =D7/L7*1000 -> 210.5345398 | U7: =E7/M7*1000 -> 521.1812074 | V7: =+F7/N7*1000 -> 254.4111409 | W7: =+G7/O7*1000 -> 327.5419603 | X7: =+H7/P7*1000 -> 487.7815238 | Y7: =+I7/Q7*1000 -> 509.9982717
A8: Febrero | B8: 15097.96 | C8: 0 | D8: 137894.5 | E8: 73500 | F8: 8839042.8 | G8: 264000 | H8: 2135150 | I8: 0 | J8: 18901 | K8: 0 | L8: 591637.4 | M8: 125000 | N8: 31154064 | O8: 800000 | P8: 4107783 | Q8: 0 | R8: =B8/J8*1000 -> 798.7915983 | S8: 0 | T8: =D8/L8*1000 -> 233.0726557 | U8: =E8/M8*1000 -> 588 | V8: =+F8/N8*1000 -> 283.7203775 | W8: =+G8/O8*1000 -> 330 | X8: =+H8/P8*1000 -> 519.7815951 | Y8: 0
A9: Marzo | B9: 0 | C9: 0 | D9: 53500 | E9: 54422.5 | F9: 1819376 | G9: 0 | H9: 0 | I9: 0 | J9: 0 | K9: 0 | L9: 250000 | M9: 29585 | N9: 6830000 | O9: 0 | P9: 0 | Q9: 0 | R9: 0 | S9: 0 | T9: =D9/L9*1000 -> 214 | U9: =E9/M9*1000 -> 1839.530167 | V9: =+F9/N9*1000 -> 266.3800878 | W9: 0 | X9: 0 | Y9: 0
A10: Abril | B10: 0 | C10: 0 | D10: 0 | E10: 117600 | F10: 943572.5 | G10: 0 | H10: 0 | I10: 0 | J10: 0 | K10: 0 | L10: 0 | M10: 200000 | N10: 3250000 | O10: 0 | P10: 0 | Q10: 0 | R10: 0 | S10: 0 | T10: 0 | U10: =E10/M10*1000 -> 588 | V10: =+F10/N10*1000 -> 290.33 | W10: 0 | X10: 0 | Y10: 0
A11: Mayo | B11: 0 | C11: 0 | D11: 0 | E11: 0 | F11: 0 | G11: 0 | H11: 0 | I11: 0 | J11: 0 | K11: 0 | L11: 0 | M11: 0 | N11: 0 | O11: 0 | P11: 0 | Q11: 0 | R11: 0 | S11: 0 | T11: 0 | U11: 0 | V11: 0 | W11: 0 | X11: 0 | Y11: 0
A12: Junio | B12: 0 | C12: 0 | D12: 44550 | E12: 45340 | F12: 281422 | G12: 400 | H12: 0 | I12: 0 | J12: 0 | K12: 0 | L12: 60000 | M12: 45840 | N12: 1793782 | O12: 218 | P12: 0 | Q12: 0 | R12: 0 | S12: 0 | T12: =D12/L12*1000 -> 742.5 | U12: =E12/M12*1000 -> 989.0924956 | V12: =+F12/N12*1000 -> 156.8875148 | W12: =+G12/O12*1000 -> 1834.862385 | X12: 0 | Y12: 0
A13: Julio | B13: 0 | C13: 0 | D13: 10689 | E13: 0 | F13: 0 | G13: 1000 | H13: 0 | I13: 0 | J13: 0 | K13: 0 | L13: 22200 | M13: 0 | N13: 0 | O13: 550 | P13: 0 | Q13: 0 | R13: 0 | S13: 0 | T13: =D13/L13*1000 -> 481.4864865 | U13: 0 | V13: 0 | W13: =+G13/O13*1000 -> 1818.181818 | X13: 0 | Y13: 0
A14: Agosto | B14: 0 | C14: 0 | D14: 0 | E14: 0 | F14: 0 | G14: 1005 | H14: 0 | I14: 0 | J14: 0 | K14: 0 | L14: 0 | M14: 0 | N14: 0 | O14: 520 | P14: 0 | Q14: 0 | R14: 0 | S14: 0 | T14: 0 | U14: 0 | V14: 0 | W14: =+G14/O14*1000 -> 1932.692308 | X14: 0 | Y14: 0
A15: Septiembre | B15: 0 | C15: 0 | D15: 74515.3 | E15: 0 | F15: 0 | G15: 0 | H15: 0 | I15: 0 | J15: 0 | K15: 0 | L15: 15769.99 | M15: 0 | N15: 0 | O15: 0 | P15: 0 | Q15: 0 | R15: 0 | S15: 0 | T15: =D15/L15*1000 -> 4725.13299 | U15: 0 | V15: 0 | W15: 0 | X15: 0 | Y15: 0
A16: Octubre | B16: 0 | C16: 0 | D16: 0 | E16: 0 | F16: 0 | G16: 600 | H16: 0 | I16: 0 | J16: 0 | K16: 0 | L16: 0 | M16: 0 | N16: 0 | O16: 300 | P16: 0 | Q16: 0 | R16: 0 | S16: 0 | T16: 0 | U16: 0 | V16: 0 | W16: =+G16/O16*1000 -> 2000 | X16: 0 | Y16: 0
A17: Noviembre | B17: 0 | C17: 0 | D17: 18209.8 | E17: 350 | F17: 0 | G17: 0 | H17: 0 | I17: 0 | J17: 0 | K17: 0 | L17: 13081.49 | M17: 450 | N17: 0 | O17: 0 | P17: 0 | Q17: 0 | R17: 0 | S17: 0 | T17: =D17/L17*1000 -> 1392.027972 | U17: 777.7777778 | V17: 0 | W17: 0 | X17: 0 | Y17: 0
A18: Diciembre | B18: 68400 | C18: 41400 | D18: 3971850 | E18: 8212659.7 | F18: 1566584 | G18: 0 | H18: 0 | J18: 300000 | K18: 150000 | L18: 7500000 | M18: 35200000 | N18: 4896000 | O18: 0 | P18: 0 | R18: =B18/J18*1000 -> 228 | S18: =C18/K18*1000 -> 276 | T18: 529.58 | U18: 233.314196 | V18: =+F18/N18*1000 -> 319.9722222 | W18: 0 | X18: 0
A19: Total | B19: =SUM(B7:B18) -> 83497.96 | C19: 3252580.98 | D19: 10152605.2 | E19: 13710753.9 | F19: 29153226.8 | G19: 5379935 | H19: 4696003 | I19: 118034 | J19: =SUM(J7:J18) -> 318901 | K19: 19382612 | L19: 36198238.88 | M19: 45591415 | N19: 109647674 | O19: 16411588 | P19: 9357783 | Q19: 231440 | R19: =B19/J19*1000 -> 261.8303486 | S19: =C19/K19*1000 -> 167.8092189 | T19: 280.4723521 | U19: 300.7310455 | V19: =F19/N19*1000 -> 265.8809415 | W19: =+G19/O19*1000 -> 327.8131891 | X19: =+H19/P19*1000 -> 501.8285848 | Y19: =+I19/Q19*1000 -> 509.9982717
A21: Mes | B21: Var % del Valor Exportado (US$ FOB) | I21: Var % de la Cantidad Exportada (Kilogramos) | P21: Var % del Precio (US$/Ton)
B22: 2006/2005 | C22: 2007/2006 | D22: 2008/2007 | E22: 2009/2008 | F22: 2010/2009 | G22: 2011/2010 | H22: 2012/2011 | I22: 2006/2005 | J22: 2007/2006 | K22: 2008/2007 | L22: 2009/2008 | M22: 2010/2009 | N22: 2011/2010 | O22: 2012/2011 | P22: 2006/2005 | Q22: 2007/2006 | R22: 2008/2007 | S22: 2009/2008 | T22: 2010/2009 | U22: 2011/2010 | V22: 2012/2011
A23: Enero | B23: -- | C23: =+D7/C7-1 -> 0.819080468 | D23: -0.1086238349 | E23: 2.015860625 | F23: -0.6744026444 | G23: -0.4991417837 | H23: -0.9539083266 | I23: -- | J23: =+L7/K7-1 -> 0.4426303614 | K23: -0.6399227984 | L23: 5.178227403 | M23: -0.7470992888 | N23: -0.66367713 | O23: -0.9559161905 | P23: -- | Q23: =+T7/S7-1 -> 0.2609470289 | R23: 1.475514032 | S23: -0.5118566494 | T23: 0.2874513245 | U23: 0.4892184299 | V23: 0.04554651375
A24: Febrero | B24: -- | C24: =+D8/C8-1 ->  | D24: -0.4669838173 | E24: 119.2590857 | F24: -0.9701325125 | G24: 7.087689394 | H24: -1 | I24: -- | J24: =+L8/K8-1 ->  | K24: -0.7887219435 | L24: 248.232512 | M24: -0.9743211672 | N24: 4.13472875 | O24: -1 | P24: -- | Q24: =+T8/S8-1 ->  | R24: 1.522818468 | S24: -0.5174823511 | T24: 0.1631170199 | U24: 0.5750957427 | V24: -1
A25: Marzo | B25: =+C9/B9-1 ->  | D25: 0.01724299065 | E25: 32.43058478 | F25: -1 | H25: =+I9/H9-1 ->  | I25: -- | J25: =+L9/K9-1 ->  | K25: -0.88166 | L25: 229.8602332 | M25: -1 | P25: -- | Q25: =+T9/S9-1 ->  | R25: 7.595935361 | S25: -0.8551912371 | T25: -1
A26: Abril | B26: =+C10/B10-1 ->  | E26: 7.02357568 | F26: -1 | I26: =+K10/J10-1 ->  | L26: 15.25 | M26: -1 | P26: =+S10/R10-1 ->  | S26: -0.5062414966 | T26: -1
A27: Mayo | B27: =+C11/B11-1 ->  | I27: =+K11/J11-1 ->  | P27: =+S11/R11-1 -> 
A28: Junio | B28: =+C12/B12-1 ->  | D28: 0.0177328844 | E28: 5.206925452 | F28: -0.998578647 | G28: -1 | I28: =+K12/J12-1 ->  | K28: -0.236 | L28: 38.13136998 | M28: -0.9998784691 | N28: -1 | P28: =+S12/R12-1 ->  | R28: 0.3321111052 | S28: -0.8413823627 | T28: 10.69540093 | U28: -1
A29: Julio | D29: -1 | G29: -1 | I29: =+K13/J13-1 ->  | K29: -1 | N29: -1 | P29: =+S13/R13-1 ->  | R29: -1 | U29: -1
A30: Agosto | B30: =+C14/B14-1 ->  | G30: -1 | I30: =+K14/J14-1 ->  | N30: -1 | P30: =+S14/R14-1 ->  | U30: -1
A31: Septiembre | B31: =+C15/B15-1 ->  | D31: -1 | H31: =+I15/H15-1 ->  | I31: =+K15/J15-1 ->  | K31: -1 | P31: =+S15/R15-1 ->  | R31: -1
A32: Octubre | G32: -1 | H32: =+I16/H16-1 ->  | I32: =+K16/J16-1 ->  | N32: -1 | P32: =+S16/R16-1 ->  | U32: -1
A33: Noviembre | D33: -0.9807795802 | E33: -1 | H33: =+I17/H17-1 ->  | I33: =+K17/J17-1 ->  | K33: -0.9656002489 | L33: -1 | P33: =+S17/R17-1 ->  | R33: -0.4412628243 | S33: -1
A34: Diciembre | B34: =+C18/B18-1 -> -0.3947368421 | C34: 94.9384058 | D34: 1.06771648 | E34: -0.8092476667 | F34: -1 | I34: =+K18/J18-1 -> -0.5 | J34: 49 | K34: 3.693333333 | L34: -0.8609090909 | M34: -1 | P34: =+S18/R18-1 -> 0.2105263158 | Q34: 0.9187681159 | R34: -0.5594354091 | S34: 0.3714220038 | T34: -1
A35: Total | B35: =+C19/B19-1 -> 37.95401732 | C35: 2.121399671 | D35: 0.3504665679 | E35: 1.126303704 | F35: -0.8154600505 | G35: -0.127126443 | H35: -0.9748650075 | I35: 59.77940176 | J35: 0.8675624771 | K35: 0.2594926276 | L35: 1.405007039 | M35: -0.8503243398 | N35: -0.4298063661 | O35: =+Q19/P19-1 -> -0.9752676462 | P35: -0.3590917944 | Q35: 0.6713763041 | R35: 0.07223062556 | S35: -0.1158846235 | T35: 0.232932256 | U35: 0.530837079 | V35: =+Y19/X19-1 -> 0.01627983561

Sheet Evolución (aceite de girasol)
A1: Índice
A2: EXPORTACIONES DE ACEITE DE GIRASOL
A3: Fuente: BCP
A5: Mes | B5: Valor Exportado (US$ FOB) | J5: Cantidad Exportada (Kg) | R5: Precio (US$/Ton)
B6: 2005 | C6: 2006 | D6: 2007 | E6: 2008 | F6: 2009 | G6: 2010 | H6: 2011 | I6: 2012 | J6: 2005 | K6: 2006 | L6: 2007 | M6: 2008 | N6: 2009 | O6: 2010 | P6: 2011 | Q6: 2012 | R6: 2005 | S6: 2006 | T6: 2007 | U6: 2008 | V6: 2009 | W6: 2010 | X6: 2011 | Y6: 2012
A7: Enero | B7: 4980765 | C7: 3387000 | D7: 6194750 | E7: 12149861.4 | F7: 2923453.6 | G7: 5322721.5 | H7: 2347950 | I7: 2212408 | J7: 9800700 | K7: 7350000 | L7: 10975000 | M7: 9962000 | N7: 5626240 | O7: 6534935 | P7: 2029000 | Q7: 2100000 | R7: =+B7/J7*1000 -> 508.2050262 | S7: 460.8163265 | T7: 564.4419134 | U7: 1219.620699 | V7: 519.6105392 | W7: 814.5025926 | X7: 1157.195663 | Y7: 1053.527619
A8: Febrero | B8: 2883120 | C8: 3792000 | D8: 4895450 | E8: 13962380.1 | F8: 4452669.1 | G8: 7957052 | H8: 8770404 | I8: 2952925 | J8: 5664900 | K8: 8650000 | L8: 8875000 | M8: 11566700 | N8: 7231536 | O8: 10314786 | P8: 7915344 | Q8: 2850000 | R8: =+B8/J8*1000 -> 508.9445533 | S8: 438.3815029 | T8: 551.6 | U8: 1207.11872 | V8: 615.7293693 | W8: 771.421918 | X8: 1108.025627 | Y8: 1036.114035
A9: Marzo | B9: 84000 | C9: 3881100 | D9: 3839729.5 | E9: 8853200.8 | F9: 6002640 | G9: 5823950 | H9: 5103450 | I9: 7155995 | J9: 150000 | K9: 8900000 | L9: 7014170 | M9: 6363152 | N9: 9700000 | O9: 7525000 | P9: 4220000 | Q9: 6730000 | R9: 560 | S9: 436.0786517 | T9: 547.4246418 | U9: 1391.323168 | V9: 618.828866 | W9: 773.9468439 | X9: 1209.348341 | Y9: 1063.29792
A10: Abril | B10: 430000 | C10: 0 | D10: 6298454.6 | E10: 10855569.6 | F10: 2399160 | G10: 1853000 | H10: 483450 | I10: 1366155 | J10: 1000000 | K10: 0 | L10: 11414991 | M10: 7598527 | N10: 3525000 | O10: 2250000 | P10: 381000 | Q10: 1200000 | R10: =+B10/J10*1000 -> 430 | S10: 0 | T10: =+D10/L10*1000 -> 551.7704394 | U10: 1428.641314 | V10: 680.612766 | W10: 823.5555556 | X10: 1268.897638 | Y10: 1138.4625
A11: Mayo | B11: 0 | C11: 0 | D11: 4669981.5 | E11: 11229460.2 | F11: 4785900.9 | G11: 50170 | H11: 2311450 | I11: 2924000 | J11: 0 | K11: 0 | L11: 8300000 | M11: 7270660 | N11: 6789868 | O11: 58000 | P11: 1778000 | Q11: 2600000 | R11: 0 | S11: 0 | T11: 562.6483735 | U11: 1544.489799 | V11: 704.8591961 | W11: 865 | X11: 1300.028121 | Y11: 1124.615385
A12: Junio | B12: 22500 | C12: 297500 | D12: 1662000 | E12: 10971278 | F12: 5167777 | G12: 43250 | H12: 3155250 | I12: 2282500 | J12: 50000 | K12: 500000 | L12: 2550000 | M12: 6044632 | N12: 6804520 | O12: 50000 | P12: 2500000 | Q12: 2050000 | R12: =+B12/J12*1000 -> 450 | S12: =+C12/K12*1000 -> 595 | T12: 651.7647059 | U12: 1815.04482 | V12: 759.4623868 | W12: 865 | X12: 1262.1 | Y12: 1113.414634
A13: Julio | B13: 25500 | C13: 0 | D13: 1463030 | E13: 2135861 | F13: 5992224.28 | G13: 602625 | H13: 4108222 | I13: 1861500 | J13: 50000 | K13: 0 | L13: 1956000 | M13: 1400000 | N13: 8865771 | O13: 725000 | P13: 3261000 | Q13: 1650000 | R13: =+B13/J13*1000 -> 510 | S13: 0 | T13: 747.9703476 | U13: 1525.615 | V13: 675.8830428 | W13: 831.2068966 | X13: 1259.804354 | Y13: 1128.181818
A14: Agosto | B14: 12000 | C14: 62500 | D14: 1749780.5 | E14: 5505819.3 | F14: 41250 | G14: 120990 | H14: 1515136 | I14: 1833750 | J14: 25000 | K14: 100000 | L14: 2106000 | M14: 3353291 | N14: 50000 | O14: 117000 | P14: 1194000 | Q14: 1600000 | R14: =+B14/J14*1000 -> 480 | S14: =+C14/K14*1000 -> 625 | T14: 830.8549383 | U14: 1641.915151 | V14: 825 | W14: 1034.102564 | X14: 1268.958124 | Y14: 1146.09375
A15: Septiembre | B15: 11074.6 | C15: 0 | D15: 102380 | E15: 2389148.8 | F15: 4858512 | G15: 145500 | H15: 2075579 | I15: 595000 | J15: 25008 | K15: 0 | L15: 131000 | M15: 2116330 | N15: 6475346 | O15: 150000 | P15: 1644000 | Q15: 500000 | R15: =+B15/J15*1000 -> 442.8422905 | S15: 0 | T15: 781.5267176 | U15: 1128.911276 | V15: 750.3092499 | W15: 970 | X15: 1262.51764 | Y15: 1190
A16: Octubre | B16: 21500 | C16: 30500 | D16: 0 | E16: 1091162 | F16: 1057700 | G16: 28729 | H16: 1863246 | I16: 595000 | J16: 50000 | K16: 50000 | L16: 0 | M16: 900000 | N16: 1400000 | O16: 25041 | P16: 1396240 | Q16: 500000 | R16: =+B16/J16*1000 -> 430 | S16: =+C16/K16*1000 -> 610 | T16: 0 | U16: =+E16/M16*1000 -> 1212.402222 | V16: 755.5 | W16: 1147.278463 | X16: 1334.474016 | Y16: 1190
A17: Noviembre | B17: 0 | C17: 30500 | D17: 0 | E17: 2008251.2 | F17: 1159200 | G17: 57250 | H17: 1568135 | I17: 210875 | J17: 0 | K17: 50000 | L17: 0 | M17: 1700000 | N17: 1400000 | O17: 50000 | P17: 1275000 | Q17: 175000 | R17: 0 | S17: =+C17/K17*1000 -> 610 | T17: 0 | U17: 1181.324235 | V17: 828 | W17: 1145 | X17: 1229.909804 | Y17: 1205
A18: Diciembre | B18: 10750 | C18: 754462.5 | D18: 1905200 | E18: 968795.6 | F18: 1094733.2 | G18: 36500 | H18: 1789106 | J18: 25000 | K18: 1275000 | L18: 1754000 | M18: 1496985 | N18: 1406559 | O18: 25000 | P18: 1694400 | R18: =+B18/J18*1000 -> 430 | S18: =+C18/K18*1000 -> 591.7352941 | T18: =+D18/L18*1000 -> 1086.202965 | U18: 647.164534 | V18: 778.3059225 | W18: 1460 | X18: 1055.893532
A19: Total | B19: =SUM(B7:B18) -> 8481209.6 | C19: 12235562.5 | D19: 32780756.1 | E19: 82120788 | F19: 39935220.08 | G19: 22041737.5 | H19: 35091378 | I19: 23990108 | J19: =SUM(J7:J18) -> 16840608 | K19: 26875000 | L19: 55076161 | M19: 59772277 | N19: 59274840 | O19: 27824762 | P19: 29287984 | Q19: 21955000 | R19: =B19/J19*1000 -> 503.6165915 | S19: =C19/K19*1000 -> 455.2767442 | T19: =D19/L19*1000 -> 595.1895612 | U19: =E19/M19*1000 -> 1373.894255 | V19: =F19/N19*1000 -> 673.7296985 | W19: =+G19/O19*1000 -> 792.1626607 | X19: =+H19/P19*1000 -> 1198.149316 | Y19: =+I19/Q19*1000 -> 1092.694512
A21: Mes | B21: Var % del Valor Exportado (US$ FOB) | I21: Var % de la Cantidad Exportada (Kilogramos) | P21: Var % del Precio (US$/Ton)
B22: 2006/2005 | C22: 2007/2006 | D22: 2008/2007 | E22: 2009/2008 | F22: 2010/2009 | G22: 2011/2010 | H22: 2012/2011 | I22: 2006/2005 | J22: 2007/2006 | K22: 2008/2007 | L22: 2009/2008 | M22: 2010/2009 | N22: 2011/2010 | O22: 2012/2011 | P22: 2006/2005 | Q22: 2007/2006 | R22: 2008/2007 | S22: 2009/2008 | T22: 2010/2009 | U22: 2011/2010 | V22: 2012/2011
A23: Enero | B23: =+C7/B7-1 -> -0.3199839784 | C23: 0.828978447 | D23: 0.9613158562 | E23: -0.7593837902 | F23: 0.8206964188 | G23: -0.5588816736 | H23: -0.05772780511 | I23: =+K7/J7-1 -> -0.2500535676 | J23: 0.4931972789 | K23: -0.09230068337 | L23: -0.4352298735 | M23: 0.1615101738 | N23: -0.6895148919 | O23: 0.0349926072 | P23: =+S7/R7-1 -> -0.09324720772 | Q23: 0.2248739486 | R23: 1.160755021 | S23: -0.5739572641 | T23: 0.5675251581 | U23: 0.4207390785 | V23: -0.08958557931
A24: Febrero | B24: =+C8/B8-1 -> 0.3152418214 | C24: 0.2909941983 | D24: 1.852113718 | E24: -0.6810952668 | F24: 0.7870297166 | G24: 0.102217756 | H24: -0.6633079844 | I24: =+K8/J8-1 -> 0.5269466363 | J24: 0.02601156069 | K24: 0.3032901408 | L24: -0.3747969602 | M24: 0.4263617024 | N24: -0.2326215978 | O24: -0.6399398434 | P24: =+S8/R8-1 -> -0.1386458504 | Q24: 0.2582647679 | R24: 1.188395069 | S24: -0.489918134 | T24: 0.2528587339 | U24: 0.4363419049 | V24: -0.06490065783
A25: Marzo | B25: =+C9/B9-1 -> 45.20357143 | C25: -0.01065947798 | D25: 1.30568346 | E25: -0.321980814 | F25: -0.0297685685 | G25: -0.1237132874 | H25: =+I9/H9-1 -> 0.4021877357 | I25: =+K9/J9-1 -> 58.33333333 | J25: -0.2118910112 | K25: -0.09281468798 | L25: 0.524401743 | M25: -0.2242268041 | N25: -0.4392026578 | O25: 0.5947867299 | P25: =+S9/R9-1 -> -0.221288122 | Q25: 0.2553346506 | R25: 1.541579355 | S25: -0.5552227691 | T25: 0.2506637722 | U25: 0.5625728703 | V25: -0.1207678685
A26: Abril | B26: =+C10/B10-1 -> -1 | D26: 0.7235290701 | E26: -0.7789927117 | F26: -0.2276463429 | G26: -0.7390987588 | H26: 1.825845486 | I26: =+K10/J10-1 -> -1 | K26: -0.3343378895 | L26: -0.5360942983 | M26: -0.3617021277 | N26: -0.8306666667 | O26: 2.149606299 | P26: =+S10/R10-1 -> -1 | R26: 1.589195093 | S26: -0.5235943696 | T26: 0.2100207295 | U26: 0.5407553616 | V26: -0.1027940583
A27: Mayo | B27: =+C11/B11-1 ->  | D27: 1.404604858 | E27: -0.5738084632 | F27: -0.9895171252 | G27: 45.072354 | H27: 0.2650068139 | I27: =+K11/J11-1 ->  | K27: -0.1240168675 | L27: -0.0661276968 | M27: -0.9914578604 | N27: 29.65517241 | O27: 0.4623172103 | P27: =+S11/R11-1 ->  | R27: 1.74503557 | S27: -0.5436297497 | T27: 0.2271954524 | U27: 0.5029226838 | V27: -0.1349299557
A28: Junio | B28: =+C12/B12-1 -> 12.22222222 | C28: 4.586554622 | D28: 5.601250301 | E28: -0.5289721945 | F28: -0.9916308308 | G28: 71.95375723 | H28: -0.2766024879 | I28: =+K12/J12-1 -> 9 | J28: 4.1 | K28: 1.370443922 | L28: 0.1257128639 | M28: -0.9926519431 | N28: 49 | O28: -0.18 | P28: =+S12/R12-1 -> 0.3222222222 | Q28: 0.09540286703 | R28: 1.784816059 | S28: -0.581573756 | T28: 0.1389635814 | U28: 0.4590751445 | V28: -0.1178079121
A29: Julio | B29: -1 | D29: 0.4598887241 | E29: 1.805531015 | F29: -0.8994321688 | G29: 5.817211367 | H29: -0.5468842726 | I29: =+K13/J13-1 -> -1 | K29: -0.2842535787 | L29: 5.332693571 | M29: -0.9182248222 | N29: 3.497931034 | O29: -0.4940202392 | P29: =+S13/R13-1 -> -1 | R29: 1.039673103 | S29: -0.5569766666 | T29: 0.2298087745 | U29: 0.5156327019 | V29: -0.1044785532
A30: Agosto | B30: =+C14/B14-1 -> 4.208333333 | C30: 26.996488 | D30: 2.146577128 | E30: -0.992507927 | F30: 1.933090909 | G30: 11.52282007 | H30: 0.2102873933 | I30: =+K14/J14-1 -> 3 | J30: =+L14/K14-1 -> 20.06 | K30: =+M14/L14-1 -> 0.5922559354 | L30: =+N14/M14-1 -> -0.985089275 | M30: =+O14/N14-1 -> 1.34 | N30: =+P14/O14-1 -> 9.205128205 | O30: 0.3400335008 | P30: =+S14/R14-1 -> 0.3020833333 | Q30: =+T14/S14-1 -> 0.3293679012 | R30: =+U14/T14-1 -> 0.9761754739 | S30: =+V14/U14-1 -> -0.4975379822 | T30: =+W14/V14-1 -> 0.2534576535 | U30: =+X14/W14-1 -> 0.2271105092 | V30: -0.09682303272
A31: Septiembre | B31: -1 | D31: 22.33608908 | E31: 1.033574468 | F31: -0.9700525593 | G31: 13.26514777 | H31: =+I15/H15-1 -> -0.7133330025 | I31: =+K15/J15-1 -> -1 | K31: 15.15519084 | L31: 2.059705244 | M31: -0.9768352147 | N31: 9.96 | O31: -0.695863747 | P31: =+S15/R15-1 -> -1 | R31: 0.444494795 | S31: -0.3353691596 | T31: 0.2928002689 | U31: 0.3015645772 | V31: -0.05743891223
A32: Octubre | B32: =+C16/B16-1 -> 0.4186046512 | C32: -1 | E32: -0.03066639051 | F32: -0.9728382339 | G32: 63.85592955 | H32: =+I16/H16-1 -> -0.6806648183 | I32: =+K16/J16-1 -> 0 | J32: -1 | L32: 0.5555555556 | M32: -0.9821135714 | N32: 54.75815662 | O32: -0.6418953762 | P32: =+S16/R16-1 -> 0.4186046512 | Q32: -1 | S32: -0.3768569653 | T32: 0.5185684491 | U32: 0.1631648798 | V32: -0.1082628917
A33: Noviembre | C33: -1 | E33: -0.4227813732 | F33: -0.9506124914 | G33: 26.39100437 | H33: =+I17/H17-1 -> -0.8655249707 | I33: =+K17/J17-1 ->  | J33: -1 | L33: -0.1764705882 | M33: -0.9642857143 | N33: 24.5 | O33: -0.862745098 | P33: =+S17/R17-1 ->  | Q33: -1 | S33: -0.2990916674 | T33: 0.3828502415 | U33: 0.07415703399 | V33: -0.02025335829
A34: Diciembre | B34: =+C18/B18-1 -> 69.18255814 | C34: 1.52524148 | D34: -0.4914992652 | E34: 0.1299939843 | F34: -0.9666585429 | G34: 48.01660274 | I34: 50 | J34: 0.3756862745 | K34: -0.1465307868 | L34: -0.06040541488 | M34: -0.9822261277 | N34: 66.776 | P34: 0.376128591 | Q34: 0.8356230826 | R34: -0.4041955738 | S34: 0.2026399494 | T34: 0.8758690611 | U34: -0.2767852523
A35: Total | B35: =+C19/B19-1 -> 0.4426671521 | C35: 1.679137645 | D35: 1.505152345 | E35: -0.5137014506 | F35: -0.4480627011 | G35: 0.5920422789 | H35: -0.3163532079 | I35: 0.5958449956 | J35: 1.049345526 | K35: 0.08526585577 | L35: -0.008322202616 | M35: -0.5305805634 | N35: 0.05258704459 | O35: =+Q19/P19-1 -> -0.2503751709 | P35: -0.09598541459 | Q35: 0.3073137797 | R35: 1.308330564 | S35: -0.5096204123 | T35: 0.175787059 | U35: 0.5125041554 | V35: =+Y19/X19-1 -> -0.0880147434

Sheet Evolución (aceite de canola)
A1: Índice
A2: EXPORTACIONES DE ACEITE DE CANOLA
A3: Fuente: BCP
A5: Mes | B5: Valor Exportado (US$ FOB) | J5: Cantidad Exportada (Kg) | R5: Precio (US$/Ton)
B6: 2005 | C6: 2006 | D6: 2007 | E6: 2008 | F6: 2009 | G6: 2010 | H6: 2011 | I6: 2012 | J6: 2005 | K6: 2006 | L6: 2007 | M6: 2008 | N6: 2009 | O6: 2010 | P6: 2011 | Q6: 2012 | R6: 2005 | S6: 2006 | T6: 2007 | U6: 2008 | V6: 2009 | W6: 2010 | X6: 2011 | Y6: 2012
A7: Enero | B7: 442500 | C7: 348750 | D7: 1369500 | E7: 1284285 | F7: 1311925 | G7: 148000 | H7: 232000 | I7: 2342100 | J7: 800000 | K7: 750000 | L7: 2150000 | M7: 1124000 | N7: 1297500 | O7: 200000 | P7: 250000 | Q7: 2270000 | R7: =+B7/J7*1000 -> 553.125 | S7: =C7/K7*1000 -> 465 | T7: =D7/L7*1000 -> 636.9767442 | U7: =E7/M7*1000 -> 1142.602313 | V7: =+F7/N7*1000 -> 1011.117534 | W7: 740 | X7: 928 | Y7: 1031.762115
A8: Febrero | B8: 719900 | C8: 646250 | D8: 537500 | E8: 0 | F8: 400250 | G8: 296000 | H8: 283000 | I8: 642000 | J8: 1352000 | K8: 1175000 | L8: 550300 | M8: 0 | N8: 490000 | O8: 400000 | P8: 300000 | Q8: 600000 | R8: =B8/J8*1000 -> 532.4704142 | S8: =C8/K8*1000 -> 550 | T8: =D8/L8*1000 -> 976.73996 | U8: 0 | V8: 816.8367347 | W8: 740 | X8: 943.3333333 | Y8: 1070
A9: Marzo | B9: 399000 | C9: 0 | D9: 330750 | E9: 427500 | F9: 747750 | G9: 0 | H9: 600000 | I9: 908000 | J9: 800000 | K9: 0 | L9: 50450 | M9: 450000 | N9: 922500 | O9: 0 | P9: 500000 | Q9: 800000 | R9: =B9/J9*1000 -> 498.75 | S9: 0 | T9: =D9/L9*1000 -> 6555.996036 | U9: 950 | V9: =+F9/N9*1000 -> 810.5691057 | W9: 0 | X9: =+H9/P9*1000 -> 1200 | Y9: =+I9/Q9*1000 -> 1135
A10: Abril | B10: 257700 | C10: 23250 | D10: 96750 | E10: 542250 | F10: 230120 | G10: 402500 | H10: 970250 | I10: 0 | J10: 548000 | K10: 50000 | L10: 150000 | M10: 350000 | N10: 220000 | O10: 500000 | P10: 850000 | Q10: 0 | R10: =B10/J10*1000 -> 470.2554745 | S10: =C10/K10*1000 -> 465 | T10: 645 | U10: 1549.285714 | V10: 1046 | W10: =+G10/O10*1000 -> 805 | X10: 1141.470588 | Y10: 0
A11: Mayo | B11: 0 | C11: 0 | D11: 96750 | E11: 947200 | F11: 562575 | G11: 402500 | H11: 784250 | I11: 751200 | J11: 0 | K11: 0 | L11: 150000 | M11: 625000 | N11: 562500 | O11: 500000 | P11: 650000 | Q11: 650000 | R11: 0 | S11: 0 | T11: 645 | U11: 1515.52 | V11: 1000.133333 | W11: 805 | X11: 1206.538462 | Y11: =+I11/Q11*1000 -> 1155.692308
A12: Junio | B12: 0 | C12: 11625 | D12: 1755000 | E12: 706162.5 | F12: 946575 | G12: 402500 | H12: 635250 | I12: 780500 | J12: 0 | K12: 25000 | L12: 3000000 | M12: 450000 | N12: 962500 | O12: 500000 | P12: 550000 | Q12: 700000 | R12: 0 | S12: =C12/K12*1000 -> 465 | T12: 585 | U12: 1569.25 | V12: 983.4545455 | W12: 805 | X12: 1155 | Y12: 1115
A13: Julio | B13: 0 | C13: 0 | D13: 368085 | E13: 394208.5 | F13: 329490 | G13: 544375 | H13: 749500 | I13: 675000 | J13: 0 | K13: 0 | L13: 556000 | M13: 230070 | N13: 315000 | O13: 725000 | P13: 650000 | Q13: 600000 | R13: 0 | S13: 0 | T13: 662.0233813 | U13: 1713.428522 | V13: 1046 | W13: 750.862069 | X13: 1153.076923 | Y13: 1125
A14: Agosto | B14: 0 | C14: 0 | D14: 317450 | E14: 0 | F14: 313800 | G14: 940000 | H14: 933850 | I14: 922200 | J14: 0 | K14: 0 | L14: 400000 | M14: 0 | N14: 300000 | O14: 1200000 | P14: 800000 | Q14: 800000 | R14: 0 | S14: 0 | T14: =D14/L14*1000 -> 793.625 | U14: 0 | V14: 1046 | W14: 783.3333333 | X14: 1167.3125 | Y14: 1152.75
A15: Septiembre | B15: 766500 | C15: 0 | D15: 1155259.3 | E15: 1121000 | F15: 313800 | G15: 715500 | H15: 696000 | I15: 639500 | J15: 1500000 | K15: 0 | L15: 1353000 | M15: 800000 | N15: 300000 | O15: 875000 | P15: 600000 | Q15: 550000 | R15: =B15/J15*1000 -> 511 | S15: 0 | T15: 853.8501848 | U15: =E15/M15*1000 -> 1401.25 | V15: 1046 | W15: 817.7142857 | X15: 1160 | Y15: 1162.727273
A16: Octubre | B16: 2373000 | C16: 716500 | D16: 1314975 | E16: 0 | F16: 313800 | G16: 231750 | H16: 604250 | I16: 27750 | J16: 4500000 | K16: 1225000 | L16: 1537000 | M16: 0 | N16: 300000 | O16: 250000 | P16: 500000 | Q16: 25000 | R16: =B16/J16*1000 -> 527.3333333 | S16: =C16/K16*1000 -> 584.8979592 | T16: 855.5465192 | U16: 0 | V16: 1046 | W16: 927 | X16: 1208.5 | Y16: 1110
A17: Noviembre | B17: 4080000 | C17: 2478870 | D17: 3848190 | E17: 1376625 | F17: 2975500 | G17: 4810400 | H17: 1829150 | I17: 196524 | J17: 8000000 | K17: 4000000 | L17: 3852000 | M17: 1170000 | N17: 4100000 | O17: 4900000 | P17: 1600000 | Q17: 177000 | R17: =B17/J17*1000 -> 510 | S17: =C17/K17*1000 -> 619.7175 | T17: 999.0109034 | U17: =E17/M17*1000 -> 1176.602564 | V17: 725.7317073 | W17: 981.7142857 | X17: 1143.21875 | Y17: 1110.305085
A18: Diciembre | B18: 1741500 | C18: 1093500 | D18: 1958900 | E18: 139425 | F18: 1170900 | G18: 4569750 | H18: 4226750 | J18: 3750000 | K18: 1775000 | L18: 1960000 | M18: 165000 | N18: 1584000 | O18: 4950000 | P18: 4100000 | R18: =B18/J18*1000 -> 464.4 | S18: =C18/K18*1000 -> 616.056338 | T18: 999.4387755 | U18: =E18/M18*1000 -> 845 | V18: 739.2045455 | W18: 923.1818182 | X18: 1030.914634
A19: Total | B19: =SUM(B7:B18) -> 10780100 | C19: 5318745 | D19: 13149109.3 | E19: 6938656 | F19: 9616485 | G19: 13463275 | H19: 12544250 | I19: 7884774 | J19: =SUM(J7:J18) -> 21250000 | K19: 9000000 | L19: 15708750 | M19: 5364070 | N19: 11354000 | O19: 15000000 | P19: 11350000 | Q19: 7172000 | R19: =B19/J19*1000 -> 507.2988235 | S19: =C19/K19*1000 -> 590.9716667 | T19: 837.056373 | U19: =E19/M19*1000 -> 1293.543149 | V19: =F19/N19*1000 -> 846.9689096 | W19: 897.5516667 | X19: 1105.220264 | Y19: =+I19/Q19*1000 -> 1099.382878
A21: Mes | B21: Var % del Valor Exportado (US$ FOB) | I21: Var % de la Cantidad Exportada (Kilogramos) | P21: Var % del Precio (US$/Ton)
B22: 2006/2005 | C22: 2007/2006 | D22: 2008/2007 | E22: 2009/2008 | F22: 2010/2009 | G22: 2011/2010 | H22: 2012/2011 | I22: 2006/2005 | J22: 2007/2006 | K22: 2008/2007 | L22: 2009/2008 | M22: 2010/2009 | N22: 2011/2010 | O22: 2012/2011 | P22: 2006/2005 | Q22: 2007/2006 | R22: 2008/2007 | S22: 2009/2008 | T22: 2010/2009 | U22: 2011/2010 | V22: 2012/2011
A23: Enero | B23: =+C7/B7-1 -> -0.2118644068 | C23: 2.92688172 | D23: -0.06222343921 | E23: 0.02152170274 | F23: -0.8871886731 | G23: 0.5675675676 | H23: 9.095258621 | I23: =+K7/J7-1 -> -0.0625 | J23: 1.866666667 | K23: -0.4772093023 | L23: 0.1543594306 | M23: -0.8458574181 | N23: 0.25 | O23: 8.08 | P23: =+S7/R7-1 -> -0.1593220339 | Q23: 0.3698424606 | R23: 0.7937896848 | S23: -0.1150748409 | T23: -0.268136517 | U23: 0.2540540541 | V23: 0.1118126234
A24: Febrero | B24: =+C8/B8-1 -> -0.1023058758 | C24: -0.16827853 | D24: -1 | F24: -0.2604622111 | G24: -0.04391891892 | H24: 1.268551237 | I24: =+K8/J8-1 -> -0.1309171598 | J24: -0.5316595745 | K24: -1 | M24: -0.1836734694 | N24: -0.25 | O24: 1 | P24: =+S8/R8-1 -> 0.03292123906 | Q24: 0.7758908364 | R24: -1 | T24: -0.09406620862 | U24: 0.2747747748 | V24: 0.1342756184
A25: Marzo | B25: =+C9/B9-1 -> -1 | D25: 0.2925170068 | E25: 0.749122807 | F25: -1 | H25: =+I9/H9-1 -> 0.5133333333 | I25: =+K9/J9-1 -> -1 | K25: 7.919722498 | L25: 1.05 | M25: -1 | O25: 0.6 | P25: =+S9/R9-1 -> -1 | R25: -0.8550944822 | S25: -0.1467693624 | T25: -1 | V25: -0.05416666667
A26: Abril | B26: =+C10/B10-1 -> -0.9097788126 | C26: 3.161290323 | D26: 4.604651163 | E26: -0.5756201014 | F26: 0.7490874326 | G26: 1.410559006 | H26: -1 | I26: =+K10/J10-1 -> -0.9087591241 | J26: 2 | K26: 1.333333333 | L26: -0.3714285714 | M26: 1.272727273 | N26: 0.7 | O26: -1 | P26: =+S10/R10-1 -> -0.0111757858 | Q26: 0.3870967742 | R26: 1.401993355 | S26: -0.3248501614 | T26: -0.2304015296 | U26: 0.417975886 | V26: -1
A27: Mayo | B27: =+C11/B11-1 ->  | D27: 8.790180879 | E27: -0.4060652449 | F27: -0.2845398391 | G27: 0.948447205 | H27: -0.04214217405 | I27: =+K11/J11-1 ->  | K27: 3.166666667 | L27: -0.1 | M27: -0.1111111111 | N27: 0.3 | O27: 0 | P27: =+S11/R11-1 ->  | R27: 1.349643411 | S27: -0.3400724944 | T27: -0.195107319 | U27: 0.4988055423 | V27: -0.04214217405
A28: Junio | B28: =+C12/B12-1 ->  | C28: 149.9677419 | D28: -0.5976282051 | E28: 0.3404492592 | F28: -0.5747827695 | G28: 0.5782608696 | H28: 0.2286501377 | I28: =+K12/J12-1 ->  | J28: 119 | K28: -0.85 | L28: 1.138888889 | M28: -0.4805194805 | N28: 0.1 | O28: 0.2727272727 | P28: =+S12/R12-1 ->  | Q28: 0.2580645161 | R28: 1.682478632 | S28: -0.3732964502 | T28: -0.1814568312 | U28: 0.4347826087 | V28: -0.03463203463
A29: Julio | B29: =+C13/B13-1 ->  | D29: 0.07097137889 | E29: -0.1641732738 | F29: 0.6521745728 | G29: 0.3768082664 | H29: -0.09939959973 | I29: =+K13/J13-1 ->  | K29: -0.586205036 | L29: 0.36914852 | M29: 1.301587302 | N29: -0.1034482759 | O29: -0.07692307692 | P29: =+S13/R13-1 ->  | R29: 1.588169195 | S29: -0.3895280797 | T29: -0.2821586339 | U29: 0.5356707586 | V29: -0.02434956638
A30: Agosto | B30: =+C14/B14-1 ->  | D30: -1 | F30: 1.99553856 | G30: -0.006542553191 | H30: -0.01247523692 | I30: =+K14/J14-1 ->  | J30: =+L14/K14-1 ->  | K30: =+M14/L14-1 -> -1 | L30: =+N14/M14-1 ->  | M30: =+O14/N14-1 -> 3 | N30: =+P14/O14-1 -> -0.3333333333 | O30: 0 | P30: =+S14/R14-1 ->  | Q30: =+T14/S14-1 ->  | R30: =+U14/T14-1 -> -1 | S30: =+V14/U14-1 ->  | T30: =+W14/V14-1 -> -0.2511153601 | U30: =+X14/W14-1 -> 0.4901861702 | V30: -0.01247523692
A31: Septiembre | B31: -1 | D31: -0.02965507397 | E31: -0.7200713649 | F31: 1.280114723 | G31: -0.02725366876 | H31: =+I15/H15-1 -> -0.08117816092 | I31: =+K15/J15-1 -> -1 | K31: -0.4087213599 | L31: -0.625 | M31: 1.916666667 | N31: -0.3142857143 | O31: -0.08333333333 | P31: =+S15/R15-1 -> -1 | R31: 0.6410958561 | S31: -0.2535236396 | T31: -0.2182463808 | U31: 0.4185883997 | V31: 0.002351097179
A32: Octubre | B32: =+C16/B16-1 -> -0.6980615255 | C32: 0.8352756455 | D32: -1 | F32: -0.2614722753 | G32: 1.607335491 | H32: =+I16/H16-1 -> -0.9540753 | I32: =+K16/J16-1 -> -0.7277777778 | J32: 0.2546938776 | K32: -1 | M32: -0.1666666667 | N32: 1 | O32: -0.95 | P32: =+S16/R16-1 -> 0.1091617431 | Q32: 0.4627278242 | R32: -1 | T32: -0.1137667304 | U32: 0.3036677454 | V32: -0.08150599917
A33: Noviembre | B33: -0.3924338235 | C33: 0.5523968582 | D33: -0.6422668839 | E33: 1.161445564 | F33: 0.6166694673 | G33: -0.6197509563 | H33: =+I17/H17-1 -> -0.8925599322 | I33: =+K17/J17-1 -> -0.5 | J33: -0.037 | K33: -0.6962616822 | L33: 2.504273504 | M33: 0.1951219512 | N33: -0.6734693878 | O33: -0.889375 | P33: =+S17/R17-1 -> 0.2151323529 | Q33: 0.6120424281 | R33: 0.1777674899 | S33: -0.3831972414 | T33: 0.3527234318 | U33: 0.1645126964 | V33: -0.02879034765
A34: Diciembre | B34: =+C18/B18-1 -> -0.3720930233 | C34: 0.7914037494 | D34: -0.9288248507 | E34: 7.398063475 | F34: 2.902767102 | G34: -0.07505881066 | I34: -0.5266666667 | J34: 0.1042253521 | K34: -0.9158163265 | L34: 8.6 | M34: 2.125 | N34: -0.1717171717 | P34: 0.3265640354 | Q34: 0.622317171 | R34: -0.154525499 | S34: -0.1252017214 | T34: 0.2488854727 | U34: 0.1166972896
A35: Total | B35: =+C19/B19-1 -> -0.5066145026 | C35: 1.472220289 | D35: -0.4723098088 | E35: 0.3859290618 | F35: 0.4000203817 | G35: -0.06826162282 | H35: -0.3714431712 | I35: -0.5764705882 | J35: 0.7454166667 | K35: -0.6585298003 | L35: 1.11667633 | M35: 0.32112031 | N35: -0.2433333333 | O35: =+Q19/P19-1 -> -0.3681057269 | P35: 0.1649379799 | Q35: 0.4164069451 | R35: 0.5453477099 | S35: -0.3452333537 | T35: 0.05972209423 | U35: 0.2313723046 | V35: =+Y19/X19-1 -> -0.005281649864

Sheet Destino (maiz)
A1: Índice
A2: EXPORTACIONES DE MAÍZ
A3: Fuente: BCP
A5: PAIS | B5: 2005 | E5: 2006 | H5: 2007 | K5: 2008 | N5: 2009 | Q5: 2010 | T5: 2011 | W5: Ene-Nov 2012
B6: Valor (US$) | C6: Volumen (Kg) | D6: Precio (US$/Ton) | E6: Valor (US$) | F6: Volumen (Kg) | G6: Precio (US$/Ton) | H6: Valor (US$) | I6: Volumen (Kg) | J6: Precio (US$/Ton) | K6: Valor (US$) | L6: Volumen (Kg) | M6: Precio (US$/Ton) | N6: Valor (US$) | O6: Volumen (Kg) | P6: Precio (US$/Ton) | Q6: Valor (US$) | R6: Volumen (Kg) | S6: Precio (US$/Ton) | T6: Valor (US$) | U6: Volumen (Kg) | V6: Precio (US$/Ton) | W6: Valor (US$) | X6: Volumen (Kg) | Y6: Precio (US$/Ton)
A7: Alemania | B7: 8.4 | C7: 22 | D7: =+B7/C7*1000 -> 381.8181818 | E7: 0 | F7: 0 | H7: 45.7 | I7: 70 | J7: =+H7/I7*1000 -> 652.8571429 | K7: 797563.9 | L7: 5000045 | M7: =+K7/L7*1000 -> 159.5113444 | N7: 63.6 | O7: 102.77 | P7: =+N7/O7*1000 -> 618.8576433 | Q7: 88 | R7: 113 | S7: =+Q7/R7*1000 -> 778.7610619
A8: Argelia | B8: 0 | C8: 0 | E8: 0 | F8: 0 | H8: 0 | I8: 0 | K8: 10110574.3 | L8: 54090678 | M8: =+K8/L8*1000 -> 186.9189789 | N8: 8789697.82 | O8: 52944375 | P8: =+N8/O8*1000 -> 166.0175953 | Q8: 2907421 | R8: 15361235 | S8: =+Q8/R8*1000 -> 189.2700034 | T8: 1771250 | U8: 6440910 | V8: =+T8/U8*1000 -> 274.9999612 | W8: 5170138 | X8: 21706915 | Y8: =+W8/X8*1000 -> 238.1793083
A9: Argentina | B9: 0 | C9: 0 | E9: 4869989.44 | F9: 57183639 | G9: =+E9/F9*1000 -> 85.16403512 | H9: 665250 | I9: 4500000 | J9: =+H9/I9*1000 -> 147.8333333 | K9: 21461911.3 | L9: 121913903 | M9: =+K9/L9*1000 -> 176.0415406 | N9: 6371986.11 | O9: 42967578 | P9: =+N9/O9*1000 -> 148.2975398 | Q9: 42510393 | R9: 248342951 | S9: =+Q9/R9*1000 -> 171.1761611 | T9: 46298396 | U9: 210311015 | V9: 220.1425161 | W9: 66772500 | X9: 287982035 | Y9: =+W9/X9*1000 -> 231.8634216
A10: Bolivia | B10: 76526.86 | C10: 63643 | D10: =+B10/C10*1000 -> 1202.439546 | E10: 5000 | F10: 2220 | G10: =+E10/F10*1000 -> 2252.252252 | H10: 0 | I10: 0 | K10: 1553.7 | L10: 393 | M10: =+K10/L10*1000 -> 3953.435115 | T10: 149800 | U10: 729000 | V10: 205.4869684
A11: Brasil | B11: 37570974.12 | C11: 427313908.7 | D11: =+B11/C11*1000 -> 87.92359283 | E11: 79878906.13 | F11: 1034953930 | G11: =+E11/F11*1000 -> 77.18112257 | H11: 161907622.3 | I11: 1263856050 | J11: =+H11/I11*1000 -> 128.1060626 | K11: 101011111 | L11: 619892300 | M11: =+K11/L11*1000 -> 162.9494527 | N11: 144065856.5 | O11: 1230872000 | P11: =+N11/O11*1000 -> 117.0437353 | Q11: 54002822 | R11: 411965272 | S11: =+Q11/R11*1000 -> 131.0858601 | T11: 145641910 | U11: 719805000 | V11: 202.3352297 | W11: 154890137 | X11: 793662670 | Y11: =+W11/X11*1000 -> 195.1586522
A12: Canada | B12: 0 | C12: 0 | E12: 0 | F12: 0 | H12: 750 | I12: 1250 | J12: =+H12/I12*1000 -> 600 | K12: 0 | L12: 0 | Q12: 63 | R12: 109 | S12: =+Q12/R12*1000 -> 577.9816514 | T12: 48 | U12: 46 | V12: 1043.478261
A13: Chile | B13: 0 | C13: 0 | E13: 1186900 | F13: 10800000 | G13: =+E13/F13*1000 -> 109.8981481 | H13: 739600 | I13: 5950000 | J13: =+H13/I13*1000 -> 124.302521 | K13: 175498.2 | L13: 757470 | M13: =+K13/L13*1000 -> 231.6899679 | T13: 25380 | U13: 135000 | V13: 188 | W13: 17231434 | X13: 62278272 | Y13: =+W13/X13*1000 -> 276.6845233
A14: China | B14: 98000 | C14: 1000000 | D14: =+B14/C14*1000 -> 98 | E14: 0 | F14: 0 | H14: 0 | I14: 0 | K14: 0 | L14: 0
A15: Colombia | B15: 0 | C15: 0 | E15: 0 | F15: 0 | H15: 0 | I15: 0 | K15: 0 | L15: 0 | N15: 1632101.8 | O15: 10629815 | P15: =+N15/O15*1000 -> 153.5400005 | T15: 11531054 | U15: 36740820 | V15: =+T15/U15*1000 -> 313.848575 | W15: 13069506 | X15: 45916920 | Y15: =+W15/X15*1000 -> 284.633769
A16: Corea Del Sur | B16: 0 | C16: 0 | E16: 0 | F16: 0 | H16: 0 | I16: 0 | K16: 1065320 | L16: 3000000 | M16: =+K16/L16*1000 -> 355.1066667 | Q16: 407025 | R16: 2256000 | S16: =+Q16/R16*1000 -> 180.418883 | T16: 147400 | U16: 744760 | V16: =+T16/U16*1000 -> 197.9161072
A17: Costa De Marfil | B17: 0 | C17: 0 | E17: 0 | F17: 0 | H17: 0 | I17: 0 | K17: 0 | L17: 0 | N17: 895018.9 | O17: 6047425 | P17: =+N17/O17*1000 -> 148
A18: Ecuador | T18: 3992816 | U18: 14698385 | V18: =+T18/U18*1000 -> 271.6499806
A19: España | B19: 0 | C19: 0 | E19: 1040 | F19: 2000 | G19: =+E19/F19*1000 -> 520 | H19: 10649050.2 | I19: 62624073 | J19: =+H19/I19*1000 -> 170.0472309 | K19: 21044.7 | L19: 29300 | M19: =+K19/L19*1000 -> 718.2491468 | N19: 30196.4 | O19: 35573 | P19: =+N19/O19*1000 -> 848.8572794 | Q19: 7566 | R19: 29304 | S19: =+Q19/R19*1000 -> 258.1900082 | T19: 29863 | U19: 54731 | V19: =+T19/U19*1000 -> 545.6322742 | W19: 13554 | X19: 21560 | Y19: =+W19/X19*1000 -> 628.6641929
A20: EE.UU. | B20: 0 | C20: 0 | E20: 0 | F20: 0 | H20: 394116.9 | I20: 1300918 | J20: =+H20/I20*1000 -> 302.9529148 | K20: 0 | L20: 0 | N20: 180 | O20: 160 | P20: =+N20/O20*1000 -> 1125 | Q20: 6447931 | R20: 25710914 | S20: =+Q20/R20*1000 -> 250.7857558
A21: Grecia | B21: 0 | C21: 0 | E21: 0 | F21: 0 | H21: 4387930 | I21: 20256650 | J21: =+H21/I21*1000 -> 216.6167654 | K21: 0 | L21: 0
A22: Guatemala | W22: 1 | X22: 5 | Y22: =+W22/X22*1000 -> 200
A23: Iran | Q23: 6971437 | R23: 27338970 | S23: =+Q23/R23*1000 -> 254.9999872
A24: Islas Caiman | B24: 3303270 | C24: 31995000 | D24: =+B24/C24*1000 -> 103.2433193 | E24: 26642398.29 | F24: 266556855 | G24: =+E24/F24*1000 -> 99.95015244 | H24: 5870451.1 | I24: 47616577 | J24: =+H24/I24*1000 -> 123.2858695 | K24: 3782000 | L24: 25200000 | M24: =+K24/L24*1000 -> 150.0793651 | N24: 3065036.9 | O24: 24995037 | P24: =+N24/O24*1000 -> 122.6258197 | Q24: 3644304 | R24: 26508184 | S24: =+Q24/R24*1000 -> 137.4784482 | T24: 6933750 | U24: 30750000 | V24: =+T24/U24*1000 -> 225.4878049
A25: Italia | B25: 0 | C25: 0 | E25: 0 | F25: 0 | H25: 0 | I25: 0 | K25: 2400 | L25: 3000 | M25: =+K25/L25*1000 -> 800 | N25: 3062.8 | O25: 2740 | P25: =+N25/O25*1000 -> 1117.810219 | Q25: 5245 | R25: 4816 | S25: =+Q25/R25*1000 -> 1089.078073 | T25: 1186 | U25: 1144 | V25: =+T25/U25*1000 -> 1036.713287 | W25: 1286 | X25: 1345 | Y25: =+W25/X25*1000 -> 956.133829
A26: Japon | B26: 0 | C26: 0 | E26: 0 | F26: 0 | H26: 0 | I26: 0 | K26: 176589 | L26: 504000 | M26: =+K26/L26*1000 -> 350.375
A27: Madagascar | T27: 7036657 | U27: 26265003 | V27: =+T27/U27*1000 -> 267.9100018
A28: Malasia | T28: 2521727 | U28: 9684530 | V28: =+T28/U28*1000 -> 260.3871329 | W28: 106964 | X28: 364220 | Y28: =+W28/X28*1000 -> 293.6796442
A29: Marruecos | B29: 0 | C29: 0 | E29: 0 | F29: 0 | H29: 0 | I29: 0 | K29: 0 | L29: 0 | N29: 4350292.6 | O29: 26565050 | P29: =+N29/O29*1000 -> 163.7600005 | T29: 6406850 | U29: 24126719 | V29: =+T29/U29*1000 -> 265.5499904 | W29: 4452930 | X29: 19207370 | Y29: =+W29/X29*1000 -> 231.8344469
A30: Mauricio | B30: 0 | C30: 0 | E30: 0 | F30: 0 | H30: 1124053.3 | I30: 5228155 | J30: =+H30/I30*1000 -> 214.9999952 | K30: 1852921.2 | L30: 7126620 | M30: =+K30/L30*1000 -> 260
A31: Nicaragua | W31: 3631422 | X31: 12642700 | Y31: =+W31/X31*1000 -> 287.2346888
A32: Paises Bajos | B32: 0 | C32: 0 | E32: 1033212.75 | F32: 12700000 | G32: =+E32/F32*1000 -> 81.35533465 | H32: 2104925 | I32: 14866080 | J32: =+H32/I32*1000 -> 141.5924709 | K32: 0 | L32: 0
A33: Peru | B33: 0 | C33: 0 | E33: 1804631.39 | F33: 20255290 | G33: =+E33/F33*1000 -> 89.09432499 | H33: 3536250 | I33: 22250000 | J33: =+H33/I33*1000 -> 158.9325843 | K33: 0 | L33: 0 | N33: 2990152.2 | O33: 20035485 | P33: =+N33/O33*1000 -> 149.2428159 | Q33: 8470894 | R33: 41798755 | S33: =+Q33/R33*1000 -> 202.6590026 | T33: 5463854 | U33: 21728705 | V33: =+T33/U33*1000 -> 251.4578757 | W33: 14761931 | X33: 49660535 | Y33: =+W33/X33*1000 -> 297.2567855
A34: Reino Unido | B34: 0 | C34: 0 | E34: 0 | F34: 0 | H34: 1704000 | I34: 8000000 | J34: =+H34/I34*1000 -> 213 | K34: 0 | L34: 0
A35: Sudafrica | B35: 0 | C35: 0 | E35: 0 | F35: 0 | H35: 0 | I35: 0 | K35: 947187.3 | L35: 5498910 | M35: =+K35/L35*1000 -> 172.2500095
A36: Suecia | B36: 0 | C36: 0 | E36: 0 | F36: 0 | H36: 0 | I36: 0 | K36: 0 | L36: 0 | N36: 1065000 | O36: 8500000 | P36: =+N36/O36*1000 -> 125.2941176
A37: Suiza | B37: 0 | C37: 0 | E37: 8839327.23 | F37: 88863715 | G37: =+E37/F37*1000 -> 99.47060203 | H37: 17681000 | I37: 143000000 | J37: =+H37/I37*1000 -> 123.6433566 | K37: 0 | L37: 0 | N37: 18114534.93 | O37: 124220838 | P37: =+N37/O37*1000 -> 145.8252514 | Q37: 11614005 | R37: 56056186 | S37: =+Q37/R37*1000 -> 207.1850732 | T37: 28079760 | U37: 120346000 | V37: =+T37/U37*1000 -> 233.3252455 | W37: 32989899 | X37: 141071912 | Y37: =+W37/X37*1000 -> 233.8516472
A38: Taiwan | T38: 35425 | U38: 112460 | V38: =+T38/U38*1000 -> 315.0008892
A39: Uruguay | B39: 0 | C39: 0 | E39: 37315475.87 | F39: 354125438 | G39: =+E39/F39*1000 -> 105.3736102 | H39: 58934371.6 | I39: 411435705 | J39: =+H39/I39*1000 -> 143.2407807 | K39: 31623962.5 | L39: 217396330 | M39: =+K39/L39*1000 -> 145.4668646 | N39: 49048863.58 | O39: 367811764 | P39: =+N39/O39*1000 -> 133.353167 | Q39: 94375164.6 | R39: 522732748 | S39: =+Q39/R39*1000 -> 180.5419021 | T39: 85661796 | U39: 369171507 | V39: =+T39/U39*1000 -> 232.03794 | W39: 161025113 | X39: 743660577 | Y39: =+W39/X39*1000 -> 216.5303876
A40: Venezuela | Q40: 9587500 | R40: 50000000 | S40: 191.75
A41: Vietnam | T41: 137718 | U41: 502620 | V41: =+T41/U41*1000 -> 274.0002387 | W41: 464577 | X41: 1708840 | Y41: =+W41/X41*1000 -> 271.8668805

Sheet Destino (trigo)
A1: Índice
A2: EXPORTACIONES DE TRIGO
A3: Fuente: BCP
A5: PAIS | B5: 2005 | E5: 2006 | H5: 2007 | K5: 2008 | N5: 2009 | Q5: 2010 | T5: =+'Destino (maiz)'!T5:V5 -> 2011 | W5: =+'Destino (maiz)'!W5:Y5 -> Ene-Nov 2012
B6: Valor (US$) | C6: Volumen (Kg) | D6: Precio (US$/Ton) | E6: Valor (US$) | F6: Volumen (Kg) | G6: Precio (US$/Ton) | H6: Valor (US$) | I6: Volumen (Kg) | J6: Precio (US$/Ton) | K6: Valor (US$) | L6: Volumen (Kg) | M6: Precio (US$/Ton) | N6: Valor (US$) | O6: Volumen (Kg) | P6: Precio (US$/Ton) | Q6: Valor (US$) | R6: Volumen (Kg) | S6: Precio (US$/Ton) | T6: Valor (US$) | U6: Volumen (Kg) | V6: Precio (US$/Ton) | W6: Valor (US$) | X6: Volumen (Kg) | Y6: Precio (US$/Ton)
A7: Argentina | B7: 0 | C7: 0 | E7: 0 | F7: 0 | H7: 359625 | I7: 1500000 | J7: =+H7/I7*1000 -> 239.75 | K7: 2955772.7 | L7: 20384639 | M7: =+K7/L7*1000 -> 145.0000022 | N7: 5277500 | O7: 22500000 | P7: =+N7/O7*1000 -> 234.5555556 | Q7: 10573932 | R7: 41600000 | S7: =+Q7/R7*1000 -> 254.1810577 | T7: 14086361 | U7: 53064320 | V7: =+T7/U7*1000 -> 265.4582401 | W7: 36846752 | X7: 127071672 | Y7: =+W7/X7*1000 -> 289.968263
A8: Belgica | B8: 0 | C8: 0 | E8: 0 | F8: 0 | H8: 72600 | I8: 180230 | J8: =+H8/I8*1000 -> 402.8186207 | K8: 0 | L8: 0
A9: Bolivia | B9: 888600 | C9: 8050000 | D9: =+B9/C9*1000 -> 110.3850932 | E9: 341250 | F9: 2500000 | G9: =+E9/F9*1000 -> 136.5 | H9: 0 | I9: 0 | K9: 540000 | L9: 1350000 | M9: =+K9/L9*1000 -> 400
A10: Brasil | B10: 58888329.8 | C10: 508335000 | D10: =+B10/C10*1000 -> 115.8455149 | E10: 33578130.4 | F10: 230186000 | G10: =+E10/F10*1000 -> 145.8739037 | H10: 59389721.9 | I10: 235724220 | J10: =+H10/I10*1000 -> 251.9457776 | K10: 143148525.9 | L10: 518878414 | M10: =+K10/L10*1000 -> 275.8806727 | N10: 147970091.1 | O10: 753265087 | P10: =+N10/O10*1000 -> 196.4382708 | Q10: 135769710 | R10: 650836460 | S10: =+Q10/R10*1000 -> 208.6080273 | T10: 96407040 | U10: 373382380 | V10: =+T10/U10*1000 -> 258.1992219 | W10: 203109144 | X10: 852196530 | Y10: =+W10/X10*1000 -> 238.3360373
A11: Chile | B11: 0 | C11: 0 | E11: 0 | F11: 0 | H11: 281228.8 | I11: 995500 | J11: =+H11/I11*1000 -> 282.5000502 | K11: 489500 | L11: 1500000 | M11: =+K11/L11*1000 -> 326.3333333 | W11: 483926 | X11: 2004000 | Y11: =+W11/X11*1000 -> 241.4800399
A12: Islas Caiman | Q12: 601709 | R12: 2528190 | S12: =+Q12/R12*1000 -> 237.999913 | T12: 857500 | U12: 3500000 | V12: =+T12/U12*1000 -> 245
A13: Libano | B13: 0 | C13: 0 | E13: 0 | F13: 0 | H13: 0 | I13: 0 | K13: 0 | L13: 0 | N13: 1116000 | O13: 6000000 | P13: =+N13/O13*1000 -> 186
A14: Paises Bajos | B14: 6555790 | C14: 56969000 | D14: =+B14/C14*1000 -> 115.0764451 | E14: 0 | F14: 0 | H14: 0 | I14: 0 | K14: 239793.8 | L14: 630000 | M14: =+K14/L14*1000 -> 380.6250794 | W14: 2466484 | X14: 10448000 | Y14: =+W14/X14*1000 -> 236.0723583
A15: Peru | B15: 0 | C15: 0 | E15: 0 | F15: 0 | H15: 0 | I15: 0 | K15: 1040582 | L15: 5202910 | M15: =+K15/L15*1000 -> 200 | N15: 1436045.6 | O15: 6527480 | P15: =+N15/O15*1000 -> 220 | W15: 4117993 | X15: 16168495 | Y15: =+W15/X15*1000 -> 254.6924126
A16: Reino Unido | B16: 0 | C16: 0 | E16: 0 | F16: 0 | H16: 171507 | I16: 441000 | J16: =+H16/I16*1000 -> 388.9047619 | K16: 314477.5 | L16: 735000 | M16: =+K16/L16*1000 -> 427.8605442
A17: Siria | B17: 0 | C17: 0 | E17: 0 | F17: 0 | H17: 0 | I17: 0 | K17: 0 | L17: 0 | N17: 694377.1 | O17: 3733210 | P17: =+N17/O17*1000 -> 186.0000107
A18: Suiza | B18: 0 | C18: 0 | E18: 0 | F18: 0 | H18: 0 | I18: 0 | K18: 2230500 | L18: 7000000 | M18: =+K18/L18*1000 -> 318.6428571 | Q18: 1362000 | R18: 6000000 | S18: =+Q18/R18*1000 -> 227 | T18: 2000760 | U18: 7656000 | V18: =+T18/U18*1000 -> 261.3322884 | W18: 16170000 | X18: 58000000 | Y18: =+W18/X18*1000 -> 278.7931034
A19: Tanzania | W19: 2567269 | X19: 10492815 | Y19: =+W19/X19*1000 -> 244.6692332
A20: Turquia | Q20: 10721927 | R20: 38292595 | S20: =+Q20/R20*1000 -> 280.0000104 | T20: 12023202 | U20: 38168895 | V20: =+T20/U20*1000 -> 315.000002
A21: Uruguay | B21: 1926513.17 | C21: 20561645 | D21: =+B21/C21*1000 -> 93.69450596 | E21: 0 | F21: 0 | H21: 0 | I21: 0 | K21: 10239546.8 | L21: 27725472 | M21: =+K21/L21*1000 -> 369.3191156 | N21: 23817925.41 | O21: 107933401 | P21: =+N21/O21*1000 -> 220.6724257 | Q21: 88293038 | R21: 375044247 | S21: =+Q21/R21*1000 -> 235.4203236 | T21: 44423571 | U21: 178007596 | V21: =+T21/U21*1000 -> 249.5599738 | W21: 63398308 | X21: 238042028 | Y21: =+W21/X21*1000 -> 266.3324142

Sheet Destino (canola)
A1: Índice
A2: EXPORTACIONES DE CANOLA
A3: Fuente: BCP
A5: PAIS | B5: 2005 | E5: 2006 | H5: 2007 | K5: 2008 | N5: 2009 | Q5: 2010 | T5: =+'Destino (trigo)'!T5:V5 -> 2011 | W5: =+'Destino (trigo)'!W5:Y5 -> Ene-Nov 2012
B6: Valor (US$) | C6: Volumen (Kg) | D6: Precio (US$/Ton) | E6: Valor (US$) | F6: Volumen (Kg) | G6: Precio (US$/Ton) | H6: Valor (US$) | I6: Volumen (Kg) | J6: Precio (US$/Ton) | K6: Valor (US$) | L6: Volumen (Kg) | M6: Precio (US$/Ton) | N6: Valor (US$) | O6: Volumen (Kg) | P6: Precio (US$/Ton) | Q6: Valor (US$) | R6: Volumen (Kg) | S6: Precio (US$/Ton) | T6: Valor (US$) | U6: Volumen (Kg) | V6: Precio (US$/Ton) | W6: Valor (US$) | X6: Volumen (Kg) | Y6: Precio (US$/Ton)
A7: Argentina | B7: 0 | C7: 0 | E7: 0 | F7: 0 | H7: 0 | I7: 0 | K7: 57275.4 | L7: 15929 | M7: =+K7/L7*1000 -> 3595.668278
A8: Brasil | B8: 4145234 | C8: 23123000 | D8: =+B8/C8*1000 -> 179.2688665 | E8: 4407000 | F8: 23860000 | G8: =+E8/F8*1000 -> 184.7024308 | H8: 4455040 | I8: 17570000 | J8: =+H8/I8*1000 -> 253.5594764 | K8: 7641850 | L8: 18090000 | M8: =+K8/L8*1000 -> 422.435047 | N8: 4748467.3 | O8: 16015123.2 | P8: =+N8/O8*1000 -> 296.4989554 | Q8: 11450146 | R8: 32438172 | S8: =+Q8/R8*1000 -> 352.9837008 | T8: 10460240 | U8: 25730000 | V8: =+T8/U8*1000 -> 406.5386708 | W8: 14522129 | X8: 32832900 | Y8: =+W8/X8*1000 -> 442.3041827
A9: Islas Caimán | B9: 0 | C9: 0 | E9: 983400 | F9: 4470000 | G9: 220 | H9: 0 | I9: 0 | K9: 0 | L9: 0
A10: Uruguay | T10: 4331799 | U10: 20415678 | V10: =+T10/U10*1000 -> 212.1800216 | W10: 126608 | X10: 19540 | Y10: =+W10/X10*1000 -> 6479.426817

Sheet Destino (girasol)
A1: Índice
A2: EXPORTACIONES DE GIRASOL
A3: Fuente: BCP
A5: PAIS | B5: 2005 | E5: 2006 | H5: 2007 | K5: 2008 | N5: 2009 | Q5: 2010 | T5: =+'Destino (canola)'!T5:V5 -> 2011 | W5: =+'Destino (canola)'!W5:Y5 -> Ene-Nov 2012
B6: Valor (US$) | C6: Volumen (Kg) | D6: Precio (US$/Ton) | E6: Valor (US$) | F6: Volumen (Kg) | G6: Precio (US$/Ton) | H6: Valor (US$) | I6: Volumen (Kg) | J6: Precio (US$/Ton) | K6: Valor (US$) | L6: Volumen (Kg) | M6: Precio (US$/Ton) | N6: Valor (US$) | O6: Volumen (Kg) | P6: Precio (US$/Ton) | Q6: Valor (US$) | R6: Volumen (Kg) | S6: Precio (US$/Ton) | T6: Valor (US$) | U6: Volumen (Kg) | V6: Precio (US$/Ton) | W6: Valor (US$) | X6: Volumen (Kg) | Y6: Precio (US$/Ton)
A7: Alemania | B7: 15097.96 | C7: 18901 | D7: =+B7/C7*1000 -> 798.7915983 | E7: 0 | F7: 0 | H7: 8525 | I7: 25000 | J7: =+H7/I7*1000 -> 341 | K7: 0 | L7: 0
A8: Argentina | B8: 0 | C8: 0 | E8: 0 | F8: 0 | H8: 8139231.9 | I8: 26941319.99 | J8: =+H8/I8*1000 -> 302.1096183 | K8: 11585541.4 | L8: 41220540 | M8: =+K8/L8*1000 -> 281.0623393 | N8: 28397338.9 | O8: 105861624 | P8: =+N8/O8*1000 -> 268.2496057 | Q8: 5338650 | R8: 16300000 | S8: =+Q8/R8*1000 -> 327.5245399 | T8: 4542803 | U8: 9150000 | V8: =+T8/U8*1000 -> 496.4812022
A9: Belgica | B9: 0 | C9: 0 | E9: 0 | F9: 0 | H9: 48300 | I9: 175000 | J9: =+H9/I9*1000 -> 276 | K9: 0 | L9: 0
A10: Belgica Y Luxemburgo | B10: 0 | C10: 0 | E10: 41400 | F10: 150000 | G10: =+E10/F10*1000 -> 276 | H10: 41400 | I10: 150000 | J10: =+H10/I10*1000 -> 276 | K10: 0 | L10: 0
A11: Brasil | B11: 0 | C11: 0 | E11: 0 | F11: 0 | H11: 257368.3 | I11: 1076918.89 | J11: =+H11/I11*1000 -> 238.9857791 | K11: 99762.5 | L11: 75425 | M11: =+K11/L11*1000 -> 1322.671528 | N11: 553034 | O11: 2246000 | P11: =+N11/O11*1000 -> 246.2306322 | Q11: 38280 | R11: 110000 | S11: =+Q11/R11*1000 -> 348 | T11: 153200 | U11: 207783 | V11: =+T11/U11*1000 -> 737.3076719 | W11: 118034 | X11: 231440 | Y11: =+W11/X11*1000 -> 509.9982717
A12: Paises Bajos | B12: 68400 | C12: 300000 | D12: =+B12/C12*1000 -> 228 | E12: 136800 | F12: 600000 | G12: =+E12/F12*1000 -> 228 | H12: 0 | I12: 0 | K12: 338100 | L12: 575000 | M12: =+K12/L12*1000 -> 588
A13: Siria | B13: 0 | C13: 0 | E13: 0 | F13: 0 | H13: 44550 | I13: 60000 | J13: =+H13/I13*1000 -> 742.5 | K13: 0 | L13: 0
A14: Suiza | B14: 0 | C14: 0 | E14: 3074380.98 | F14: 18632612 | G14: =+E14/F14*1000 -> 165 | H14: 0 | I14: 0 | K14: 0 | L14: 0 | N14: 202853.9 | O14: 1540050 | P14: =+N14/O14*1000 -> 131.7190351
A15: Uruguay | B15: 0 | C15: 0 | E15: 0 | F15: 0 | H15: 1613230 | I15: 7770000 | J15: =+H15/I15*1000 -> 207.6229086 | K15: 1687000 | L15: 3720000 | M15: =+K15/L15*1000 -> 453.4946237 | Q15: 3005 | R15: 1588 | S15: =+Q15/R15*1000 -> 1892.31738
A16: Venezuela | B16: 0 | C16: 0 | E16: 0 | F16: 0 | H16: 0 | I16: 0 | K16: 350 | L16: 450 | M16: =+K16/L16*1000 -> 777.7777778

Sheet Destino (aceite de girasol)
A1: Índice
A2: EXPORTACIONES DE ACEITE DE GIRASOL
A3: Fuente: BCP
A5: PAIS | B5: 2005 | E5: 2006 | H5: 2007 | K5: 2008 | N5: 2009 | Q5: 2010 | T5: =+'Destino (girasol)'!T5:V5 -> 2011 | W5: =+'Destino (girasol)'!W5:Y5 -> Ene-Nov 2012
B6: Valor (US$) | C6: Volumen (Kg) | D6: Precio (US$/Ton) | E6: Valor (US$) | F6: Volumen (Kg) | G6: Precio (US$/Ton) | H6: Valor (US$) | I6: Volumen (Kg) | J6: Precio (US$/Ton) | K6: Valor (US$) | L6: Volumen (Kg) | M6: Precio (US$/Ton) | N6: Valor (US$) | O6: Volumen (Kg) | P6: Precio (US$/Ton) | Q6: Valor (US$) | R6: Volumen (Kg) | S6: Precio (US$/Ton) | T6: Valor (US$) | U6: Volumen (Kg) | V6: Precio (US$/Ton) | W6: Valor (US$) | X6: Volumen (Kg) | Y6: Precio (US$/Ton)
A7: Argelia | B7: 0 | C7: 0 | E7: 0 | F7: 0 | H7: 0 | I7: 0 | K7: 3690268.7 | L7: 2067977 | M7: =+K7/L7*1000 -> 1784.482468
A8: Argentina | B8: 4011500 | C8: 8100000 | D8: =+B8/C8*1000 -> 495.2469136 | E8: 4140000 | F8: 9000000 | G8: =+E8/F8*1000 -> 460 | H8: 17195336.1 | I8: 30933991 | J8: =+H8/I8*1000 -> 555.8718919 | K8: 38869041.4 | L8: 27920200 | M8: =+K8/L8*1000 -> 1392.147671 | N8: 6001000 | O8: 9000000 | P8: =+N8/O8*1000 -> 666.7777778 | Q8: 11682011 | R8: 15525000 | S8: =+Q8/R8*1000 -> 752.4644767 | T8: 7428000 | U8: 6820000 | V8: =+T8/U8*1000 -> 1089.14956 | W8: 3050000 | X8: 3000000 | Y8: =+W8/X8*1000 -> 1016.666667
A9: Belgica | T9: 318472 | U9: 165640 | V9: =+T9/U9*1000 -> 1922.675682
A10: Bolivia | B10: 0 | C10: 0 | E10: 0 | F10: 0 | H10: 147840 | I10: 224000 | J10: =+H10/I10*1000 -> 660 | K10: 80080 | L10: 56000 | M10: =+K10/L10*1000 -> 1430 | N10: 44800 | O10: 56000 | P10: =+N10/O10*1000 -> 800 | Q10: 151770 | R10: 164000 | S10: =+Q10/R10*1000 -> 925.4268293 | T10: 221200 | U10: 140000 | V10: =+T10/U10*1000 -> 1580
A11: Brasil | B11: 779165 | C11: 1406000 | D11: =+B11/C11*1000 -> 554.1714083 | E11: 1175462.5 | F11: 1975000 | G11: =+E11/F11*1000 -> 595.1708861 | H11: 9362800.5 | I11: 12904000 | J11: =+H11/I11*1000 -> 725.5735043 | K11: 11663826.8 | L11: 8842000 | M11: =+K11/L11*1000 -> 1319.138973 | N11: 7030280 | O11: 9515000 | P11: =+N11/O11*1000 -> 738.8628481 | Q11: 7619169 | R11: 9151041 | S11: =+Q11/R11*1000 -> 832.6013401 | T11: 24061602 | U11: 19577285 | V11: =+T11/U11*1000 -> 1229.057145 | W11: 19827808 | X11: 17975000 | Y11: =+W11/X11*1000 -> 1103.07694
A12: Canada | B12: 324.6 | C12: 8 | E12: 0 | F12: 0 | H12: 764.5 | I12: 70 | J12: =+H12/I12*1000 -> 10921.42857 | K12: 0 | L12: 0
A13: Chile | B13: 103000 | C13: 225000 | D13: =+B13/C13*1000 -> 457.7777778 | E13: 0 | F13: 0 | H13: 129560 | I13: 206000 | J13: =+H13/I13*1000 -> 628.9320388 | K13: 0 | L13: 0 | N13: 124750 | O13: 150000 | P13: =+N13/O13*1000 -> 831.6666667 | Q13: 104875 | R13: 125000 | S13: =+Q13/R13*1000 -> 839
A14: Egipto | B14: 0 | C14: 0 | E14: 0 | F14: 0 | H14: 0 | I14: 0 | K14: 1650000 | L14: 1000000 | M14: =+K14/L14*1000 -> 1650 | N14: 834243 | O14: 1226828 | P14: =+N14/O14*1000 -> 679.9999674
A15: Emiratos Arabes Unidos | B15: 0 | C15: 0 | E15: 0 | F15: 0 | H15: 0 | I15: 0 | K15: 1872814.5 | L15: 1144245 | M15: =+K15/L15*1000 -> 1636.725089 | N15: 2272000 | O15: 3000000 | P15: =+N15/O15*1000 -> 757.3333333 | Q15: 1110486 | R15: 1254786 | S15: =+Q15/R15*1000 -> 885.0003108
A16: Francia | B16: 0 | C16: 0 | E16: 0 | F16: 0 | H16: 0 | I16: 0 | K16: 1960450.8 | L16: 1188152 | M16: =+K16/L16*1000 -> 1650
A17: India | B17: 0 | C17: 0 | E17: 0 | F17: 0 | H17: 0 | I17: 0 | K17: 1459004.2 | L17: 1332299 | M17: =+K17/L17*1000 -> 1095.102676
A18: Marruecos | Q18: 387841.5 | R18: 430935 | S18: =+Q18/R18*1000 -> 900
A19: Oman | B19: 0 | C19: 0 | E19: 0 | F19: 0 | H19: 0 | I19: 0 | K19: 0 | L19: 0 | N19: 821109.1 | O19: 1225536 | P19: =+N19/O19*1000 -> 669.9999837
A20: Paises Bajos | B20: 87220 | C20: 109600 | D20: =+B20/C20*1000 -> 795.8029197 | E20: 6920100 | F20: 15900000 | G20: =+E20/F20*1000 -> 435.2264151 | H20: 4400000 | I20: 8000000 | J20: =+H20/I20*1000 -> 550 | K20: 0 | L20: 0 | T20: 644052 | U20: 736059 | V20: =+T20/U20*1000 -> 875.0005095
A21: Sudafrica | B21: 0 | C21: 0 | E21: 0 | F21: 0 | H21: 1544455 | I21: 2808100 | J21: =+H21/I21*1000 -> 550 | K21: 1582748.8 | L21: 1416330 | M21: =+K21/L21*1000 -> 1117.500018 | N21: 4594369.48 | O21: 6341676 | P21: =+N21/O21*1000 -> 724.4724391
A22: Turquia | B22: 0 | C22: 0 | E22: 0 | F22: 0 | H22: 0 | I22: 0 | K22: 2874341.5 | L22: 1758007 | M22: =+K22/L22*1000 -> 1635.000031
A23: Uruguay | B23: 3500000 | C23: 7000000 | D23: =+B23/C23*1000 -> 500 | E23: 0 | F23: 0 | H23: 0 | I23: 0 | K23: 16418211.3 | L23: 13047067 | M23: =+K23/L23*1000 -> 1258.383306 | N23: 12455968.5 | O23: 21159800 | P23: =+N23/O23*1000 -> 588.6619202 | Q23: 985585 | R23: 1174000 | S23: =+Q23/R23*1000 -> 839.5102215 | T23: 2418052 | U23: 1849000 | V23: =+T23/U23*1000 -> 1307.762034 | W23: 1112300 | X23: 980000 | Y23: =+W23/X23*1000 -> 1135
A24: Venezuela | B24: 0 | C24: 0 | E24: 0 | F24: 0 | H24: 0 | I24: 0 | K24: 0 | L24: 0 | N24: 5756700 | O24: 7600000 | P24: =+N24/O24*1000 -> 757.4605263

Sheet Destino (aceite de canola)
A1: Índice
A2: EXPORTACIONES DE ACEITE DE CANOLA
A3: Fuente: BCP
A5: PAIS | B5: 2005 | E5: 2006 | H5: 2007 | K5: 2008 | N5: 2009 | Q5: 2010 | T5: =+'Destino (aceite de girasol)'!T5:V5 -> 2011 | W5: =+'Destino (aceite de girasol)'!W5:Y5 -> Ene-Nov 2012
B6: Valor (US$) | C6: Volumen (Kg) | D6: Precio (US$/Ton) | E6: Valor (US$) | F6: Volumen (Kg) | G6: Precio (US$/Ton) | H6: Valor (US$) | I6: Volumen (Kg) | J6: Precio (US$/Ton) | K6: Valor (US$) | L6: Volumen (Kg) | M6: Precio (US$/Ton) | N6: Valor (US$) | O6: Volumen (Kg) | P6: Precio (US$/Ton) | Q6: Valor (US$) | R6: Volumen (Kg) | S6: Precio (US$/Ton) | T6: Valor (US$) | U6: Volumen (Kg) | V6: Precio (US$/Ton) | W6: Valor (US$) | X6: Volumen (Kg) | Y6: Precio (US$/Ton)
A7: Argentina | B7: 7941000 | C7: 15750000 | D7: =+B7/C7*1000 -> 504.1904762 | E7: 2674870 | F7: 4550000 | G7: =+E7/F7*1000 -> 587.8835165 | H7: 6105003.8 | I7: 7681000 | J7: =+H7/I7*1000 -> 794.8188778 | K7: 0 | L7: 0 | N7: 3850400 | O7: 5284000 | P7: =+N7/O7*1000 -> 728.6903861 | Q7: 8668400 | R7: 9100000 | S7: =+Q7/R7*1000 -> 952.5714286 | T7: 4166000 | U7: 4050000 | V7: =+T7/U7*1000 -> 1028.641975 | W7: 1926100 | X7: 1870000 | Y7: =+W7/X7*1000 -> 1030
A8: Brasil | B8: 1819100 | C8: 3500000 | D8: =+B8/C8*1000 -> 519.7428571 | E8: 2478875 | F8: 4200000 | G8: =+E8/F8*1000 -> 590.2083333 | H8: 7044105.5 | I8: 8027750 | J8: =+H8/I8*1000 -> 877.4694653 | K8: 6844906 | L8: 5289070 | M8: =+K8/L8*1000 -> 1294.160599 | N8: 5766085 | O8: 6070000 | P8: =+N8/O8*1000 -> 949.931631 | Q8: 4794875 | R8: 5900000 | S8: =+Q8/R8*1000 -> 812.690678 | T8: 8378250 | U8: 7300000 | V8: =+T8/U8*1000 -> 1147.705479 | W8: 5813450 | X8: 5175000 | Y8: =+W8/X8*1000 -> 1123.371981
A9: Chile | B9: 0 | C9: 0 | E9: 165000 | F9: 250000 | G9: =+E9/F9*1000 -> 660 | H9: 0 | I9: 0 | K9: 93750 | L9: 75000 | M9: =+K9/L9*1000 -> 1250 | W9: 115200 | X9: 100000 | Y9: =+W9/X9*1000 -> 1152
A10: Colombia | B10: 1020000 | C10: 2000000 | D10: =+B10/C10*1000 -> 510 | E10: 0 | F10: 0 | H10: 0 | I10: 0 | K10: 0 | L10: 0
A11: Uruguay | W11: 30024 | X11: 27000 | Y11: =+W11/X11*1000 -> 1112
A12: Zimbawe | B12: 0 | C12: 0 | E12: 0 | F12: 0 | H12: 0 | I12: 0 | K12: 0 | L12: 0

Sheet Exportadores (maiz)
A1: Índice
A2: EXPORTACIONES DE MAÍZ
A3: Fuente: TINWOR
A5: Exportador | B5: 2005 | C5: 2006 | D5: 2007 | E5: 2008 | F5: 2009 | G5: 2010 | H5: 2011 | I5: Ene-Nov 2012
B6: U$S | C6: U$S | D6: U$S | E6: U$S | F6: U$S | G6: U$S | H6: U$S | I6: U$S
A7: A.R.G. Imp. Exp. | F7: 89081.18 | G7: 19800
A8: Acopios Union Sa | G8: 41610
A9: Activa S.A. | I9: 1139800
A10: Adm Paraguay S.A.E.C.A. | B10: 6469352.52 | C10: 25876763.34 | D10: 45622507.38 | E10: 24556087.32 | F10: 23266632.68 | G10: 61514937.41 | H10: 53494693.64 | I10: 93512254.06
A11: Agricola \ U Pora S.A. | H11: 885473.6
A12: Agricola Colonial Sa | H12: 175560 | I12: 2160190
A13: Agricola Entre Rios Sa | D13: 6157522 | E13: 2528500 | F13: 47700 | G13: 1216000 | H13: 1996000 | I13: 1833920
A14: Agricola Rambo Sa | C14: 88450 | D14: 71500 | E14: 144960 | F14: 168000 | G14: 84000
A15: Agricola Santa Fe S.A. | H15: 1135000 | I15: 4747750
A16: Agrimar S.A.C.I. | C16: 885750 | D16: 623050 | E16: 679000 | F16: 229500
A17: Agritrade Paraguay S.A. | I17: 1828512
A18: Agro Com.Ind.Naranjal | B18: 732500 | C18: 228000
A19: Agro Granos S.A. | E19: 81943
A20: Agro Guarani Agricola Sa | B20: 968000 | C20: 718000
A21: Agro Ind.Campos Nuevos S.A. | F21: 1560900 | G21: 2306000 | H21: 7312500 | I21: 8597500
A22: Agro Industrial Alemano Paraguaya S.A. | E22: 539000 | F22: 385000 | H22: 115000
A23: Agro Industrial Paim Sociedad | F23: 93600 | H23: 105300
A24: Agro Industrial Palotina S.R.L | F24: 331000
A25: Agro Link S.A.I.C | B25: 201000 | C25: 223500 | D25: 90000
A26: Agro Maiz Semillas S.R.L. | B26: 10890
A27: Agro Mercantil Lazzarotto S.A. | B27: 118800 | C27: 569900 | D27: 123385
A28: Agro Poty De P.Santacruz | B28: 8.4
A29: Agro Santa Rosa S.A.E.C.A. | B29: 136500 | C29: 596500 | F29: 1067000 | H29: 110000
A30: Agro Silo Santa Catalina Sa | B30: 3197450 | C30: 4769500 | D30: 6961760 | E30: 12629750 | F30: 8107700 | G30: 7461945.64 | H30: 23939729.2 | I30: 23613234.77
A31: Agro Silos El Productor S.A. | B31: 982970 | C31: 1446000 | D31: 1633000 | E31: 2787920 | F31: 3337500 | G31: 1280250 | H31: 3910900 | I31: 5662500
A32: Agro Union S.A. (Agunsa) | C32: 286000
A33: Agrobiologico Sa | D33: 437700 | G33: 142794
A34: Agrofertil Sa | B34: 2970750 | C34: 9815000 | D34: 20766090 | E34: 8920000 | F34: 14770850 | G34: 10860684.4 | H34: 20695250 | I34: 33040010
A35: Agrofort Agropecuaria S.A. | F35: 1110000 | H35: 1471000 | I35: 770000
A36: Agroforte Granos S.A. | H36: 2347700 | I36: 4911614
A37: Agroind. Pikyry Sa | B37: 2515150 | C37: 2724525.13
A38: Agrop. Y Com. Del Parana | C38: 87000
A39: Agropasso Imp. Exp. Srl | B39: 4320
A40: Agropecuaria Busanello S.A. | F40: 120000 | H40: 647000
A41: Agropecuaria Conquista S.A | F41: 2079300
A42: Agropecuaria Parana | B42: 528800 | C42: 622000 | D42: 296250 | H42: 266500
A43: Agrorama S.A. | B43: 1975900 | C43: 3488000 | D43: 6140982.5 | E43: 1099500 | F43: 4204200
A44: Agroser S.A.E.C.A. | B44: 448750 | C44: 809500 | D44: 1869500 | E44: 665000 | F44: 4092100 | G44: 1344000 | H44: 1690000 | I44: 2452400
A45: Agrotec S.A. | B45: 586050 | C45: 3004900 | D45: 2494050 | E45: 959100 | F45: 4411240 | G45: 5606847.92 | H45: 2602000 | I45: 262200
A46: Agrotoro Sa | C46: 132000 | F46: 225200 | H46: 224000 | I46: 1357024.48
A47: Allegretti S.A. | D47: 951280 | E47: 171000 | F47: 571050 | G47: 92000 | H47: 292000 | I47: 80000
A48: American S.R.L. | E48: 164889 | F48: 2104000 | H48: 285000
A49: Aratiri Srl | H49: 44000
A50: Arasy Organica Sa | D50: 33425
A51: As Operadores Economicos Srl | H51: 25380 | I51: 173220
A52: Baelpa S.A.I.C. | C52: 8839327.23 | D52: 20365500 | E52: 5632900
A53: Balbuena Velazquez Teodoro Jorge | D53: 64660
A54: Belotto NuñEz Liz Noelia | F54: 760000
A55: Bento & Asociados | B55: 247000 | C55: 357000 | D55: 1228300 | F55: 3113315.5 | G55: 370000
A56: Berchstoll Schsneider Gustavo | B56: 66920
A57: Biosafras S.A. | F57: 190000
A58: Bronstrup Eno Sa | C58: 1040 | D58: 9755
A59: Bunge Paraguay S.A. | C59: 11409250 | D59: 25720650.73 | E59: 8670000 | F59: 21891004.16 | G59: 1107000 | H59: 1518900 | I59: 216000
A60: C. Vale S.A. | C60: 273720 | E60: 3196000 | F60: 3945500 | G60: 2829068 | H60: 6561350 | I60: 3600658
A61: C.G. Cesar Wilfrido Gimenez | F61: 3640
A62: C.W Trading S.A. | F62: 610525 | G62: 419560 | H62: 268400
A63: Calyx Siembra Paraguay S.R.L | H63: 490000 | I63: 962500
A64: Cargill Agropecuaria S.A.C.I. | B64: 2080170 | C64: 24142385.49 | D64: 56215799.13 | E64: 42070609.59 | F64: 36595348.26 | G64: 43435836.47 | H64: 110403284.1 | I64: 164053723.6
A65: Casa Rural Sa | H65: 59247
A66: Chacore Srl | C66: 80640
A67: Cismar Imp.Exp. | F67: 453000
A68: Comercial Konzen S.A. | C68: 912000 | D68: 650000 | F68: 718900 | I68: 960000
A69: Compañia Dekalpar S.A. | B69: 655000 | C69: 10000 | D69: 3418000 | E69: 1812000 | F69: 7721335 | G69: 3612869.5 | H69: 13500967.6 | I69: 9168185
A70: Conosur Imp. Exp. | C70: 550730
A71: Contiparaguay S.A. | D71: 2577250
A72: Coop. Naranjal Ltda | C72: 847000 | D72: 1554500 | F72: 255000 | H72: 1196400 | I72: 308750
A73: Coop. Naranjito Ltda. | B73: 113000 | C73: 455000 | F73: 693000 | I73: 232800
A74: Coop. Yguazu | E74: 176589 | F74: 172500
A75: Coop.Colonias Unidas Agrop.Ind.Ltda. | B75: 763795 | C75: 947505 | D75: 441900 | E75: 703900 | F75: 1822900 | G75: 134000
A76: Coop.De Prod. Agrop.Integ. De | B76: 629200 | D76: 216000 | F76: 100000
A77: Coop.Mult.Prod.Cons.Serv.Coope | B77: 1375000
A78: Coop.Produc.Volendam | C78: 1441000 | D78: 1816000 | E78: 3782000 | F78: 2710900 | G78: 2425000 | I78: 7755400
A79: Coop.Santa Maria Ltda. | B79: 395400 | C79: 2939500 | D79: 3111400 | E79: 2129000 | F79: 3370700 | G79: 472000 | H79: 6933750 | I79: 5171700
A80: Coop.Union Curupayty Ltda. | B80: 184600 | C80: 264000 | F80: 100000 | H80: 4602000
A81: Cooperalba Ltda. | B81: 730840 | C81: 1152500 | D81: 1329600 | E81: 220000 | F81: 6041500 | G81: 111000 | H81: 384000 | I81: 2549000
A82: Cooperativa Agropecuaria E Industrial Ra | F82: 347000 | H82: 332550 | I82: 198000
A83: Cooperativa Agropecuaria Pindo Ltda. | B83: 1160500 | C83: 526500 | D83: 2019000 | F83: 1231408 | H83: 17920 | I83: 502500
A84: Cooperativa De Produccion Agropecuaria U | B84: 92300 | H84: 594170
A85: Cpps Commodities S.A. | H85: 223000
A86: Crap S.A. | F86: 672000 | G86: 2517000 | H86: 1628000 | I86: 205000
A87: De Paula Isabel Jesus | B87: 46350
A88: Diagro Sa | B88: 2577255.3 | C88: 4038500 | D88: 9116000 | E88: 4226500 | F88: 5816926 | G88: 2403100 | H88: 9127100 | I88: 5606100
A89: Dow Agrosciences Sa | B89: 65636.86 | E89: 1553.7
A90: Eco Safari Sa | G90: 9587500
A91: Eno Bronstrup Sa (Ebsa) | D91: 2700 | E91: 21010.4 | F91: 30376.4 | G91: 5526.94 | H91: 12188.9 | I91: 13242.5
A92: Fecularia Salto Pilao S.A. | B92: 98100 | C92: 13500 | D92: 1152000 | E92: 1035000 | F92: 2965950 | G92: 348000 | H92: 1470600 | I92: 1534000
A93: Fernandes Antonio Geraldo | F93: 15000
A94: Figueroa Cuicui Alfonso | I94: 464.18
A95: Francisco Vierci Y Cia. S.R.L. | C95: 1688700 | D95: 1682000 | E95: 2813100 | F95: 2738976.09 | G95: 10848805.9 | H95: 14046033.36 | I95: 17981469.3
A96: Frontera Agrop.Paraguay Sa | C96: 168000 | D96: 1643810.39 | E96: 7206349.26 | F96: 1724591.47 | G96: 6479685.77 | H96: 9982948.36 | I96: 10851125.4
A97: Ginard Pino Lidia Paola | I97: 48750
A98: Glymax Paraguay Sa | H98: 138000
A99: Global Trading S.A. | G99: 63
A100: Gomez Graciela | D100: 45.66
A101: Grain Busines S.A. | F101: 501000
A102: Granos Paraguayos S.A. | D102: 1473399.98 | E102: 1584770 | F102: 390600
A103: Grupo Apane Sa | B103: 1850086.3 | C103: 3862500 | D103: 4592229.68 | E103: 2661200 | F103: 5359500 | G103: 339000 | H103: 2869000 | I103: 2748000
A104: Hilagro Hildebrand Sa | F104: 65100
A105: Holtker Beate Veronika | B105: 1721000 | C105: 1735250 | D105: 2218000 | E105: 3155500 | F105: 3713000 | H105: 238952 | I105: 1395500
A106: Indega Sa | D106: 521.02 | F106: 63.6 | H106: 13171.25
A107: Industria Paraguaya De Alcoholes Sa | I107: 1001000
A108: Inpasa | H108: 8002000 | I108: 6966000
A109: Inta Sociedad Anonima | E109: 1065320
A110: Inversiones Agricola Sociedad | H110: 7836700 | I110: 8855300
A111: Joimar Sa | F111: 591000
A112: Lar S.R.L. | B112: 1928315 | C112: 8507948 | D112: 13492914 | E112: 8775625 | F112: 13563870 | G112: 6633105 | H112: 21404500 | I112: 18206760
A113: Ldc Paraguay S.A. | D113: 3330000 | I113: 3733126.83
A114: Louis Dreyfus Paraguay S.A | C114: 5360088.1 | D114: 6580577.07 | E114: 8882505.03 | F114: 2595406.82 | G114: 12106232.66 | H114: 12744341.47 | I114: 22987298.23
A115: Machado Jose Roberto | B115: 530150 | D115: 772500 | E115: 105000 | F115: 893000 | G115: 619600 | H115: 178000 | I115: 1439000
A116: Mario Comercial Sa | H116: 11000
A117: Master Seeds S.A. | F117: 600000
A118: Metal Itapua S.A. | I118: 30000
A119: Mimbipa S.R.L. | E119: 2400 | F119: 3062.75 | G119: 5244.84 | H119: 2360.93 | I119: 1286.36
A120: Monsanto Paraguay Sa | H120: 152.48 | I120: 388.46
A121: Msu Agropy S.A. | F121: 40013.61 | G121: 1088753.92 | H121: 3090913.81 | I121: 1829782.54
A122: Nativa Agricola S.A. | B122: 1424750 | C122: 5037800 | D122: 8224115 | E122: 5043400 | F122: 4984550 | G122: 618500 | H122: 1130000 | I122: 262500
A123: Navegacion Guarani S.A. | D123: 490620
A124: Noble Paraguay S.A. | E124: 874000 | F124: 19074047.54 | G124: 14744729.18 | H124: 18266560 | I124: 32341899.32
A125: Norte Sur S.A. | B125: 298000 | C125: 3651500 | D125: 7863700 | E125: 4839000 | F125: 3343000 | G125: 172800 | H125: 649000 | I125: 396000
A126: Oleaginosa Raatz Sa | G126: 508920 | H126: 144200 | I126: 1427330
A127: Oligranos S.R.L. | D127: 1453750 | E127: 3887136 | F127: 2083200 | G127: 960000 | H127: 5529500 | I127: 9673400
A128: Ovetril Sa | D128: 2604000 | E128: 1180000 | F128: 2057500 | G128: 547500 | H128: 3935000 | I128: 3105000
A129: Paraguay Granos S.A. | D129: 105000
A130: Parperon S.R.L. | F130: 9626000 | G130: 1843700 | H130: 4245500 | I130: 1236000
A131: Pereira Rodriguez Lorenzo Rica | G131: 4500
A132: Planagro | I132: 917000
A133: Produ Agro Sa | C133: 222000 | F133: 259500
A134: Rafaeli Srl Imp Y Exp | I134: 963000
A135: Salto Aguaray Srl | C135: 2236000 | D135: 2705052.88 | E135: 7192400 | F135: 6753985 | G135: 13777182.94 | H135: 22979405.11 | I135: 29495423.8
A136: San Miguel Arcangel S.R.L. Trans.Interna | F136: 545000 | H136: 1202500 | I136: 3321750
A137: Schaefer Jorgge Juan Fridolin | H137: 102000
A138: Sedumar S.A. | F138: 19926.46 | G138: 405850 | H138: 492696
A139: Silo Cerro Largo Sa | C139: 36000
A140: Silos Alianza Srl | B140: 486000 | C140: 318000
A141: Silos Puente Kyjha S.A. | B141: 228040 | C141: 728300 | D141: 1522100 | E141: 333000 | F141: 844000 | H141: 258000 | I141: 424000
A142: Sj (Jersey) Paraguay Farms N?1 | G142: 120960 | H142: 622648.6 | I142: 1057082.14
A143: Soc. Coop. Friesland | C143: 1662275 | D143: 1140000
A144: Sojapar Sa | B144: 213000
A145: Sul - America Gran Agricultura | G145: 362710 | H145: 158199.6
A146: Tgl Paraguay S.A. | H146: 637227.88 | I146: 1257191.43
A147: Tierra Roja Sa | C147: 684948 | F147: 3565961.81 | G147: 1393398.22 | H147: 1657230.13
A148: Transportadora Internac. De Cargas San M | I148: 72500
A149: Trebol Agricola S.A | B149: 328000
A150: Unigranos S.A. | F150: 847000 | G150: 137500 | H150: 2243000 | I150: 994000
A151: Vetra Sa | B151: 356500 | C151: 591000 | D151: 2919500
A152: Vicentin Paraguay S.A. | C152: 13643594.79 | D152: 8491264.16 | E152: 2868812.14 | F152: 815234.77 | H152: 1166000 | I152: 2465600
A153: No definido | F153: 228084
A154: Exportador | B154: 2005 | C154: 2006 | D154: 2007 | E154: 2008 | F154: 2009 | G154: 2010 | H154: =+$H$5 -> 2011 | I154: =+'Exportadores (maiz)'!$I$5 -> Ene-Nov 2012
B155: KG | C155: KG | D155: KG | E155: KG | F155: KG | G155: KG | H155: KG | I155: KG
A156: A.R.G. Imp. Exp. | F156: 771000 | G156: 110110
A157: Acopios Union Sa | G157: 247000
A158: Activa S.A. | I158: 6000000
A159: Adm Paraguay S.A.E.C.A. | B159: 62951890 | C159: 258206855 | D159: 309927951 | E159: 177519933 | F159: 186224848 | G159: 309950247 | H159: 225876914 | I159: 419650643
A160: Agricola \ U Pora S.A. | H160: 4024880
A161: Agricola Colonial Sa | H161: 812000 | I161: 10565000
A162: Agricola Entre Rios Sa | D162: 36527000 | E162: 12500000 | F162: 397500 | G162: 6000000 | H162: 11000000 | I162: 10060000
A163: Agricola Rambo Sa | C163: 1450000 | D163: 950000 | E163: 930000 | F163: 2400000 | G163: 1200000
A164: Agricola Santa Fe S.A. | H164: 6000000 | I164: 23300000
A165: Agrimar S.A.C.I. | C165: 12000000 | D165: 4200000 | E165: 5000000 | F165: 3000000
A166: Agritrade Paraguay S.A. | I166: 9572000
A167: Agro Com.Ind.Naranjal | B167: 7000000 | C167: 3000000
A168: Agro Granos S.A. | E168: 216800
A169: Agro Guarani Agricola Sa | B169: 9000000 | C169: 10000000
A170: Agro Ind.Campos Nuevos S.A. | F170: 11350000 | G170: 15000000 | H170: 30000000 | I170: 40000000
A171: Agro Industrial Alemano Paraguaya S.A. | E171: 3000000 | F171: 3550000 | H171: 500000
A172: Agro Industrial Paim Sociedad | F172: 800000 | H172: 540000
A173: Agro Industrial Palotina S.R.L | F173: 3000000
A174: Agro Link S.A.I.C | B174: 2500000 | C174: 3000000 | D174: 1000000
A175: Agro Maiz Semillas S.R.L. | B175: 6000
A176: Agro Mercantil Lazzarotto S.A. | B176: 1200000 | C176: 7600000 | D176: 1233850
A177: Agro Poty De P.Santacruz | B177: 22
A178: Agro Santa Rosa S.A.E.C.A. | B178: 1500000 | C178: 7500000 | F178: 9000000 | H178: 500000
A179: Agro Silo Santa Catalina Sa | B179: 31150000 | C179: 60500000 | D179: 58500000 | E179: 86500000 | F179: 71400000 | G179: 52500000 | H179: 114513800 | I179: 116835793
A180: Agro Silos El Productor S.A. | B180: 10208000 | C180: 19000000 | D180: 14190000 | E180: 14520000 | F180: 29500000 | G180: 10500000 | H180: 20700000 | I180: 30500000
A181: Agro Union S.A. (Agunsa) | C181: 4000000
A182: Agrobiologico Sa | D182: 1447000 | G182: 800000
A183: Agrofertil Sa | B183: 33000000 | C183: 122000000 | D183: 171901000 | E183: 61500000 | F183: 120782500 | G183: 73390448 | H183: 99500000 | I183: 163908000
A184: Agrofort Agropecuaria S.A. | F184: 9200000 | H184: 7000000 | I184: 4000000
A185: Agroforte Granos S.A. | H185: 11000000 | I185: 25001000
A186: Agroind. Pikyry Sa | B186: 26000000 | C186: 35778930
A187: Agrop. Y Com. Del Parana | C187: 1200000
A188: Agropasso Imp. Exp. Srl | B188: 54000
A189: Agropecuaria Busanello S.A. | F189: 1000000 | H189: 3000000
A190: Agropecuaria Conquista S.A | F190: 16300000
A191: Agropecuaria Parana | B191: 6100000 | C191: 6000000 | D191: 2500000 | H191: 1300000
A192: Agrorama S.A. | B192: 33700000 | C192: 41250000 | D192: 45527500 | E192: 9500000 | F192: 38660000
A193: Agroser S.A.E.C.A. | B193: 4500000 | C193: 10500000 | D193: 11500000 | E193: 4000000 | F193: 35600000 | G193: 9000000 | H193: 8000000 | I193: 12000000
A194: Agrotec S.A. | B194: 7650000 | C194: 37850000 | D194: 23450000 | E194: 7080000 | F194: 36840000 | G194: 31072822.48 | H194: 12000000 | I194: 1300000
A195: Agrotoro Sa | C195: 2000000 | F195: 2305000 | H195: 1000000 | I195: 7007940
A196: Allegretti S.A. | D196: 7035000 | E196: 1000000 | F196: 5100000 | G196: 800000 | H196: 1500000 | I196: 500000
A197: American S.R.L. | E197: 837000 | F197: 19200000 | H197: 1500000
A198: Aratiri Srl | H198: 220000
A199: Arasy Organica Sa | D199: 161080
A200: As Operadores Economicos Srl | H200: 135000 | I200: 1701000
A201: Baelpa S.A.I.C. | C201: 88863715 | D201: 156500000 | E201: 26300000
... 101 more rows

Sheet Exportadores (trigo)
A1: Índice
A2: EXPORTACIONES DE TRIGO
A3: Fuente: TINWOR
A5: Exportador | B5: 2005 | C5: 2006 | D5: 2007 | E5: 2008 | F5: 2009 | G5: 2010 | H5: =+'Exportadores (maiz)'!$H$5 -> 2011 | I5: =+'Exportadores (maiz)'!$I$5 -> Ene-Nov 2012
B6: U$S | C6: U$S | D6: U$S | E6: U$S | F6: U$S | G6: U$S | H6: U$S | I6: U$S
A7: Activa S.A. | I7: 5561662.5
A8: Adm Paraguay S.A.E.C.A. | B8: 20063453 | C8: 6356450 | D8: 10397160 | E8: 23283035 | F8: 27926371.08 | G8: 55656598.1 | H8: 35815621.6 | I8: 56186863.15
A9: Agricola Colonial Sa | H9: 842200 | I9: 13624346
A10: Agricola Entre Rios Sa | F10: 349000 | G10: 585100
A11: Agricola Santa Fe S.A. | G11: 702000 | H11: 300000 | I11: 395750
A12: Agrimar S.A.C.I. | C12: 134400 | D12: 3876100 | E12: 5768920 | G12: 72000
A13: Agritrade Paraguay S.A. | I13: 2387868.6
A14: Agro Com.Ind.Naranjal | B14: 577000 | C14: 2239350 | D14: 426000
A15: Agro Deca S.A. | I15: 638984
A16: Agro Fertil Sa | B16: 1132538 | C16: 835845 | I16: 1646250
A17: Agro Guarani Agricola Sa | B17: 1025800
A18: Agro Ind.Campos Nuevos S.A. | F18: 750500 | G18: 1505000 | H18: 822275.3 | I18: 1742100
A19: Agro Industrial Alemano Paraguaya S.A. | D19: 292000 | E19: 1912617.5 | F19: 1053000 | H19: 76800
A20: Agro Industrial Paim Sociedad | F20: 2145750 | G20: 4708230 | H20: 1018700 | I20: 1406600
A21: Agro Industrial Palotina S.R.L | F21: 31158.96
A22: Agro Link S.A.I.C | D22: 94850
A23: Agro Mercantil Lazzarotto S.A. | B23: 899796 | C23: 48600 | D23: 36774 | G23: 40824
A24: Agro Santa Rosa S.A.E.C.A. | F24: 1629000 | G24: 955500 | H24: 2281000 | I24: 832000
A25: Agro Silo Santa Catalina Sa | B25: 1074000 | D25: 4153000 | E25: 7962840 | F25: 6722645 | G25: 9565690 | H25: 3763600 | I25: 13855644.68
A26: Agro Silos El Productor S.A. | B26: 941739 | C26: 1631488.8 | D26: 1058490 | E26: 944060 | F26: 5114250 | G26: 3787480 | H26: 4579600 | I26: 5706163.04
A27: Agrobiologico Sa | D27: 220727 | E27: 480311.25
A28: Agrocomercial Noreste S.R.L. | B28: 132000
A29: Agrofertil Sa | B29: 3380229 | C29: 3101300 | D29: 3732400 | E29: 2636500 | F29: 3223725 | G29: 7125900 | H29: 6863770.1 | I29: 4994500
A30: Agroind. Pikyry Sa | B30: 1732542 | C30: 1223960
A31: Agropecuaria Busanello S.A. | F31: 110000 | H31: 1376000
A32: Agropecuaria Canindeyu Srl | F32: 198000
A33: Agropecuaria Conquista S.A | F33: 238350
A34: Agrorama S.A. | B34: 2209244 | C34: 142000 | E34: 159500 | F34: 1313000
A35: Agroser S.A.E.C.A. | E35: 445000 | F35: 1512576.75 | G35: 1600400 | H35: 906900 | I35: 1567000
A36: Agrotec S.A. | B36: 430984 | D36: 573080 | E36: 2173860 | F36: 1764500 | G36: 1157300 | H36: 466000 | I36: 2015700
A37: Agrotoro S.A. | F37: 407000 | G37: 1004000 | H37: 379584 | I37: 2151000
A38: Allegretti S.A. | E38: 131790 | F38: 365100 | G38: 519300 | H38: 384000 | I38: 1116020
A39: Alpa S.A. | D39: 146000
A40: American S.R.L. | F40: 1130046 | G40: 86000
A41: Arasy Organica Sa | D41: 122011.5
A42: Bento & Asociados | B42: 728010 | C42: 255000 | F42: 3869474 | G42: 207500
A43: Bunge Paraguay S.A. | D43: 54675 | F43: 3161700 | I43: 797337
A44: Capici Sa | I44: 1425000
A45: Cargill Agropecuaria S.A.C.I. | B45: 5614063.17 | C45: 1874200 | D45: 1902575.9 | E45: 95945579.56 | F45: 23125060.46 | G45: 29156789.49 | H45: 46705335.96 | I45: 17499755.53
A46: Cereall Sociedad Anonima | G46: 2010550 | H46: 85200 | I46: 226000
A47: Cobalchini Celito Jose | I47: 385600
A48: Comercial Konzen S.A. | C48: 164497.6 | D48: 884000 | E48: 1871440 | F48: 1512500 | H48: 1648000
A49: Compañia Dekalpar S.A. | E49: 99320 | F49: 1365450 | G49: 2892000 | H49: 1391400 | I49: 1179000
A50: Conosur Imp. Exp. | B50: 110220 | C50: 26973
A51: Coop. Naranjal Ltda | D51: 850500 | E51: 240000 | H51: 177324 | I51: 5832156
A52: Coop. Naranjito Ltda. | C52: 369000 | D52: 233400 | E52: 412500 | F52: 1709000 | G52: 696114 | H52: 127500 | I52: 5899340
A53: Coop. Raul Peña Ltda. | D53: 408000
A54: Coop.Colonias Unidas Agrop.Ind.Ltda. | B54: 706500 | C54: 1363900 | D54: 4854650 | E54: 13242250 | F54: 21565750 | G54: 23141848 | H54: 9627900 | I54: 26174995.2
A55: Coop.De Prod. Agrop.Integ. De | B55: 1281200 | E55: 1001000 | F55: 940400 | I55: 605500
A56: Coop.Produc.Volendam | G56: 601709.2 | H56: 857500
A57: Coop.Santa Fe | H57: 213000 | I57: 1898200
A58: Coop.Santa Maria Ltda. | B58: 903024 | C58: 1748250 | E58: 752000 | F58: 2732000 | G58: 3482175 | H58: 1797000 | I58: 6110100
A59: Coop.Union Curupayty Ltda. | B59: 578000 | D59: 9360 | F59: 1875500 | I59: 1626960
A60: Cooperalba Ltda. | C60: 1029670 | D60: 135500 | F60: 4356500 | G60: 5431150 | H60: 4291000 | I60: 1092168
A61: Cooperativa Agropecuaria E Industrial Ra | D61: 270000 | E61: 220000 | F61: 2819400 | G61: 1549000 | H61: 4381772 | I61: 1339520
A62: Cooperativa Agropecuaria Pindo Ltda. | B62: 5766000 | C62: 2485000 | D62: 13316800 | E62: 2746500 | F62: 9928446 | G62: 2810700 | I62: 19841856.34
A63: Copatia | I63: 1140200
A64: Copronar | D64: 272500
A65: Cpps Commodities S.A. | G65: 562252.68 | H65: 556000
A66: Crap S.A. | G66: 2298500 | H66: 5445000 | I66: 5813255
A67: D Y M Int.Business S.A. | I67: 252000
A68: Diagro Sa | B68: 289275 | E68: 1716900 | F68: 465860 | G68: 750400
A69: Francisco Vierci Y Cia. S.R.L. | B69: 234000 | C69: 601550 | D69: 1008500 | F69: 941000 | G69: 734850 | H69: 737750 | I69: 1009000
A70: G.P. Sa | B70: 9300
A71: Global Import. - Export. | D71: 52403.75
A72: Glymax Paraguay Sa | B72: 233200 | E72: 850000 | G72: 185400 | I72: 979500
A73: Grain Busines S.A. | F73: 94600 | G73: 872500
A74: Granos Paraguayos S.A. | D74: 2704050 | E74: 3011630 | F74: 40300
A75: Grupo Apane Sa | B75: 2172442 | C75: 2073276 | D75: 1003396.06 | E75: 2248020 | F75: 3659760 | G75: 3216500 | H75: 2487000 | I75: 7709100
A76: Holtker Beate Veronika | C76: 390150 | D76: 478425 | F76: 1388850 | H76: 1644075 | I76: 3430114.16
A77: Inversiones Agricola Sociedad | H77: 96750 | I77: 4528595
A78: Joimar Sa | F78: 45000
A79: Kemsa Comercial Indust. Sa | D79: 111000 | E79: 265000
A80: Lar S.R.L. | B80: 2398350 | C80: 1034000 | D80: 1425000 | E80: 1589050 | F80: 4897500 | G80: 4574000 | H80: 1143500 | I80: 5168000
A81: Ldc Paraguay S.A. | I81: 9068908.95
A82: Louis Dreyfus Paraguay S.A | B82: 7169790 | C82: 717000 | D82: 5783600 | E82: 1291000 | F82: 3828500 | G82: 5532132 | H82: 10132011 | I82: 25883057.94
A83: Machado Jose Roberto | B83: 165231.8 | D83: 39050 | F83: 235440 | G83: 415426 | I83: 239200
A84: Mop Trading Sa | G84: 380000
A85: Molino El Pais Sa | F85: 185000
A86: Molinos Harineros D'Italia S. | I86: 3545000
A87: Msu Agropy S.A. | G87: 581290 | I87: 612070
A88: Na Transportes Import. Export. | F88: 614000
A89: Nativa Agricola S.A. | B89: 4333020 | C89: 5655010 | D89: 6453800 | E89: 27664170 | F89: 20205150 | G89: 10048340 | H89: 11066500 | I89: 20860760
A90: Noble Paraguay S.A. | E90: 3362772.66 | G90: 11749497.1 | H90: 5520000 | I90: 16122500
A91: Norte Sur S.A. | B91: 1960796 | C91: 644280 | D91: 827000 | E91: 567230 | F91: 942180 | G91: 375580 | H91: 375960 | I91: 266400
A92: Oligranos S.R.L. | D92: 173575 | E92: 2682465 | F92: 2465911 | G92: 2486260 | H92: 1880600 | I92: 5743090
A93: Ovetril Sa | G93: 1398520 | H93: 672600 | I93: 2702500
A94: Paraguay Granos Alimentos S.A. | H94: 415000
A95: Parperon S.R.L. | E95: 443000 | F95: 5359930 | G95: 7025350 | H95: 2677158 | I95: 5761634
A96: Planagro Sa | I96: 358460
A97: Produpar S.A. | E97: 4142700
A98: Rafaeli Srl Imp Y Exp | F98: 1300000 | G98: 1175000 | H98: 2249500 | I98: 2722500
A99: Repossi S.A | B99: 118500
A100: Sagitario Srl | E100: 388000 | F100: 535500
A101: Salto Aguaray Srl | B101: 517500 | C101: 661500 | D101: 948000 | E101: 742500 | F101: 1390000 | G101: 809500 | H101: 225000 | I101: 1154800
A102: San Miguel Arcangel S.R.L. Trans.Interna | F102: 1195000 | G102: 2467500 | H102: 1760000 | I102: 1150000
A103: Silos Puente Kyjha S.A. | E103: 2298500 | F103: 927805.95 | G103: 857265 | H103: 688000 | I103: 412500
A104: Sj (Jersey) Paraguay Farms | I104: 288744
A105: Sociedad Agr.Golondrina | G105: 563700 | I105: 670000
A106: Tierra Roja Sa | G106: 319662.1 | H106: 449188.5
A107: Transportadora Internac. De Cargas San M | I107: 110000
A108: Transporte San Cristobal S.A. | I108: 882000
A109: Trebol Agricola S.A | B109: 174900 | C109: 256500
A110: Trociuk Compañia Agricola Ganadera | B110: 444000 | D110: 228825 | E110: 341380 | F110: 360000 | G110: 3646480 | I110: 1553776
A111: Unigranos S.A. | E111: 87500 | H111: 1427500 | I111: 1858900
A112: Vicentin Paraguay S.A. | F112: 5479307.33 | G112: 26165000 | H112: 3024000 | I112: 9072000
A113: Zadkiel Auto Centro Srl | G113: 4770
A114: Zuats.A. | I114: 632500
A115: Exportador | B115: 2005 | C115: 2006 | D115: 2007 | E115: 2008 | F115: 2009 | G115: 2010 | H115: =+'Exportadores (maiz)'!$H$5 -> 2011 | I115: =+'Exportadores (maiz)'!$I$5 -> Ene-Nov 2012
B116: KG | C116: KG | D116: KG | E116: KG | F116: KG | G116: KG | H116: KG | I116: KG
A117: Activa S.A. | I117: 23521000
A118: Adm Paraguay S.A.E.C.A. | B118: 162402000 | C118: 45000000 | D118: 36990000 | E118: 83904000 | F118: 136260214 | G118: 238309377 | H118: 143057596 | I118: 215903056
A119: Agricola Colonial Sa | H119: 3900000 | I119: 55867000
A120: Agricola Entre Rios Sa | F120: 3500000 | G120: 5700000
A121: Agricola Santa Fe S.A. | G121: 3000000 | H121: 1500000 | I121: 1500000
A122: Agrimar S.A.C.I. | C122: 700000 | D122: 15000000 | E122: 20584000 | G122: 800000
A123: Agritrade Paraguay S.A. | I123: 9538100
A124: Agro Com.Ind.Naranjal | B124: 5000000 | C124: 13002000 | D124: 2000000
A125: Agro Deca S.A. | I125: 2608000
A126: Agro Fertil Sa | B126: 10108000 | C126: 7165000 | I126: 6250000
A127: Agro Guarani Agricola Sa | B127: 11400000
A128: Agro Ind.Campos Nuevos S.A. | F128: 3500000 | G128: 7500000 | H128: 3250100 | I128: 7300000
A129: Agro Industrial Alemano Paraguaya S.A. | D129: 1000000 | E129: 8136000 | F129: 4500000 | H129: 320000
A130: Agro Industrial Paim Sociedad | F130: 11000000 | G130: 23356500 | H130: 4900000 | I130: 6800000
A131: Agro Industrial Palotina S.R.L | F131: 408000
A132: Agro Link S.A.I.C | D132: 350000
A133: Agro Mercantil Lazzarotto S.A. | B133: 7528000 | C133: 400000 | D133: 162000 | G133: 168000
A134: Agro Santa Rosa S.A.E.C.A. | F134: 8000000 | G134: 4500000 | H134: 9000000 | I134: 3000000
A135: Agro Silo Santa Catalina Sa | B135: 9400000 | D135: 15000000 | E135: 41700000 | F135: 41415000 | G135: 44300000 | H135: 16800000 | I135: 58162342
A136: Agro Silos El Productor S.A. | B136: 8170000 | C136: 10156000 | D136: 4190000 | E136: 3200000 | F136: 25800000 | G136: 17500000 | H136: 17800000 | I136: 22841220
A137: Agrobiologico Sa | D137: 546000 | E137: 1197000
A138: Agrocomercial Noreste S.R.L. | B138: 1200000
A139: Agrofertil Sa | B139: 26608000 | C139: 18400000 | D139: 15150000 | E139: 10500000 | F139: 15150000 | G139: 30900000 | H139: 25500000 | I139: 20250000
A140: Agroind. Pikyry Sa | B140: 14116000 | C140: 8360000
A141: Agropecuaria Busanello S.A. | F141: 500000 | H141: 4300000
A142: Agropecuaria Canindeyu Srl | F142: 1000000
A143: Agropecuaria Conquista S.A | F143: 1108000
A144: Agrorama S.A. | B144: 22602000 | C144: 1500000 | E144: 1100000 | F144: 7000000
A145: Agroser S.A.E.C.A. | E145: 2500000 | F145: 9104500 | G145: 7100000 | H145: 4300000 | I145: 6600000
A146: Agrotec S.A. | B146: 3400000 | D146: 2580000 | E146: 8530000 | F146: 9200000 | G146: 5400000 | H146: 2000000 | I146: 8325000
A147: Agrotoro S.A. | F147: 1850000 | G147: 5400000 | H147: 2008000 | I147: 9000000
A148: Allegretti S.A. | E148: 870000 | F148: 1760000 | G148: 2530000 | H148: 1600000 | I148: 5362000
A149: Alpa S.A. | D149: 500000
A150: American S.R.L. | F150: 5931000 | G150: 1000000
A151: Arasy Organica Sa | D151: 276530
A152: Bento & Asociados | B152: 5980000 | C152: 2040000 | F152: 22206000 | G152: 1000000
A153: Bunge Paraguay S.A. | D153: 243000 | F153: 15650000 | I153: 3081000
A154: Capici Sa | I154: 4500000
A155: Cargill Agropecuaria S.A.C.I. | B155: 53561645 | C155: 15000000 | D155: 7754000 | E155: 291447434 | F155: 109662079 | G155: 108832511 | H155: 160964864 | I155: 63192741
A156: Cereall Sociedad Anonima | G156: 9850000 | H156: 400000 | I156: 1000000
A157: Cobalchini Celito Jose | I157: 1600000
A158: Comercial Konzen S.A. | C158: 1144000 | D158: 4000000 | E158: 5360000 | F158: 7000000 | H158: 5400000
A159: Compañia Dekalpar S.A. | E159: 520000 | F159: 6730000 | G159: 12500000 | H159: 5700000 | I159: 5100000
A160: Conosur Imp. Exp. | B160: 1040000 | C160: 243000
A161: Coop. Naranjal Ltda | D161: 3100000 | E161: 1000000 | H161: 808000 | I161: 24292000
A162: Coop. Naranjito Ltda. | C162: 3000000 | D162: 1200000 | E162: 2100000 | F162: 8600000 | G162: 2870000 | H162: 500000 | I162: 25516000
A163: Coop. Raul Peña Ltda. | D163: 1500000
A164: Coop.Colonias Unidas Agrop.Ind.Ltda. | B164: 6800000 | C164: 9000000 | D164: 20000000 | E164: 48700000 | F164: 113050000 | G164: 111250000 | H164: 38900000 | I164: 111158400
A165: Coop.De Prod. Agrop.Integ. De | B165: 12900000 | E165: 3500000 | F165: 5300000 | I165: 3000000
A166: Coop.Produc.Volendam | G166: 2528190 | H166: 3500000
A167: Coop.Santa Fe | H167: 1000000 | I167: 8100000
A168: Coop.Santa Maria Ltda. | B168: 8027000 | C168: 10850000 | E168: 4000000 | F168: 13800000 | G168: 17400000 | H168: 8500000 | I168: 27050000
A169: Coop.Union Curupayty Ltda. | B169: 5000000 | D169: 156000 | F169: 9500000 | I169: 7160000
A170: Cooperalba Ltda. | C170: 5940000 | D170: 500000 | F170: 21100000 | G170: 25050000 | H170: 16000000 | I170: 4656000
A171: Cooperativa Agropecuaria E Industrial Ra | D171: 1000000 | E171: 1000000 | F171: 14700000 | G171: 7000000 | H171: 19112000 | I171: 5580000
A172: Cooperativa Agropecuaria Pindo Ltda. | B172: 53100000 | C172: 16500000 | D172: 57400000 | E172: 10500000 | F172: 48032230 | G172: 14100000 | I172: 84703310
A173: Copatia | I173: 4000000
A174: Copronar | D174: 1000000
A175: Cpps Commodities S.A. | G175: 2603330 | H175: 2000000
A176: Crap S.A. | G176: 11360000 | H176: 19250000 | I176: 26288500
A177: D Y M Int.Business S.A. | I177: 1000000
A178: Diagro Sa | B178: 2650000 | E178: 6750000 | F178: 2195000 | G178: 3800000
A179: Francisco Vierci Y Cia. S.R.L. | B179: 2000000 | C179: 3550000 | D179: 3650000 | F179: 4800000 | G179: 3350000 | H179: 2750000 | I179: 4050000
A180: G.P. Sa | B180: 50000
A181: Global Import. - Export. | D181: 185500
A182: Glymax Paraguay Sa | B182: 2120000 | E182: 5000000 | G182: 900000 | I182: 4540000
A183: Grain Busines S.A. | F183: 1100000 | G183: 6460000
A184: Granos Paraguayos S.A. | D184: 9850000 | E184: 11507000 | F184: 338000
A185: Grupo Apane Sa | B185: 20908000 | C185: 13338000 | D185: 3832220 | E185: 8100000 | F185: 17580000 | G185: 14500000 | H185: 9000000 | I185: 28500000
A186: Holtker Beate Veronika | C186: 2700000 | D186: 2100000 | F186: 8700000 | H186: 6514220 | I186: 18021730
A187: Inversiones Agricola Sociedad | H187: 500000 | I187: 18185000
A188: Joimar Sa | F188: 500000
A189: Kemsa Comercial Indust. Sa | D189: 500000 | E189: 1000000
A190: Lar S.R.L. | B190: 21500000 | C190: 7000000 | D190: 5000000 | E190: 6800000 | F190: 26950000 | G190: 22700000 | H190: 5500000 | I190: 21100000
A191: Ldc Paraguay S.A. | I191: 32062042
A192: Louis Dreyfus Paraguay S.A | B192: 61969000 | C192: 5500000 | D192: 20300000 | E192: 3500000 | F192: 15500000 | G192: 19400000 | H192: 37300000 | I192: 86004530
A193: Machado Jose Roberto | B193: 1181000 | D193: 142000 | F193: 1080000 | G193: 1682000 | I193: 1040000
A194: Mop Trading Sa | G194: 2000000
A195: Molino El Pais Sa | F195: 1000000
A196: Molinos Harineros D'Italia S. | I196: 13000000
A197: Msu Agropy S.A. | G197: 2958000 | I197: 2850000
A198: Na Transportes Import. Export. | F198: 3000000
A199: Nativa Agricola S.A. | B199: 38040000 | C199: 39540000 | D199: 28350000 | E199: 96674000 | F199: 105000000 | G199: 48392000 | H199: 45600000 | I199: 88856000
A200: Noble Paraguay S.A. | E200: 21484639 | G200: 51084770 | H200: 24000000 | I200: 57500000
A201: Norte Sur S.A. | B201: 16679000 | C201: 5160000 | D201: 3000000 | E201: 1610000 | F201: 5080000 | G201: 2280000 | H201: 1916000 | I201: 1200000
... 23 more rows

Sheet Exportadores (canola)
A1: Índice
A2: EXPORTACIONES DE CANOLA
A3: Fuente: TINWOR
A5: Exportador | B5: 2005 | C5: 2006 | D5: 2007 | E5: 2008 | F5: 2009 | G5: 2010 | H5: =+'Exportadores (maiz)'!$H$5 -> 2011 | I5: =+'Exportadores (maiz)'!$I$5 -> Ene-Nov 2012
B6: U$S | C6: U$S | D6: U$S | E6: U$S | F6: U$S | G6: U$S | H6: U$S | I6: U$S
A7: Adm Paraguay S.A.E.C.A. | C7: 983400 | F7: 1141000 | G7: 124200 | H7: 5785629.59 | I7: 3649489
A8: Agro Guarani Agricola Sa | B8: 878000
A9: Agro Link S.A.I.C | B9: 1101725
A10: Bunge Paraguay S.A. | D10: 1828049.18
A11: C.W Trading S.A. | F11: 1768400 | G11: 3672146 | H11: 3663400
A12: Coop. Naranjal Ltda | B12: 2165509 | C12: 4407000 | D12: 4479040 | E12: 7641850 | F12: 1689877 | G12: 7833520 | H12: 6796840 | I12: 9562640
A13: Coop. Naranjito Ltda. | I13: 920000
A14: Coop.Colonias Unidas Agrop.Ind.Ltda. | I14: 837000
A15: Copronar | D15: 360000
A16: Granar Sa | E16: 57275.4 | F16: 149190.3 | G16: 149279.85 | I16: 126607.92
A17: Exportador | B17: 2005 | C17: 2006 | D17: 2007 | E17: 2008 | F17: 2009 | G17: 2010 | H17: =+'Exportadores (maiz)'!$H$5 -> 2011 | I17: =+'Exportadores (maiz)'!$I$5 -> Ene-Nov 2012
B18: KG | C18: KG | D18: KG | E18: KG | F18: KG | G18: KG | H18: KG | I18: KG
A19: Adm Paraguay S.A.E.C.A. | C19: 4470000 | F19: 4000000 | G19: 400000 | H19: 27267554 | I19: 8252900
A20: Agro Guarani Agricola Sa | B20: 5000000
A21: Agro Link S.A.I.C | B21: 6075000
A22: Bunge Paraguay S.A. | D22: 6750000
A23: C.W Trading S.A. | F23: 6160000 | G23: 10153000 | H23: 8880000
A24: Coop. Naranjal Ltda | B24: 12048000 | C24: 23860000 | D24: 18570000 | E24: 18090000 | F24: 5829800 | G24: 22860000 | H24: 16850000 | I24: 21780000
A25: Coop. Naranjito Ltda. | I25: 2000000
A26: Coop.Colonias Unidas Agrop.Ind.Ltda. | I26: 1800000
A27: Copronar | D27: 1000000
A28: Granar Sa | E28: 15929 | F28: 25323.2 | G28: 25172 | I28: 68599

Sheet Exportadores (girasol)
A1: Índice
A2: EXPORTACIONES DE GIRASOL
A3: Fuente: TINWOR
A5: Exportador | B5: 2005 | C5: 2006 | D5: 2007 | E5: 2008 | F5: 2009 | G5: 2010 | H5: =+'Exportadores (maiz)'!$H$5 -> 2011 | I5: =+'Exportadores (maiz)'!$I$5 -> Ene-Nov 2012
B6: U$S | C6: U$S | D6: U$S | E6: U$S | F6: U$S | G6: U$S | H6: U$S | I6: U$S
A7: Adm Paraguay S.A.E.C.A. | F7: 2432177.6
A8: Agro Granos S.A. | E8: 66012.5
A9: Agrobiologico Sa | B9: 68400 | C9: 178200 | D9: 98225 | E9: 338100
A10: Agropecuaria Conquista S.A | F10: 235000
A11: Baelpa S.A.I.C. | C11: 3074380.98
A12: C.W Trading S.A. | F12: 458034 | G12: 38280 | H12: 115000 | I12: 118034.4
A13: Compañia Dekalpar S.A. | D13: 209000 | F13: 203000
A14: Dow Agrosciences Sa | D14: 74515.3
A15: Eno Bronstrup Sa (Ebsa) | G15: 2005
A16: Frontera Agrop.Paraguay Sa | F16: 606000
A17: Granar Sa | H17: 38200
A18: Holtker Beate Veronika | D18: 864016.6 | E18: 841506.8 | F18: 300000 | H18: 1934083
A19: Market S R L | D19: 9095.54
A20: Master Seeds S.A. | D20: 94447.79 | E20: 350
A21: Noble Paraguay S.A. | F21: 3544762.34
A22: Trociuk Compañia Agricola Ganadera | D22: 1431400 | E22: 1233500.7 | F22: 1553830 | G22: 760000
A23: Vicentin Paraguay S.A. | D23: 7382530 | E23: 11197533.88 | F23: 19960422.83 | G23: 4578650 | H23: 2608000
A24: Vicoza Srl | E24: 33750
A25: Vm Trading S.R.L. | B25: 15097.96
A26: Exportador | B26: 2005 | C26: 2006 | D26: 2007 | E26: 2008 | F26: 2009 | G26: 2010 | H26: =+'Exportadores (maiz)'!$H$5 -> 2011 | I26: =+'Exportadores (maiz)'!$I$5 -> Ene-Nov 2012
B27: KG | C27: KG | D27: KG | E27: KG | F27: KG | G27: KG | H27: KG | I27: KG
A28: Adm Paraguay S.A.E.C.A. | F28: 10684000
A29: Agro Granos S.A. | E29: 68840
A30: Agrobiologico Sa | B30: 300000 | C30: 750000 | D30: 350000 | E30: 575000
A31: Agropecuaria Conquista S.A | F31: 1000000
A32: Baelpa S.A.I.C. | C32: 18632612
A33: C.W Trading S.A. | F33: 1746000 | G33: 110000 | H33: 200000 | I33: 231440
A34: Compañia Dekalpar S.A. | D34: 1000000 | F34: 1000000
A35: Dow Agrosciences Sa | D35: 15769.99
A36: Eno Bronstrup Sa (Ebsa) | G36: 1038
A37: Frontera Agrop.Paraguay Sa | F37: 3000000
A38: Granar Sa | H38: 7783
A39: Holtker Beate Veronika | D39: 4075550 | E39: 2004540 | F39: 1000000 | H39: 3900000
A40: Market S R L | D40: 19391.4
A41: Master Seeds S.A. | D41: 118827.49 | E41: 450
A42: Noble Paraguay S.A. | F42: 30801000
A43: Trociuk Compañia Agricola Ganadera | D43: 6900000 | E43: 3300000 | F43: 6852000 | G43: 2400000
A44: Vicentin Paraguay S.A. | D44: 23720000 | E44: 39636000 | F44: 67925124 | G44: 13900000 | H44: 5250000
A45: Vicoza Srl | E45: 6585
A46: Vm Trading S.R.L. | B46: 18820

Sheet Exportadores (aceite girasol)
A1: Índice
A2: EXPORTACIONES DE ACEITE DE GIRASOL
A3: Fuente: TINWOR
A5: Exportador | B5: 2005 | C5: 2006 | D5: 2007 | E5: 2008 | F5: 2009 | G5: 2010 | H5: =+'Exportadores (maiz)'!$H$5 -> 2011 | I5: =+'Exportadores (maiz)'!$I$5 -> Ene-Nov 2012
B6: U$S | C6: U$S | D6: U$S | E6: U$S | F6: U$S | G6: U$S | H6: U$S | I6: U$S
A7: Aceites Y Derivados S.A. | B7: 3175000 | C7: 4789000 | D7: 13159904.6 | E7: 21201423 | F7: 6071724.16 | G7: 3912850 | H7: 7488750 | I7: 2572000
A8: Agrobiologico Sa | B8: 87220
A9: Agroganadera Campo Flor | H9: 249832
A10: Alberto Giles Agroexportadora | G10: 50170
A11: Allgemeine Baumwoll Gesellscha | B11: 1282290 | C11: 1116600 | D11: 2472931.5 | F11: 42000
A12: Cargill Agropecuaria S.A.C.I. | C12: 28962.5 | D12: 5174300.5 | E12: 55052266.05 | F12: 22664913.8 | G12: 6641252.11 | H12: 4355650.87 | I12: 3361682.5
A13: Compañia Dekalpar Sa | H13: 644051.63
A14: Contiparaguay S.A. | B14: 3500000 | C14: 5819000 | D14: 12694455 | E14: 10446000 | F14: 17176713.6 | G14: 6440515.8 | H14: 4676000 | I14: 3050000
A15: Fecularia Salto Pilao S.A. | E15: 470775.96 | G15: 2161350
A16: Frontera Agrop.Paraguay Sa | F16: 347275.84
A17: Inter Agro S.R.L. | H17: 67950
A18: Ldc Paraguay S.A. | E18: 2067000
A19: Louis Dreyfus Paraguay S.A | E19: 13407203.21
A20: Manufactura De Pilar Sa | F20: 44800 | G20: 124000 | H20: 221200
A21: Medina Avila John Arturo Raul | H21: 68640
A22: Oleaginosa Raatz Sa | D22: 344250 | F22: 4847444.91 | G22: 5725650 | H22: 15196802 | I22: 15006425
A23: Procesos Industriales S.A.C.E. | G23: 43250
A24: San Alfredo Sa | H24: 42500
A25: Tierra Roja Sa | G25: 200745.6
A26: Vargas Peña Apezteguia Y Co.S. | F26: 82750 | G26: 116875
A27: Exportador | B27: 2005 | C27: 2006 | D27: 2007 | E27: 2008 | F27: 2009 | G27: 2010 | H27: =+'Exportadores (maiz)'!$H$5 -> 2011 | I27: =+'Exportadores (maiz)'!$I$5 -> Ene-Nov 2012
B28: KG | C28: KG | D28: KG | E28: KG | F28: KG | G28: KG | H28: KG | I28: KG
A29: Aceites Y Derivados S.A. | B29: 6350000 | C29: 10100000 | D29: 22987991 | E29: 17143430 | F29: 8919280 | G29: 5010000 | H29: 6845000 | I29: 2600000
A30: Agrobiologico Sa | B30: 98000
A31: Agroganadera Campo Flor | H31: 121240
A32: Alberto Giles Agroexportadora | G32: 58000
A33: Allgemeine Baumwoll Gesellscha | B33: 2331000 | C33: 2425000 | D33: 4050000 | F33: 50000
A34: Cargill Agropecuaria S.A.C.I. | C34: 50000 | D34: 6400000 | E34: 37928765 | F34: 31415460 | G34: 7905721 | H34: 3589000 | I34: 3050000
A35: Compañia Dekalpar Sa | H35: 736059
A36: Contiparaguay S.A. | B36: 7000000 | C36: 13500000 | D36: 23308100 | E36: 9200000 | F36: 27526240 | G36: 8931880 | H36: 4375000 | I36: 3000000
A37: Fecularia Salto Pilao S.A. | E37: 568570 | G37: 2790000
A38: Frontera Agrop.Paraguay Sa | F38: 520720
A39: Inter Agro S.R.L. | H39: 50000
A40: Ldc Paraguay S.A. | E40: 1300000
A41: Louis Dreyfus Paraguay S.A | E41: 7845200
A42: Manufactura De Pilar Sa | F42: 56000 | G42: 134000 | H42: 140000
A43: Medina Avila John Arturo Raul | H43: 44400
A44: Oleaginosa Raatz Sa | D44: 450000 | F44: 6717560 | G44: 6890000 | H44: 11899000 | I44: 13305000
A45: Procesos Industriales S.A.C.E. | G45: 50000
A46: San Alfredo Sa | H46: 13285
A47: Tierra Roja Sa | G47: 228120
A48: Vargas Peña Apezteguia Y Co.S. | F48: 100000 | G48: 125000

Sheet Exportadores (aceite canola)
A1: Índice
A2: EXPORTACIONES DE ACEITE DE CANOLA
A3: Fuente: TINWOR
A5: Exportador | B5: 2005 | C5: 2006 | D5: 2007 | E5: 2008 | F5: 2009 | G5: 2010 | H5: =+'Exportadores (maiz)'!$H$5 -> 2011 | I5: =+'Exportadores (maiz)'!$I$5 -> Ene-Nov 2012
B6: U$S | C6: U$S | D6: U$S | E6: U$S | F6: U$S | G6: U$S | H6: U$S | I6: U$S
A7: Aceites Y Derivados S.A. | B7: 10577700 | C7: 5623995 | D7: 11674510 | E7: 2030685 | F7: 8396485 | G7: 9395400 | H7: 4166000 | I7: 1926100
A8: Cargill Agropecuaria S.A.C.I. | D8: 1338534.25 | E8: 1133862.5 | H8: 1812750
A9: Contiparaguay S.A. | B9: 1020000 | D9: 720750
A10: Oleaginosa Raatz Sa | C10: 1042250 | D10: 705275 | E10: 3534108.5 | F10: 1220000 | G10: 4544000 | H10: 6113750 | I10: 5337674
A11: Exportador | B11: 2005 | C11: 2006 | D11: 2007 | E11: 2008 | F11: 2009 | G11: 2010 | H11: =+'Exportadores (maiz)'!$H$5 -> 2011 | I11: =+'Exportadores (maiz)'!$I$5 -> Ene-Nov 2012
B12: KG | C12: KG | D12: KG | E12: KG | F12: KG | G12: KG | H12: KG | I12: KG
A13: Aceites Y Derivados S.A. | B13: 20850000 | C13: 9375000 | D13: 15451000 | E13: 1884000 | F13: 10029000 | G13: 10100000 | H13: 4050000 | I13: 1870000
A14: Cargill Agropecuaria S.A.C.I. | D14: 1553000 | E14: 850000 | H14: 1500000
A15: Contiparaguay S.A. | B15: 2000000 | D15: 350750
A16: Oleaginosa Raatz Sa | C16: 1825000 | D16: 1055000 | E16: 2330070 | F16: 1325000 | G16: 5450000 | H16: 5400000 | I16: 4752000

Sheet 2012
A1: Índice
A2: EXPORTACIONES DE PRODUCTOS DE LA CADENA DE LA SOJA - AÑO 2012
A3: Fuente: TINWOR
A5: FECHA | B5: ARANCEL | C5: EXPORTADOR | D5: ADUANA | E5: MEDIO TRANSPORTE | F5: PAIS DESTINO | G5: FOB U$S | H5: KG. NETOS | I5: US$/Ton | J5: DETALLE DE MERCADERIA
A6: 2012-01-02 | B6: 10059010 | C6: Msu Agropy S.A. | D6: Ciudad Del Este | E6: Terrestre | F6: Brasil | G6: 17200 | H6: 100000 | I6: =+G6/H6*1000 -> 172 | J6: maiz
A7: 2012-01-02 | B7: 10059010 | C7: Sj (Jersey) Paraguay Farms | D7: Ciudad Del Este | E7: Terrestre | F7: Brasil | G7: 69580 | H7: 497000 | I7: 140 | J7: maiz
A8: 2012-01-02 | B8: 10059010 | C8: Msu Agropy S.A. | D8: Ciudad Del Este | E8: Terrestre | F8: Brasil | G8: 70000 | H8: 500000 | I8: 140 | J8: maiz
A9: 2012-01-02 | B9: 10059010 | C9: Msu Agropy S.A. | D9: Ciudad Del Este | E9: Terrestre | F9: Brasil | G9: 70000 | H9: 500000 | I9: 140 | J9: maiz
A10: 2012-01-02 | B10: 10059010 | C10: Inpasa | D10: Saltos Del Guaira | E10: Terrestre | F10: Brasil | G10: 344000 | H10: 2000000 | I10: 172 | J10: maiz
A11: 2012-01-02 | B11: 10059010 | C11: Inpasa | D11: Saltos Del Guaira | E11: Terrestre | F11: Brasil | G11: 344000 | H11: 2000000 | I11: 172 | J11: maiz
A12: 2012-01-02 | B12: 10059010 | C12: Compañia Dekalpar Sa | D12: Term.Cargas Km.12 | E12: Terrestre | F12: Brasil | G12: 338000 | H12: 2000000 | I12: 169 | J12: maiz
A13: 2012-01-02 | B13: 10019090 | C13: Agroser S.A.E.C.A. | D13: Saltos Del Guaira | E13: Terrestre | F13: Brasil | G13: 179000 | H13: 1000000 | I13: 179 | J13: trigo
A14: 2012-01-02 | B14: 10019090 | C14: Agroser S.A.E.C.A. | D14: Saltos Del Guaira | E14: Terrestre | F14: Brasil | G14: 89600 | H14: 700000 | I14: 128 | J14: trigo
A15: 2012-01-02 | B15: 10019090 | C15: Compañia Dekalpar Sa | D15: Saltos Del Guaira | E15: Terrestre | F15: Brasil | G15: 456000 | H15: 2000000 | I15: 228 | J15: trigo
A16: 2012-01-02 | B16: 15141100 | C16: Aceites Y Derivados Srl | D16: Villeta | E16: Fluvial | F16: Argentina | G16: 1802500 | H16: 1750000 | I16: 1030 | J16: aceite de canola
A17: 2012-01-02 | B17: 15141100 | C17: Oleaginosa Raatz Sa | D17: Term.Cargas Km.12 | E17: Terrestre | F17: Brasil | G17: 416000 | H17: 400000 | I17: 1040 | J17: aceite de canola
A18: 2012-01-02 | B18: 15121110 | C18: Oleaginosa Raatz Sa | D18: Term.Cargas Km.12 | E18: Terrestre | F18: Brasil | G18: 1040000 | H18: 1000000 | I18: 1040 | J18: aceite de girasol
A19: 2012-01-03 | B19: 10059010 | C19: Louis Dreyfus Paraguay S.A | D19: Villeta | E19: Fluvial | F19: Argentina | G19: 50497.65 | H19: 230025 | I19: 219.5311379 | J19: maiz
A20: 2012-01-03 | B20: 10059010 | C20: Ovetril Sa | D20: Term.Cargas Km.12 | E20: Terrestre | F20: Brasil | G20: 80000 | H20: 400000 | I20: 200 | J20: maiz
A21: 2012-01-03 | B21: 10059010 | C21: Coop.Santa Maria Ltda. | D21: Term.Cargas Km.12 | E21: Terrestre | F21: Brasil | G21: 190000 | H21: 1000000 | I21: 190 | J21: maiz
A22: 2012-01-03 | B22: 10059010 | C22: Agricola Santa Fe S.A. | D22: Term.Cargas Km.12 | E22: Terrestre | F22: Brasil | G22: 100000 | H22: 500000 | I22: 200 | J22: maiz
A23: 2012-01-03 | B23: 10059010 | C23: Coop.Santa Maria Ltda. | D23: Santa Helena | E23: Terrestre | F23: Brasil | G23: 216000 | H23: 1000000 | I23: 216 | J23: maiz
A24: 2012-01-03 | B24: 10059010 | C24: Agroforte Granos S.A. | D24: Santa Helena | E24: Terrestre | F24: Brasil | G24: 208000 | H24: 1000000 | I24: 208 | J24: maiz
A25: 2012-01-03 | B25: 10059010 | C25: Cargill Agropecuaria Sa | D25: Santa Helena | E25: Terrestre | F25: Brasil | G25: 72500 | H25: 500000 | I25: 145 | J25: maiz
A26: 2012-01-03 | B26: 10019090 | C26: Cooperativa Agropecuaria Pindo Ltda. | D26: Term.Cargas Km.12 | E26: Terrestre | F26: Brasil | G26: 400000 | H26: 2000000 | I26: 200 | J26: trigo
A27: 2012-01-03 | B27: 10019090 | C27: Cargill Agropecuaria Sa | D27: Term.Cargas Km.12 | E27: Terrestre | F27: Brasil | G27: 102140 | H27: 500000 | I27: 204.28 | J27: trigo
A28: 2012-01-03 | B28: 10019090 | C28: Cooperativa Agropecuaria Pindo Ltda. | D28: Term.Cargas Km.12 | E28: Terrestre | F28: Brasil | G28: 200000 | H28: 1000000 | I28: 200 | J28: trigo
A29: 2012-01-03 | B29: 10019090 | C29: Ovetril Sa | D29: Term.Cargas Km.12 | E29: Terrestre | F29: Brasil | G29: 98500 | H29: 500000 | I29: 197 | J29: trigo
A30: 2012-01-03 | B30: 15121110 | C30: Cargill Agropecuaria Sa | D30: Term.Cargas Km.12 | E30: Terrestre | F30: Brasil | G30: 474232.5 | H30: 450000 | I30: 1053.85 | J30: aceite de girasol
A31: 2012-01-04 | B31: 10059010 | C31: Bunge Paraguay Sa | D31: Term.Cargas Km.12 | E31: Terrestre | F31: Brasil | G31: 216000 | H31: 1000000 | I31: 216 | J31: maiz
A32: 2012-01-04 | B32: 10059010 | C32: Nativa Agricola S.A. | D32: Term.Cargas Km.12 | E32: Terrestre | F32: Brasil | G32: 262500 | H32: 1500000 | I32: 175 | J32: maiz
A33: 2012-01-04 | B33: 10059010 | C33: Inversiones Agricola S.A. | D33: Santa Helena | E33: Terrestre | F33: Brasil | G33: 194500 | H33: 1000000 | I33: 194.5 | J33: maiz
A34: 2012-01-04 | B34: 10059010 | C34: Inversiones Agricola S.A. | D34: Santa Helena | E34: Terrestre | F34: Brasil | G34: 76800 | H34: 400000 | I34: 192 | J34: maiz
A35: 2012-01-04 | B35: 10059010 | C35: Inversiones Agricola S.A. | D35: Santa Helena | E35: Terrestre | F35: Brasil | G35: 130900 | H35: 700000 | I35: 187 | J35: maiz
A36: 2012-01-04 | B36: 10019090 | C36: Nativa Agricola S.A. | D36: Term.Cargas Km.12 | E36: Terrestre | F36: Brasil | G36: 195000 | H36: 1000000 | I36: 195 | J36: trigo
A37: 2012-01-04 | B37: 10019900 | C37: Coop. Naranjal Ltda | D37: Term.Cargas Km.12 | E37: Terrestre | F37: Brasil | G37: 282576 | H37: 1392000 | I37: 203 | J37: trigo
A38: 2012-01-04 | B38: 10019900 | C38: Agro Industrial Paim | D38: Term.Cargas Km.12 | E38: Terrestre | F38: Brasil | G38: 117000 | H38: 600000 | I38: 195 | J38: trigo
A39: 2012-01-04 | B39: 10019900 | C39: Agro Industrial Paim | D39: Term.Cargas Km.12 | E39: Terrestre | F39: Brasil | G39: 234000 | H39: 1200000 | I39: 195 | J39: trigo
A40: 2012-01-05 | B40: 10059010 | C40: Msu Agropy S.A. | D40: Ciudad Del Este | E40: Terrestre | F40: Brasil | G40: 42000 | H40: 300000 | I40: 140 | J40: maiz
A41: 2012-01-05 | B41: 10059010 | C41: Inversiones Agricola S.A. | D41: Term.Cargas Km.12 | E41: Terrestre | F41: Brasil | G41: 306000 | H41: 1500000 | I41: 204 | J41: maiz
A42: 2012-01-05 | B42: 10059010 | C42: Agroforte Granos S.A. | D42: Term.Cargas Km.12 | E42: Terrestre | F42: Brasil | G42: 300000 | H42: 1500000 | I42: 200 | J42: maiz
A43: 2012-01-05 | B43: 10059010 | C43: Agricola Santa Fe S.A. | D43: Term.Cargas Km.12 | E43: Terrestre | F43: Brasil | G43: 95000 | H43: 500000 | I43: 190 | J43: maiz
A44: 2012-01-05 | B44: 10059010 | C44: Inversiones Agricola S.A. | D44: Santa Helena | E44: Terrestre | F44: Brasil | G44: 297000 | H44: 1500000 | I44: 198 | J44: maiz
A45: 2012-01-05 | B45: 10059010 | C45: San Miguel Arcangel S.R.L. | D45: Campestre S.A. | E45: Terrestre | F45: Brasil | G45: 72500 | H45: 500000 | I45: 145 | J45: maiz
A46: 2012-01-05 | B46: 10019090 | C46: Coop.Santa Maria Ltda. | D46: Santa Helena | E46: Terrestre | F46: Brasil | G46: 270000 | H46: 1500000 | I46: 180 | J46: trigo
A47: 2012-01-05 | B47: 10019900 | C47: Cargill Agropecuaria Sa | D47: Encarnacion | E47: Fluvial | F47: Argentina | G47: 39429.48 | H47: 162851 | I47: 242.1199747 | J47: trigo
A48: 2012-01-05 | B48: 10019900 | C48: Agro Silo Santa Catalina Sa | D48: Term.Cargas Km.12 | E48: Terrestre | F48: Brasil | G48: 286500 | H48: 1500000 | I48: 191 | J48: trigo
A49: 2012-01-05 | B49: 12060090 | C49: C.W Trading S.A. | D49: Encarnacion | E49: Terrestre | F49: Brasil | G49: 118034.4 | H49: 231440 | I49: 510 | J49: girasol, en granos a granel
A50: 2012-01-06 | B50: 10059010 | C50: Agrofertil Sa | D50: Term.Cargas Km.12 | E50: Terrestre | F50: Brasil | G50: 217500 | H50: 1500000 | I50: 145 | J50: maiz
A51: 2012-01-06 | B51: 10059010 | C51: Agricola Santa Fe S.A. | D51: Term.Cargas Km.12 | E51: Terrestre | F51: Brasil | G51: 104500 | H51: 500000 | I51: 209 | J51: maiz
A52: 2012-01-06 | B52: 10059010 | C52: Inversiones Agricola S.A. | D52: Santa Helena | E52: Terrestre | F52: Brasil | G52: 297000 | H52: 1500000 | I52: 198 | J52: maiz
A53: 2012-01-06 | B53: 10059010 | C53: Inversiones Agricola S.A. | D53: Santa Helena | E53: Terrestre | F53: Brasil | G53: 297000 | H53: 1500000 | I53: 198 | J53: maiz
A54: 2012-01-06 | B54: 10059010 | C54: Inversiones Agricola S.A. | D54: Santa Helena | E54: Terrestre | F54: Brasil | G54: 410000 | H54: 2000000 | I54: 205 | J54: maiz
A55: 2012-01-06 | B55: 10059010 | C55: Inversiones Agricola S.A. | D55: Santa Helena | E55: Terrestre | F55: Brasil | G55: 410000 | H55: 2000000 | I55: 205 | J55: maiz
A56: 2012-01-06 | B56: 10059010 | C56: As Operadores Economicos Srl | D56: Encarnacion | E56: Terrestre | F56: Chile | G56: 14580 | H56: 81000 | I56: 180 | J56: maiz
A57: 2012-01-06 | B57: 10019090 | C57: Agricola Colonial Sa | D57: Term.Cargas Km.12 | E57: Terrestre | F57: Brasil | G57: 118200 | H57: 600000 | I57: 197 | J57: trigo
A58: 2012-01-06 | B58: 10019900 | C58: Agrotoro S.A. | D58: Term.Cargas Km.12 | E58: Terrestre | F58: Brasil | G58: 17280 | H58: 108000 | I58: 160 | J58: trigo
A59: 2012-01-06 | B59: 12051090 | C59: Coop. Naranjal Ltda | D59: Encarnacion | E59: Terrestre | F59: Brasil | G59: 826000 | H59: 2000000 | I59: 413 | J59: canola en granos a granel
A60: 2012-01-09 | B60: 10059010 | C60: Cooperalba Ltda. | D60: Saltos Del Guaira | E60: Terrestre | F60: Brasil | G60: 209000 | H60: 1000000 | I60: 209 | J60: maiz
A61: 2012-01-09 | B61: 10059010 | C61: Agritrade Paraguay S.A. | D61: Term.Cargas Km.12 | E61: Terrestre | F61: Brasil | G61: 89000 | H61: 500000 | I61: 178 | J61: maiz
A62: 2012-01-09 | B62: 10059010 | C62: Agritrade Paraguay S.A. | D62: Term.Cargas Km.12 | E62: Terrestre | F62: Brasil | G62: 99000 | H62: 500000 | I62: 198 | J62: maiz
A63: 2012-01-09 | B63: 10059010 | C63: Agricola Santa Fe S.A. | D63: Term.Cargas Km.12 | E63: Terrestre | F63: Brasil | G63: 100000 | H63: 500000 | I63: 200 | J63: maiz
A64: 2012-01-09 | B64: 10059010 | C64: Agro Silos El Productor Sa | D64: Term.Cargas Km.12 | E64: Terrestre | F64: Brasil | G64: 114000 | H64: 500000 | I64: 228 | J64: maiz
A65: 2012-01-09 | B65: 10059010 | C65: Agro Silos El Productor Sa | D65: Term.Cargas Km.12 | E65: Terrestre | F65: Brasil | G65: 262500 | H65: 1500000 | I65: 175 | J65: maiz
A66: 2012-01-09 | B66: 10059010 | C66: Agricola Colonial Sa | D66: Term.Cargas Km.12 | E66: Terrestre | F66: Brasil | G66: 259200 | H66: 1200000 | I66: 216 | J66: maiz
A67: 2012-01-09 | B67: 10059010 | C67: Agrofertil Sa | D67: Santa Helena | E67: Terrestre | F67: Brasil | G67: 217500 | H67: 1500000 | I67: 145 | J67: maiz
A68: 2012-01-09 | B68: 10059010 | C68: Lar Srl | D68: Santa Helena | E68: Terrestre | F68: Brasil | G68: 322500 | H68: 1500000 | I68: 215 | J68: maiz
A69: 2012-01-09 | B69: 10019090 | C69: Cooperalba Ltda. | D69: Saltos Del Guaira | E69: Terrestre | F69: Brasil | G69: 31668 | H69: 156000 | I69: 203 | J69: trigo
A70: 2012-01-09 | B70: 10019090 | C70: Agricola Colonial Sa | D70: Term.Cargas Km.12 | E70: Terrestre | F70: Brasil | G70: 102000 | H70: 500000 | I70: =+G70/H70*1000 -> 204 | J70: trigo
A71: 2012-01-09 | B71: 10019900 | C71: San Miguel Arcangel S.R.L. | D71: Campestre S.A. | E71: Terrestre | F71: Brasil | G71: 220000 | H71: 1000000 | I71: 220 | J71: trigo
A72: 2012-01-09 | B72: 15141100 | C72: Aceites Y Derivados Srl | D72: Villeta | E72: Fluvial | F72: Argentina | G72: 123600 | H72: 120000 | I72: 1030 | J72: aceite de canola
A73: 2012-01-10 | B73: 10059010 | C73: Fecularia Salto Pilao Sa | D73: Saltos Del Guaira | E73: Terrestre | F73: Brasil | G73: 52500 | H73: 750000 | I73: 70 | J73: maiz
A74: 2012-01-10 | B74: 10059010 | C74: Agricola Colonial Sa | D74: Term.Cargas Km.12 | E74: Terrestre | F74: Brasil | G74: 172000 | H74: 800000 | I74: 215 | J74: maiz
A75: 2012-01-10 | B75: 10059010 | C75: Agricola Colonial Sa | D75: Term.Cargas Km.12 | E75: Terrestre | F75: Brasil | G75: 259200 | H75: 1200000 | I75: 216 | J75: maiz
A76: 2012-01-10 | B76: 10059010 | C76: Coop.Santa Maria Ltda. | D76: Santa Helena | E76: Terrestre | F76: Brasil | G76: 197000 | H76: 1000000 | I76: 197 | J76: maiz
A77: 2012-01-10 | B77: 10019090 | C77: Oligranos S.R.L. | D77: Saltos Del Guaira | E77: Terrestre | F77: Brasil | G77: 218000 | H77: 1000000 | I77: 218 | J77: trigo
A78: 2012-01-10 | B78: 10019090 | C78: Vierci Francisco Y Cia. Srl | D78: Pedro Juan Caballero | E78: Terrestre | F78: Brasil | G78: 82000 | H78: 400000 | I78: 205 | J78: trigo
A79: 2012-01-10 | B79: 10019090 | C79: Cooperativa Agropecuaria Pindo Ltda. | D79: Term.Cargas Km.12 | E79: Terrestre | F79: Brasil | G79: 128500 | H79: 500000 | I79: 257 | J79: trigo
A80: 2012-01-10 | B80: 10019090 | C80: Parperon Sociedad De Responsabilidad Lim | D80: Term.Cargas Km.12 | E80: Terrestre | F80: Brasil | G80: 96500 | H80: 500000 | I80: 193 | J80: trigo
A81: 2012-01-10 | B81: 10019090 | C81: Parperon Sociedad De Responsabilidad Lim | D81: Term.Cargas Km.12 | E81: Terrestre | F81: Brasil | G81: 96500 | H81: 500000 | I81: 193 | J81: trigo
A82: 2012-01-10 | B82: 10019090 | C82: Parperon Sociedad De Responsabilidad Lim | D82: Term.Cargas Km.12 | E82: Terrestre | F82: Brasil | G82: 96500 | H82: 500000 | I82: 193 | J82: trigo
A83: 2012-01-10 | B83: 10019900 | C83: Cargill Agropecuaria Sa | D83: Encarnacion | E83: Fluvial | F83: Argentina | G83: 285701.6 | H83: 1180000 | I83: 242.12 | J83: trigo
A84: 2012-01-10 | B84: 10019900 | C84: Cooperativa Agropecuaria Pindo Ltda. | D84: Term.Cargas Km.12 | E84: Terrestre | F84: Brasil | G84: 105000 | H84: 500000 | I84: 210 | J84: trigo
A85: 2012-01-11 | B85: 10059010 | C85: Oleaginosa Raatz Sa | D85: Encarnacion | E85: Terrestre | F85: Uruguay | G85: 241110 | H85: 1026000 | I85: 235 | J85: maiz
A86: 2012-01-11 | B86: 10059010 | C86: Agrofertil Sa | D86: Saltos Del Guaira | E86: Terrestre | F86: Brasil | G86: 333000 | H86: 1500000 | I86: 222 | J86: maiz
A87: 2012-01-11 | B87: 10059010 | C87: Agrofertil Sa | D87: Term.Cargas Km.12 | E87: Terrestre | F87: Brasil | G87: 217000 | H87: 1000000 | I87: 217 | J87: maiz
A88: 2012-01-11 | B88: 10059010 | C88: Agrofertil Sa | D88: Term.Cargas Km.12 | E88: Terrestre | F88: Brasil | G88: 108500 | H88: 500000 | I88: 217 | J88: maiz
A89: 2012-01-11 | B89: 10059010 | C89: Agricola Santa Fe S.A. | D89: Term.Cargas Km.12 | E89: Terrestre | F89: Brasil | G89: 103000 | H89: 500000 | I89: 206 | J89: maiz
A90: 2012-01-11 | B90: 10059010 | C90: Crap S.A. | D90: Term.Cargas Km.12 | E90: Terrestre | F90: Brasil | G90: 205000 | H90: 1000000 | I90: 205 | J90: maiz
A91: 2012-01-11 | B91: 10059010 | C91: Agricola Santa Fe S.A. | D91: Santa Helena | E91: Terrestre | F91: Brasil | G91: 101000 | H91: 500000 | I91: 202 | J91: maiz
A92: 2012-01-11 | B92: 10059010 | C92: Diagro Sa | D92: Campestre S.A. | E92: Terrestre | F92: Brasil | G92: 512500 | H92: 2500000 | I92: 205 | J92: maiz
A93: 2012-01-11 | B93: 10059010 | C93: Norte Sur Sa | D93: Campestre S.A. | E93: Terrestre | F93: Brasil | G93: 190000 | H93: 1000000 | I93: 190 | J93: maiz
A94: 2012-01-11 | B94: 10019090 | C94: Nativa Agricola S.A. | D94: Term.Cargas Km.12 | E94: Terrestre | F94: Brasil | G94: 200000 | H94: 1000000 | I94: 200 | J94: trigo
A95: 2012-01-11 | B95: 10019900 | C95: Cargill Agropecuaria Sa | D95: Term.Cargas Km.12 | E95: Terrestre | F95: Brasil | G95: 102140 | H95: 500000 | I95: 204.28 | J95: trigo
A96: 2012-01-11 | B96: 10019900 | C96: Coop.Colonias Unidas Agrop.Ind.Ltda. | D96: Term.Cargas Km.12 | E96: Terrestre | F96: Brasil | G96: 95000 | H96: 500000 | I96: 190 | J96: trigo
A97: 2012-01-11 | B97: 10019900 | C97: Cargill Agropecuaria Sa | D97: Term.Cargas Km.12 | E97: Terrestre | F97: Brasil | G97: 100640 | H97: 500000 | I97: 201.28 | J97: trigo
A98: 2012-01-11 | B98: 10019900 | C98: Agro Silo Santa Catalina Sa | D98: Term.Cargas Km.12 | E98: Terrestre | F98: Brasil | G98: 282000 | H98: 1500000 | I98: 188 | J98: trigo
A99: 2012-01-11 | B99: 10019900 | C99: Cooperativa Agropecuaria E Ind | D99: Term.Cargas Km.12 | E99: Terrestre | F99: Brasil | G99: 111000 | H99: 500000 | I99: 222 | J99: trigo
A100: 2012-01-11 | B100: 10019900 | C100: Activa S. A. | D100: Campestre S.A. | E100: Terrestre | F100: Brasil | G100: 39690 | H100: 189000 | I100: 210 | J100: trigo
A101: 2012-01-12 | B101: 10059010 | C101: Cargill Agropecuaria Sa | D101: Ciudad Del Este | E101: Terrestre | F101: Brasil | G101: 309000.32 | H101: 1043920 | I101: 296 | J101: maiz
A102: 2012-01-12 | B102: 10059010 | C102: Cargill Agropecuaria Sa | D102: Ciudad Del Este | E102: Terrestre | F102: Brasil | G102: 1193411.91 | H102: 4031797 | I102: 295.9999995 | J102: maiz
A103: 2012-01-12 | B103: 10059010 | C103: Cargill Agropecuaria Sa | D103: Ciudad Del Este | E103: Terrestre | F103: Brasil | G103: 208601.56 | H103: 704735 | I103: 296 | J103: maiz
A104: 2012-01-12 | B104: 10059010 | C104: Cargill Agropecuaria Sa | D104: Ciudad Del Este | E104: Terrestre | F104: Brasil | G104: 895059.01 | H104: 3023848 | I104: 296.0000007 | J104: maiz
A105: 2012-01-12 | B105: 10059010 | C105: Cargill Agropecuaria Sa | D105: Encarnacion | E105: Terrestre | F105: Brasil | G105: 15163.19 | H105: 51227 | I105: 295.999961 | J105: maiz
A106: 2012-01-12 | B106: 10059010 | C106: Cargill Agropecuaria Sa | D106: Encarnacion | E106: Terrestre | F106: Brasil | G106: 1268000.06 | H106: 4283784 | I106: 295.9999991 | J106: maiz
A107: 2012-01-12 | B107: 10059010 | C107: Cargill Agropecuaria Sa | D107: Encarnacion | E107: Terrestre | F107: Brasil | G107: 298352.9 | H107: 1007949 | I107: 295.999996 | J107: maiz
A108: 2012-01-12 | B108: 10059010 | C108: C. Vale S.A | D108: Saltos Del Guaira | E108: Terrestre | F108: Brasil | G108: 300750 | H108: 1500000 | I108: 200.5 | J108: maiz
A109: 2012-01-12 | B109: 10059010 | C109: C. Vale S.A | D109: Saltos Del Guaira | E109: Terrestre | F109: Brasil | G109: 117600 | H109: 600000 | I109: 196 | J109: maiz
A110: 2012-01-12 | B110: 10059010 | C110: Cooperalba Ltda. | D110: Saltos Del Guaira | E110: Terrestre | F110: Brasil | G110: 217000 | H110: 1000000 | I110: 217 | J110: maiz
A111: 2012-01-12 | B111: 10059010 | C111: Cooperalba Ltda. | D111: Saltos Del Guaira | E111: Terrestre | F111: Brasil | G111: 217000 | H111: 1000000 | I111: 217 | J111: maiz
A112: 2012-01-12 | B112: 10059010 | C112: Cargill Agropecuaria Sa | D112: Caacupemi | E112: Fluvial | F112: Brasil | G112: 1481117.4 | H112: 5003775 | I112: 296 | J112: maiz
A113: 2012-01-12 | B113: 10059010 | C113: Cargill Agropecuaria Sa | D113: Caacupemi | E113: Fluvial | F113: Brasil | G113: 1790117.72 | H113: 6047695 | I113: 296 | J113: maiz
A114: 2012-01-12 | B114: 10059010 | C114: Agrofertil Sa | D114: Term.Cargas Km.12 | E114: Terrestre | F114: Brasil | G114: 200000 | H114: 1000000 | I114: 200 | J114: maiz
A115: 2012-01-12 | B115: 10059010 | C115: Agrofertil Sa | D115: Term.Cargas Km.12 | E115: Terrestre | F115: Brasil | G115: 200000 | H115: 1000000 | I115: 200 | J115: maiz
A116: 2012-01-12 | B116: 10059010 | C116: Holtker Beate Veronika | D116: Term.Cargas Km.12 | E116: Terrestre | F116: Brasil | G116: 460000 | H116: 2000000 | I116: 230 | J116: maiz
A117: 2012-01-12 | B117: 10059010 | C117: San Miguel Arcangel S.R.L. | D117: Santa Helena | E117: Terrestre | F117: Brasil | G117: 72500 | H117: 500000 | I117: 145 | J117: maiz
A118: 2012-01-12 | B118: 10019900 | C118: Holtker Beate Veronika | D118: Term.Cargas Km.12 | E118: Terrestre | F118: Brasil | G118: 210000 | H118: 1000000 | I118: 210 | J118: trigo
A119: 2012-01-12 | B119: 10019900 | C119: Holtker Beate Veronika | D119: Term.Cargas Km.12 | E119: Terrestre | F119: Brasil | G119: 460000 | H119: 2000000 | I119: 230 | J119: trigo
A120: 2012-01-12 | B120: 15121110 | C120: Cargill Agropecuaria Sa | D120: Term.Cargas Km.12 | E120: Terrestre | F120: Brasil | G120: 474232.5 | H120: 450000 | I120: 1053.85 | J120: aceite de girasol
A121: 2012-01-13 | B121: 10059010 | C121: Machado Jose Roberto | D121: Saltos Del Guaira | E121: Terrestre | F121: Brasil | G121: 297000 | H121: 1500000 | I121: 198 | J121: maiz
A122: 2012-01-13 | B122: 10059010 | C122: Coop.Santa Maria Ltda. | D122: Santa Helena | E122: Terrestre | F122: Brasil | G122: 197000 | H122: 1000000 | I122: 197 | J122: maiz
A123: 2012-01-13 | B123: 10019900 | C123: Vierci Francisco Y Cia. Srl | D123: Pedro Juan Caballero | E123: Terrestre | F123: Brasil | G123: 82000 | H123: 400000 | I123: 205 | J123: trigo
A124: 2012-01-13 | B124: 10019900 | C124: Coop. Naranjal Ltda | D124: Term.Cargas Km.12 | E124: Terrestre | F124: Brasil | G124: 101500 | H124: 500000 | I124: 203 | J124: trigo
A125: 2012-01-13 | B125: 10019900 | C125: Activa S. A. | D125: Campestre S.A. | E125: Terrestre | F125: Brasil | G125: 45360 | H125: 216000 | I125: 210 | J125: trigo
A126: 2012-01-13 | B126: 10019900 | C126: Activa S. A. | D126: Campestre S.A. | E126: Terrestre | F126: Brasil | G126: 105000 | H126: 500000 | I126: 210 | J126: trigo
A127: 2012-01-16 | B127: 10059010 | C127: Activa S. A. | D127: Santa Helena | E127: Terrestre | F127: Brasil | G127: 190000 | H127: 1000000 | I127: 190 | J127: maiz
A128: 2012-01-16 | B128: 10059010 | C128: Agrofertil Sa | D128: Term.Cargas Km.12 | E128: Terrestre | F128: Brasil | G128: 416000 | H128: 2000000 | I128: 208 | J128: maiz
A129: 2012-01-16 | B129: 10059010 | C129: Agrofertil Sa | D129: Saltos Del Guaira | E129: Terrestre | F129: Brasil | G129: 404000 | H129: 2000000 | I129: 202 | J129: maiz
A130: 2012-01-16 | B130: 10059010 | C130: Cooperalba Ltda. | D130: Saltos Del Guaira | E130: Terrestre | F130: Brasil | G130: 209000 | H130: 1000000 | I130: 209 | J130: maiz
A131: 2012-01-16 | B131: 10059010 | C131: Msu Agropy S.A. | D131: Ciudad Del Este | E131: Terrestre | F131: Brasil | G131: 70000 | H131: 500000 | I131: 140 | J131: maiz
A132: 2012-01-16 | B132: 10019900 | C132: Coop.De Produccion Agroindust. | D132: Term.Cargas Km.12 | E132: Terrestre | F132: Brasil | G132: 112500 | H132: 500000 | I132: 225 | J132: trigo
A133: 2012-01-16 | B133: 10019900 | C133: Coop.De Produccion Agroindust. | D133: Term.Cargas Km.12 | E133: Terrestre | F133: Brasil | G133: 180000 | H133: 1000000 | I133: 180 | J133: trigo
A134: 2012-01-17 | B134: 10059010 | C134: Agroser S.A.E.C.A. | D134: Saltos Del Guaira | E134: Terrestre | F134: Brasil | G134: 207000 | H134: 1000000 | I134: =+G134/H134*1000 -> 207 | J134: maiz
A135: 2012-01-17 | B135: 10059010 | C135: Compañia Dekalpar Sa | D135: Encarnacion | E135: Terrestre | F135: Uruguay | G135: 117990 | H135: 513000 | I135: 230 | J135: maiz
A136: 2012-01-17 | B136: 10019900 | C136: Agro Silos El Productor Sa | D136: Term.Cargas Km.12 | E136: Terrestre | F136: Brasil | G136: 195000 | H136: 1000000 | I136: 195 | J136: trigo
A137: 2012-01-17 | B137: 10019900 | C137: Cooperativa Agropecuaria Pindo Ltda. | D137: Term.Cargas Km.12 | E137: Terrestre | F137: Brasil | G137: 128500 | H137: 500000 | I137: 257 | J137: trigo
A138: 2012-01-17 | B138: 10019900 | C138: Cooperativa Agropecuaria Pindo Ltda. | D138: Term.Cargas Km.12 | E138: Terrestre | F138: Brasil | G138: 128500 | H138: 500000 | I138: 257 | J138: trigo
A139: 2012-01-17 | B139: 10019900 | C139: Cooperativa De Produccion Agrop Union Cu | D139: Term.Cargas Km.12 | E139: Terrestre | F139: Brasil | G139: 111000 | H139: 500000 | I139: 222 | J139: trigo
A140: 2012-01-17 | B140: 10019900 | C140: Nativa Agricola S.A. | D140: Term.Cargas Km.12 | E140: Terrestre | F140: Brasil | G140: 200000 | H140: 1000000 | I140: 200 | J140: trigo
A141: 2012-01-17 | B141: 10019900 | C141: Nativa Agricola S.A. | D141: Term.Cargas Km.12 | E141: Terrestre | F141: Brasil | G141: 200000 | H141: 1000000 | I141: 200 | J141: trigo
A142: 2012-01-17 | B142: 10019900 | C142: Nativa Agricola S.A. | D142: Term.Cargas Km.12 | E142: Terrestre | F142: Brasil | G142: 200000 | H142: 1000000 | I142: 200 | J142: trigo
A143: 2012-01-17 | B143: 10019900 | C143: Nativa Agricola S.A. | D143: Term.Cargas Km.12 | E143: Terrestre | F143: Brasil | G143: 190000 | H143: 1000000 | I143: 190 | J143: trigo
A144: 2012-01-17 | B144: 10019900 | C144: Nativa Agricola S.A. | D144: Term.Cargas Km.12 | E144: Terrestre | F144: Brasil | G144: 190000 | H144: 1000000 | I144: 190 | J144: trigo
A145: 2012-01-17 | B145: 10019900 | C145: Ovetril Sa | D145: Term.Cargas Km.12 | E145: Terrestre | F145: Brasil | G145: 96500 | H145: 500000 | I145: 193 | J145: trigo
A146: 2012-01-17 | B146: 12051090 | C146: C.W Trading S.A. | D146: Encarnacion | E146: Terrestre | F146: Brasil | G146: 42189 | H146: 102900 | I146: 410 | J146: canola
A147: 2012-01-18 | B147: 10059010 | C147: Agricola Santa Fe S.A. | D147: Term.Cargas Km.12 | E147: Terrestre | F147: Brasil | G147: 202500 | H147: 1000000 | I147: 202.5 | J147: maiz
A148: 2012-01-18 | B148: 10059010 | C148: Agro Silo Santa Catalina Sa | D148: Term.Cargas Km.12 | E148: Terrestre | F148: Brasil | G148: 439300 | H148: 2300000 | I148: 191 | J148: maiz
A149: 2012-01-18 | B149: 10059010 | C149: Transportadora Internac. De Cargas San M | D149: Campestre S.A. | E149: Terrestre | F149: Brasil | G149: 72500 | H149: 500000 | I149: 145 | J149: maiz
A150: 2012-01-18 | B150: 10019900 | C150: Activa S. A. | D150: Campestre S.A. | E150: Terrestre | F150: Brasil | G150: 105000 | H150: 500000 | I150: 210 | J150: trigo
A151: 2012-01-18 | B151: 10019900 | C151: Agrotoro S.A. | D151: Term.Cargas Km.12 | E151: Terrestre | F151: Brasil | G151: 180000 | H151: 1000000 | I151: 180 | J151: trigo
A152: 2012-01-18 | B152: 10019900 | C152: Transportadora Internac. De Cargas San M | D152: Campestre S.A. | E152: Terrestre | F152: Brasil | G152: 110000 | H152: 500000 | I152: 220 | J152: trigo
A153: 2012-01-18 | B153: 12051090 | C153: Coop.De Prod.Agropecuaria Naranjal Limit | D153: Encarnacion | E153: Terrestre | F153: Brasil | G153: 856000 | H153: 2000000 | I153: 428 | J153: canola
A154: 2012-01-18 | B154: 15121110 | C154: Aceites Y Derivados Srl | D154: Term.Cargas Km.12 | E154: Terrestre | F154: Brasil | G154: 157500 | H154: 150000 | I154: 1050 | J154: aceite de girasol
A155: 2012-01-19 | B155: 10059010 | C155: Adm Paraguay Sa | D155: Villeta | E155: Fluvial | F155: Uruguay | G155: 1814293.88 | H155: 8034248 | I155: 225.8199996 | J155: maiz
A156: 2012-01-19 | B156: 10059010 | C156: Agricola Entre Rios Sa | D156: Term.Cargas Km.12 | E156: Terrestre | F156: Brasil | G156: 540000 | H156: 3000000 | I156: 180 | J156: maiz
A157: 2012-01-19 | B157: 10059010 | C157: Agricola Entre Rios Sa | D157: Term.Cargas Km.12 | E157: Terrestre | F157: Brasil | G157: 540000 | H157: 3000000 | I157: 180 | J157: maiz
A158: 2012-01-19 | B158: 10059010 | C158: Agritrade Paraguay S.A. | D158: Term.Cargas Km.12 | E158: Terrestre | F158: Brasil | G158: 98000 | H158: 500000 | I158: 196 | J158: maiz
A159: 2012-01-19 | B159: 10059010 | C159: Agro Silo Santa Catalina Sa | D159: Term.Cargas Km.12 | E159: Terrestre | F159: Brasil | G159: 198000 | H159: 1000000 | I159: 198 | J159: maiz
A160: 2012-01-19 | B160: 10059010 | C160: Cooperalba Ltda. | D160: Saltos Del Guaira | E160: Terrestre | F160: Brasil | G160: 217000 | H160: 1000000 | I160: 217 | J160: maiz
A161: 2012-01-19 | B161: 10019900 | C161: Cooperativa Agropecuaria Pindo Ltda. | D161: Term.Cargas Km.12 | E161: Terrestre | F161: Brasil | G161: 257000 | H161: 1000000 | I161: 257 | J161: trigo
A162: 2012-01-19 | B162: 10019900 | C162: Cooperativa Agropecuaria Pindo Ltda. | D162: Term.Cargas Km.12 | E162: Terrestre | F162: Brasil | G162: 257000 | H162: 1000000 | I162: 257 | J162: trigo
A163: 2012-01-19 | B163: 10019900 | C163: Cooperativa Agropecuaria Pindo Ltda. | D163: Term.Cargas Km.12 | E163: Terrestre | F163: Brasil | G163: 257000 | H163: 1000000 | I163: 257 | J163: trigo
A164: 2012-01-19 | B164: 10019900 | C164: Parperon Sociedad De Responsabilidad Lim | D164: Term.Cargas Km.12 | E164: Terrestre | F164: Brasil | G164: 96500 | H164: 500000 | I164: 193 | J164: trigo
A165: 2012-01-19 | B165: 10019900 | C165: Parperon Sociedad De Responsabilidad Lim | D165: Term.Cargas Km.12 | E165: Terrestre | F165: Brasil | G165: 96500 | H165: 500000 | I165: 193 | J165: trigo
A166: 2012-01-19 | B166: 10019900 | C166: Parperon Sociedad De Responsabilidad Lim | D166: Term.Cargas Km.12 | E166: Terrestre | F166: Brasil | G166: 96500 | H166: 500000 | I166: 193 | J166: trigo
A167: 2012-01-19 | B167: 10019900 | C167: Parperon Sociedad De Responsabilidad Lim | D167: Term.Cargas Km.12 | E167: Terrestre | F167: Brasil | G167: 96500 | H167: 500000 | I167: 193 | J167: trigo
A168: 2012-01-19 | B168: 10019900 | C168: Parperon Sociedad De Responsabilidad Lim | D168: Term.Cargas Km.12 | E168: Terrestre | F168: Brasil | G168: 289500 | H168: 1500000 | I168: 193 | J168: trigo
A169: 2012-01-20 | B169: 10059010 | C169: Industria Paraguaya De Alcoholes Sa | D169: Term.Cargas Km.12 | E169: Terrestre | F169: Brasil | G169: 196000 | H169: 1000000 | I169: 196 | J169: maiz
A170: 2012-01-20 | B170: 10059010 | C170: Industria Paraguaya De Alcoholes Sa | D170: Term.Cargas Km.12 | E170: Terrestre | F170: Brasil | G170: 196000 | H170: 1000000 | I170: 196 | J170: maiz
A171: 2012-01-20 | B171: 10059010 | C171: Industria Paraguaya De Alcoholes Sa | D171: Term.Cargas Km.12 | E171: Terrestre | F171: Brasil | G171: 304500 | H171: 1500000 | I171: 203 | J171: maiz
A172: 2012-01-20 | B172: 10059010 | C172: Industria Paraguaya De Alcoholes Sa | D172: Term.Cargas Km.12 | E172: Terrestre | F172: Brasil | G172: 304500 | H172: 1500000 | I172: 203 | J172: maiz
A173: 2012-01-20 | B173: 10059010 | C173: Inversiones Agricola S.A. | D173: Term.Cargas Km.12 | E173: Terrestre | F173: Brasil | G173: 301500 | H173: 1500000 | I173: 201 | J173: maiz
A174: 2012-01-20 | B174: 10059010 | C174: Noble Paraguay S.A. | D174: Villeta | E174: Fluvial | F174: Suiza | G174: 53750 | H174: 250000 | I174: 215 | J174: maiz
A175: 2012-01-20 | B175: 10059010 | C175: Parperon Sociedad De Responsabilidad Lim | D175: Term.Cargas Km.12 | E175: Terrestre | F175: Brasil | G175: 376000 | H175: 2000000 | I175: 188 | J175: maiz
A176: 2012-01-20 | B176: 10019900 | C176: Agricola Colonial Sa | D176: Term.Cargas Km.12 | E176: Terrestre | F176: Brasil | G176: 197000 | H176: 1000000 | I176: 197 | J176: trigo
A177: 2012-01-20 | B177: 10019900 | C177: Cargill Agropecuaria Sa | D177: Encarnacion | E177: Fluvial | F177: Argentina | G177: 314756 | H177: 1300000 | I177: 242.12 | J177: trigo
A178: 2012-01-20 | B178: 10019900 | C178: Coop.De Produccion Agroindust. | D178: Term.Cargas Km.12 | E178: Terrestre | F178: Brasil | G178: 202000 | H178: 1000000 | I178: 202 | J178: trigo
A179: 2012-01-20 | B179: 10019900 | C179: Vierci Francisco Y Cia. Srl | D179: Pedro Juan Caballero | E179: Terrestre | F179: Brasil | G179: 82000 | H179: 400000 | I179: 205 | J179: trigo
A180: 2012-01-20 | B180: 10019900 | C180: Parperon Sociedad De Responsabilidad Lim | D180: Term.Cargas Km.12 | E180: Terrestre | F180: Brasil | G180: 193000 | H180: 1000000 | I180: 193 | J180: trigo
A181: 2012-01-20 | B181: 10019900 | C181: Parperon Sociedad De Responsabilidad Lim | D181: Term.Cargas Km.12 | E181: Terrestre | F181: Brasil | G181: 193000 | H181: 1000000 | I181: 193 | J181: trigo
A182: 2012-01-23 | B182: 10059010 | C182: Cargill Agropecuaria Sa | D182: Caacupemi | E182: Fluvial | F182: Argentina | G182: 4057578 | H182: 18900000 | I182: 214.6866667 | J182: maiz
A183: 2012-01-23 | B183: 10059010 | C183: Fecularia Salto Pilao Sa | D183: Saltos Del Guaira | E183: Terrestre | F183: Brasil | G183: 120000 | H183: 750000 | I183: 160 | J183: maiz
A184: 2012-01-23 | B184: 10019900 | C184: Adm Paraguay Sa | D184: Villeta | E184: Fluvial | F184: Uruguay | G184: 2091388.14 | H184: 8514384 | I184: 245.6299998 | J184: trigo
A185: 2012-01-24 | B185: 10059010 | C185: Agro Silos El Productor Sa | D185: Term.Cargas Km.12 | E185: Terrestre | F185: Brasil | G185: 114000 | H185: 500000 | I185: 228 | J185: maiz
A186: 2012-01-24 | B186: 10059010 | C186: Cargill Agropecuaria Sa | D186: Ciudad Del Este | E186: Terrestre | F186: Chile | G186: 671750.02 | H186: 2645310 | I186: 253.9399995 | J186: maiz
A187: 2012-01-24 | B187: 10059010 | C187: Cargill Agropecuaria Sa | D187: Ciudad Del Este | E187: Terrestre | F187: Chile | G187: 584312.41 | H187: 2352115 | I187: 248.4200007 | J187: maiz
A188: 2012-01-24 | B188: 10059010 | C188: Inpasa | D188: Saltos Del Guaira | E188: Terrestre | F188: Brasil | G188: 374000 | H188: 2000000 | I188: 187 | J188: maiz
A189: 2012-01-24 | B189: 10059010 | C189: Inpasa | D189: Saltos Del Guaira | E189: Terrestre | F189: Brasil | G189: 374000 | H189: 2000000 | I189: 187 | J189: maiz
A190: 2012-01-24 | B190: 10059010 | C190: Inpasa | D190: Santa Helena | E190: Terrestre | F190: Brasil | G190: 477500 | H190: 2500000 | I190: 191 | J190: maiz
A191: 2012-01-24 | B191: 10059010 | C191: Inpasa | D191: Santa Helena | E191: Terrestre | F191: Brasil | G191: 477500 | H191: 2500000 | I191: 191 | J191: maiz
A192: 2012-01-24 | B192: 10019900 | C192: Activa S. A. | D192: Campestre S.A. | E192: Terrestre | F192: Brasil | G192: 50560 | H192: 320000 | I192: 158 | J192: trigo
A193: 2012-01-24 | B193: 10019900 | C193: Agricola Colonial Sa | D193: Term.Cargas Km.12 | E193: Terrestre | F193: Brasil | G193: 157600 | H193: 800000 | I193: 197 | J193: trigo
A194: 2012-01-24 | B194: 10019900 | C194: Agricola Colonial Sa | D194: Term.Cargas Km.12 | E194: Terrestre | F194: Brasil | G194: 232800 | H194: 1200000 | I194: 194 | J194: trigo
A195: 2012-01-24 | B195: 10019900 | C195: Salto Aguaray Srl | D195: Pedro Juan Caballero | E195: Terrestre | F195: Brasil | G195: 202000 | H195: 1000000 | I195: 202 | J195: trigo
A196: 2012-01-25 | B196: 10059010 | C196: Ovetril Sa | D196: Term.Cargas Km.12 | E196: Terrestre | F196: Brasil | G196: 42000 | H196: 200000 | I196: 210 | J196: maiz
A197: 2012-01-25 | B197: 10019900 | C197: Cargill Agropecuaria Sa | D197: Term.Cargas Km.12 | E197: Terrestre | F197: Brasil | G197: 61284 | H197: 300000 | I197: 204.28 | J197: trigo
A198: 2012-01-25 | B198: 10019900 | C198: Vierci Francisco Y Cia. Srl | D198: Pedro Juan Caballero | E198: Terrestre | F198: Brasil | G198: 82000 | H198: 400000 | I198: =+G198/H198*1000 -> 205 | J198: trigo
A199: 2012-01-25 | B199: 15121110 | C199: Cargill Agropecuaria Sa | D199: Term.Cargas Km.12 | E199: Terrestre | F199: Brasil | G199: 66442.5 | H199: 50000 | I199: 1328.85 | J199: aceite de girasol
A200: 2012-01-26 | B200: 10059010 | C200: Adm Paraguay Sa | D200: Villeta | E200: Fluvial | F200: Uruguay | G200: 341311.4 | H200: 1340000 | I200: 254.71 | J200: maiz
A201: 2012-01-26 | B201: 10059010 | C201: Lar Srl | D201: Term.Cargas Km.12 | E201: Terrestre | F201: Brasil | G201: 200000 | H201: 1000000 | I201: 200 | J201: maiz
... 2139 more rows

Sheet 2011
A1: Índice
A2: EXPORTACIONES DE PRODUCTOS DE LA CADENA DE LA SOJA - AÑO 2011
A3: Fuente: TINWOR
A5: FECHA | B5: ARANCEL | C5: EXPORTADOR | D5: ADUANA | E5: MEDIO TRANSPORTE | F5: PAIS DESTINO | G5: FOB U$S | H5: KG. NETOS | I5: US$/Ton | J5: DETALLE DE MERCADERIA
A6: 2011-01-03 | B6: 10019090 | C6: Agrotec S.A. | D6: Saltos Del Guaira | E6: Terrestre | F6: Brasil | G6: 233000 | H6: 1000000 | I6: =+G6/H6*1000 -> 233 | J6: trigo
A7: 2011-01-03 | B7: 10019090 | C7: Agrotec S.A. | D7: Saltos Del Guaira | E7: Terrestre | F7: Brasil | G7: 233000 | H7: 1000000 | I7: =+G7/H7*1000 -> 233 | J7: trigo
A8: 2011-01-03 | B8: 10019090 | C8: Nativa Agricola S.A. | D8: Term.Cargas Km.12 | E8: Terrestre | F8: Brasil | G8: 229000 | H8: 1000000 | I8: 229 | J8: trigo
A9: 2011-01-03 | B9: 10019090 | C9: Nativa Agricola S.A. | D9: Term.Cargas Km.12 | E9: Terrestre | F9: Brasil | G9: 229000 | H9: 1000000 | I9: 229 | J9: trigo
A10: 2011-01-03 | B10: 10019090 | C10: Agrofertil Sa | D10: Term.Cargas Km.12 | E10: Terrestre | F10: Brasil | G10: 366000 | H10: 1500000 | I10: 244 | J10: trigo
A11: 2011-01-04 | B11: 10019090 | C11: Adm Paraguay Sa | D11: Term.Cargas Km.12 | E11: Terrestre | F11: Brasil | G11: 215000 | H11: 1000000 | I11: 215 | J11: trigo
A12: 2011-01-04 | B12: 10019090 | C12: Nativa Agricola S.A. | D12: Term.Cargas Km.12 | E12: Terrestre | F12: Brasil | G12: 227000 | H12: 1000000 | I12: 227 | J12: trigo
A13: 2011-01-04 | B13: 10019090 | C13: Nativa Agricola S.A. | D13: Santa Helena | E13: Terrestre | F13: Brasil | G13: 233000 | H13: 1000000 | I13: 233 | J13: trigo
A14: 2011-01-05 | B14: 10019090 | C14: Agro Silos El Productor Sa | D14: Saltos Del Guaira | E14: Terrestre | F14: Brasil | G14: 760500 | H14: 3000000 | I14: 253.5 | J14: trigo
A15: 2011-01-05 | B15: 10019090 | C15: Grupo Apane Sa | D15: Saltos Del Guaira | E15: Terrestre | F15: Brasil | G15: 492000 | H15: 2000000 | I15: 246 | J15: trigo
A16: 2011-01-05 | B16: 10019090 | C16: Agrofertil Sa | D16: Term.Cargas Km.12 | E16: Terrestre | F16: Brasil | G16: 363495 | H16: 1500000 | I16: 242.33 | J16: trigo
A17: 2011-01-05 | B17: 10019090 | C17: Coop.Colonias Unidas Agrop.Ind.Ltda. | D17: Term.Cargas Km.12 | E17: Terrestre | F17: Brasil | G17: 412200 | H17: 1800000 | I17: 229 | J17: trigo
A18: 2011-01-05 | B18: 10019090 | C18: Coop.Colonias Unidas Agrop.Ind.Ltda. | D18: Term.Cargas Km.12 | E18: Terrestre | F18: Brasil | G18: 193000 | H18: 1000000 | I18: 193 | J18: trigo
A19: 2011-01-05 | B19: 10019090 | C19: Coop.Colonias Unidas Agrop.Ind.Ltda. | D19: Term.Cargas Km.12 | E19: Terrestre | F19: Brasil | G19: 193000 | H19: 1000000 | I19: 193 | J19: trigo
A20: 2011-01-06 | B20: 10019090 | C20: Tierra Roja Sa | D20: Ciudad Del Este | E20: Terrestre | F20: Brasil | G20: 239362.5 | H20: 1000000 | I20: 239.3625 | J20: trigo
A21: 2011-01-06 | B21: 10019090 | C21: Ovetril Sa | D21: Term.Cargas Km.12 | E21: Terrestre | F21: Brasil | G21: 143500 | H21: 500000 | I21: 287 | J21: trigo
A22: 2011-01-06 | B22: 10019090 | C22: Coop.Santa Maria Ltda. | D22: Santa Helena | E22: Terrestre | F22: Brasil | G22: 336000 | H22: 1500000 | I22: 224 | J22: trigo
A23: 2011-01-07 | B23: 10019090 | C23: Agro Santa Rosa S.A.E. | D23: Term.Cargas Km.12 | E23: Terrestre | F23: Brasil | G23: 246000 | H23: 1000000 | I23: 246 | J23: trigo
A24: 2011-01-07 | B24: 10019090 | C24: Agro Santa Rosa S.A.E. | D24: Term.Cargas Km.12 | E24: Terrestre | F24: Brasil | G24: 246000 | H24: 1000000 | I24: 246 | J24: trigo
A25: 2011-01-07 | B25: 10019090 | C25: Coop.Colonias Unidas Agrop.Ind.Ltda. | D25: Term.Cargas Km.12 | E25: Terrestre | F25: Brasil | G25: 412200 | H25: 1800000 | I25: 229 | J25: trigo
A26: 2011-01-07 | B26: 10019090 | C26: Coop.Colonias Unidas Agrop.Ind.Ltda. | D26: Term.Cargas Km.12 | E26: Terrestre | F26: Brasil | G26: 193000 | H26: 1000000 | I26: 193 | J26: trigo
A27: 2011-01-07 | B27: 10019090 | C27: Coop.Colonias Unidas Agrop.Ind.Ltda. | D27: Term.Cargas Km.12 | E27: Terrestre | F27: Brasil | G27: 193000 | H27: 1000000 | I27: 193 | J27: trigo
A28: 2011-01-07 | B28: 10019090 | C28: Louis Dreyfus Paraguay S.A | D28: Villeta | E28: Fluvial | F28: Argentina | G28: 722800 | H28: 2600000 | I28: 278 | J28: trigo
A29: 2011-01-10 | B29: 10019090 | C29: Adm Paraguay Sa | D29: Villeta | E29: Fluvial | F29: Uruguay | G29: 2149008.8 | H29: 8596035 | I29: 250.0000058 | J29: trigo
A30: 2011-01-10 | B30: 10019090 | C30: San Miguel Arcangel S.R.L. | D30: Campestre S.A. | E30: Terrestre | F30: Brasil | G30: 270000 | H30: 1000000 | I30: 270 | J30: trigo
A31: 2011-01-10 | B31: 10019090 | C31: Agrofertil Sa | D31: Term.Cargas Km.12 | E31: Terrestre | F31: Brasil | G31: 366780 | H31: 1500000 | I31: 244.52 | J31: trigo
A32: 2011-01-10 | B32: 10019090 | C32: Agrofertil Sa | D32: Term.Cargas Km.12 | E32: Terrestre | F32: Brasil | G32: 363495 | H32: 1500000 | I32: 242.33 | J32: trigo
A33: 2011-01-11 | B33: 10019090 | C33: Vicentin Paraguay S.A. | D33: Villeta | E33: Fluvial | F33: Uruguay | G33: 1820000 | H33: 6500000 | I33: 280 | J33: trigo
A34: 2011-01-11 | B34: 10019090 | C34: Noble Paraguay S.A. | D34: Encarnacion | E34: Fluvial | F34: Uruguay | G34: 5520000 | H34: 24000000 | I34: 230 | J34: trigo
A35: 2011-01-11 | B35: 10019090 | C35: Crap S.A. | D35: Term.Cargas Km.12 | E35: Terrestre | F35: Brasil | G35: 161700 | H35: 700000 | I35: 231 | J35: trigo
A36: 2011-01-11 | B36: 10019090 | C36: Nativa Agricola S.A. | D36: Term.Cargas Km.12 | E36: Terrestre | F36: Brasil | G36: 229000 | H36: 1000000 | I36: 229 | J36: trigo
A37: 2011-01-11 | B37: 10019090 | C37: Nativa Agricola S.A. | D37: Term.Cargas Km.12 | E37: Terrestre | F37: Brasil | G37: 229000 | H37: 1000000 | I37: 229 | J37: trigo
A38: 2011-01-12 | B38: 10019090 | C38: Ovetril Sa | D38: Term.Cargas Km.12 | E38: Terrestre | F38: Brasil | G38: 140000 | H38: 500000 | I38: 280 | J38: trigo
A39: 2011-01-12 | B39: 10019090 | C39: Coop.Colonias Unidas Agrop.Ind.Ltda. | D39: Term.Cargas Km.12 | E39: Terrestre | F39: Brasil | G39: 225500 | H39: 1000000 | I39: 225.5 | J39: trigo
A40: 2011-01-12 | B40: 10019090 | C40: Agro Industrial Alemano Pyo | D40: Encarnacion | E40: Terrestre | F40: Brasil | G40: 76800 | H40: 320000 | I40: 240 | J40: trigo
A41: 2011-01-12 | B41: 10019090 | C41: Cooperalba Ltda. | D41: Saltos Del Guaira | E41: Terrestre | F41: Brasil | G41: 227000 | H41: 1000000 | I41: 227 | J41: trigo
A42: 2011-01-12 | B42: 10019090 | C42: Salto Aguaray Srl | D42: Pedro Juan Caballero | E42: Terrestre | F42: Brasil | G42: 225000 | H42: 1000000 | I42: 225 | J42: trigo
A43: 2011-01-13 | B43: 10019090 | C43: Vicentin Paraguay S.A. | D43: Encarnacion | E43: Fluvial | F43: Uruguay | G43: 336000 | H43: 1200000 | I43: 280 | J43: trigo
A44: 2011-01-13 | B44: 10019090 | C44: Coop.Colonias Unidas Agrop.Ind.Ltda. | D44: Term.Cargas Km.12 | E44: Terrestre | F44: Brasil | G44: 225500 | H44: 1000000 | I44: 225.5 | J44: trigo
A45: 2011-01-13 | B45: 10019090 | C45: Coop.Colonias Unidas Agrop.Ind.Ltda. | D45: Term.Cargas Km.12 | E45: Terrestre | F45: Brasil | G45: 225500 | H45: 1000000 | I45: 225.5 | J45: trigo
A46: 2011-01-13 | B46: 10019090 | C46: Vierci Francisco Y Cia. Srl | D46: Pedro Juan Caballero | E46: Terrestre | F46: Brasil | G46: 58750 | H46: 250000 | I46: 235 | J46: trigo
A47: 2011-01-13 | B47: 10019090 | C47: Agrop.Campos Nuevos S.A. | D47: Villeta | E47: Fluvial | F47: Argentina | G47: 822275.3 | H47: 3250100 | I47: 253 | J47: trigo
A48: 2011-01-17 | B48: 10019090 | C48: Adm Paraguay Sa | D48: Saltos Del Guaira | E48: Terrestre | F48: Brasil | G48: 211000 | H48: 1000000 | I48: 211 | J48: trigo
A49: 2011-01-17 | B49: 10019090 | C49: Adm Paraguay Sa | D49: Villeta | E49: Fluvial | F49: Uruguay | G49: 599362.8 | H49: 2397451 | I49: 250.0000209 | J49: trigo
A50: 2011-01-18 | B50: 10019090 | C50: Vicentin Paraguay S.A. | D50: Villeta | E50: Fluvial | F50: Uruguay | G50: 868000 | H50: 3100000 | I50: 280 | J50: trigo
A51: 2011-01-18 | B51: 10019090 | C51: Cooperalba Ltda. | D51: Saltos Del Guaira | E51: Terrestre | F51: Brasil | G51: 220000 | H51: 1000000 | I51: 220 | J51: trigo
A52: 2011-01-18 | B52: 10019090 | C52: Agro Santa Rosa S.A.E. | D52: Term.Cargas Km.12 | E52: Terrestre | F52: Brasil | G52: 246000 | H52: 1000000 | I52: 246 | J52: trigo
A53: 2011-01-18 | B53: 10019090 | C53: Agro Santa Rosa S.A.E. | D53: Term.Cargas Km.12 | E53: Terrestre | F53: Brasil | G53: 246000 | H53: 1000000 | I53: 246 | J53: trigo
A54: 2011-01-18 | B54: 10019090 | C54: Adm Paraguay Sa | D54: Villeta | E54: Fluvial | F54: Uruguay | G54: 601800 | H54: 2360000 | I54: 255 | J54: trigo
A55: 2011-01-18 | B55: 10019090 | C55: Adm Paraguay Sa | D55: Villeta | E55: Fluvial | F55: Uruguay | G55: 5965215 | H55: 23393000 | I55: 255 | J55: trigo
A56: 2011-01-19 | B56: 10019090 | C56: Norte Sur Sa | D56: Term.Cargas Km.12 | E56: Terrestre | F56: Brasil | G56: 220000 | H56: 1000000 | I56: 220 | J56: trigo
A57: 2011-01-19 | B57: 10019090 | C57: Louis Dreyfus Paraguay S.A | D57: Encarnacion | E57: Fluvial | F57: Argentina | G57: 3955937 | H57: 14666285 | I57: 269.7299964 | J57: trigo
A58: 2011-01-19 | B58: 10019090 | C58: Cereall Sociedad Anonima | D58: Term.Cargas Km.12 | E58: Terrestre | F58: Brasil | G58: 85200 | H58: 400000 | I58: 213 | J58: trigo
A59: 2011-01-20 | B59: 10019090 | C59: Agrofertil Sa | D59: Encarnacion | E59: Fluvial | F59: Argentina | G59: 1404873.8 | H59: 5619495 | I59: 250.0000089 | J59: trigo
A60: 2011-01-20 | B60: 10019090 | C60: Parperon S.R.L. | D60: Term.Cargas Km.12 | E60: Terrestre | F60: Brasil | G60: 216000 | H60: 1000000 | I60: 216 | J60: trigo
A61: 2011-01-20 | B61: 10019090 | C61: Parperon S.R.L. | D61: Term.Cargas Km.12 | E61: Terrestre | F61: Brasil | G61: 23868 | H61: 108000 | I61: 221 | J61: trigo
A62: 2011-01-20 | B62: 10019090 | C62: Coop.Colonias Unidas Agrop.Ind.Ltda. | D62: Term.Cargas Km.12 | E62: Terrestre | F62: Brasil | G62: 110000 | H62: 500000 | I62: 220 | J62: trigo
A63: 2011-01-20 | B63: 10019090 | C63: Holtker Beate Veronika | D63: Encarnacion | E63: Fluvial | F63: Argentina | G63: 628500 | H63: 2500000 | I63: 251.4 | J63: trigo
A64: 2011-01-21 | B64: 10019090 | C64: Parperon S.R.L. | D64: Term.Cargas Km.12 | E64: Terrestre | F64: Brasil | G64: 88500 | H64: 500000 | I64: 177 | J64: trigo
A65: 2011-01-21 | B65: 10019090 | C65: Cooperalba Ltda. | D65: Term.Cargas Km.12 | E65: Terrestre | F65: Brasil | G65: 263000 | H65: 1000000 | I65: 263 | J65: trigo
A66: 2011-01-21 | B66: 10019090 | C66: Compa\Ia Dekalpar Sa | D66: Encarnacion | E66: Fluvial | F66: Uruguay | G66: 1125000 | H66: 4500000 | I66: 250 | J66: trigo
A67: 2011-01-21 | B67: 10019090 | C67: Nativa Agricola S.A. | D67: Saltos Del Guaira | E67: Terrestre | F67: Brasil | G67: 252000 | H67: 1000000 | I67: 252 | J67: trigo
A68: 2011-01-24 | B68: 10019090 | C68: Adm Paraguay Sa | D68: Villeta | E68: Fluvial | F68: Uruguay | G68: 368340 | H68: 1473360 | I68: 250 | J68: trigo
A69: 2011-01-25 | B69: 10019090 | C69: Louis Dreyfus Paraguay S.A | D69: Encarnacion | E69: Fluvial | F69: Argentina | G69: 5453274 | H69: 20033715 | I69: 272.2048307 | J69: trigo
A70: 2011-01-25 | B70: 10019090 | C70: Agro Silo Santa Catalina Sa | D70: Term.Cargas Km.12 | E70: Terrestre | F70: Brasil | G70: 265000 | H70: 1000000 | I70: 265 | J70: trigo
A71: 2011-01-25 | B71: 10019090 | C71: Agro Silo Santa Catalina Sa | D71: Term.Cargas Km.12 | E71: Terrestre | F71: Brasil | G71: 265000 | H71: 1000000 | I71: =+G71/H71*1000 -> 265 | J71: trigo
A72: 2011-01-26 | B72: 10019090 | C72: Ovetril Sa | D72: Term.Cargas Km.12 | E72: Terrestre | F72: Brasil | G72: 140000 | H72: 500000 | I72: 280 | J72: trigo
A73: 2011-01-26 | B73: 10019090 | C73: Holtker Beate Veronika | D73: Encarnacion | E73: Fluvial | F73: Argentina | G73: 3574.9 | H73: 14220 | I73: 251.3994374 | J73: trigo
A74: 2011-01-27 | B74: 10019090 | C74: Crap S.A. | D74: Term.Cargas Km.12 | E74: Terrestre | F74: Brasil | G74: 184800 | H74: 800000 | I74: 231 | J74: trigo
A75: 2011-01-27 | B75: 10019090 | C75: Coop.Agropecuaria Pindo | D75: Term.Cargas Km.12 | E75: Terrestre | F75: Suiza | G75: 272000 | H75: 1000000 | I75: 272 | J75: trigo
A76: 2011-01-28 | B76: 10019090 | C76: Agrofertil Sa | D76: Encarnacion | E76: Fluvial | F76: Argentina | G76: 1095126.3 | H76: 4380505 | I76: 250.0000114 | J76: trigo
A77: 2011-01-28 | B77: 10019090 | C77: Parperon S.R.L. | D77: Term.Cargas Km.12 | E77: Terrestre | F77: Brasil | G77: 216000 | H77: 1000000 | I77: 216 | J77: trigo
A78: 2011-01-28 | B78: 10019090 | C78: Cargill Agropecuaria Sa | D78: Campestre S.A. | E78: Terrestre | F78: Brasil | G78: 133640 | H78: 500000 | I78: 267.28 | J78: trigo
A79: 2011-01-28 | B79: 10019090 | C79: Cargill Agropecuaria Sa | D79: Campestre S.A. | E79: Terrestre | F79: Brasil | G79: 133640 | H79: 500000 | I79: 267.28 | J79: trigo
A80: 2011-01-28 | B80: 10019090 | C80: Adm Paraguay Sa | D80: Villeta | E80: Fluvial | F80: Uruguay | G80: 2649198.6 | H80: 10389014 | I80: 255.0000029 | J80: trigo
A81: 2011-02-01 | B81: 10019090 | C81: Tierra Roja Sa | D81: Ciudad Del Este | E81: Terrestre | F81: Brasil | G81: 95745 | H81: 400000 | I81: 239.3625 | J81: trigo
A82: 2011-02-02 | B82: 10019090 | C82: Grupo Apane Sa | D82: Saltos Del Guaira | E82: Terrestre | F82: Brasil | G82: 272000 | H82: 1000000 | I82: 272 | J82: trigo
A83: 2011-02-03 | B83: 10019090 | C83: Coop.Colonias Unidas Agrop.Ind.Ltda. | D83: Term.Cargas Km.12 | E83: Terrestre | F83: Brasil | G83: 285000 | H83: 1000000 | I83: 285 | J83: trigo
A84: 2011-02-04 | B84: 10019090 | C84: Adm Paraguay Sa | D84: Villeta | E84: Fluvial | F84: Uruguay | G84: 1464346.04 | H84: 5810897 | I84: 251.9999993 | J84: trigo
A85: 2011-02-07 | B85: 10019090 | C85: Coop.Agropecuaria Pindo | D85: Term.Cargas Km.12 | E85: Terrestre | F85: Suiza | G85: 272000 | H85: 1000000 | I85: 272 | J85: trigo
A86: 2011-02-07 | B86: 10019090 | C86: Nativa Agricola S.A. | D86: Term.Cargas Km.12 | E86: Terrestre | F86: Brasil | G86: 132500 | H86: 500000 | I86: 265 | J86: trigo
A87: 2011-02-07 | B87: 10019090 | C87: Nativa Agricola S.A. | D87: Term.Cargas Km.12 | E87: Terrestre | F87: Brasil | G87: 261000 | H87: 1000000 | I87: 261 | J87: trigo
A88: 2011-02-08 | B88: 10019090 | C88: Cargill Agropecuaria Sa | D88: Ciudad Del Este | E88: Terrestre | F88: Turquia | G88: 1666691.46 | H88: 5291084 | I88: 315 | J88: trigo
A89: 2011-02-08 | B89: 10019090 | C89: Cargill Agropecuaria Sa | D89: Puertos Y Estibajes | E89: Fluvial | F89: Turquia | G89: 2881125.14 | H89: 9146429 | I89: 315.0000005 | J89: trigo
A90: 2011-02-09 | B90: 10019090 | C90: Cargill Agropecuaria Sa | D90: Encarnacion | E90: Terrestre | F90: Turquia | G90: 7475385.33 | H90: 23731382 | I90: 315 | J90: trigo
A91: 2011-02-10 | B91: 10019090 | C91: Agro Silos El Productor Sa | D91: Saltos Del Guaira | E91: Terrestre | F91: Brasil | G91: 160800 | H91: 600000 | I91: 268 | J91: trigo
A92: 2011-02-11 | B92: 10019090 | C92: Coop.Agropecuaria Pindo | D92: Term.Cargas Km.12 | E92: Terrestre | F92: Suiza | G92: 272000 | H92: 1000000 | I92: 272 | J92: trigo
A93: 2011-02-11 | B93: 10019090 | C93: Coop.Agropecuaria Pindo | D93: Term.Cargas Km.12 | E93: Terrestre | F93: Suiza | G93: 272000 | H93: 1000000 | I93: 272 | J93: trigo
A94: 2011-02-14 | B94: 10019090 | C94: Coop.Colonias Unidas Agrop.Ind.Ltda. | D94: Term.Cargas Km.12 | E94: Terrestre | F94: Brasil | G94: 370500 | H94: 1300000 | I94: 285 | J94: trigo
A95: 2011-02-14 | B95: 10019090 | C95: Adm Paraguay Sa | D95: Villeta | E95: Fluvial | F95: Uruguay | G95: 376000 | H95: 1504000 | I95: 250 | J95: trigo
A96: 2011-02-14 | B96: 10019090 | C96: Adm Paraguay Sa | D96: Villeta | E96: Fluvial | F96: Uruguay | G96: 857.75 | H96: 3431 | I96: 250 | J96: trigo
A97: 2011-02-15 | B97: 10019090 | C97: Crap S.A. | D97: Term.Cargas Km.12 | E97: Terrestre | F97: Brasil | G97: 145000 | H97: 500000 | I97: 290 | J97: trigo
A98: 2011-02-15 | B98: 10019090 | C98: Crap S.A. | D98: Term.Cargas Km.12 | E98: Terrestre | F98: Brasil | G98: 290000 | H98: 1000000 | I98: 290 | J98: trigo
A99: 2011-02-15 | B99: 10019090 | C99: Adm Paraguay Sa | D99: Encarnacion | E99: Fluvial | F99: Uruguay | G99: 4250000 | H99: 17000000 | I99: 250 | J99: trigo
A100: 2011-02-16 | B100: 10019090 | C100: Adm Paraguay Sa | D100: Villeta | E100: Fluvial | F100: Uruguay | G100: 3065160 | H100: 12460000 | I100: 246 | J100: trigo
A101: 2011-02-16 | B101: 10019090 | C101: Cooperalba Ltda. | D101: Saltos Del Guaira | E101: Terrestre | F101: Brasil | G101: 104000 | H101: 500000 | I101: 208 | J101: trigo
A102: 2011-02-17 | B102: 10019090 | C102: Grupo Apane Sa | D102: Saltos Del Guaira | E102: Terrestre | F102: Brasil | G102: 548000 | H102: 2000000 | I102: 274 | J102: trigo
A103: 2011-02-17 | B103: 10019090 | C103: Nativa Agricola S.A. | D103: Santa Helena | E103: Terrestre | F103: Brasil | G103: 300000 | H103: 1000000 | I103: 300 | J103: trigo
A104: 2011-02-18 | B104: 10019090 | C104: Nativa Agricola S.A. | D104: Term.Cargas Km.12 | E104: Terrestre | F104: Brasil | G104: 300000 | H104: 1000000 | I104: 300 | J104: trigo
A105: 2011-02-21 | B105: 10019090 | C105: Adm Paraguay Sa | D105: Villeta | E105: Fluvial | F105: Uruguay | G105: 3369807.84 | H105: 12035028 | I105: 280 | J105: trigo
A106: 2011-02-22 | B106: 10019090 | C106: Crap S.A. | D106: Term.Cargas Km.12 | E106: Terrestre | F106: Brasil | G106: 145000 | H106: 500000 | I106: 290 | J106: trigo
A107: 2011-02-24 | B107: 10019090 | C107: Nativa Agricola S.A. | D107: Term.Cargas Km.12 | E107: Terrestre | F107: Brasil | G107: 370500 | H107: 1300000 | I107: 285 | J107: trigo
A108: 2011-02-25 | B108: 10019090 | C108: Adm Paraguay Sa | D108: Villeta | E108: Fluvial | F108: Uruguay | G108: 797040 | H108: 3240000 | I108: 246 | J108: trigo
A109: 2011-01-03 | B109: 10059010 | C109: Sedumar S.A. | D109: Encarnacion | E109: Terrestre | F109: Uruguay | G109: 79650 | H109: 270000 | I109: 295 | J109: maiz
A110: 2011-01-03 | B110: 10059010 | C110: Compañia Dekalpar Sa | D110: Encarnacion | E110: Terrestre | F110: Uruguay | G110: 24304 | H110: 112000 | I110: 217 | J110: maiz
A111: 2011-01-03 | B111: 10059010 | C111: Indega Sa | D111: Puertos Y Estibajes | E111: Fluvial | F111: España | G111: 155 | H111: 344.25 | I111: 450.2541757 | J111: maiz
A112: 2011-01-03 | B112: 10059010 | C112: Cargill Agropecuaria Sa | D112: Ciudad Del Este | E112: Terrestre | F112: Ecuador | G112: 1263135 | H112: 4649862 | I112: 271.6499974 | J112: maiz
A113: 2011-01-03 | B113: 10059010 | C113: Cargill Agropecuaria Sa | D113: Puertos Y Estibajes | E113: Fluvial | F113: Ecuador | G113: 2729681.3 | H113: 10048523 | I113: 271.6500027 | J113: maiz
A114: 2011-01-03 | B114: 10059010 | C114: Sul - America Gran Agricultura | D114: Puertos Y Estibajes | E114: Fluvial | F114: Corea Del Sur | G114: 63000 | H114: 300000 | I114: 210 | J114: maiz
A115: 2011-01-11 | B115: 10059010 | C115: Adm Paraguay Sa | D115: Encarnacion | E115: Terrestre | F115: Uruguay | G115: 26096 | H115: 112000 | I115: 233 | J115: maiz
A116: 2011-01-12 | B116: 10059010 | C116: Aratiri Srl | D116: Mcal. Estigarribia | E116: Terrestre | F116: Bolivia | G116: 22000 | H116: 110000 | I116: 200 | J116: maiz
A117: 2011-01-13 | B117: 10059010 | C117: Sedumar S.A. | D117: Chacoi | E117: Terrestre | F117: Uruguay | G117: 41175 | H117: 135000 | I117: 305 | J117: maiz
A118: 2011-01-13 | B118: 10059010 | C118: Sedumar S.A. | D118: Chacoi | E118: Terrestre | F118: Uruguay | G118: 41175 | H118: 135000 | I118: 305 | J118: maiz
A119: 2011-01-13 | B119: 10059010 | C119: Vierci Francisco Y Cia. Srl | D119: Pedro Juan Caballero | E119: Terrestre | F119: Bolivia | G119: 84000 | H119: 400000 | I119: 210 | J119: maiz
A120: 2011-01-17 | B120: 10059010 | C120: Sj (Jersey) Paraguay Farms N?1 Limited - | D120: Chacoi | E120: Terrestre | F120: Uruguay | G120: 110000 | H120: 500000 | I120: 220 | J120: maiz
A121: 2011-01-18 | B121: 10059010 | C121: Salto Aguaray Srl | D121: Capital | E121: Fluvial | F121: Uruguay | G121: 994019.9 | H121: 6191900 | I121: 160.5355222 | J121: maiz
A122: 2011-01-18 | B122: 10059010 | C122: Adm Paraguay Sa | D122: Capital | E122: Fluvial | F122: Uruguay | G122: 376896.2 | H122: 1570401 | I122: 239.9999745 | J122: maiz
A123: 2011-01-18 | B123: 10059010 | C123: Adm Paraguay Sa | D123: Villeta | E123: Fluvial | F123: Uruguay | G123: 492613.7 | H123: 2010668 | I123: 245.0000199 | J123: maiz
A124: 2011-01-19 | B124: 10059010 | C124: Sedumar S.A. | D124: Encarnacion | E124: Terrestre | F124: Uruguay | G124: 43200 | H124: 135000 | I124: 320 | J124: maiz
A125: 2011-01-19 | B125: 10059010 | C125: Adm Paraguay Sa | D125: Villeta | E125: Fluvial | F125: Uruguay | G125: 7417960 | H125: 29320000 | I125: 253 | J125: maiz
A126: 2011-01-20 | B126: 10059010 | C126: Sedumar S.A. | D126: Chacoi | E126: Terrestre | F126: Uruguay | G126: 86400 | H126: 270000 | I126: 320 | J126: maiz
A127: 2011-01-24 | B127: 10059010 | C127: Sj (Jersey) Paraguay Farms N?1 Limited - | D127: Chacoi | E127: Terrestre | F127: Uruguay | G127: 33000 | H127: 150000 | I127: 220 | J127: maiz
A128: 2011-01-25 | B128: 10059010 | C128: Sj (Jersey) Paraguay Farms N?1 Limited - | D128: Chacoi | E128: Terrestre | F128: Uruguay | G128: 33000 | H128: 150000 | I128: 220 | J128: maiz
A129: 2011-01-27 | B129: 10059010 | C129: Aratiri Srl | D129: Mcal. Estigarribia | E129: Terrestre | F129: Bolivia | G129: 22000 | H129: 110000 | I129: 200 | J129: maiz
A130: 2011-01-27 | B130: 10059010 | C130: Sedumar S.A. | D130: Chacoi | E130: Terrestre | F130: Uruguay | G130: 43200 | H130: 135000 | I130: 320 | J130: maiz
A131: 2011-01-28 | B131: 10059010 | C131: Mario Comercial Sa | D131: Mcal. Estigarribia | E131: Terrestre | F131: Bolivia | G131: 11000 | H131: 55000 | I131: 200 | J131: maiz
A132: 2011-01-28 | B132: 10059010 | C132: Adm Paraguay Sa | D132: Villeta | E132: Fluvial | F132: Uruguay | G132: 2067850.6 | H132: 8616044 | I132: 240.0000046 | J132: maiz
A133: 2011-01-28 | B133: 10059010 | C133: Cargill Agropecuaria Sa | D133: Caacupemi | E133: Fluvial | F133: Argelia | G133: 958344.8 | H133: 3484890 | I133: 275.0000143 | J133: maiz
A134: 2011-01-28 | B134: 10059010 | C134: Cargill Agropecuaria Sa | D134: Villeta | E134: Fluvial | F134: Argelia | G134: 812905.5 | H134: 2956020 | I134: 275 | J134: maiz
A135: 2011-02-02 | B135: 10059010 | C135: Holtker Beate Veronika | D135: Encarnacion | E135: Terrestre | F135: Uruguay | G135: 119952 | H135: 504000 | I135: =+G135/H135*1000 -> 238 | J135: maiz
A136: 2011-02-02 | B136: 10059010 | C136: Sul - America Gran Agricultura | D136: Mcal. Estigarribia | E136: Terrestre | F136: Bolivia | G136: 10800 | H136: 54000 | I136: 200 | J136: maiz
A137: 2011-02-03 | B137: 10059010 | C137: Holtker Beate Veronika | D137: Encarnacion | E137: Terrestre | F137: Uruguay | G137: 119000 | H137: 500000 | I137: 238 | J137: maiz
A138: 2011-02-04 | B138: 10059010 | C138: Sedumar S.A. | D138: Encarnacion | E138: Terrestre | F138: Uruguay | G138: 38556 | H138: 162000 | I138: 238 | J138: maiz
A139: 2011-02-10 | B139: 10059010 | C139: Casa Rural Sa | D139: Encarnacion | E139: Terrestre | F139: Uruguay | G139: 59247 | H139: 261000 | I139: 227 | J139: maiz
A140: 2011-02-15 | B140: 10059010 | C140: Vierci Francisco Y Cia. Srl | D140: Villeta | E140: Fluvial | F140: Uruguay | G140: 291384 | H140: 1368000 | I140: 213 | J140: maiz
A141: 2011-02-22 | B141: 10059010 | C141: Sul - America Gran Agricultura | D141: Puertos Y Estibajes | E141: Fluvial | F141: Corea Del Sur | G141: 30399.6 | H141: 144760 | I141: 210 | J141: maiz
A142: 2011-01-06 | B142: 12051090 | C142: C.W Trading S.A. | D142: Encarnacion | E142: Terrestre | F142: Brasil | G142: 378400 | H142: 880000 | I142: 430 | J142: canola
A143: 2011-01-18 | B143: 12051090 | C143: Coop. Naranjal Ltda | D143: Encarnacion | E143: Terrestre | F143: Brasil | G143: 396000 | H143: 1000000 | I143: 396 | J143: canola en granos a granel
A144: 2011-01-28 | B144: 12051090 | C144: Coop. Naranjal Ltda | D144: Encarnacion | E144: Terrestre | F144: Brasil | G144: 396000 | H144: 1000000 | I144: 396 | J144: canola en granos a granel
A145: 2011-02-09 | B145: 12051090 | C145: Coop. Naranjal Ltda | D145: Encarnacion | E145: Terrestre | F145: Brasil | G145: 396000 | H145: 1000000 | I145: 396 | J145: canola en granos a granel
A146: 2011-02-25 | B146: 12051090 | C146: Coop. Naranjal Ltda | D146: Encarnacion | E146: Terrestre | F146: Brasil | G146: 208000 | H146: 500000 | I146: 416 | J146: canola en granos a granel
A147: 2011-01-18 | B147: 12060090 | C147: C.W Trading Sa | D147: Encarnacion | E147: Terrestre | F147: Brasil | G147: 115000 | H147: 200000 | I147: 575 | J147: girasol en granos, a granel
A148: 2011-01-18 | B148: 12060090 | C148: Vicentin Paraguay S.A. | D148: Encarnacion | E148: Fluvial | F148: Argentina | G148: 1200000 | H148: 2500000 | I148: 480 | J148: girasol en granos, a granel
A149: 2011-01-20 | B149: 12060090 | C149: Holtker Beate Veronika | D149: Encarnacion | E149: Fluvial | F149: Argentina | G149: 1245853 | H149: 2550000 | I149: 488.5698039 | J149: girasol en granos, a granel
A150: 2011-02-01 | B150: 12060090 | C150: Vicentin Paraguay S.A. | D150: Encarnacion | E150: Fluvial | F150: Argentina | G150: 1408000 | H150: 2750000 | I150: 512 | J150: girasol en granos a granel
A151: 2011-02-01 | B151: 12060090 | C151: Holtker Beate Veronika | D151: Encarnacion | E151: Fluvial | F151: Argentina | G151: 688950 | H151: 1350000 | I151: 510.3333333 | J151: girasol en granos a granel
A152: 2011-02-16 | B152: 12060010 | C152: Granar Sa | D152: Term.Cargas Km.12 | E152: Terrestre | F152: Brasil | G152: 20400 | H152: 4936 | I152: 4132.901135 | J152: semillas de girasol
A153: 2011-02-16 | B153: 12060010 | C153: Granar Sa | D153: Term.Cargas Km.12 | E153: Terrestre | F153: Brasil | G153: 17800 | H153: 2847 | I153: 6252.195293 | J153: semillas de girasol
A154: 2011-01-05 | B154: 15121110 | C154: Oleaginosa Raatz Sa | D154: Encarnacion | E154: Terrestre | F154: Uruguay | G154: 655200 | H154: 504000 | I154: 1300 | J154: aceite de girasol
A155: 2011-01-07 | B155: 15121919 | C155: Contiparaguay S.A | D155: Chacoi | E155: Terrestre | F155: Uruguay | G155: 36500 | H155: 25000 | I155: 1460 | J155: aceite de girasol
A156: 2011-01-10 | B156: 15121110 | C156: Cargill Agropecuaria Sa | D156: Campestre S.A. | E156: Terrestre | F156: Brasil | G156: 386250 | H156: 300000 | I156: 1287.5 | J156: aceite de girasol
A157: 2011-01-12 | B157: 15121110 | C157: Aceites Y Derivados Srl | D157: Term.Cargas Km.12 | E157: Terrestre | F157: Brasil | G157: 1040000 | H157: 1000000 | I157: 1040 | J157: aceite de girasol
A158: 2011-01-12 | B158: 15121110 | C158: Aceites Y Derivados Srl | D158: Term.Cargas Km.12 | E158: Terrestre | F158: Brasil | G158: 1040000 | H158: 1000000 | I158: 1040 | J158: aceite de girasol
A159: 2011-01-18 | B159: 15121110 | C159: Aceites Y Derivados Srl | D159: Term.Cargas Km.12 | E159: Terrestre | F159: Brasil | G159: 115000 | H159: 100000 | I159: 1150 | J159: aceite de girasol
A160: 2011-01-19 | B160: 15121110 | C160: Aceites Y Derivados Srl | D160: Term.Cargas Km.12 | E160: Terrestre | F160: Brasil | G160: 115000 | H160: 100000 | I160: 1150 | J160: aceite de girasol
A161: 2011-02-02 | B161: 15121110 | C161: Contiparaguay S.A | D161: Capital | E161: Fluvial | F161: Argentina | G161: 4357500 | H161: 4150000 | I161: 1050 | J161: aceite de girasol
A162: 2011-02-07 | B162: 15121110 | C162: Aceites Y Derivados Srl | D162: Term.Cargas Km.12 | E162: Terrestre | F162: Brasil | G162: 832000 | H162: 800000 | I162: 1040 | J162: aceite de girasol
A163: 2011-02-07 | B163: 15121110 | C163: Aceites Y Derivados Srl | D163: Term.Cargas Km.12 | E163: Terrestre | F163: Brasil | G163: 115000 | H163: 100000 | I163: 1150 | J163: aceite de girasol
A164: 2011-02-08 | B164: 15121911 | C164: San Alfredo Sa | D164: Term.Cargas Km.12 | E164: Terrestre | F164: Brasil | G164: 42500 | H164: 13285 | I164: 3199.096726 | J164: aceite de girasol
A165: 2011-02-11 | B165: 15121110 | C165: Oleaginosa Raatz Sa | D165: Term.Cargas Km.12 | E165: Terrestre | F165: Brasil | G165: 1965000 | H165: 1500000 | I165: 1310 | J165: aceite de girasol
A166: 2011-02-23 | B166: 15121110 | C166: Oleaginosa Raatz Sa | D166: Encarnacion | E166: Terrestre | F166: Uruguay | G166: 444192 | H166: 336000 | I166: 1322 | J166: aceite crudo de girasol
A167: 2011-02-24 | B167: 15121110 | C167: Compañia Dekalpar Sa | D167: Villeta | E167: Fluvial | F167: Paises Bajos | G167: 644051.63 | H167: 736059 | I167: 875.0000068 | J167: aceite crudo de girasol
A168: 2011-02-24 | B168: 15121110 | C168: Oleaginosa Raatz Sa | D168: Encarnacion | E168: Terrestre | F168: Uruguay | G168: 370160 | H168: 280000 | I168: 1322 | J168: aceite crudo de girasol
A169: 2011-01-06 | B169: 15141100 | C169: Aceites Y Derivados Srl | D169: Villeta | E169: Fluvial | F169: Argentina | G169: 46000 | H169: 50000 | I169: 920 | J169: aceite de colza (canola)
A170: 2011-01-14 | B170: 15141100 | C170: Oleaginosa Raatz Sa | D170: Term.Cargas Km.12 | E170: Terrestre | F170: Brasil | G170: 186000 | H170: 200000 | I170: 930 | J170: aceite de colza (canola)
A171: 2011-02-03 | B171: 15141100 | C171: Oleaginosa Raatz Sa | D171: Term.Cargas Km.12 | E171: Terrestre | F171: Brasil | G171: 97000 | H171: 100000 | I171: 970 | J171: aceite de colza (canola)
A172: 2011-02-28 | B172: 15141100 | C172: Oleaginosa Raatz Sa | D172: Term.Cargas Km.12 | E172: Terrestre | F172: Brasil | G172: 186000 | H172: 200000 | I172: 930 | J172: aceite de colza (canola)
A173: 2011-03-17 | B173: 10059090 | C173: Eno Bronstrup Sa (Ebsa) | D173: Caacupemi | E173: Fluvial | F173: España | G173: 2336 | H173: 4000 | I173: 584 | J173: trigo
A174: 2011-03-04 | B174: 10019090 | C174: Coop.Agropecuaria Pindo | D174: Term.Cargas Km.12 | E174: Terrestre | F174: Suiza | G174: 272000 | H174: 1000000 | I174: 272 | J174: trigo
A175: 2011-03-04 | B175: 10019090 | C175: Crap S.A. | D175: Santa Helena | E175: Terrestre | F175: Brasil | G175: 295000 | H175: 1000000 | I175: 295 | J175: trigo
A176: 2011-03-07 | B176: 10019090 | C176: Cooperalba Ltda. | D176: Saltos Del Guaira | E176: Terrestre | F176: Brasil | G176: 263000 | H176: 1000000 | I176: 263 | J176: trigo
A177: 2011-03-10 | B177: 10019090 | C177: Crap S.A. | D177: Term.Cargas Km.12 | E177: Terrestre | F177: Brasil | G177: 145000 | H177: 500000 | I177: 290 | J177: trigo
A178: 2011-03-11 | B178: 10019090 | C178: Adm Paraguay Sa | D178: Pedro Juan Caballero | E178: Terrestre | F178: Brasil | G178: 136500 | H178: 500000 | I178: 273 | J178: trigo
A179: 2011-03-14 | B179: 10019090 | C179: Comercial Konzen S.A. | D179: Term.Cargas Km.12 | E179: Terrestre | F179: Brasil | G179: 210000 | H179: 700000 | I179: 300 | J179: trigo
A180: 2011-03-14 | B180: 10019090 | C180: Comercial Konzen S.A. | D180: Term.Cargas Km.12 | E180: Terrestre | F180: Brasil | G180: 210000 | H180: 700000 | I180: 300 | J180: trigo
A181: 2011-03-17 | B181: 10019090 | C181: Crap S.A. | D181: Term.Cargas Km.12 | E181: Terrestre | F181: Brasil | G181: 372500 | H181: 1250000 | I181: 298 | J181: trigo
A182: 2011-03-18 | B182: 10019090 | C182: Nativa Agricola S.A. | D182: Term.Cargas Km.12 | E182: Terrestre | F182: Brasil | G182: 291000 | H182: 1000000 | I182: 291 | J182: trigo
A183: 2011-03-18 | B183: 10019090 | C183: Nativa Agricola S.A. | D183: Term.Cargas Km.12 | E183: Terrestre | F183: Brasil | G183: 291000 | H183: 1000000 | I183: 291 | J183: trigo
A184: 2011-03-22 | B184: 10019090 | C184: Cooperalba Ltda. | D184: Saltos Del Guaira | E184: Terrestre | F184: Brasil | G184: 228750 | H184: 750000 | I184: 305 | J184: trigo
A185: 2011-03-23 | B185: 10019090 | C185: Agrofertil Sa | D185: Term.Cargas Km.12 | E185: Terrestre | F185: Brasil | G185: 315000 | H185: 1000000 | I185: 315 | J185: trigo
A186: 2011-03-24 | B186: 10019090 | C186: Cooperalba Ltda. | D186: Saltos Del Guaira | E186: Terrestre | F186: Brasil | G186: 104000 | H186: 500000 | I186: 208 | J186: trigo
A187: 2011-03-25 | B187: 10019090 | C187: Adm Paraguay Sa | D187: Pedro Juan Caballero | E187: Terrestre | F187: Brasil | G187: 136500 | H187: 500000 | I187: 273 | J187: trigo
A188: 2011-03-31 | B188: 10019090 | C188: Agrofertil Sa | D188: Santa Helena | E188: Terrestre | F188: Brasil | G188: 299000 | H188: 1000000 | I188: 299 | J188: trigo
A189: 2011-03-22 | B189: 12051090 | C189: Coop. Naranjal Ltda | D189: Encarnacion | E189: Terrestre | F189: Brasil | G189: 140840 | H189: 350000 | I189: 402.4 | J189: conola en granos a granel
A190: 2011-03-04 | B190: 15121110 | C190: Aceites Y Derivados Srl | D190: Villeta | E190: Fluvial | F190: Argentina | G190: 3070500 | H190: 2670000 | I190: 1150 | J190: aceite de girasol
A191: 2011-03-14 | B191: 15121110 | C191: Inter Agro S.R.L. | D191: Term.Cargas Km.12 | E191: Terrestre | F191: Brasil | G191: 33975 | H191: 25000 | I191: 1359 | J191: aceite de girasol
A192: 2011-03-23 | B192: 15121110 | C192: Oleaginosa Raatz Sa | D192: Term.Cargas Km.12 | E192: Terrestre | F192: Brasil | G192: 1965000 | H192: 1500000 | I192: 1310 | J192: aceite de girasol
A193: 2011-03-23 | B193: 15121110 | C193: Inter Agro S.R.L. | D193: Term.Cargas Km.12 | E193: Terrestre | F193: Brasil | G193: 33975 | H193: 25000 | I193: 1359 | J193: aceite de girasol
A194: 2011-03-11 | B194: 15141100 | C194: Oleaginosa Raatz Sa | D194: Term.Cargas Km.12 | E194: Terrestre | F194: Brasil | G194: 600000 | H194: 500000 | I194: 1200 | J194: aceite de colza (canola)
A195: 2011-03-28 | B195: 15141100 | C195: Oleaginosa Raatz Sa | D195: Term.Cargas Km.12 | E195: Terrestre | F195: Brasil | G195: 124000 | H195: 100000 | I195: 1240 | J195: aceite de colza (canola)
A196: 2011-04-01 | B196: 10059090 | C196: Eno Bronstrup Sa (Ebsa) | D196: Caacupemi | E196: Fluvial | F196: España | G196: 1794 | H196: 2900 | I196: 618.6206897 | J196: maiz
A197: 2011-04-15 | B197: 10059010 | C197: Indega Sa | D197: Puertos Y Estibajes | E197: Fluvial | F197: España | G197: 10110.65 | H197: 21042 | I197: 480.4985268 | J197: maiz
A198: 2011-04-15 | B198: 10059090 | C198: Eno Bronstrup Sa (Ebsa) | D198: Caacupemi | E198: Fluvial | F198: España | G198: 3905 | H198: 6500 | I198: 600.7692308 | J198: maiz
A199: 2011-04-01 | B199: 10019090 | C199: Crap S.A. | D199: Campestre S.A. | E199: Terrestre | F199: Brasil | G199: 141000 | H199: 500000 | I199: =+G199/H199*1000 -> 282 | J199: trigo
A200: 2011-04-04 | B200: 10019090 | C200: Tierra Roja Sa | D200: Ciudad Del Este | E200: Terrestre | F200: Brasil | G200: 24624 | H200: 81000 | I200: 304 | J200: trigo
A201: 2011-04-06 | B201: 10019090 | C201: Grupo Apane Sa | D201: Saltos Del Guaira | E201: Terrestre | F201: Brasil | G201: 548000 | H201: 2000000 | I201: 274 | J201: trigo
... 1234 more rows

Sheet 2010
A1: Índice
A2: EXPORTACIONES DE PRODUCTOS DE LA CADENA DE LA SOJA - AÑO 2010
A3: Fuente: TINWOR
A5: FECHA | B5: ARANCEL | C5: EXPORTADOR | D5: ADUANA | E5: MEDIO TRANSPORTE | F5: PAIS DESTINO | G5: FOB U$S | H5: KG. NETOS | I5: US$/Ton | J5: DETALLE DE MERCADERIA
A6: 2010-01-04 | B6: 10059010 | C6: Agro Silos El Productor Sa | D6: Saltos Del Guaira | E6: Terrestre | F6: Brasil | G6: 110000 | H6: 1000000 | I6: =+G6/H6*1000 -> 110 | J6: 1.000 toneladas metricas de maiz paraguayo en granos a granel zafra 2008/2009
A7: 2010-01-04 | B7: 10059010 | C7: C. Vale S.A | D7: Saltos Del Guaira | E7: Terrestre | F7: Brasil | G7: 240000 | H7: 2000000 | I7: 120 | J7: 2.000,00 toneladas de maiz en granos a granel de origen y produccion paraguaya de la zafra 2.009.-
A8: 2010-01-04 | B8: 10059010 | C8: Diagro Sa | D8: Term.Cargas Km.12 | E8: Terrestre | F8: Brasil | G8: 98400 | H8: 800000 | I8: 123 | J8: 800,00 tons.maiz en granos a granel de color amarillo zafra 08/09 humedad max.14% impureza max.1% ardidos e brotados max.6% isento de carunchos e insectos vivos (clasificaçao em peneira de 3mm).-
A9: 2010-01-04 | B9: 10059010 | C9: Diagro Sa | D9: Term.Cargas Km.12 | E9: Terrestre | F9: Brasil | G9: 73800 | H9: 600000 | I9: 123 | J9: 600,00 tons.maiz en granos a granel de color amarillo zafra 08/09 humedad max.14% impureza max.1% ardidos e brotados max.6% isento de carunchos e insectos vivos (clasificaçao em peneira de 3mm).-
A10: 2010-01-04 | B10: 10019090 | C10: Compañia Dekalpar Sa | D10: Saltos Del Guaira | E10: Terrestre | F10: Brasil | G10: 312000 | H10: 1500000 | I10: 208 | J10: 1.500 toneladas metricas de trigo comun semi duro para industrializacion, zafra 2009
A11: 2010-01-04 | B11: 10019090 | C11: Compañia Dekalpar Sa | D11: Saltos Del Guaira | E11: Terrestre | F11: Brasil | G11: 312000 | H11: 1500000 | I11: 208 | J11: 1.500 toneladas metricas de trigo comun semi duro para industrializacion, zafra 2009
A12: 2010-01-04 | B12: 12051090 | C12: C.W Trading S.A. | D12: Encarnacion | E12: Terrestre | F12: Brasil | G12: 313000 | H12: 1000000 | I12: 313 | J12: 1.000 tns de canola en granos, a granel,cargados en camiones en transito por la rca. argentina.-
A13: 2010-01-04 | B13: 12060090 | C13: Trociuk Compañia Agricola Ganadera | D13: Encarnacion | E13: Fluvial | F13: Argentina | G13: 253600 | H13: 800000 | I13: 317 | J13: 800 ton) semillas de girasol paraguayo, en granos a granel
A14: 2010-01-04 | B14: 15121110 | C14: Aceites Y Derivados Srl | D14: Villeta | E14: Fluvial | F14: Argentina | G14: 871000 | H14: 1300000 | I14: 670 | J14: 1.300, ton aceites de girasol, bruto a granel (mercaderia enviada en transito)
A15: 2010-01-05 | B15: 10059010 | C15: Frontera Agrop.Paraguay Sa | D15: Capital | E15: Fluvial | F15: Uruguay | G15: 40600.63 | H15: 324805 | I15: 125.0000154 | J15: 324,805toneladas de granos de maiz a granel
A16: 2010-01-05 | B16: 10019090 | C16: Agro Santa Rosa Sa | D16: Term.Cargas Km.12 | E16: Terrestre | F16: Brasil | G16: 252000 | H16: 1200000 | I16: 210 | J16: 1.200 toneladas de trigo en granos a granel.-
A17: 2010-01-05 | B17: 10011090 | C17: Zadkiel Auto Centro Srl | D17: Term.Cargas Km.12 | E17: Terrestre | F17: Brasil | G17: 4770 | H17: 26500 | I17: 180 | J17: los demas : en 26.500) kgs de trigo en su estado natural sin nigun proceso industrial .-
A18: 2010-01-05 | B18: 15121110 | C18: Cargill Agropecuaria Sa | D18: Campestre S.A. | E18: Terrestre | F18: Brasil | G18: 345200 | H18: 400000 | I18: 863 | J18: con 400.- (cuatrocientas) toneladas metricas de: oleo bruto de semente (aceite de semilla) de girasol, a granel. zafra 2.009. pais de adquisicion, origen y procedencia: paraguay.-
A19: 2010-01-05 | B19: 15121110 | C19: Cargill Agropecuaria Sa | D19: Campestre S.A. | E19: Terrestre | F19: Brasil | G19: 345200 | H19: 400000 | I19: 863 | J19: con 400.- (cuatrocientas) toneladas metricas de: oleo bruto de semente (aceite de semilla) de girasol, a granel. zafra 2.009. pais de adquisicion, origen y procedencia: paraguay.-
A20: 2010-01-05 | B20: 15121110 | C20: Cargill Agropecuaria Sa | D20: Campestre S.A. | E20: Terrestre | F20: Brasil | G20: 345200 | H20: 400000 | I20: 863 | J20: con 400.- (cuatrocientas) toneladas metricas de: oleo bruto de semente (aceite de semilla) de girasol, a granel. zafra 2.009. pais de adquisicion, origen y procedencia: paraguay.-
A21: 2010-01-05 | B21: 15121110 | C21: Frontera Agrop.Paraguay Sa | D21: Villeta | E21: Fluvial | F21: Argentina | G21: 1518750 | H21: 1998000 | I21: 760.1351351 | J21: 1.998 mtons. aceite de girasol, bruto a granel. (mercaderia enviada hasta la argentina en transito al exterior).
A22: 2010-01-05 | B22: 15121110 | C22: Cargill Agropecuaria Sa | D22: Villeta | E22: Fluvial | F22: Marruecos | G22: 387841.5 | H22: 430935 | I22: 900 | J22: con:(cuatrocientos treita mil novecientos treinta y cinco) kgs de:crude sunflowerseed oil in bull (aceite crudo de semilla de girasol)
A23: 2010-01-06 | B23: 10059010 | C23: Fecularia Salto Pilao Sa | D23: Saltos Del Guaira | E23: Terrestre | F23: Brasil | G23: 174000 | H23: 2175000 | I23: 80 | J23: maiz paraguayo en granos ( a granel )
A24: 2010-01-06 | B24: 10019090 | C24: Agro Silo Santa Catalina Sa | D24: Term.Cargas Km.12 | E24: Terrestre | F24: Brasil | G24: 212000 | H24: 1000000 | I24: 212 | J24: 1.000)toneladas de trigo comun (triticum aestivum) en granos a granel, semi duro, tipo exportacion produccion pya. zafra 2009 para industrializacion libre de insectos vivos/muertos y aromas extraños.
A25: 2010-01-06 | B25: 10019090 | C25: Agro Silo Santa Catalina Sa | D25: Term.Cargas Km.12 | E25: Terrestre | F25: Brasil | G25: 123000 | H25: 1500000 | I25: 82 | J25: 1.500)toneladas de trigo (triguillo) paraguayo en granos comun a granel, comercial semi duro, zafra 2009, para industrializacion, libre de insectos vivos/muertos.
A26: 2010-01-06 | B26: 10019090 | C26: Agroser S.A.E.C.A. | D26: Saltos Del Guaira | E26: Terrestre | F26: Brasil | G26: 316400 | H26: 1600000 | I26: 197.75 | J26: 1.600 toneladas de trigo en granos a granel.-
A27: 2010-01-06 | B27: 10019090 | C27: Oligranos S.R.L. | D27: Term.Cargas Km.12 | E27: Terrestre | F27: Brasil | G27: 110500 | H27: 500000 | I27: 221 | J27: 500 tons.( quinientas toneladas) de: trigo paraguayo comun en granos, a granel cosecha: 2009.-
A28: 2010-01-06 | B28: 12051090 | C28: Coop. Naranjal Ltda | D28: Encarnacion | E28: Terrestre | F28: Brasil | G28: 292000 | H28: 1000000 | I28: 292 | J28: semilla de nabo (nabina) o de colza incluso quebrantadas las demas en: 1.000 toneladas de canola en granos a granel
A29: 2010-01-07 | B29: 10059010 | C29: Nativa Agricola S.A. | D29: Saltos Del Guaira | E29: Terrestre | F29: Brasil | G29: 59500 | H29: 500000 | I29: 119 | J29: 500 tons maiz en granos amarillo a granel, insumo destinado a fabricacion de balanceado para alimentacion animal zafra 2009, tp exportacion, libre de insectos, humedad max. 14% - impureza max. 1% -
A30: 2010-01-07 | B30: 10019090 | C30: Adm Paraguay Sa | D30: Pedro Juan Caballero | E30: Terrestre | F30: Brasil | G30: 442000 | H30: 2000000 | I30: 221 | J30: 2.000 toneladas metricas de trigo paraguayo a granel
A31: 2010-01-07 | B31: 10019090 | C31: Agrofertil Sa | D31: Term.Cargas Km.12 | E31: Terrestre | F31: Brasil | G31: 216000 | H31: 1000000 | I31: 216 | J31: 1.000.000)kilos trigo en granos comun(triticum aestivum) , a granel comercial semi-duro, producto destinado a industrializacion, zafra 2009, produccion paraguaya
A32: 2010-01-07 | B32: 10019090 | C32: Agrofertil Sa | D32: Term.Cargas Km.12 | E32: Terrestre | F32: Brasil | G32: 216000 | H32: 1000000 | I32: 216 | J32: 1.000.000)kilos trigo en granos comun(triticum aestivum) , a granel comercial semi-duro, producto destinado a industrializacion, zafra 2009, produccion paraguaya
A33: 2010-01-07 | B33: 10019090 | C33: Agrofertil Sa | D33: Term.Cargas Km.12 | E33: Terrestre | F33: Brasil | G33: 216000 | H33: 1000000 | I33: 216 | J33: 1.000.000)kilos trigo en granos comun(triticum aestivum) , a granel comercial semi-duro, producto destinado a industrializacion, zafra 2009, produccion paraguaya
A34: 2010-01-07 | B34: 10019090 | C34: Agro Silos El Productor Sa | D34: Saltos Del Guaira | E34: Terrestre | F34: Brasil | G34: 198000 | H34: 1000000 | I34: 198 | J34: 1.000 toneladas metricas de trigo paraguayo a granel semi duro safra 2009
A35: 2010-01-07 | B35: 10019090 | C35: Cooperalba Ltda. | D35: Saltos Del Guaira | E35: Terrestre | F35: Brasil | G35: 213000 | H35: 1000000 | I35: 213 | J35: 1.000,00 toneladas de trigo paraguayo en granos a granel zafra 2.009.-
A36: 2010-01-07 | B36: 10019090 | C36: Cooperalba Ltda. | D36: Saltos Del Guaira | E36: Terrestre | F36: Brasil | G36: 213000 | H36: 1000000 | I36: 213 | J36: 1.000,00 toneladas de trigo paraguayo en granos a granel zafra 2.009.-
A37: 2010-01-07 | B37: 12051090 | C37: Coop. Naranjal Ltda | D37: Encarnacion | E37: Terrestre | F37: Brasil | G37: 292000 | H37: 1000000 | I37: 292 | J37: semilla de nabo (nabina) o de colza incluso quebrantada las demas en: 1.000 toneladas de canola en granos a granel
A38: 2010-01-07 | B38: 15141100 | C38: Aceites Y Derivados Srl | D38: Term.Cargas Km.12 | E38: Terrestre | F38: Brasil | G38: 74000 | H38: 100000 | I38: 740 | J38: 100,00 mtons. aceite de canola, bruto, a granel.
A39: 2010-01-07 | B39: 15141100 | C39: Aceites Y Derivados Srl | D39: Term.Cargas Km.12 | E39: Terrestre | F39: Brasil | G39: 74000 | H39: 100000 | I39: 740 | J39: 100,00 mtons. aceite de canola, bruto, a granel.
A40: 2010-01-08 | B40: 10059010 | C40: Agrotec S.A. | D40: Saltos Del Guaira | E40: Terrestre | F40: Brasil | G40: 122000 | H40: 1000000 | I40: 122 | J40: 1.000 toneladas metricas de maiz amarillo en granos a granel destinado a la fabricacion de insumos para alimentacion animal paraguayo tipo industrial, zafra 2009
A41: 2010-01-08 | B41: 10019090 | C41: Allegretti S.A. | D41: Santa Helena | E41: Terrestre | F41: Brasil | G41: 199500 | H41: 950000 | I41: 210 | J41: 950 tons. (novecientos cincuenta toneladas) de: trigo paraguayo en granos a granel, comun semi duro. cosecha: 2009.-
A42: 2010-01-08 | B42: 12060090 | C42: Vicentin Paraguay S.A. | D42: Encarnacion | E42: Fluvial | F42: Argentina | G42: 1040000 | H42: 3200000 | I42: 325 | J42: los demas en: 3.200)ton. ( tres millones doscientos mil) kilos de girasol en granos a granel.-
A43: 2010-01-11 | B43: 10019090 | C43: Agro Silo Santa Catalina Sa | D43: Term.Cargas Km.12 | E43: Terrestre | F43: Brasil | G43: 80000 | H43: 1000000 | I43: 80 | J43: 1.000)toneladas de trigo (triguillo) paraguayo en granos comun a granel, comercial, semi duro, zafra 2009 para industrializacion, libre de insectos vivos/muertos.-
A44: 2010-01-11 | B44: 10019090 | C44: Norte Sur Sa | D44: Campestre S.A. | E44: Terrestre | F44: Brasil | G44: 45900 | H44: 540000 | I44: 85 | J44: los demas en:(540) quinientos cuarenta tons de trigo en granos, a granel zafra 2009
A45: 2010-01-11 | B45: 12051090 | C45: Adm Paraguay Sa | D45: Encarnacion | E45: Terrestre | F45: Brasil | G45: 124200 | H45: 400000 | I45: 310.5 | J45: las demas en: 400)ton. ( cuatroscientos mil kilos) de canola paraguaya a granel.-
A46: 2010-01-11 | B46: 12060090 | C46: Vicentin Paraguay S.A. | D46: Villeta | E46: Fluvial | F46: Argentina | G46: 568650 | H46: 1700000 | I46: 334.5 | J46: 1.700 toneladas de girasol en granos a granel.-
A47: 2010-01-12 | B47: 10059010 | C47: Agrotec S.A. | D47: Saltos Del Guaira | E47: Terrestre | F47: Brasil | G47: 123500 | H47: 1000000 | I47: 123.5 | J47: 1.000 toneladas metricas de maiz amarillo,en granos a granel,destinado a la fabricacion de insumos para alimentacion animal paraguayo, tipo industrial, zafra 2009
A48: 2010-01-12 | B48: 10059010 | C48: Fecularia Salto Pilao Sa | D48: Saltos Del Guaira | E48: Terrestre | F48: Brasil | G48: 174000 | H48: 2175000 | I48: 80 | J48: maiz paraguayo en granos ( a granel )
A49: 2010-01-12 | B49: 10059010 | C49: Unigranos S.A. | D49: Saltos Del Guaira | E49: Terrestre | F49: Brasil | G49: 137500 | H49: 1000000 | I49: 137.5 | J49: 1.000 tons.( un mil toneladas) de: maiz en granos, a granel cosecha:2009.-
A50: 2010-01-12 | B50: 10019090 | C50: Agrofertil Sa | D50: Term.Cargas Km.12 | E50: Terrestre | F50: Brasil | G50: 216000 | H50: 1000000 | I50: 216 | J50: 1.000.000)kilos de trigo en granos comun(triticum aestivum), a granel comercial semi-duro, producto destinado a industrializacion zafra 2009, produccion paraguaya
A51: 2010-01-12 | B51: 10019090 | C51: Agrotec S.A. | D51: Term.Cargas Km.12 | E51: Terrestre | F51: Brasil | G51: 312000 | H51: 1500000 | I51: 208 | J51: 1.500 toneladas metricas de trigo paraguayo - zafra 2009, en granos a granel semi duro
A52: 2010-01-12 | B52: 10019090 | C52: Agrotoro S.A. | D52: Term.Cargas Km.12 | E52: Terrestre | F52: Brasil | G52: 34000 | H52: 400000 | I52: 85 | J52: 400)toneladas de triguillo comun (triticum aestivum) paraguayo, a granel comercial semi duro destinado a fabricacion para alimentacion animal, safra 2009.-
A53: 2010-01-12 | B53: 10019090 | C53: Agrotoro S.A. | D53: Term.Cargas Km.12 | E53: Terrestre | F53: Brasil | G53: 85000 | H53: 500000 | I53: 170 | J53: 500)toneladas metricas de trigo paraguayo en granos comun(triticum aestivum) a granel, comercial semi duro, safra 2009 destinado a la industrializacion .-
A54: 2010-01-12 | B54: 10019090 | C54: Agrotoro S.A. | D54: Term.Cargas Km.12 | E54: Terrestre | F54: Brasil | G54: 85000 | H54: 500000 | I54: 170 | J54: 500)toneladas metricas de trigo paraguayo en granos comun (triticum aestivum) a granel, comercial semi duro, safra 2009, destinado a la industrializacion.
A55: 2010-01-12 | B55: 10019090 | C55: Grain Busines S.A. | D55: Saltos Del Guaira | E55: Terrestre | F55: Brasil | G55: 54600 | H55: 600000 | I55: 91 | J55: 600 tons. ( seiscientas toneladas) de: trigo (triguillo) paraguayo en granos a granel cosecha 2009.-
A56: 2010-01-12 | B56: 10019090 | C56: San Miguel Arcangel S.R.L. | D56: Campestre S.A. | E56: Terrestre | F56: Brasil | G56: 165000 | H56: 750000 | I56: 220 | J56: 750 tons. trigo comun, semi-duro en granos a granel zafra 2009/2010, destinados para alimentacion animalcon las siguientes clasificaciones:humedad max. 12% fibra max. 6% impureza max. 1% mat.
A57: 2010-01-12 | B57: 12060090 | C57: Trociuk Compañia Agricola Ganadera | D57: Encarnacion | E57: Fluvial | F57: Argentina | G57: 254400 | H57: 800000 | I57: 318 | J57: 800 ton) semillas de girasol paraguayo, en granos a granel
A58: 2010-01-13 | B58: 10059010 | C58: Agrotec S.A. | D58: Saltos Del Guaira | E58: Terrestre | F58: Brasil | G58: 123500 | H58: 1000000 | I58: 123.5 | J58: 1.000 toneladas metricas de maiz amarillo en granos a granel, destinado a la fabricacion de insumos p/ alimentacion animal paraguayo, tipo industrial zafra 2009
A59: 2010-01-13 | B59: 10059010 | C59: Crap S.A. | D59: Campestre S.A. | E59: Terrestre | F59: Brasil | G59: 115000 | H59: 1000000 | I59: 115 | J59: en granos : 1000 tons. ( un mil toneladas ) de maiz en granos, a granel safra 2009.-
A60: 2010-01-13 | B60: 10059010 | C60: Diagro Sa | D60: Saltos Del Guaira | E60: Terrestre | F60: Brasil | G60: 108000 | H60: 900000 | I60: 120 | J60: 900,00 ton.maiz en granos a granel zafra 2008/2009 de color amarillo,destinado a la fabricacion de insumos p/la alimentacion animal,libre de gmo con humedad max.14%,impureza max.1% ....
A61: 2010-01-13 | B61: 10019090 | C61: Agrotec S.A. | D61: Term.Cargas Km.12 | E61: Terrestre | F61: Brasil | G61: 312000 | H61: 1500000 | I61: 208 | J61: 1.500 toneladas metricas de trigo paraguayo, zafra 2009, en granos a granel semi duro
A62: 2010-01-13 | B62: 10019090 | C62: Nativa Agricola S.A. | D62: Term.Cargas Km.12 | E62: Terrestre | F62: Brasil | G62: 208000 | H62: 1000000 | I62: 208 | J62: 1.000 tons. de trigo en granos a granel zafra 2009 comun semi duro. humedad max. 13%, impureza max. 1%, ph 77.-
A63: 2010-01-13 | B63: 10019090 | C63: Nativa Agricola S.A. | D63: Term.Cargas Km.12 | E63: Terrestre | F63: Brasil | G63: 208000 | H63: 1000000 | I63: 208 | J63: 1.000 tons. de trigo en granos a granel zafra 2009, comun semi duro. humedad max. 13%, impureza max. 1%, ph 77.-
A64: 2010-01-14 | B64: 10059010 | C64: Eco Safari Sa | D64: Villeta | E64: Fluvial | F64: Venezuela | G64: 5150000 | H64: 25000000 | I64: 206 | J64: maiz amarillo en granos, a granel.-
A65: 2010-01-14 | B65: 10059010 | C65: Bento & Asociados | D65: Term.Cargas Km.12 | E65: Terrestre | F65: Brasil | G65: 185000 | H65: 1000000 | I65: 185 | J65: 1.000 tons. maiz paraguayo en granos a granel destinado a la fabricacion de insumos para alimentacion animal, origen paraguaya, zafra 2008/2009 humedad maxima 14%, impureza maxima 1% .
A66: 2010-01-14 | B66: 10059010 | C66: Coop.Colonias Unidas Agrop.Ind.Ltda. | D66: Term.Cargas Km.12 | E66: Terrestre | F66: Brasil | G66: 134000 | H66: 1000000 | I66: 134 | J66: 1.000.- tm maiz en granos a granel, destinado a la fabricacion de racion para alimentacion animal, zafra 2009.
A67: 2010-01-14 | B67: 10059090 | C67: Eno Bronstrup Sa (Ebsa) | D67: Caacupemi | E67: Fluvial | F67: España | G67: 3450 | H67: 3000 | I67: 1150 | J67: los demas maiz en: 200 bolsas con 3000 kilos de maiz blanco trillado.-
A68: 2010-01-14 | B68: 10019090 | C68: Cooperalba Ltda. | D68: Saltos Del Guaira | E68: Terrestre | F68: Brasil | G68: 108500 | H68: 500000 | I68: 217 | J68: 500,00 toneladas de trigo paraguayo en granos a granel zafra 2.009.-
A69: 2010-01-15 | B69: 10059010 | C69: Oligranos S.R.L. | D69: Santa Helena | E69: Terrestre | F69: Brasil | G69: 132000 | H69: 1000000 | I69: 132 | J69: 1.000 tons.( un mil toneladas) de maiz amarillo paraguayo en granos a granel: cosecha 2009.-
A70: 2010-01-15 | B70: 10059010 | C70: Oligranos S.R.L. | D70: Santa Helena | E70: Terrestre | F70: Brasil | G70: 132000 | H70: 1000000 | I70: =+G70/H70*1000 -> 132 | J70: 1.000 tons.( un mil toneladas) de maiz amarillo paraguayo en granos a granel: cosecha 2009.-
A71: 2010-01-15 | B71: 10059010 | C71: Salto Aguaray Srl | D71: Capital | E71: Fluvial | F71: Uruguay | G71: 733800 | H71: 5800000 | I71: 126.5172414 | J71: 5.800.000 kgs de maiz en granos a granel
A72: 2010-01-15 | B72: 10019090 | C72: Mop Trading Sa | D72: Term.Cargas Km.12 | E72: Terrestre | F72: Brasil | G72: 380000 | H72: 2000000 | I72: 190 | J72: 2000,00 tnl. trigo en granos (triticum aestivum) a granel, comercial , semi duro, safra 2009.-
A73: 2010-01-15 | B73: 10019090 | C73: Adm Paraguay Sa | D73: Pedro Juan Caballero | E73: Terrestre | F73: Brasil | G73: 110500 | H73: 500000 | I73: 221 | J73: 500 toneladas metricas de trigo paraguayo en granos a granel
A74: 2010-01-15 | B74: 10019090 | C74: San Miguel Arcangel S.R.L. | D74: Campestre S.A. | E74: Terrestre | F74: Brasil | G74: 165000 | H74: 750000 | I74: 220 | J74: 750,00 tons.trigo comun,semi-duro en granos a granel zafra 2009/2010,destinados para alimentacion animal,con las siguientes clasificaciones:humedad max.12%,fibra max.6%,impureza max.1%,mat.mineral 4%
A75: 2010-01-18 | B75: 10019090 | C75: Cooperalba Ltda. | D75: Saltos Del Guaira | E75: Terrestre | F75: Brasil | G75: 107000 | H75: 500000 | I75: 214 | J75: trigo
A76: 2010-01-18 | B76: 10019090 | C76: Silos Puente Kyjha S.A. | D76: Saltos Del Guaira | E76: Terrestre | F76: Brasil | G76: 53265 | H76: 265000 | I76: 201 | J76: trigo
A77: 2010-01-18 | B77: 10019090 | C77: Lar Srl | D77: Term.Cargas Km.12 | E77: Terrestre | F77: Brasil | G77: 180000 | H77: 1000000 | I77: 180 | J77: trigo
A78: 2010-01-18 | B78: 10019090 | C78: Lar Srl | D78: Term.Cargas Km.12 | E78: Terrestre | F78: Brasil | G78: 180000 | H78: 1000000 | I78: 180 | J78: trigo
A79: 2010-01-18 | B79: 10019090 | C79: Trociuk Compañia Agricola Ganadera | D79: Term.Cargas Km.12 | E79: Terrestre | F79: Brasil | G79: 98800 | H79: 520000 | I79: 190 | J79: trigo
A80: 2010-01-18 | B80: 10019090 | C80: Trociuk Compañia Agricola Ganadera | D80: Term.Cargas Km.12 | E80: Terrestre | F80: Brasil | G80: 98800 | H80: 520000 | I80: 190 | J80: trigo
A81: 2010-01-18 | B81: 10019090 | C81: Nativa Agricola S.A. | D81: Term.Cargas Km.12 | E81: Terrestre | F81: Brasil | G81: 208000 | H81: 1000000 | I81: 208 | J81: trigo
A82: 2010-01-18 | B82: 10019090 | C82: Nativa Agricola S.A. | D82: Term.Cargas Km.12 | E82: Terrestre | F82: Brasil | G82: 208000 | H82: 1000000 | I82: 208 | J82: trigo
A83: 2010-01-19 | B83: 10059010 | C83: Agro Silos El Productor Sa | D83: Saltos Del Guaira | E83: Terrestre | F83: Brasil | G83: 191250 | H83: 1500000 | I83: 127.5 | J83: maiz
A84: 2010-01-19 | B84: 10059010 | C84: Agro Silos El Productor Sa | D84: Term.Cargas Km.12 | E84: Terrestre | F84: Brasil | G84: 191250 | H84: 1500000 | I84: 127.5 | J84: maiz
A85: 2010-01-19 | B85: 10059010 | C85: Allegretti S.A. | D85: Santa Helena | E85: Terrestre | F85: Brasil | G85: 92000 | H85: 800000 | I85: 115 | J85: maiz
A86: 2010-01-19 | B86: 10059010 | C86: Crap S.A. | D86: Campestre S.A. | E86: Terrestre | F86: Brasil | G86: 125000 | H86: 1000000 | I86: 125 | J86: maiz
A87: 2010-01-19 | B87: 10059010 | C87: Cargill Agropecuaria Sa | D87: Campestre S.A. | E87: Terrestre | F87: Brasil | G87: 117780 | H87: 1000000 | I87: 117.78 | J87: maiz
A88: 2010-01-19 | B88: 10019090 | C88: American Srl | D88: Term.Cargas Km.12 | E88: Terrestre | F88: Brasil | G88: 86000 | H88: 1000000 | I88: 86 | J88: trigo
A89: 2010-01-19 | B89: 10019090 | C89: Agro Industrial Paim | D89: Term.Cargas Km.12 | E89: Terrestre | F89: Brasil | G89: 292500 | H89: 1500000 | I89: 195 | J89: trigo
A90: 2010-01-19 | B90: 10019090 | C90: Grain Busines S.A. | D90: Term.Cargas Km.12 | E90: Terrestre | F90: Brasil | G90: 87000 | H90: 1000000 | I90: 87 | J90: trigo
A91: 2010-01-19 | B91: 12051090 | C91: Coop. Naranjal Ltda | D91: Encarnacion | E91: Terrestre | F91: Brasil | G91: 302000 | H91: 1000000 | I91: 302 | J91: canola
A92: 2010-01-19 | B92: 12060090 | C92: Trociuk Compañia Agricola Ganadera | D92: Encarnacion | E92: Fluvial | F92: Argentina | G92: 252000 | H92: 800000 | I92: 315 | J92: semillas de girasol
A93: 2010-01-20 | B93: 10019090 | C93: Adm Paraguay Sa | D93: Saltos Del Guaira | E93: Terrestre | F93: Brasil | G93: 624000 | H93: 3000000 | I93: 208 | J93: trigo
A94: 2010-01-20 | B94: 10019090 | C94: Coop.Colonias Unidas Agrop.Ind.Ltda. | D94: Term.Cargas Km.12 | E94: Terrestre | F94: Brasil | G94: 185300 | H94: 850000 | I94: 218 | J94: trigo
A95: 2010-01-20 | B95: 10019090 | C95: Coop.Colonias Unidas Agrop.Ind.Ltda. | D95: Term.Cargas Km.12 | E95: Terrestre | F95: Brasil | G95: 185300 | H95: 850000 | I95: 218 | J95: trigo
A96: 2010-01-20 | B96: 10019090 | C96: Coop. Naranjito Ltda. | D96: Term.Cargas Km.12 | E96: Terrestre | F96: Brasil | G96: 607500 | H96: 2500000 | I96: 243 | J96: trigo
A97: 2010-01-20 | B97: 10019090 | C97: Cooperativa Agropecuaria E Ind | D97: Term.Cargas Km.12 | E97: Terrestre | F97: Brasil | G97: 729000 | H97: 3000000 | I97: 243 | J97: trigo
A98: 2010-01-21 | B98: 10059010 | C98: Agricola Rambo S.A. | D98: Campestre S.A. | E98: Terrestre | F98: Brasil | G98: 84000 | H98: 1200000 | I98: 70 | J98: maiz
A99: 2010-01-21 | B99: 10019090 | C99: Compañia Dekalpar Sa | D99: Saltos Del Guaira | E99: Terrestre | F99: Brasil | G99: 486000 | H99: 2000000 | I99: 243 | J99: trigo
A100: 2010-01-21 | B100: 12060090 | C100: C.W Trading S.A. | D100: Encarnacion | E100: Terrestre | F100: Brasil | G100: 19140 | H100: 55000 | I100: 348 | J100: semillas de girasol
A101: 2010-01-21 | B101: 12060090 | C101: C.W Trading S.A. | D101: Encarnacion | E101: Terrestre | F101: Brasil | G101: 19140 | H101: 55000 | I101: 348 | J101: semillas de girasol
A102: 2010-01-22 | B102: 10059010 | C102: Frontera Agrop.Paraguay Sa | D102: Capital | E102: Fluvial | F102: Uruguay | G102: 40600.63 | H102: 324805 | I102: 125.0000154 | J102: maiz
A103: 2010-01-22 | B103: 10019090 | C103: Agro Silos El Productor Sa | D103: Saltos Del Guaira | E103: Terrestre | F103: Brasil | G103: 486000 | H103: 2000000 | I103: 243 | J103: trigo
A104: 2010-01-22 | B104: 10019090 | C104: Agro Silos El Productor Sa | D104: Term.Cargas Km.12 | E104: Terrestre | F104: Brasil | G104: 43500 | H104: 500000 | I104: 87 | J104: trigo
A105: 2010-01-22 | B105: 10019090 | C105: Oligranos S.R.L. | D105: Santa Helena | E105: Terrestre | F105: Brasil | G105: 56500 | H105: 250000 | I105: 226 | J105: trigo
A106: 2010-01-22 | B106: 12060090 | C106: Vicentin Paraguay S.A. | D106: Encarnacion | E106: Fluvial | F106: Argentina | G106: 2112000 | H106: 6400000 | I106: 330 | J106: semillas de girasol
A107: 2010-01-22 | B107: 12060090 | C107: Vicentin Paraguay S.A. | D107: Encarnacion | E107: Fluvial | F107: Argentina | G107: 528000 | H107: 1600000 | I107: 330 | J107: semillas de girasol
A108: 2010-01-25 | B108: 10059010 | C108: Vierci Francisco Y Cia. Srl | D108: Concepcion | E108: Fluvial | F108: Uruguay | G108: 150700 | H108: 1100000 | I108: 137 | J108: maiz
A109: 2010-01-25 | B109: 10059010 | C109: Agrofertil Sa | D109: Saltos Del Guaira | E109: Terrestre | F109: Brasil | G109: 127000 | H109: 1000000 | I109: 127 | J109: maiz
A110: 2010-01-25 | B110: 10019090 | C110: Trociuk Compañia Agricola Ganadera | D110: Term.Cargas Km.12 | E110: Terrestre | F110: Brasil | G110: 99840 | H110: 520000 | I110: 192 | J110: trigo
A111: 2010-01-25 | B111: 10019090 | C111: Trociuk Compañia Agricola Ganadera | D111: Term.Cargas Km.12 | E111: Terrestre | F111: Brasil | G111: 98800 | H111: 520000 | I111: 190 | J111: trigo
A112: 2010-01-25 | B112: 10019090 | C112: Trociuk Compañia Agricola Ganadera | D112: Term.Cargas Km.12 | E112: Terrestre | F112: Brasil | G112: 98800 | H112: 520000 | I112: 190 | J112: trigo
A113: 2010-01-25 | B113: 10019090 | C113: Trociuk Compañia Agricola Ganadera | D113: Term.Cargas Km.12 | E113: Terrestre | F113: Brasil | G113: 99840 | H113: 520000 | I113: 192 | J113: trigo
A114: 2010-01-25 | B114: 15121110 | C114: Frontera Agrop.Paraguay Sa | D114: Villeta | E114: Fluvial | F114: Argentina | G114: 59400 | H114: 72000 | I114: 825 | J114: aceite de girasol
A115: 2010-01-25 | B115: 15121110 | C115: Frontera Agrop.Paraguay Sa | D115: Villeta | E115: Fluvial | F115: Argentina | G115: 583200 | H115: 720000 | I115: 810 | J115: aceite de girasol
A116: 2010-01-25 | B116: 15121110 | C116: Oleaginosa Raatz Sa | D116: Term.Cargas Km.12 | E116: Terrestre | F116: Brasil | G116: 420000 | H116: 500000 | I116: 840 | J116: aceite de girasol
A117: 2010-01-26 | B117: 10019090 | C117: Compañia Dekalpar Sa | D117: Saltos Del Guaira | E117: Terrestre | F117: Brasil | G117: 312000 | H117: 1500000 | I117: 208 | J117: trigo
A118: 2010-01-26 | B118: 10019090 | C118: Agro Silos El Productor Sa | D118: Saltos Del Guaira | E118: Terrestre | F118: Brasil | G118: 297000 | H118: 1500000 | I118: 198 | J118: trigo
A119: 2010-01-26 | B119: 10019090 | C119: Agro Silos El Productor Sa | D119: Saltos Del Guaira | E119: Terrestre | F119: Brasil | G119: 297000 | H119: 1500000 | I119: 198 | J119: trigo
A120: 2010-01-26 | B120: 10019090 | C120: Norte Sur Sa | D120: Santa Helena | E120: Terrestre | F120: Brasil | G120: 43800 | H120: 200000 | I120: 219 | J120: trigo
A121: 2010-01-26 | B121: 10019090 | C121: Grupo Apane Sa | D121: Campestre S.A. | E121: Terrestre | F121: Brasil | G121: 236000 | H121: 1000000 | I121: 236 | J121: trigo
A122: 2010-01-27 | B122: 10059010 | C122: Cooperalba Ltda. | D122: Saltos Del Guaira | E122: Terrestre | F122: Brasil | G122: 111000 | H122: 1000000 | I122: 111 | J122: maiz
A123: 2010-01-27 | B123: 10059010 | C123: Diagro Sa | D123: Saltos Del Guaira | E123: Terrestre | F123: Brasil | G123: 108000 | H123: 900000 | I123: 120 | J123: maiz
A124: 2010-01-27 | B124: 10019090 | C124: Agro Santa Rosa Sa | D124: Term.Cargas Km.12 | E124: Terrestre | F124: Brasil | G124: 212000 | H124: 1000000 | I124: 212 | J124: trigo
A125: 2010-01-27 | B125: 10019090 | C125: Agro Santa Rosa Sa | D125: Term.Cargas Km.12 | E125: Terrestre | F125: Brasil | G125: 212000 | H125: 1000000 | I125: 212 | J125: trigo
A126: 2010-01-27 | B126: 10019090 | C126: Adm Paraguay Sa | D126: Term.Cargas Km.12 | E126: Terrestre | F126: Brasil | G126: 91000 | H126: 500000 | I126: 182 | J126: trigo
A127: 2010-01-27 | B127: 12051090 | C127: Coop. Naranjal Ltda | D127: Encarnacion | E127: Terrestre | F127: Brasil | G127: 307000 | H127: 1000000 | I127: 307 | J127: canola
A128: 2010-01-28 | B128: 10019090 | C128: Grain Busines S.A. | D128: Term.Cargas Km.12 | E128: Terrestre | F128: Brasil | G128: 87000 | H128: 1000000 | I128: 87 | J128: trigo
A129: 2010-01-28 | B129: 12060090 | C129: Vicentin Paraguay S.A. | D129: Encarnacion | E129: Fluvial | F129: Argentina | G129: 66000 | H129: 200000 | I129: 330 | J129: semillas de girasol
A130: 2010-01-28 | B130: 15121110 | C130: Aceites Y Derivados Srl | D130: Villeta | E130: Fluvial | F130: Argentina | G130: 904650 | H130: 1110000 | I130: 815 | J130: aceite de girasol
A131: 2010-01-28 | B131: 15121110 | C131: Oleaginosa Raatz Sa | D131: Encarnacion | E131: Terrestre | F131: Uruguay | G131: 413280 | H131: 504000 | I131: 820 | J131: aceite de girasol
A132: 2010-02-01 | B132: 10059010 | C132: Diagro Sa | D132: Saltos Del Guaira | E132: Terrestre | F132: Brasil | G132: 60500 | H132: 500000 | I132: 121 | J132: maiz
A133: 2010-02-01 | B133: 10019090 | C133: Cooperalba Ltda. | D133: Saltos Del Guaira | E133: Terrestre | F133: Brasil | G133: 319500 | H133: 1500000 | I133: 213 | J133: trigo
A134: 2010-02-01 | B134: 15121110 | C134: Cargill Agropecuaria Sa | D134: Campestre S.A. | E134: Terrestre | F134: Brasil | G134: 370350 | H134: 450000 | I134: =+G134/H134*1000 -> 823 | J134: aceite de girasol
A135: 2010-02-01 | B135: 15121110 | C135: Cargill Agropecuaria Sa | D135: Campestre S.A. | E135: Terrestre | F135: Brasil | G135: 370350 | H135: 450000 | I135: 823 | J135: aceite de girasol
A136: 2010-02-02 | B136: 10019090 | C136: Coop.Colonias Unidas Agrop.Ind.Ltda. | D136: Term.Cargas Km.12 | E136: Terrestre | F136: Brasil | G136: 80000 | H136: 1000000 | I136: 80 | J136: trigo
A137: 2010-02-02 | B137: 12060090 | C137: Vicentin Paraguay S.A. | D137: Encarnacion | E137: Fluvial | F137: Argentina | G137: 264000 | H137: 800000 | I137: 330 | J137: girasol en granos a granel
A138: 2010-02-02 | B138: 15141100 | C138: Aceites Y Derivados Srl | D138: Term.Cargas Km.12 | E138: Terrestre | F138: Brasil | G138: 148000 | H138: 200000 | I138: 740 | J138: 200,00 mtons. aceite de canola, bruto, a granel.
A139: 2010-02-03 | B139: 10059010 | C139: C. Vale S.A | D139: Saltos Del Guaira | E139: Terrestre | F139: Brasil | G139: 248600 | H139: 2200000 | I139: 113 | J139: maiz
A140: 2010-02-03 | B140: 15141100 | C140: Aceites Y Derivados Srl | D140: Term.Cargas Km.12 | E140: Terrestre | F140: Argentina | G140: 148000 | H140: 200000 | I140: 740 | J140: 200 ton aceite de canola a granel
A141: 2010-02-04 | B141: 15121110 | C141: Contiparaguay S.A | D141: Capital | E141: Fluvial | F141: Argentina | G141: 2489440.8 | H141: 3771880 | I141: 660 | J141: aceite de girasol
A142: 2010-02-04 | B142: 15141100 | C142: Aceites Y Derivados Srl | D142: Term.Cargas Km.12 | E142: Terrestre | F142: Brasil | G142: 148000 | H142: 200000 | I142: 740 | J142: 200 ton aceite de canola a granel
A143: 2010-02-05 | B143: 10059010 | C143: Agrotec S.A. | D143: Saltos Del Guaira | E143: Terrestre | F143: Brasil | G143: 123500 | H143: 1000000 | I143: 123.5 | J143: maiz
A144: 2010-02-05 | B144: 10019090 | C144: Crap S.A. | D144: Campestre S.A. | E144: Terrestre | F144: Brasil | G144: 102500 | H144: 500000 | I144: 205 | J144: trigo
A145: 2010-02-08 | B145: 10019090 | C145: Agro Silos El Productor Sa | D145: Saltos Del Guaira | E145: Terrestre | F145: Brasil | G145: 310980 | H145: 1500000 | I145: 207.32 | J145: trigo
A146: 2010-02-08 | B146: 15121110 | C146: Tierra Roja Sa | D146: Capital | E146: Fluvial | F146: Argentina | G146: 200745.6 | H146: 228120 | I146: 880 | J146: aceite de girasol
A147: 2010-02-09 | B147: 12051090 | C147: Coop. Naranjal Ltda | D147: Encarnacion | E147: Terrestre | F147: Brasil | G147: 312000 | H147: 1000000 | I147: 312 | J147: canola en granos a granel
A148: 2010-02-09 | B148: 12051090 | C148: Coop. Naranjal Ltda | D148: Encarnacion | E148: Terrestre | F148: Brasil | G148: 312000 | H148: 1000000 | I148: 312 | J148: canola en granos a granel
A149: 2010-02-10 | B149: 10019090 | C149: Oligranos S.R.L. | D149: Saltos Del Guaira | E149: Terrestre | F149: Brasil | G149: 39600 | H149: 180000 | I149: 220 | J149: trigo
A150: 2010-02-11 | B150: 10019090 | C150: Adm Paraguay Sa | D150: Term.Cargas Km.12 | E150: Terrestre | F150: Brasil | G150: 83500 | H150: 500000 | I150: 167 | J150: trigo
A151: 2010-02-12 | B151: 10059010 | C151: Bento & Asociados | D151: Term.Cargas Km.12 | E151: Terrestre | F151: Brasil | G151: 185000 | H151: 1000000 | I151: 185 | J151: maiz
A152: 2010-02-12 | B152: 15121110 | C152: Cargill Agropecuaria Sa | D152: Villeta | E152: Fluvial | F152: Emiratos Arabes Unid | G152: 1110485.61 | H152: 1254786 | I152: 885 | J152: aceite de girasol
A153: 2010-02-18 | B153: 15121110 | C153: Oleaginosa Raatz Sa | D153: Term.Cargas Km.12 | E153: Terrestre | F153: Brasil | G153: 420000 | H153: 500000 | I153: 840 | J153: aceite de girasol
A154: 2010-02-19 | B154: 10059010 | C154: Agrotec S.A. | D154: Term.Cargas Km.12 | E154: Terrestre | F154: Brasil | G154: 73500 | H154: 600000 | I154: 122.5 | J154: maiz
A155: 2010-02-19 | B155: 10019090 | C155: Agro Industrial Paim | D155: Term.Cargas Km.12 | E155: Terrestre | F155: Brasil | G155: 97500 | H155: 500000 | I155: 195 | J155: trigo
A156: 2010-02-19 | B156: 10019090 | C156: Agro Silo Santa Catalina Sa | D156: Term.Cargas Km.12 | E156: Terrestre | F156: Brasil | G156: 59200 | H156: 800000 | I156: 74 | J156: trigo
A157: 2010-02-19 | B157: 15121110 | C157: Oleaginosa Raatz Sa | D157: Encarnacion | E157: Terrestre | F157: Uruguay | G157: 438480 | H157: 560000 | I157: 783 | J157: aceite de girasol
A158: 2010-02-22 | B158: 10019090 | C158: Parperon S.R.L. | D158: Saltos Del Guaira | E158: Terrestre | F158: Brasil | G158: 50400 | H158: 240000 | I158: 210 | J158: trigo
A159: 2010-02-24 | B159: 10019090 | C159: Agro Industrial Paim | D159: Term.Cargas Km.12 | E159: Terrestre | F159: Brasil | G159: 66400 | H159: 800000 | I159: 83 | J159: trigo
A160: 2010-02-24 | B160: 15121110 | C160: Aceites Y Derivados Srl | D160: Villeta | E160: Fluvial | F160: Argentina | G160: 1068600 | H160: 1300000 | I160: 822 | J160: aceite de girasol
A161: 2010-02-25 | B161: 10019090 | C161: San Miguel Arcangel S.R.L. | D161: Campestre S.A. | E161: Terrestre | F161: Brasil | G161: 165000 | H161: 750000 | I161: 220 | J161: trigo
A162: 2010-02-25 | B162: 10019090 | C162: Adm Paraguay Sa | D162: Pedro Juan Caballero | E162: Terrestre | F162: Brasil | G162: 213000 | H162: 1000000 | I162: 213 | J162: trigo
A163: 2010-02-25 | B163: 10019090 | C163: Adm Paraguay Sa | D163: Pedro Juan Caballero | E163: Terrestre | F163: Brasil | G163: 106500 | H163: 500000 | I163: 213 | J163: trigo
A164: 2010-02-25 | B164: 15121110 | C164: Aceites Y Derivados Srl | D164: Villeta | E164: Fluvial | F164: Argentina | G164: 1068600 | H164: 1300000 | I164: 822 | J164: aceite de girasol
A165: 2010-02-25 | B165: 15121110 | C165: Oleaginosa Raatz Sa | D165: Term.Cargas Km.12 | E165: Terrestre | F165: Brasil | G165: 420000 | H165: 500000 | I165: 840 | J165: aceite de girasol
A166: 2010-02-26 | B166: 10019090 | C166: Adm Paraguay Sa | D166: Encarnacion | E166: Terrestre | F166: Brasil | G166: 434000 | H166: 2000000 | I166: 217 | J166: trigo
A167: 2010-02-26 | B167: 10019090 | C167: Adm Paraguay Sa | D167: Encarnacion | E167: Terrestre | F167: Brasil | G167: 434000 | H167: 2000000 | I167: 217 | J167: trigo
A168: 2010-03-02 | B168: 12051090 | C168: Coop. Naranjal Ltda | D168: Encarnacion | E168: Terrestre | F168: Brasil | G168: 312000 | H168: 1000000 | I168: 312 | J168: canola en granos
A169: 2010-03-02 | B169: 12051090 | C169: Coop. Naranjal Ltda | D169: Encarnacion | E169: Terrestre | F169: Brasil | G169: 312000 | H169: 1000000 | I169: 312 | J169: canola en granos
A170: 2010-03-02 | B170: 15122910 | C170: Manufactura De Pilar Sa | D170: Mcal. Estigarribia | E170: Terrestre | F170: Bolivia | G170: 22400 | H170: 28000 | I170: 800 | J170: aceite de algodón
A171: 2010-03-02 | B171: 15122910 | C171: Manufactura De Pilar Sa | D171: Mcal. Estigarribia | E171: Terrestre | F171: Bolivia | G171: 22400 | H171: 28000 | I171: 800 | J171: aceite de algodón
A172: 2010-03-04 | B172: 10059010 | C172: Crap S.A. | D172: Campestre S.A. | E172: Terrestre | F172: Brasil | G172: 115000 | H172: 1000000 | I172: 115 | J172: maiz
A173: 2010-03-04 | B173: 10019090 | C173: Agro Santa Rosa Sa | D173: Term.Cargas Km.12 | E173: Terrestre | F173: Brasil | G173: 279500 | H173: 1300000 | I173: 215 | J173: trigo a granel
A174: 2010-03-04 | B174: 15121110 | C174: Cargill Agropecuaria Sa | D174: Campestre S.A. | E174: Terrestre | F174: Brasil | G174: 326000 | H174: 400000 | I174: 815 | J174: aceite de girasol
A175: 2010-03-04 | B175: 15121110 | C175: Cargill Agropecuaria Sa | D175: Campestre S.A. | E175: Terrestre | F175: Brasil | G175: 326000 | H175: 400000 | I175: 815 | J175: aceite de girasol
A176: 2010-03-04 | B176: 15121110 | C176: Cargill Agropecuaria Sa | D176: Campestre S.A. | E176: Terrestre | F176: Brasil | G176: 326000 | H176: 400000 | I176: 815 | J176: aceite de girasol
A177: 2010-03-08 | B177: 10059010 | C177: Lar Srl | D177: Term.Cargas Km.12 | E177: Terrestre | F177: Brasil | G177: 11325 | H177: 25000 | I177: 453 | J177: maiz
A178: 2010-03-08 | B178: 10019090 | C178: Agrofertil Sa | D178: Term.Cargas Km.12 | E178: Terrestre | F178: Brasil | G178: 256800 | H178: 1200000 | I178: 214 | J178: trigo a granel
A179: 2010-03-08 | B179: 10019090 | C179: Salto Aguaray Srl | D179: Pedro Juan Caballero | E179: Terrestre | F179: Brasil | G179: 262500 | H179: 1500000 | I179: 175 | J179: trigo a granel
